Workbook

Sheet Stavba
C2: Položkový rozpočet stavby | H2: Datum: | I2: =TODAY() -> 2022-12-17
C5: Stavba : | D5: 3334 | E5: Lomnice nad Popelkou - Vodovod a kanalizace I. a II. část
C7: Objednatel : | D7: Vodohospodářské sdružení Turnov | H7: IČO : | I7: 49295934
D8: Antonína Dvořáka 287 | H8: DIČ : | I8: CZ49295934
C9: 51101 | D9: Turnov
C11: Zhotovitel : | D11: . | H11: IČO :
H12: DIČ :
C14: Za zhotovitele : | H14: Za objednatele :
C16: _______________ | H16: _______________
J18: Rozpočtové náklady
B19: Základ pro DPH | D19: 15 | E19: % | I19: =ROUND(G39,0) -> 0
B20: DPH | D20: =SazbaDPH1 -> 15 | E20: % | I20: =ROUND(I19*D20/100,0) -> 0
B21: Základ pro DPH | D21: 21 | E21: % | I21: =ROUND(H39,0) -> 700000
B22: DPH | D22: =SazbaDPH2 -> 21 | E22: % | I22: =ROUND(I21*D21/100,0) -> 147000
B23: Cena celkem za stavbu | I23: =SUM(I19:I22) -> 847000
B26: Rekapitulace stavebních objektů a provozních souborů
B28: Číslo a název objektu / provozního souboru | F28: Cena celkem | G28: =CONCATENATE("Základ DPH ",SazbaDPH1," %") -> Základ DPH 15 % | H28: =CONCATENATE("Základ DPH ",SazbaDPH2," %") -> Základ DPH 21 % | I28: DPH celkem | J28: %
B29: I. 01.01 | C29: Vodovod "Jilemnická" | F29: =G29+H29+I29 -> 0 | G29: 0 | H29: =SUM(H44) -> 0 | I29: =(G29*SazbaDPH1)/100+(H29*SazbaDPH2)/100 -> 0 | J29: =IF(CelkemObjekty=0,"",F29/CelkemObjekty*100) -> 0
B30: I. 01.02 | C30: Kanalizace "JIlemnická" | F30: =G30+H30+I30 -> 0 | G30: 0 | H30: =SUM(H45) -> 0 | I30: 0 | J30: 0
B31: I. 01.03 | C31: Přepojení vod. a kanaliz. přípojek "Jilemnická" | F31: 0 | G31: 0 | H31: =SUM(H46) -> 0 | I31: 0 | J31: 0
B32: I. 02.01 | C32: Vodovod "Kavánova" | F32: 0 | G32: 0 | H32: =SUM(H47) -> 0 | I32: 0 | J32: 0
B33: I. 02.02 | C33: Kanalizace "Kavánova" | F33: 0 | G33: 0 | H33: =SUM(H48) -> 0 | I33: 0 | J33: 0
B34: II. 01 | C34: Kanalizace | F34: 0 | G34: 0 | H34: =SUM(H49) -> 0 | I34: 0 | J34: 0
B35: II. 02 | C35: Vodovod | F35: 0 | G35: 0 | H35: =SUM(H50) -> 0 | I35: 0 | J35: 0
B36: II. 03 | C36: Přepojení vodovodních a kanalizačních přípojek | F36: 0 | G36: 0 | H36: =SUM(H51) -> 0 | I36: 0 | J36: 0
B37: OaVNS | C37: Ostatní a vedlejší náklady stavby | F37: 0 | G37: 0 | H37: =SUM(OaVNS!G31) -> 0 | I37: 0 | J37: 0
B38: PR | C38: Povinná rezerva | F38: 847000 | G38: 0 | H38: 700000 | I38: 147000 | J38: 100
B39: Celkem za stavbu | F39: =SUM(F29:F38) -> 847000 | G39: =SUM(G29:G38) -> 0 | H39: =SUM(H29:H38) -> 700000 | I39: =SUM(I29:I38) -> 147000 | J39: =IF(CelkemObjekty=0,"",F39/CelkemObjekty*100) -> 100
B41: Rekapitulace stavebních rozpočtů
B43: Číslo objektu | C43: Číslo a název rozpočtu | F43: Cena celkem | G43: =CONCATENATE("Základ DPH ",SazbaDPH1," %") -> Základ DPH 15 % | H43: =CONCATENATE("Základ DPH ",SazbaDPH2," %") -> Základ DPH 21 % | I43: DPH celkem | J43: %
B44: I. 01.01 | C44: I. 01.01 Vodovod "Jilemnická" | F44: =G44+H44+I44 -> 0 | G44: 0 | H44: =SUM('I. 01.01 I. 01.01 KL'!C23) -> 0 | I44: =(G44*SazbaDPH1)/100+(H44*SazbaDPH2)/100 -> 0 | J44: =IF(CelkemObjekty=0,"",F44/CelkemObjekty*100) -> 0
B45: I. 01.02 | C45: I. 01.02 Kanalizace "JIlemnická" | F45: =G45+H45+I45 -> 0 | G45: 0 | H45: =SUM('I. 01.02 I. 01.02 KL'!C23) -> 0 | I45: 0 | J45: 0
B46: I. 01.03 | C46: I. 01.03 Přepojení vod. a kanaliz. přípojek "Jilemnická" | F46: 0 | G46: 0 | H46: =SUM('I. 01.03 I. 01.03 KL'!C23) -> 0 | I46: 0 | J46: 0
B47: I. 02.01 | C47: I. 02.01 Vodovod "Kavánova" | F47: 0 | G47: 0 | H47: =SUM('I. 02.01 I. 02.01 KL'!C23) -> 0 | I47: 0 | J47: 0
B48: I. 02.02 | C48: I. 02.02 Kanalizace "Kavánova" | F48: 0 | G48: 0 | H48: =SUM('I. 02.02 I. 02.02 KL'!C23) -> 0 | I48: 0 | J48: 0
B49: II. 01 | C49: II. 01 Kanalizace | F49: 0 | G49: 0 | H49: =SUM('II. 01 II. 01 KL'!C23) -> 0 | I49: 0 | J49: 0
B50: II. 02 | C50: II. 02 Vodovod | F50: 0 | G50: 0 | H50: =SUM('II. 02 II. 02 KL'!C23) -> 0 | I50: 0 | J50: 0
B51: II. 03 | C51: II. 03 Přepojení vodovodních a kanalizačních přípojek | F51: 0 | G51: 0 | H51: =SUM('II. 03 II. 03 KL'!C23) -> 0 | I51: 0 | J51: 0
B52: Celkem za stavbu | F52: =SUM(F44:F51) -> 0 | G52: =SUM(G44:G51) -> 0 | H52: =SUM(H44:H51) -> 0 | I52: =SUM(I44:I51) -> 0 | J52: =IF(CelkemObjekty=0,"",F52/CelkemObjekty*100) -> 0

Sheet I. 01.01 I. 01.01 KL
A1: POLOŽKOVÝ ROZPOČET
A2: Rozpočet | C2: I. 01.01 | D2: Vodovod "Jilemnická" | F2: JKSO | G2: 827.11.A1
A4: Objekt | F4: SKP
A5: I. 01.01 | C5: Vodovod "Jilemnická" | F5: Měrná jednotka | G5: m
A6: Stavba | F6: Počet jednotek | G6: 0
A7: 3334 | C7: Lomnice nad Popelkou - Vodovod a kanalizace | F7: Náklady na m.j. | G7: =IF(G6=0,,ROUND((F30+F32)/G6,1)) -> 0
A8: Projektant | C8: VEDU VODU s.r.o. Dobrovice | F8: Typ rozpočtu
A9: Zpracovatel projektu
A10: Objednatel | C10: Vodohospodářské sdružení Turnov
A11: Dodavatel | C11: . | F11: Zakázkové číslo
A12: Rozpočtoval | F12: Počet listů
A13: ROZPOČTOVÉ NÁKLADY
A14: Základní rozpočtové náklady
B15: HSV celkem | C15: ='I. 01.01 I. 01.01 Rek'!E14 -> 0
A16: Z | B16: PSV celkem | C16: ='I. 01.01 I. 01.01 Rek'!F14 -> 0
A17: R | B17: M práce celkem | C17: ='I. 01.01 I. 01.01 Rek'!H14 -> 0
A18: N | B18: M dodávky celkem | C18: ='I. 01.01 I. 01.01 Rek'!G14 -> 0
A19: ZRN celkem | C19: =SUM(C15:C18) -> 0
A21: HZS | C21: ='I. 01.01 I. 01.01 Rek'!I14 -> 0
A22: ZRN+HZS | C22: =C19+C21 -> 0
A23: ZRN+ost.náklady+HZS | C23: =C22+G23 -> 0
A24: Vypracoval | D24: Za zhotovitele | F24: Za objednatele
A25: Jméno : | D25: Jméno : | F25: Jméno :
A26: Datum : | D26: Datum : | F26: Datum :
A28: Podpis : | D28: Podpis: | F28: Podpis:
A30: Základ pro DPH | C30: 21 | D30: % | F30: =C23-F32 -> 0
A31: DPH | C31: =C30 -> 21 | D31: % | F31: =ROUND(PRODUCT(F30,C31/100),0) -> 0
A32: Základ pro DPH | C32: 0 | D32: % | F32: 0
A33: DPH | C33: =C32 -> 0 | D33: % | F33: =ROUND(PRODUCT(F32,C33/100),0) -> 0
A34: CENA ZA OBJEKT CELKEM | F34: =ROUND(SUM(F30:F33),0) -> 0
A36: Poznámka :

Sheet I. 01.01 I. 01.01 Rek
A1: Stavba : | C1: 3334 Lomnice nad Popelkou - Vodovod a kanalizace | G1: Rozpočet : | H1: I. 01.01
A2: Objekt : | C2: I. 01.01 Vodovod "Jilemnická" | G2: Vodovod "Jilemnická"
A4: REKAPITULACE STAVEBNÍCH DÍLŮ
B6: Stavební díl | E6: HSV | F6: PSV | G6: Dodávka | H6: Montáž | I6: HZS
A7: ='I. 01.01 I. 01.01 Pol'!B7 -> 1 | B7: ='I. 01.01 I. 01.01 Pol'!C7 -> Zemní práce | E7: ='I. 01.01 I. 01.01 Pol'!BA265 -> 0 | F7: ='I. 01.01 I. 01.01 Pol'!BB265 -> 0 | G7: ='I. 01.01 I. 01.01 Pol'!BC265 -> 0 | H7: ='I. 01.01 I. 01.01 Pol'!BD265 -> 0 | I7: ='I. 01.01 I. 01.01 Pol'!BE265 -> 0
A8: ='I. 01.01 I. 01.01 Pol'!B266 -> 45 | B8: ='I. 01.01 I. 01.01 Pol'!C266 -> Podkladní a vedlejší konstrukce | E8: ='I. 01.01 I. 01.01 Pol'!BA276 -> 0 | F8: ='I. 01.01 I. 01.01 Pol'!BB276 -> 0 | G8: ='I. 01.01 I. 01.01 Pol'!BC276 -> 0 | H8: ='I. 01.01 I. 01.01 Pol'!BD276 -> 0 | I8: ='I. 01.01 I. 01.01 Pol'!BE276 -> 0
A9: ='I. 01.01 I. 01.01 Pol'!B277 -> 5 | B9: ='I. 01.01 I. 01.01 Pol'!C277 -> Komunikace | E9: ='I. 01.01 I. 01.01 Pol'!BA304 -> 0 | F9: ='I. 01.01 I. 01.01 Pol'!BB304 -> 0 | G9: ='I. 01.01 I. 01.01 Pol'!BC304 -> 0 | H9: ='I. 01.01 I. 01.01 Pol'!BD304 -> 0 | I9: ='I. 01.01 I. 01.01 Pol'!BE304 -> 0
A10: ='I. 01.01 I. 01.01 Pol'!B305 -> 8 | B10: ='I. 01.01 I. 01.01 Pol'!C305 -> Trubní vedení | E10: ='I. 01.01 I. 01.01 Pol'!BA761 -> 0 | F10: ='I. 01.01 I. 01.01 Pol'!BB761 -> 0 | G10: ='I. 01.01 I. 01.01 Pol'!BC761 -> 0 | H10: ='I. 01.01 I. 01.01 Pol'!BD761 -> 0 | I10: ='I. 01.01 I. 01.01 Pol'!BE761 -> 0
A11: ='I. 01.01 I. 01.01 Pol'!B762 -> 89 | B11: ='I. 01.01 I. 01.01 Pol'!C762 -> Ostatní konstrukce na trubním vedení | E11: ='I. 01.01 I. 01.01 Pol'!BA783 -> 0 | F11: ='I. 01.01 I. 01.01 Pol'!BB783 -> 0 | G11: ='I. 01.01 I. 01.01 Pol'!BC783 -> 0 | H11: ='I. 01.01 I. 01.01 Pol'!BD783 -> 0 | I11: ='I. 01.01 I. 01.01 Pol'!BE783 -> 0
A12: ='I. 01.01 I. 01.01 Pol'!B784 -> 93 | B12: ='I. 01.01 I. 01.01 Pol'!C784 -> Dokončovací práce inženýrských staveb | E12: ='I. 01.01 I. 01.01 Pol'!BA868 -> 0 | F12: ='I. 01.01 I. 01.01 Pol'!BB868 -> 0 | G12: ='I. 01.01 I. 01.01 Pol'!BC868 -> 0 | H12: ='I. 01.01 I. 01.01 Pol'!BD868 -> 0 | I12: ='I. 01.01 I. 01.01 Pol'!BE868 -> 0
A13: ='I. 01.01 I. 01.01 Pol'!B869 -> 99 | B13: ='I. 01.01 I. 01.01 Pol'!C869 -> Staveništní přesun hmot | E13: ='I. 01.01 I. 01.01 Pol'!BA871 -> 0 | F13: ='I. 01.01 I. 01.01 Pol'!BB871 -> 0 | G13: ='I. 01.01 I. 01.01 Pol'!BC871 -> 0 | H13: ='I. 01.01 I. 01.01 Pol'!BD871 -> 0 | I13: ='I. 01.01 I. 01.01 Pol'!BE871 -> 0
B14: CELKEM OBJEKT | E14: =SUM(E7:E13) -> 0 | F14: =SUM(F7:F13) -> 0 | G14: =SUM(G7:G13) -> 0 | H14: =SUM(H7:H13) -> 0 | I14: =SUM(I7:I13) -> 0

Sheet I. 01.01 I. 01.01 Pol
A1: Položkový rozpočet
A3: Stavba : | C3: 3334 Lomnice nad Popelkou - Vodovod a kanalizace | E3: Rozpočet: | F3: ='I. 01.01 I. 01.01 Rek'!H1 -> I. 01.01
A4: Objekt : | C4: I. 01.01 Vodovod "Jilemnická" | E4: ='I. 01.01 I. 01.01 Rek'!G2 -> Vodovod "Jilemnická"
A6: P.č. | B6: Číslo položky | C6: Název položky | D6: MJ | E6: množství | F6: cena / MJ | G6: celkem (Kč) | H6: Jednotková hmotnost | I6: Celková hmotnost | J6: Jednotková dem.hmot. | K6: Celková dem.hmot.
A7: Díl: | B7: 1 | C7: Zemní práce | O7: 1
A8: 1 | B8: 113107625R00 | C8: Odstranění podkladu nad 50 m2,kam.drcené tl.25 cm | D8: m2 | E8: 209.36 | G8: =E8*F8 -> 0 | H8: 0 | I8: =E8*H8 -> 0 | J8: -0.55 | K8: =E8*J8 -> -115.148 | O8: 2 | AA8: 1 | AB8: 1 | AC8: 1 | AZ8: 1 | BA8: =IF(AZ8=1,G8,0) -> 0 | BB8: =IF(AZ8=2,G8,0) -> 0 | BC8: =IF(AZ8=3,G8,0) -> 0 | BD8: =IF(AZ8=4,G8,0) -> 0 | BE8: =IF(AZ8=5,G8,0) -> 0 | CA8: 1 | CB8: 1
C9: NTP: | E9: 0 | M9: NTP:
C10: Řad "A" TLT DN80 (částečně souběh s kanalizací) / (průměrná hloubka výkopů 1,70 m): | E10: 0 | M10: Řad "A" TLT DN80 (částečně souběh s kanalizací) / (průměrná hloubka výkopů 1,70 m):
C11: Objem konstrukce komunikací:174,30*0,90 | E11: 156.87 | M11: Objem konstrukce komunikací:174,30*0,90
C12: Řad "B" TLT DN80 (souběh s kanalizací) / (půměrná hloubka výkopů 1,75 m): | E12: 0 | M12: Řad "B" TLT DN80 (souběh s kanalizací) / (půměrná hloubka výkopů 1,75 m):
C13: Objem konstrukce komunikací:37,10*0,90 | E13: 33.39 | M13: Objem konstrukce komunikací:37,10*0,90
C14: Řad "C" TLT DN80 (průměrná hloubka výkopů 1,65 m): | E14: 0 | M14: Řad "C" TLT DN80 (průměrná hloubka výkopů 1,65 m):
C15: Objem konstrukce komunikací:11,90*1,00 | E15: 11.9 | M15: Objem konstrukce komunikací:11,90*1,00
C16: VTP: | E16: 0 | M16: VTP:
C17: Řad "B" PE D90x8,2 mm (půměrná hloubka výkopů 1,70 m): | E17: 0 | M17: Řad "B" PE D90x8,2 mm (půměrná hloubka výkopů 1,70 m):
C18: Objem konstrukce komunikací:4,00*0,90 | E18: 3.6 | M18: Objem konstrukce komunikací:4,00*0,90
C19: Řad "C" PE D90x8,2 mm (půměrná hloubka výkopů 1,70 m): | E19: 0 | M19: Řad "C" PE D90x8,2 mm (půměrná hloubka výkopů 1,70 m):
C20: Objem konstrukce komunikací:4,00*0,90 | E20: 3.6 | M20: Objem konstrukce komunikací:4,00*0,90
A21: 2 | B21: 113108415R00 | C21: Odstranění asfaltové vrstvy pl.nad 50 m2, tl.15 cm | D21: m2 | E21: 209.36 | G21: =E21*F21 -> 0 | H21: 0 | I21: =E21*H21 -> 0 | J21: -0.33 | K21: =E21*J21 -> -69.0888 | O21: 2 | AA21: 1 | AB21: 1 | AC21: 1 | AZ21: 1 | BA21: =IF(AZ21=1,G21,0) -> 0 | BB21: =IF(AZ21=2,G21,0) -> 0 | BC21: =IF(AZ21=3,G21,0) -> 0 | BD21: =IF(AZ21=4,G21,0) -> 0 | BE21: =IF(AZ21=5,G21,0) -> 0 | CA21: 1 | CB21: 1
C22: NTP: | E22: 0 | M22: NTP:
C23: Řad "A" TLT DN80 (částečně souběh s kanalizací) / (průměrná hloubka výkopů 1,70 m): | E23: 0 | M23: Řad "A" TLT DN80 (částečně souběh s kanalizací) / (průměrná hloubka výkopů 1,70 m):
C24: Objem konstrukce komunikací:174,30*0,90 | E24: 156.87 | M24: Objem konstrukce komunikací:174,30*0,90
C25: Řad "B" TLT DN80 (souběh s kanalizací) / (půměrná hloubka výkopů 1,75 m): | E25: 0 | M25: Řad "B" TLT DN80 (souběh s kanalizací) / (půměrná hloubka výkopů 1,75 m):
C26: Objem konstrukce komunikací:37,10*0,90 | E26: 33.39 | M26: Objem konstrukce komunikací:37,10*0,90
C27: Řad "C" TLT DN80 (průměrná hloubka výkopů 1,65 m): | E27: 0 | M27: Řad "C" TLT DN80 (průměrná hloubka výkopů 1,65 m):
C28: Objem konstrukce komunikací:11,90*1,00 | E28: 11.9 | M28: Objem konstrukce komunikací:11,90*1,00
C29: VTP: | E29: 0 | M29: VTP:
C30: Řad "B" PE D90x8,2 mm (půměrná hloubka výkopů 1,70 m): | E30: 0 | M30: Řad "B" PE D90x8,2 mm (půměrná hloubka výkopů 1,70 m):
C31: Objem konstrukce komunikací:4,00*0,90 | E31: 3.6 | M31: Objem konstrukce komunikací:4,00*0,90
C32: Řad "C" PE D90x8,2 mm (půměrná hloubka výkopů 1,70 m): | E32: 0 | M32: Řad "C" PE D90x8,2 mm (půměrná hloubka výkopů 1,70 m):
C33: Objem konstrukce komunikací:4,00*0,90 | E33: 3.6 | M33: Objem konstrukce komunikací:4,00*0,90
A34: 3 | B34: 119001401R00 | C34: Dočasné zajištění ocelového potrubí do DN 200 mm | D34: m | E34: 13.5 | G34: =E34*F34 -> 0 | H34: 0.00869 | I34: =E34*H34 -> 0.117315 | J34: 0 | K34: =E34*J34 -> 0 | O34: 2 | AA34: 1 | AB34: 1 | AC34: 1 | AZ34: 1 | BA34: =IF(AZ34=1,G34,0) -> 0 | BB34: =IF(AZ34=2,G34,0) -> 0 | BC34: =IF(AZ34=3,G34,0) -> 0 | BD34: =IF(AZ34=4,G34,0) -> 0 | BE34: =IF(AZ34=5,G34,0) -> 0 | CA34: 1 | CB34: 1
A35: 4 | B35: 119001422R00 | C35: Dočasné zajištění kabelů - v počtu 3 - 6 kabelů | D35: m | E35: 17.5 | G35: =E35*F35 -> 0 | H35: 0.03974 | I35: =E35*H35 -> 0.69545 | J35: 0 | K35: =E35*J35 -> 0 | O35: 2 | AA35: 1 | AB35: 1 | AC35: 1 | AZ35: 1 | BA35: =IF(AZ35=1,G35,0) -> 0 | BB35: =IF(AZ35=2,G35,0) -> 0 | BC35: =IF(AZ35=3,G35,0) -> 0 | BD35: =IF(AZ35=4,G35,0) -> 0 | BE35: =IF(AZ35=5,G35,0) -> 0 | CA35: 1 | CB35: 1
A36: 5 | B36: 121100002RAA | C36: Sejmutí ornice a uložení na deponii zpětný přesun, rozprostření v tl. 20 cm, osetí | D36: m3 | E36: 51.42 | G36: =E36*F36 -> 0 | H36: 0 | I36: =E36*H36 -> 0 | J36: 0 | K36: =E36*J36 -> 0 | O36: 2 | AA36: 1 | AB36: 1 | AC36: 1 | AZ36: 1 | BA36: =IF(AZ36=1,G36,0) -> 0 | BB36: =IF(AZ36=2,G36,0) -> 0 | BC36: =IF(AZ36=3,G36,0) -> 0 | BD36: =IF(AZ36=4,G36,0) -> 0 | BE36: =IF(AZ36=5,G36,0) -> 0 | CA36: 1 | CB36: 1
C37: VTP: | E37: 0 | M37: VTP:
C38: Řad "B" PE D90x8,2 mm (půměrná hloubka výkopů 1,70 m):(41,00-4,00)*3,00*0,20 | E38: 22.2 | M38: Řad "B" PE D90x8,2 mm (půměrná hloubka výkopů 1,70 m):(41,00-4,00)*3,00*0,20
C39: Řad "C" PE D90x8,2 mm (půměrná hloubka výkopů 1,70 m):(52,70-4,00)*3,00*0,20 | E39: 29.22 | M39: Řad "C" PE D90x8,2 mm (půměrná hloubka výkopů 1,70 m):(52,70-4,00)*3,00*0,20
A40: 6 | B40: 130001101RRX | C40: Příplatek za ztížené hloubení v blízkosti vedení | D40: m3 | E40: 54.4513 | G40: =E40*F40 -> 0 | H40: 0 | I40: =E40*H40 -> 0 | J40: 0 | K40: =E40*J40 -> 0 | O40: 2 | AA40: 1 | AB40: 1 | AC40: 1 | AZ40: 1 | BA40: =IF(AZ40=1,G40,0) -> 0 | BB40: =IF(AZ40=2,G40,0) -> 0 | BC40: =IF(AZ40=3,G40,0) -> 0 | BD40: =IF(AZ40=4,G40,0) -> 0 | BE40: =IF(AZ40=5,G40,0) -> 0 | CA40: 1 | CB40: 1
C41: Včetně případných nutných dokopávem a ručního výkopu podél sousedících inženýrských sítí | L41: Včetně případných nutných dokopávem a ručního výkopu podél sousedících inženýrských sítí | O41: 3
C42: Začátek provozního součtu | E42: 0 | M42: Začátek provozního součtu
C43: NTP: | E43: 0 | M43: NTP:
C44: Řad "A" TLT DN80 (částečně souběh s kanalizací) / (průměrná hloubka výkopů 1,70 m):174,30*0,90*1,70 | E44: 266.679 | M44: Řad "A" TLT DN80 (částečně souběh s kanalizací) / (průměrná hloubka výkopů 1,70 m):174,30*0,90*1,70
C45: Odpočet objemu konstrukce komunikací:-174,30*0,90*0,40 | E45: -62.748 | M45: Odpočet objemu konstrukce komunikací:-174,30*0,90*0,40
C46: Řad "B" TLT DN80 (souběh s kanalizací) / (půměrná hloubka výkopů 1,75 m):37,10*0,90*1,75 | E46: 58.4325 | M46: Řad "B" TLT DN80 (souběh s kanalizací) / (půměrná hloubka výkopů 1,75 m):37,10*0,90*1,75
C47: Odpočet objemu konstrukce komunikací:-37,10*0,90*0,40 | E47: -13.356 | M47: Odpočet objemu konstrukce komunikací:-37,10*0,90*0,40
C48: Řad "C" TLT DN80 (průměrná hloubka výkopů 1,65 m):11,90*1,00*1,65 | E48: 19.635 | M48: Řad "C" TLT DN80 (průměrná hloubka výkopů 1,65 m):11,90*1,00*1,65
C49: Odpočet objemu konstrukce komunikací:-11,90*1,00*0,40 | E49: -4.76 | M49: Odpočet objemu konstrukce komunikací:-11,90*1,00*0,40
C50: VTP: | E50: 0 | M50: VTP:
C51: Řad "B" PE D90x8,2 mm (půměrná hloubka výkopů 1,70 m):41,00*0,90*1,70 | E51: 62.73 | M51: Řad "B" PE D90x8,2 mm (půměrná hloubka výkopů 1,70 m):41,00*0,90*1,70
C52: Odpočet objemu konstrukce komunikací:-4,00*0,90*0,40 | E52: -1.44 | M52: Odpočet objemu konstrukce komunikací:-4,00*0,90*0,40
C53: Odpočet objemu ornice:-(41,00-4,00)*0,90*0,20 | E53: -6.66 | M53: Odpočet objemu ornice:-(41,00-4,00)*0,90*0,20
C54: Řad "C" PE D90x8,2 mm (půměrná hloubka výkopů 1,70 m):52,70*0,90*1,70 | E54: 80.631 | M54: Řad "C" PE D90x8,2 mm (půměrná hloubka výkopů 1,70 m):52,70*0,90*1,70
C55: Odpočet objemu konstrukce komunikací:-4,00*0,90*0,40 | E55: -1.44 | M55: Odpočet objemu konstrukce komunikací:-4,00*0,90*0,40
C56: Odpočet objemu ornice:-(52,70-4,00)*0,90*0,20 | E56: -8.766 | M56: Odpočet objemu ornice:-(52,70-4,00)*0,90*0,20
C57: Konec provozního součtu | E57: 388.9375 | M57: Konec provozního součtu
C58: V hornině tř. 3 - 5 - 14%:388,9375*0,14 | E58: 54.4513 | M58: V hornině tř. 3 - 5 - 14%:388,9375*0,14
A59: 7 | B59: 132201212R00 | C59: Hloubení rýh š.do 200 cm hor.3 do 1000m3,STROJNĚ | D59: m3 | E59: 175.0219 | G59: =E59*F59 -> 0 | H59: 0 | I59: =E59*H59 -> 0 | J59: 0 | K59: =E59*J59 -> 0 | O59: 2 | AA59: 1 | AB59: 1 | AC59: 1 | AZ59: 1 | BA59: =IF(AZ59=1,G59,0) -> 0 | BB59: =IF(AZ59=2,G59,0) -> 0 | BC59: =IF(AZ59=3,G59,0) -> 0 | BD59: =IF(AZ59=4,G59,0) -> 0 | BE59: =IF(AZ59=5,G59,0) -> 0 | CA59: 1 | CB59: 1
C60: Položka obsahuje hloubení rýh traktorbagrem, naložení výkopku na dopravní prostředek pro svislé, nebo vodorovné přemístění, popř. přemístění výkopku do 3 m (po povrchu území), případné zajištění rypadel polštáři, udržování pracoviště a ochranu výkopiště proti stékání srážkové vody z okolního terénu i s jejím odvodněním, nebo odvedením, přesekání a odstranění kořenů ve výkopišti, odstranění napadávek, urovnání dna výkopu. | L60: Položka obsahuje hloubení rýh traktorbagrem, naložení výkopku na dopravní prostředek pro svislé, nebo vodorovné přemístění, popř. přemístění výkopku do 3 m (po povrchu území), případné zajištění rypadel polštáři, udržování pracoviště a ochranu výkopiště proti stékání srážkové vody z okolního terénu i s jejím odvodněním, nebo odvedením, přesekání a odstranění kořenů ve výkopišti, odstranění napadávek, urovnání dna výkopu. | O60: 3
C61: Začátek provozního součtu | E61: 0 | M61: Začátek provozního součtu
C62: NTP: | E62: 0 | M62: NTP:
C63: Řad "A" TLT DN80 (částečně souběh s kanalizací) / (průměrná hloubka výkopů 1,70 m):174,30*0,90*1,70 | E63: 266.679 | M63: Řad "A" TLT DN80 (částečně souběh s kanalizací) / (průměrná hloubka výkopů 1,70 m):174,30*0,90*1,70
C64: Odpočet objemu konstrukce komunikací:-174,30*0,90*0,40 | E64: -62.748 | M64: Odpočet objemu konstrukce komunikací:-174,30*0,90*0,40
C65: Řad "B" TLT DN80 (souběh s kanalizací) / (půměrná hloubka výkopů 1,75 m):37,10*0,90*1,75 | E65: 58.4325 | M65: Řad "B" TLT DN80 (souběh s kanalizací) / (půměrná hloubka výkopů 1,75 m):37,10*0,90*1,75
C66: Odpočet objemu konstrukce komunikací:-37,10*0,90*0,40 | E66: -13.356 | M66: Odpočet objemu konstrukce komunikací:-37,10*0,90*0,40
C67: Řad "C" TLT DN80 (průměrná hloubka výkopů 1,65 m):11,90*1,00*1,65 | E67: 19.635 | M67: Řad "C" TLT DN80 (průměrná hloubka výkopů 1,65 m):11,90*1,00*1,65
C68: Odpočet objemu konstrukce komunikací:-11,90*1,00*0,40 | E68: -4.76 | M68: Odpočet objemu konstrukce komunikací:-11,90*1,00*0,40
C69: VTP: | E69: 0 | M69: VTP:
C70: Řad "B" PE D90x8,2 mm (půměrná hloubka výkopů 1,70 m):41,00*0,90*1,70 | E70: 62.73 | M70: Řad "B" PE D90x8,2 mm (půměrná hloubka výkopů 1,70 m):41,00*0,90*1,70
C71: Odpočet objemu konstrukce komunikací:-4,00*0,90*0,40 | E71: -1.44 | M71: Odpočet objemu konstrukce komunikací:-4,00*0,90*0,40
C72: Odpočet objemu ornice:-(41,00-4,00)*0,90*0,20 | E72: -6.66 | M72: Odpočet objemu ornice:-(41,00-4,00)*0,90*0,20
C73: Řad "C" PE D90x8,2 mm (půměrná hloubka výkopů 1,70 m):52,70*0,90*1,70 | E73: 80.631 | M73: Řad "C" PE D90x8,2 mm (půměrná hloubka výkopů 1,70 m):52,70*0,90*1,70
C74: Odpočet objemu konstrukce komunikací:-4,00*0,90*0,40 | E74: -1.44 | M74: Odpočet objemu konstrukce komunikací:-4,00*0,90*0,40
C75: Odpočet objemu ornice:-(52,70-4,00)*0,90*0,20 | E75: -8.766 | M75: Odpočet objemu ornice:-(52,70-4,00)*0,90*0,20
C76: Konec provozního součtu | E76: 388.9375 | M76: Konec provozního součtu
C77: V hornině tř. 3 - 45%:388,9375*0,45 | E77: 175.0219 | M77: V hornině tř. 3 - 45%:388,9375*0,45
A78: 8 | B78: 132201219R00 | C78: Přípl.za lepivost,hloubení rýh 200cm,hor.3,STROJNĚ | D78: m3 | E78: 87.5109 | G78: =E78*F78 -> 0 | H78: 0 | I78: =E78*H78 -> 0 | J78: 0 | K78: =E78*J78 -> 0 | O78: 2 | AA78: 1 | AB78: 1 | AC78: 1 | AZ78: 1 | BA78: =IF(AZ78=1,G78,0) -> 0 | BB78: =IF(AZ78=2,G78,0) -> 0 | BC78: =IF(AZ78=3,G78,0) -> 0 | BD78: =IF(AZ78=4,G78,0) -> 0 | BE78: =IF(AZ78=5,G78,0) -> 0 | CA78: 1 | CB78: 1
C79: Začátek provozního součtu | E79: 0 | M79: Začátek provozního součtu
C80: NTP: | E80: 0 | M80: NTP:
C81: Řad "A" TLT DN80 (částečně souběh s kanalizací) / (průměrná hloubka výkopů 1,70 m):174,30*0,90*1,70 | E81: 266.679 | M81: Řad "A" TLT DN80 (částečně souběh s kanalizací) / (průměrná hloubka výkopů 1,70 m):174,30*0,90*1,70
C82: Odpočet objemu konstrukce komunikací:-174,30*0,90*0,40 | E82: -62.748 | M82: Odpočet objemu konstrukce komunikací:-174,30*0,90*0,40
C83: Řad "B" TLT DN80 (souběh s kanalizací) / (půměrná hloubka výkopů 1,75 m):37,10*0,90*1,75 | E83: 58.4325 | M83: Řad "B" TLT DN80 (souběh s kanalizací) / (půměrná hloubka výkopů 1,75 m):37,10*0,90*1,75
C84: Odpočet objemu konstrukce komunikací:-37,10*0,90*0,40 | E84: -13.356 | M84: Odpočet objemu konstrukce komunikací:-37,10*0,90*0,40
C85: Řad "C" TLT DN80 (průměrná hloubka výkopů 1,65 m):11,90*1,00*1,65 | E85: 19.635 | M85: Řad "C" TLT DN80 (průměrná hloubka výkopů 1,65 m):11,90*1,00*1,65
C86: Odpočet objemu konstrukce komunikací:-11,90*1,00*0,40 | E86: -4.76 | M86: Odpočet objemu konstrukce komunikací:-11,90*1,00*0,40
C87: VTP: | E87: 0 | M87: VTP:
C88: Řad "B" PE D90x8,2 mm (půměrná hloubka výkopů 1,70 m):41,00*0,90*1,70 | E88: 62.73 | M88: Řad "B" PE D90x8,2 mm (půměrná hloubka výkopů 1,70 m):41,00*0,90*1,70
C89: Odpočet objemu konstrukce komunikací:-4,00*0,90*0,40 | E89: -1.44 | M89: Odpočet objemu konstrukce komunikací:-4,00*0,90*0,40
C90: Odpočet objemu ornice:-(41,00-4,00)*0,90*0,20 | E90: -6.66 | M90: Odpočet objemu ornice:-(41,00-4,00)*0,90*0,20
C91: Řad "C" PE D90x8,2 mm (půměrná hloubka výkopů 1,70 m):52,70*0,90*1,70 | E91: 80.631 | M91: Řad "C" PE D90x8,2 mm (půměrná hloubka výkopů 1,70 m):52,70*0,90*1,70
C92: Odpočet objemu konstrukce komunikací:-4,00*0,90*0,40 | E92: -1.44 | M92: Odpočet objemu konstrukce komunikací:-4,00*0,90*0,40
C93: Odpočet objemu ornice:-(52,70-4,00)*0,90*0,20 | E93: -8.766 | M93: Odpočet objemu ornice:-(52,70-4,00)*0,90*0,20
C94: Konec provozního součtu | E94: 388.9375 | M94: Konec provozního součtu
C95: V hornině tř. 3 - 45%:388,9375*0,45*0,5 | E95: 87.5109 | M95: V hornině tř. 3 - 45%:388,9375*0,45*0,5
A96: 9 | B96: 132301212R00 | C96: Hloubení rýh š.do 200 cm hor.4 do 1000 m3, STROJNĚ | D96: m3 | E96: 175.0219 | G96: =E96*F96 -> 0 | H96: 0 | I96: =E96*H96 -> 0 | J96: 0 | K96: =E96*J96 -> 0 | O96: 2 | AA96: 1 | AB96: 1 | AC96: 1 | AZ96: 1 | BA96: =IF(AZ96=1,G96,0) -> 0 | BB96: =IF(AZ96=2,G96,0) -> 0 | BC96: =IF(AZ96=3,G96,0) -> 0 | BD96: =IF(AZ96=4,G96,0) -> 0 | BE96: =IF(AZ96=5,G96,0) -> 0 | CA96: 1 | CB96: 1
C97: Položka obsahuje hloubení rýh traktorbagrem, naložení výkopku na dopravní prostředek pro svislé, nebo vodorovné přemístění, popř. přemístění výkopku do 3 m (po povrchu území), případné zajištění rypadel polštáři, udržování pracoviště a ochranu výkopiště proti stékání srážkové vody z okolního terénu i s jejím odvodněním, nebo odvedením, přesekání a odstranění kořenů ve výkopišti, odstranění napadávek, urovnání dna výkopu. | L97: Položka obsahuje hloubení rýh traktorbagrem, naložení výkopku na dopravní prostředek pro svislé, nebo vodorovné přemístění, popř. přemístění výkopku do 3 m (po povrchu území), případné zajištění rypadel polštáři, udržování pracoviště a ochranu výkopiště proti stékání srážkové vody z okolního terénu i s jejím odvodněním, nebo odvedením, přesekání a odstranění kořenů ve výkopišti, odstranění napadávek, urovnání dna výkopu. | O97: 3
C98: Začátek provozního součtu | E98: 0 | M98: Začátek provozního součtu
C99: NTP: | E99: 0 | M99: NTP:
C100: Řad "A" TLT DN80 (částečně souběh s kanalizací) / (průměrná hloubka výkopů 1,70 m):174,30*0,90*1,70 | E100: 266.679 | M100: Řad "A" TLT DN80 (částečně souběh s kanalizací) / (průměrná hloubka výkopů 1,70 m):174,30*0,90*1,70
C101: Odpočet objemu konstrukce komunikací:-174,30*0,90*0,40 | E101: -62.748 | M101: Odpočet objemu konstrukce komunikací:-174,30*0,90*0,40
C102: Řad "B" TLT DN80 (souběh s kanalizací) / (půměrná hloubka výkopů 1,75 m):37,10*0,90*1,75 | E102: 58.4325 | M102: Řad "B" TLT DN80 (souběh s kanalizací) / (půměrná hloubka výkopů 1,75 m):37,10*0,90*1,75
C103: Odpočet objemu konstrukce komunikací:-37,10*0,90*0,40 | E103: -13.356 | M103: Odpočet objemu konstrukce komunikací:-37,10*0,90*0,40
C104: Řad "C" TLT DN80 (průměrná hloubka výkopů 1,65 m):11,90*1,00*1,65 | E104: 19.635 | M104: Řad "C" TLT DN80 (průměrná hloubka výkopů 1,65 m):11,90*1,00*1,65
C105: Odpočet objemu konstrukce komunikací:-11,90*1,00*0,40 | E105: -4.76 | M105: Odpočet objemu konstrukce komunikací:-11,90*1,00*0,40
C106: VTP: | E106: 0 | M106: VTP:
C107: Řad "B" PE D90x8,2 mm (půměrná hloubka výkopů 1,70 m):41,00*0,90*1,70 | E107: 62.73 | M107: Řad "B" PE D90x8,2 mm (půměrná hloubka výkopů 1,70 m):41,00*0,90*1,70
C108: Odpočet objemu konstrukce komunikací:-4,00*0,90*0,40 | E108: -1.44 | M108: Odpočet objemu konstrukce komunikací:-4,00*0,90*0,40
C109: Odpočet objemu ornice:-(41,00-4,00)*0,90*0,20 | E109: -6.66 | M109: Odpočet objemu ornice:-(41,00-4,00)*0,90*0,20
C110: Řad "C" PE D90x8,2 mm (půměrná hloubka výkopů 1,70 m):52,70*0,90*1,70 | E110: 80.631 | M110: Řad "C" PE D90x8,2 mm (půměrná hloubka výkopů 1,70 m):52,70*0,90*1,70
C111: Odpočet objemu konstrukce komunikací:-4,00*0,90*0,40 | E111: -1.44 | M111: Odpočet objemu konstrukce komunikací:-4,00*0,90*0,40
C112: Odpočet objemu ornice:-(52,70-4,00)*0,90*0,20 | E112: -8.766 | M112: Odpočet objemu ornice:-(52,70-4,00)*0,90*0,20
C113: Konec provozního součtu | E113: 388.9375 | M113: Konec provozního součtu
C114: V hornině tř. 4 - 45%:388,9375*0,45 | E114: 175.0219 | M114: V hornině tř. 4 - 45%:388,9375*0,45
A115: 10 | B115: 132301219R00 | C115: Přípl.za lepivost,hloubení rýh 200cm,hor.4,STROJNĚ | D115: m3 | E115: 87.5109 | G115: =E115*F115 -> 0 | H115: 0 | I115: =E115*H115 -> 0 | J115: 0 | K115: =E115*J115 -> 0 | O115: 2 | AA115: 1 | AB115: 1 | AC115: 1 | AZ115: 1 | BA115: =IF(AZ115=1,G115,0) -> 0 | BB115: =IF(AZ115=2,G115,0) -> 0 | BC115: =IF(AZ115=3,G115,0) -> 0 | BD115: =IF(AZ115=4,G115,0) -> 0 | BE115: =IF(AZ115=5,G115,0) -> 0 | CA115: 1 | CB115: 1
C116: Začátek provozního součtu | E116: 0 | M116: Začátek provozního součtu
C117: NTP: | E117: 0 | M117: NTP:
C118: Řad "A" TLT DN80 (částečně souběh s kanalizací) / (průměrná hloubka výkopů 1,70 m):174,30*0,90*1,70 | E118: 266.679 | M118: Řad "A" TLT DN80 (částečně souběh s kanalizací) / (průměrná hloubka výkopů 1,70 m):174,30*0,90*1,70
C119: Odpočet objemu konstrukce komunikací:-174,30*0,90*0,40 | E119: -62.748 | M119: Odpočet objemu konstrukce komunikací:-174,30*0,90*0,40
C120: Řad "B" TLT DN80 (souběh s kanalizací) / (půměrná hloubka výkopů 1,75 m):37,10*0,90*1,75 | E120: 58.4325 | M120: Řad "B" TLT DN80 (souběh s kanalizací) / (půměrná hloubka výkopů 1,75 m):37,10*0,90*1,75
C121: Odpočet objemu konstrukce komunikací:-37,10*0,90*0,40 | E121: -13.356 | M121: Odpočet objemu konstrukce komunikací:-37,10*0,90*0,40
C122: Řad "C" TLT DN80 (průměrná hloubka výkopů 1,65 m):11,90*1,00*1,65 | E122: 19.635 | M122: Řad "C" TLT DN80 (průměrná hloubka výkopů 1,65 m):11,90*1,00*1,65
C123: Odpočet objemu konstrukce komunikací:-11,90*1,00*0,40 | E123: -4.76 | M123: Odpočet objemu konstrukce komunikací:-11,90*1,00*0,40
C124: VTP: | E124: 0 | M124: VTP:
C125: Řad "B" PE D90x8,2 mm (půměrná hloubka výkopů 1,70 m):41,00*0,90*1,70 | E125: 62.73 | M125: Řad "B" PE D90x8,2 mm (půměrná hloubka výkopů 1,70 m):41,00*0,90*1,70
C126: Odpočet objemu konstrukce komunikací:-4,00*0,90*0,40 | E126: -1.44 | M126: Odpočet objemu konstrukce komunikací:-4,00*0,90*0,40
C127: Odpočet objemu ornice:-(41,00-4,00)*0,90*0,20 | E127: -6.66 | M127: Odpočet objemu ornice:-(41,00-4,00)*0,90*0,20
C128: Řad "C" PE D90x8,2 mm (půměrná hloubka výkopů 1,70 m):52,70*0,90*1,70 | E128: 80.631 | M128: Řad "C" PE D90x8,2 mm (půměrná hloubka výkopů 1,70 m):52,70*0,90*1,70
C129: Odpočet objemu konstrukce komunikací:-4,00*0,90*0,40 | E129: -1.44 | M129: Odpočet objemu konstrukce komunikací:-4,00*0,90*0,40
C130: Odpočet objemu ornice:-(52,70-4,00)*0,90*0,20 | E130: -8.766 | M130: Odpočet objemu ornice:-(52,70-4,00)*0,90*0,20
C131: Konec provozního součtu | E131: 388.9375 | M131: Konec provozního součtu
C132: V hornině tř. 4 - 45%:388,9375*0,45*0,5 | E132: 87.5109 | M132: V hornině tř. 4 - 45%:388,9375*0,45*0,5
A133: 11 | B133: 132401211R00 | C133: Hloubení rýh šířky do 200 cm v hor.5, STROJNĚ | D133: m3 | E133: 38.8938 | G133: =E133*F133 -> 0 | H133: 0 | I133: =E133*H133 -> 0 | J133: 0 | K133: =E133*J133 -> 0 | O133: 2 | AA133: 1 | AB133: 1 | AC133: 1 | AZ133: 1 | BA133: =IF(AZ133=1,G133,0) -> 0 | BB133: =IF(AZ133=2,G133,0) -> 0 | BC133: =IF(AZ133=3,G133,0) -> 0 | BD133: =IF(AZ133=4,G133,0) -> 0 | BE133: =IF(AZ133=5,G133,0) -> 0 | CA133: 1 | CB133: 1
C134: Položka obsahuje hloubení jámy kolovým rypadlem s rozrývacím zubem, naložení výkopku na dopravní prostředek pro svislé, nebo vodorovné přemístění, popř. přemístění výkopku do 3 m (po povrchu území), případné zajištění rypadel polštáři, udržování pracoviště a ochranu výkopiště proti stékání srážkové vody z okolního terénu i s jejím odvodněním, nebo odvedením, přesekání a odstranění kořenů ve výkopišti, odstranění napadávek, urovnání dna výkopu. Položka se používá bez ohledu na těžené množství. | L134: Položka obsahuje hloubení jámy kolovým rypadlem s rozrývacím zubem, naložení výkopku na dopravní prostředek pro svislé, nebo vodorovné přemístění, popř. přemístění výkopku do 3 m (po povrchu území), případné zajištění rypadel polštáři, udržování pracoviště a ochranu výkopiště proti stékání srážkové vody z okolního terénu i s jejím odvodněním, nebo odvedením, přesekání a odstranění kořenů ve výkopišti, odstranění napadávek, urovnání dna výkopu. Položka se používá bez ohledu na těžené množství. | O134: 3
C135: Začátek provozního součtu | E135: 0 | M135: Začátek provozního součtu
C136: NTP: | E136: 0 | M136: NTP:
C137: Řad "A" TLT DN80 (částečně souběh s kanalizací) / (průměrná hloubka výkopů 1,70 m):174,30*0,90*1,70 | E137: 266.679 | M137: Řad "A" TLT DN80 (částečně souběh s kanalizací) / (průměrná hloubka výkopů 1,70 m):174,30*0,90*1,70
C138: Odpočet objemu konstrukce komunikací:-174,30*0,90*0,40 | E138: -62.748 | M138: Odpočet objemu konstrukce komunikací:-174,30*0,90*0,40
C139: Řad "B" TLT DN80 (souběh s kanalizací) / (půměrná hloubka výkopů 1,75 m):37,10*0,90*1,75 | E139: 58.4325 | M139: Řad "B" TLT DN80 (souběh s kanalizací) / (půměrná hloubka výkopů 1,75 m):37,10*0,90*1,75
C140: Odpočet objemu konstrukce komunikací:-37,10*0,90*0,40 | E140: -13.356 | M140: Odpočet objemu konstrukce komunikací:-37,10*0,90*0,40
C141: Řad "C" TLT DN80 (průměrná hloubka výkopů 1,65 m):11,90*1,00*1,65 | E141: 19.635 | M141: Řad "C" TLT DN80 (průměrná hloubka výkopů 1,65 m):11,90*1,00*1,65
C142: Odpočet objemu konstrukce komunikací:-11,90*1,00*0,40 | E142: -4.76 | M142: Odpočet objemu konstrukce komunikací:-11,90*1,00*0,40
C143: VTP: | E143: 0 | M143: VTP:
C144: Řad "B" PE D90x8,2 mm (půměrná hloubka výkopů 1,70 m):41,00*0,90*1,70 | E144: 62.73 | M144: Řad "B" PE D90x8,2 mm (půměrná hloubka výkopů 1,70 m):41,00*0,90*1,70
C145: Odpočet objemu konstrukce komunikací:-4,00*0,90*0,40 | E145: -1.44 | M145: Odpočet objemu konstrukce komunikací:-4,00*0,90*0,40
C146: Odpočet objemu ornice:-(41,00-4,00)*0,90*0,20 | E146: -6.66 | M146: Odpočet objemu ornice:-(41,00-4,00)*0,90*0,20
C147: Řad "C" PE D90x8,2 mm (půměrná hloubka výkopů 1,70 m):52,70*0,90*1,70 | E147: 80.631 | M147: Řad "C" PE D90x8,2 mm (půměrná hloubka výkopů 1,70 m):52,70*0,90*1,70
C148: Odpočet objemu konstrukce komunikací:-4,00*0,90*0,40 | E148: -1.44 | M148: Odpočet objemu konstrukce komunikací:-4,00*0,90*0,40
C149: Odpočet objemu ornice:-(52,70-4,00)*0,90*0,20 | E149: -8.766 | M149: Odpočet objemu ornice:-(52,70-4,00)*0,90*0,20
C150: Konec provozního součtu | E150: 388.9375 | M150: Konec provozního součtu
C151: V hornině tř. 5 - 10%:388,9375*0,10 | E151: 38.8938 | M151: V hornině tř. 5 - 10%:388,9375*0,10
A152: 12 | B152: 151101101R00 | C152: Pažení a rozepření stěn rýh - příložné - hl.do 2 m | D152: m2 | E152: 576.13 | G152: =E152*F152 -> 0 | H152: 0.00099 | I152: =E152*H152 -> 0.5703687 | J152: 0 | K152: =E152*J152 -> 0 | O152: 2 | AA152: 1 | AB152: 1 | AC152: 1 | AZ152: 1 | BA152: =IF(AZ152=1,G152,0) -> 0 | BB152: =IF(AZ152=2,G152,0) -> 0 | BC152: =IF(AZ152=3,G152,0) -> 0 | BD152: =IF(AZ152=4,G152,0) -> 0 | BE152: =IF(AZ152=5,G152,0) -> 0 | CA152: 1 | CB152: 1
C153: NTP: | E153: 0 | M153: NTP:
C154: Řad "A" TLT DN80 (částečně souběh s kanalizací) / (průměrná hloubka výkopů 1,70 m):(43,50+20,70)*1,70*2 | E154: 218.28 | M154: Řad "A" TLT DN80 (částečně souběh s kanalizací) / (průměrná hloubka výkopů 1,70 m):(43,50+20,70)*1,70*2
C155: Řad "B" TLT DN80 (souběh s kanalizací) / (půměrná hloubka výkopů 1,75 m):0 | E155: 0 | M155: Řad "B" TLT DN80 (souběh s kanalizací) / (půměrná hloubka výkopů 1,75 m):0
C156: Řad "C" TLT DN80 (průměrná hloubka výkopů 1,65 m):11,90*1,65*2 | E156: 39.27 | M156: Řad "C" TLT DN80 (průměrná hloubka výkopů 1,65 m):11,90*1,65*2
C157: VTP: | E157: 0 | M157: VTP:
C158: Řad "B" PE D90x8,2 mm (půměrná hloubka výkopů 1,70 m):41,00*1,70*2 | E158: 139.4 | M158: Řad "B" PE D90x8,2 mm (půměrná hloubka výkopů 1,70 m):41,00*1,70*2
C159: Řad "C" PE D90x8,2 mm (půměrná hloubka výkopů 1,70 m):52,70*1,70*2 | E159: 179.18 | M159: Řad "C" PE D90x8,2 mm (půměrná hloubka výkopů 1,70 m):52,70*1,70*2
A160: 13 | B160: 151101111R00 | C160: Odstranění pažení stěn rýh - příložné - hl. do 2 m | D160: m2 | E160: 576.13 | G160: =E160*F160 -> 0 | H160: 0 | I160: =E160*H160 -> 0 | J160: 0 | K160: =E160*J160 -> 0 | O160: 2 | AA160: 1 | AB160: 1 | AC160: 1 | AZ160: 1 | BA160: =IF(AZ160=1,G160,0) -> 0 | BB160: =IF(AZ160=2,G160,0) -> 0 | BC160: =IF(AZ160=3,G160,0) -> 0 | BD160: =IF(AZ160=4,G160,0) -> 0 | BE160: =IF(AZ160=5,G160,0) -> 0 | CA160: 1 | CB160: 1
C161: NTP: | E161: 0 | M161: NTP:
C162: Řad "A" TLT DN80 (částečně souběh s kanalizací) / (průměrná hloubka výkopů 1,70 m):(43,50+20,70)*1,70*2 | E162: 218.28 | M162: Řad "A" TLT DN80 (částečně souběh s kanalizací) / (průměrná hloubka výkopů 1,70 m):(43,50+20,70)*1,70*2
C163: Řad "B" TLT DN80 (souběh s kanalizací) / (půměrná hloubka výkopů 1,75 m):0 | E163: 0 | M163: Řad "B" TLT DN80 (souběh s kanalizací) / (půměrná hloubka výkopů 1,75 m):0
C164: Řad "C" TLT DN80 (průměrná hloubka výkopů 1,65 m):11,90*1,65*2 | E164: 39.27 | M164: Řad "C" TLT DN80 (průměrná hloubka výkopů 1,65 m):11,90*1,65*2
C165: VTP: | E165: 0 | M165: VTP:
C166: Řad "B" PE D90x8,2 mm (půměrná hloubka výkopů 1,70 m):41,00*1,70*2 | E166: 139.4 | M166: Řad "B" PE D90x8,2 mm (půměrná hloubka výkopů 1,70 m):41,00*1,70*2
C167: Řad "C" PE D90x8,2 mm (půměrná hloubka výkopů 1,70 m):52,70*1,70*2 | E167: 179.18 | M167: Řad "C" PE D90x8,2 mm (půměrná hloubka výkopů 1,70 m):52,70*1,70*2
A168: 14 | B168: 162701105RSZ | C168: Vodorovné přemístění výkopku z hor.1-4 na skládku zhotovitele | D168: m3 | E168: 311.0362 | G168: =E168*F168 -> 0 | H168: 0 | I168: =E168*H168 -> 0 | J168: 0 | K168: =E168*J168 -> 0 | O168: 2 | AA168: 1 | AB168: 1 | AC168: 1 | AZ168: 1 | BA168: =IF(AZ168=1,G168,0) -> 0 | BB168: =IF(AZ168=2,G168,0) -> 0 | BC168: =IF(AZ168=3,G168,0) -> 0 | BD168: =IF(AZ168=4,G168,0) -> 0 | BE168: =IF(AZ168=5,G168,0) -> 0 | CA168: 1 | CB168: 1
C169: Výkopy: | E169: 0 | M169: Výkopy:
C170: V hornině tř. 3 - 5:388,9375 | E170: 388.9375 | M170: V hornině tř. 3 - 5:388,9375
C171: Odpočet zásypů zeminou:-77,9013 | E171: -77.9013 | M171: Odpočet zásypů zeminou:-77,9013
A172: 15 | B172: 174101101R00 | C172: Zásyp jam, rýh, šachet se zhutněním | D172: m3 | E172: 250.579 | G172: =E172*F172 -> 0 | H172: 0 | I172: =E172*H172 -> 0 | J172: 0 | K172: =E172*J172 -> 0 | O172: 2 | AA172: 1 | AB172: 1 | AC172: 1 | AZ172: 1 | BA172: =IF(AZ172=1,G172,0) -> 0 | BB172: =IF(AZ172=2,G172,0) -> 0 | BC172: =IF(AZ172=3,G172,0) -> 0 | BD172: =IF(AZ172=4,G172,0) -> 0 | BE172: =IF(AZ172=5,G172,0) -> 0 | CA172: 1 | CB172: 1
C173: Položka obsahuje strojní přemístění materiálu pro zásyp ze vzdálenosti do 10 m od okraje zásypu. | L173: Položka obsahuje strojní přemístění materiálu pro zásyp ze vzdálenosti do 10 m od okraje zásypu. | O173: 3
C174: Zásyp zeminou:77,9013 | E174: 77.9013 | M174: Zásyp zeminou:77,9013
C175: Začátek provozního součtu | E175: 0 | M175: Začátek provozního součtu
C176: Výkopy: | E176: 0 | M176: Výkopy:
C177: VTP: | E177: 0 | M177: VTP:
C178: Řad "B" PE D90x8,2 mm (půměrná hloubka výkopů 1,70 m):(41,00-4,00)*0,90*1,70 | E178: 56.61 | M178: Řad "B" PE D90x8,2 mm (půměrná hloubka výkopů 1,70 m):(41,00-4,00)*0,90*1,70
C179: Odpočet objemu ornice:-(41,00-4,00)*0,90*0,20 | E179: -6.66 | M179: Odpočet objemu ornice:-(41,00-4,00)*0,90*0,20
C180: Odpočet lože, potrubín a obsypů:-(41,00-4,00)*0,90*(0,10+0,09+0,30) | E180: -16.317 | M180: Odpočet lože, potrubín a obsypů:-(41,00-4,00)*0,90*(0,10+0,09+0,30)
C181: Řad "C" PE D90x8,2 mm (půměrná hloubka výkopů 1,70 m):(52,70-4,00)*0,90*1,70 | E181: 74.511 | M181: Řad "C" PE D90x8,2 mm (půměrná hloubka výkopů 1,70 m):(52,70-4,00)*0,90*1,70
C182: Odpočet objemu ornice:-(52,70-4,00)*0,90*0,20 | E182: -8.766 | M182: Odpočet objemu ornice:-(52,70-4,00)*0,90*0,20
C183: Odpočet lože, potrubín a obsypů:-(52,70-4,00)*0,90*(0,10+0,09+0,30) | E183: -21.4767 | M183: Odpočet lože, potrubín a obsypů:-(52,70-4,00)*0,90*(0,10+0,09+0,30)
C184: Konec provozního součtu | E184: 77.9013 | M184: Konec provozního součtu
C185: Zásyp štěrkodrtí fr. 0-63 mm:172,6777 | E185: 172.6777 | M185: Zásyp štěrkodrtí fr. 0-63 mm:172,6777
C186: Začátek provozního součtu | E186: 0 | M186: Začátek provozního součtu
C187: Výkopy: | E187: 0 | M187: Výkopy:
C188: NTP: | E188: 0 | M188: NTP:
C189: Řad "A" TLT DN80 (částečně souběh s kanalizací) / (průměrná hloubka výkopů 1,70 m):174,30*0,90*1,70 | E189: 266.679 | M189: Řad "A" TLT DN80 (částečně souběh s kanalizací) / (průměrná hloubka výkopů 1,70 m):174,30*0,90*1,70
C190: Odpočet objemu konstrukce komunikací:-174,30*0,90*0,40 | E190: -62.748 | M190: Odpočet objemu konstrukce komunikací:-174,30*0,90*0,40
C191: Odpočet lože, potrubí a obsypů:-174,30*0,90*(0,10+0,08+0,30) | E191: -75.2976 | M191: Odpočet lože, potrubí a obsypů:-174,30*0,90*(0,10+0,08+0,30)
C192: Řad "B" TLT DN80 (souběh s kanalizací) / (půměrná hloubka výkopů 1,75 m):37,10*0,90*1,75 | E192: 58.4325 | M192: Řad "B" TLT DN80 (souběh s kanalizací) / (půměrná hloubka výkopů 1,75 m):37,10*0,90*1,75
C193: Odpočet objemu konstrukce komunikací:-37,10*0,90*0,40 | E193: -13.356 | M193: Odpočet objemu konstrukce komunikací:-37,10*0,90*0,40
C194: Odpočet lože, potrubí a obsypů:-37,100*0,90*(0,10+0,08+0,30) | E194: -16.0272 | M194: Odpočet lože, potrubí a obsypů:-37,100*0,90*(0,10+0,08+0,30)
C195: Řad "C" TLT DN80 (průměrná hloubka výkopů 1,65 m):11,90*1,00*1,65 | E195: 19.635 | M195: Řad "C" TLT DN80 (průměrná hloubka výkopů 1,65 m):11,90*1,00*1,65
C196: Odpočet objemu konstrukce komunikací:-11,90*1,00*0,40 | E196: -4.76 | M196: Odpočet objemu konstrukce komunikací:-11,90*1,00*0,40
C197: Odpočet lože, potrubí a obsypů:-11,90*1,00*(0,10+0,08+0,30) | E197: -5.712 | M197: Odpočet lože, potrubí a obsypů:-11,90*1,00*(0,10+0,08+0,30)
C198: VTP: | E198: 0 | M198: VTP:
C199: Řad "B" PE D90x8,2 mm (půměrná hloubka výkopů 1,70 m):4,00*0,90*1,70 | E199: 6.12 | M199: Řad "B" PE D90x8,2 mm (půměrná hloubka výkopů 1,70 m):4,00*0,90*1,70
C200: Odpočet objemu konstrukce komunikací:-4,00*0,90*0,40 | E200: -1.44 | M200: Odpočet objemu konstrukce komunikací:-4,00*0,90*0,40
C201: Odpočet lože, potrubí a obsypů:-4,00*0,90*(0,10+0,09+0,30) | E201: -1.764 | M201: Odpočet lože, potrubí a obsypů:-4,00*0,90*(0,10+0,09+0,30)
C202: Řad "C" PE D90x8,2 mm (půměrná hloubka výkopů 1,70 m):4,00*0,90*1,70 | E202: 6.12 | M202: Řad "C" PE D90x8,2 mm (půměrná hloubka výkopů 1,70 m):4,00*0,90*1,70
... 669 more rows

Sheet I. 01.02 I. 01.02 KL
A1: POLOŽKOVÝ ROZPOČET
A2: Rozpočet | C2: I. 01.02 | D2: Kanalizace "JIlemnická" | F2: JKSO | G2: 827.21.A4
A4: Objekt | F4: SKP
A5: I. 01.02 | C5: Kanalizace "JIlemnická" | F5: Měrná jednotka | G5: m
A6: Stavba | F6: Počet jednotek | G6: 0
A7: 3334 | C7: Lomnice nad Popelkou - Vodovod a kanalizace | F7: Náklady na m.j. | G7: =IF(G6=0,,ROUND((F30+F32)/G6,1)) -> 0
A8: Projektant | C8: VEDU VODU s.r.o. Dobrovice | F8: Typ rozpočtu
A9: Zpracovatel projektu
A10: Objednatel | C10: Vodohospodářské sdružení Turnov
A11: Dodavatel | C11: . | F11: Zakázkové číslo
A12: Rozpočtoval | F12: Počet listů
A13: ROZPOČTOVÉ NÁKLADY
A14: Základní rozpočtové náklady
B15: HSV celkem | C15: ='I. 01.02 I. 01.02 Rek'!E14 -> 0
A16: Z | B16: PSV celkem | C16: ='I. 01.02 I. 01.02 Rek'!F14 -> 0
A17: R | B17: M práce celkem | C17: ='I. 01.02 I. 01.02 Rek'!H14 -> 0
A18: N | B18: M dodávky celkem | C18: ='I. 01.02 I. 01.02 Rek'!G14 -> 0
A19: ZRN celkem | C19: =SUM(C15:C18) -> 0
A21: HZS | C21: ='I. 01.02 I. 01.02 Rek'!I14 -> 0
A22: ZRN+HZS | C22: =C19+C21 -> 0
A23: ZRN+ost.náklady+HZS | C23: =C22+G23 -> 0
A24: Vypracoval | D24: Za zhotovitele | F24: Za objednatele
A25: Jméno : | D25: Jméno : | F25: Jméno :
A26: Datum : | D26: Datum : | F26: Datum :
A28: Podpis : | D28: Podpis: | F28: Podpis:
A30: Základ pro DPH | C30: 21 | D30: % | F30: =C23-F32 -> 0
A31: DPH | C31: =C30 -> 21 | D31: % | F31: =ROUND(PRODUCT(F30,C31/100),0) -> 0
A32: Základ pro DPH | C32: 0 | D32: % | F32: 0
A33: DPH | C33: =C32 -> 0 | D33: % | F33: =ROUND(PRODUCT(F32,C33/100),0) -> 0
A34: CENA ZA OBJEKT CELKEM | F34: =ROUND(SUM(F30:F33),0) -> 0
A36: Poznámka :

Sheet I. 01.02 I. 01.02 Rek
A1: Stavba : | C1: 3334 Lomnice nad Popelkou - Vodovod a kanalizace | G1: Rozpočet : | H1: I. 01.02
A2: Objekt : | C2: I. 01.02 Kanalizace "JIlemnická" | G2: Kanalizace "JIlemnická"
A4: REKAPITULACE STAVEBNÍCH DÍLŮ
B6: Stavební díl | E6: HSV | F6: PSV | G6: Dodávka | H6: Montáž | I6: HZS
A7: ='I. 01.02 I. 01.02 Pol'!B7 -> 1 | B7: ='I. 01.02 I. 01.02 Pol'!C7 -> Zemní práce | E7: ='I. 01.02 I. 01.02 Pol'!BA295 -> 0 | F7: ='I. 01.02 I. 01.02 Pol'!BB295 -> 0 | G7: ='I. 01.02 I. 01.02 Pol'!BC295 -> 0 | H7: ='I. 01.02 I. 01.02 Pol'!BD295 -> 0 | I7: ='I. 01.02 I. 01.02 Pol'!BE295 -> 0
A8: ='I. 01.02 I. 01.02 Pol'!B296 -> 2 | B8: ='I. 01.02 I. 01.02 Pol'!C296 -> Základy a zvláštní zakládání | E8: ='I. 01.02 I. 01.02 Pol'!BA312 -> 0 | F8: ='I. 01.02 I. 01.02 Pol'!BB312 -> 0 | G8: ='I. 01.02 I. 01.02 Pol'!BC312 -> 0 | H8: ='I. 01.02 I. 01.02 Pol'!BD312 -> 0 | I8: ='I. 01.02 I. 01.02 Pol'!BE312 -> 0
A9: ='I. 01.02 I. 01.02 Pol'!B313 -> 45 | B9: ='I. 01.02 I. 01.02 Pol'!C313 -> Podkladní a vedlejší konstrukce | E9: ='I. 01.02 I. 01.02 Pol'!BA336 -> 0 | F9: ='I. 01.02 I. 01.02 Pol'!BB336 -> 0 | G9: ='I. 01.02 I. 01.02 Pol'!BC336 -> 0 | H9: ='I. 01.02 I. 01.02 Pol'!BD336 -> 0 | I9: ='I. 01.02 I. 01.02 Pol'!BE336 -> 0
A10: ='I. 01.02 I. 01.02 Pol'!B337 -> 5 | B10: ='I. 01.02 I. 01.02 Pol'!C337 -> Komunikace | E10: ='I. 01.02 I. 01.02 Pol'!BA362 -> 0 | F10: ='I. 01.02 I. 01.02 Pol'!BB362 -> 0 | G10: ='I. 01.02 I. 01.02 Pol'!BC362 -> 0 | H10: ='I. 01.02 I. 01.02 Pol'!BD362 -> 0 | I10: ='I. 01.02 I. 01.02 Pol'!BE362 -> 0
A11: ='I. 01.02 I. 01.02 Pol'!B363 -> 8 | B11: ='I. 01.02 I. 01.02 Pol'!C363 -> Trubní vedení | E11: ='I. 01.02 I. 01.02 Pol'!BA555 -> 0 | F11: ='I. 01.02 I. 01.02 Pol'!BB555 -> 0 | G11: ='I. 01.02 I. 01.02 Pol'!BC555 -> 0 | H11: ='I. 01.02 I. 01.02 Pol'!BD555 -> 0 | I11: ='I. 01.02 I. 01.02 Pol'!BE555 -> 0
A12: ='I. 01.02 I. 01.02 Pol'!B556 -> 93 | B12: ='I. 01.02 I. 01.02 Pol'!C556 -> Dokončovací práce inženýrských staveb | E12: ='I. 01.02 I. 01.02 Pol'!BA585 -> 0 | F12: ='I. 01.02 I. 01.02 Pol'!BB585 -> 0 | G12: ='I. 01.02 I. 01.02 Pol'!BC585 -> 0 | H12: ='I. 01.02 I. 01.02 Pol'!BD585 -> 0 | I12: ='I. 01.02 I. 01.02 Pol'!BE585 -> 0
A13: ='I. 01.02 I. 01.02 Pol'!B586 -> 99 | B13: ='I. 01.02 I. 01.02 Pol'!C586 -> Staveništní přesun hmot | E13: ='I. 01.02 I. 01.02 Pol'!BA588 -> 0 | F13: ='I. 01.02 I. 01.02 Pol'!BB588 -> 0 | G13: ='I. 01.02 I. 01.02 Pol'!BC588 -> 0 | H13: ='I. 01.02 I. 01.02 Pol'!BD588 -> 0 | I13: ='I. 01.02 I. 01.02 Pol'!BE588 -> 0
B14: CELKEM OBJEKT | E14: =SUM(E7:E13) -> 0 | F14: =SUM(F7:F13) -> 0 | G14: =SUM(G7:G13) -> 0 | H14: =SUM(H7:H13) -> 0 | I14: =SUM(I7:I13) -> 0

Sheet I. 01.02 I. 01.02 Pol
A1: Položkový rozpočet
A3: Stavba : | C3: 3334 Lomnice nad Popelkou - Vodovod a kanalizace | E3: Rozpočet: | F3: ='I. 01.02 I. 01.02 Rek'!H1 -> I. 01.02
A4: Objekt : | C4: I. 01.02 Kanalizace "JIlemnická" | E4: ='I. 01.02 I. 01.02 Rek'!G2 -> Kanalizace "JIlemnická"
A6: P.č. | B6: Číslo položky | C6: Název položky | D6: MJ | E6: množství | F6: cena / MJ | G6: celkem (Kč) | H6: Jednotková hmotnost | I6: Celková hmotnost | J6: Jednotková dem.hmot. | K6: Celková dem.hmot.
A7: Díl: | B7: 1 | C7: Zemní práce | O7: 1
A8: 1 | B8: 113107625R00 | C8: Odstranění podkladu nad 50 m2,kam.drcené tl.25 cm | D8: m2 | E8: 262.82 | G8: =E8*F8 -> 0 | H8: 0 | I8: =E8*H8 -> 0 | J8: -0.55 | K8: =E8*J8 -> -144.551 | O8: 2 | AA8: 1 | AB8: 1 | AC8: 1 | AZ8: 1 | BA8: =IF(AZ8=1,G8,0) -> 0 | BB8: =IF(AZ8=2,G8,0) -> 0 | BC8: =IF(AZ8=3,G8,0) -> 0 | BD8: =IF(AZ8=4,G8,0) -> 0 | BE8: =IF(AZ8=5,G8,0) -> 0 | CA8: 1 | CB8: 1
C9: Stoka "A" KT DN300: | E9: 0 | M9: Stoka "A" KT DN300:
C10: Odpočet konstrukce komunikace:(110,80+4,00+6,80)*1,20+1,60*(1,60-1,20)*6 | E10: 149.76 | M10: Odpočet konstrukce komunikace:(110,80+4,00+6,80)*1,20+1,60*(1,60-1,20)*6
C11: Stoka "E" PVC DN250: | E11: 0 | M11: Stoka "E" PVC DN250:
C12: Odpočet konstrukce komunikace:37,90*1,00+1,60*(1,60-1,00)*1 | E12: 38.86 | M12: Odpočet konstrukce komunikace:37,90*1,00+1,60*(1,60-1,00)*1
C13: Stoka "F" PVC DN250: | E13: 0 | M13: Stoka "F" PVC DN250:
C14: Odpočet konstrukce komunikace:32,70*1,00+1,60*(1,60-1,00)*1 | E14: 33.66 | M14: Odpočet konstrukce komunikace:32,70*1,00+1,60*(1,60-1,00)*1
C15: Stoka "H" KT DN250: | E15: 0 | M15: Stoka "H" KT DN250:
C16: Odpočet konstrukce komunikace:34,00*1,15+1,60*(1,60-1,15)*2 | E16: 40.54 | M16: Odpočet konstrukce komunikace:34,00*1,15+1,60*(1,60-1,15)*2
A17: 2 | B17: 113108415R00 | C17: Odstranění asfaltové vrstvy pl.nad 50 m2, tl.15 cm | D17: m2 | E17: 262.82 | G17: =E17*F17 -> 0 | H17: 0 | I17: =E17*H17 -> 0 | J17: -0.33 | K17: =E17*J17 -> -86.7306 | O17: 2 | AA17: 1 | AB17: 1 | AC17: 1 | AZ17: 1 | BA17: =IF(AZ17=1,G17,0) -> 0 | BB17: =IF(AZ17=2,G17,0) -> 0 | BC17: =IF(AZ17=3,G17,0) -> 0 | BD17: =IF(AZ17=4,G17,0) -> 0 | BE17: =IF(AZ17=5,G17,0) -> 0 | CA17: 1 | CB17: 1
C18: Stoka "A" KT DN300: | E18: 0 | M18: Stoka "A" KT DN300:
C19: Odpočet konstrukce komunikace:(110,80+4,00+6,80)*1,20+1,60*(1,60-1,20)*6 | E19: 149.76 | M19: Odpočet konstrukce komunikace:(110,80+4,00+6,80)*1,20+1,60*(1,60-1,20)*6
C20: Stoka "E" PVC DN250: | E20: 0 | M20: Stoka "E" PVC DN250:
C21: Odpočet konstrukce komunikace:37,90*1,00+1,60*(1,60-1,00)*1 | E21: 38.86 | M21: Odpočet konstrukce komunikace:37,90*1,00+1,60*(1,60-1,00)*1
C22: Stoka "F" PVC DN250: | E22: 0 | M22: Stoka "F" PVC DN250:
C23: Odpočet konstrukce komunikace:32,70*1,00+1,60*(1,60-1,00)*1 | E23: 33.66 | M23: Odpočet konstrukce komunikace:32,70*1,00+1,60*(1,60-1,00)*1
C24: Stoka "H" KT DN250: | E24: 0 | M24: Stoka "H" KT DN250:
C25: Odpočet konstrukce komunikace:34,00*1,15+1,60*(1,60-1,15)*2 | E25: 40.54 | M25: Odpočet konstrukce komunikace:34,00*1,15+1,60*(1,60-1,15)*2
A26: 3 | B26: 114211103R00 | C26: Odstranění betonových trub do DN 300 mm, ve výkopu | D26: m | E26: 144 | G26: =E26*F26 -> 0 | H26: 0 | I26: =E26*H26 -> 0 | J26: -0.1015 | K26: =E26*J26 -> -14.616 | O26: 2 | AA26: 1 | AB26: 1 | AC26: 1 | AZ26: 1 | BA26: =IF(AZ26=1,G26,0) -> 0 | BB26: =IF(AZ26=2,G26,0) -> 0 | BC26: =IF(AZ26=3,G26,0) -> 0 | BD26: =IF(AZ26=4,G26,0) -> 0 | BE26: =IF(AZ26=5,G26,0) -> 0 | CA26: 1 | CB26: 1
C27: Položka obsahuje odstranění materiálu obklopujícího potrubí v míře nutné pro vyzvednutí, rozpojení trub, uchopení a vyzvednutí trub z výkopu a uložení na dopravní prostředek včetně odvozu na skládku zhotovitele a poplatek za skládku. | L27: Položka obsahuje odstranění materiálu obklopujícího potrubí v míře nutné pro vyzvednutí, rozpojení trub, uchopení a vyzvednutí trub z výkopu a uložení na dopravní prostředek včetně odvozu na skládku zhotovitele a poplatek za skládku. | O27: 3
C28: Stávající potrubí BT DN300:75,00+37,00+32,00 | E28: 144 | M28: Stávající potrubí BT DN300:75,00+37,00+32,00
A29: 4 | B29: 115101201RRX | C29: Přečerpávání nebo převedení splašků a dešť. vod | D29: h | E29: 150 | G29: =E29*F29 -> 0 | H29: 0 | I29: =E29*H29 -> 0 | J29: 0 | K29: =E29*J29 -> 0 | O29: 2 | AA29: 1 | AB29: 1 | AC29: 1 | AZ29: 1 | BA29: =IF(AZ29=1,G29,0) -> 0 | BB29: =IF(AZ29=2,G29,0) -> 0 | BC29: =IF(AZ29=3,G29,0) -> 0 | BD29: =IF(AZ29=4,G29,0) -> 0 | BE29: =IF(AZ29=5,G29,0) -> 0 | CA29: 1 | CB29: 1
C30: Převedení a čerpání splašků nebo dešťových vod dle zvolené technologie zhotovitele stavby. | L30: Převedení a čerpání splašků nebo dešťových vod dle zvolené technologie zhotovitele stavby. | O30: 3
C31: (Množství bude určeno na stavbě dle skutečnosti) | L31: (Množství bude určeno na stavbě dle skutečnosti) | O31: 3
A32: 5 | B32: 130001101RRX | C32: Příplatek za ztížené hloubení v blízkosti vedení | D32: m3 | E32: 144.2422 | G32: =E32*F32 -> 0 | H32: 0 | I32: =E32*H32 -> 0 | J32: 0 | K32: =E32*J32 -> 0 | O32: 2 | AA32: 1 | AB32: 1 | AC32: 1 | AZ32: 1 | BA32: =IF(AZ32=1,G32,0) -> 0 | BB32: =IF(AZ32=2,G32,0) -> 0 | BC32: =IF(AZ32=3,G32,0) -> 0 | BD32: =IF(AZ32=4,G32,0) -> 0 | BE32: =IF(AZ32=5,G32,0) -> 0 | CA32: 1 | CB32: 1
C33: Včetně případných nutných dokopávem a ručního výkopu podél sousedících inženýrských sítí | L33: Včetně případných nutných dokopávem a ručního výkopu podél sousedících inženýrských sítí | O33: 3
C34: Začátek provozního součtu | E34: 0 | M34: Začátek provozního součtu
C35: Stoka "A" KT DN300:38,10*1,20*(2,60+2,16)/2 | E35: 108.8136 | M35: Stoka "A" KT DN300:38,10*1,20*(2,60+2,16)/2
C36: (64,70-38,10)*1,20*(2,16+2,25)/2 | E36: 70.3836 | M36: (64,70-38,10)*1,20*(2,16+2,25)/2
C37: (110,80-64,70)*1,20*(2,25+2,25)/2 | E37: 124.47 | M37: (110,80-64,70)*1,20*(2,25+2,25)/2
C38: Prohloubení pro RŠ:1,60*1,60*0,20*6 | E38: 3.072 | M38: Prohloubení pro RŠ:1,60*1,60*0,20*6
C39: Rozšíření pro RŠ:1,60*(1,60-1,20)*29,25 | E39: 18.72 | M39: Rozšíření pro RŠ:1,60*(1,60-1,20)*29,25
C40: Propoj do odlehčovací komory KT DN300:4,00*1,20*2,60 | E40: 12.48 | M40: Propoj do odlehčovací komory KT DN300:4,00*1,20*2,60
C41: Propoj na neznámé potrubí KT DN300:6,80*1,20*2,60 | E41: 21.216 | M41: Propoj na neznámé potrubí KT DN300:6,80*1,20*2,60
C42: Odpočet konstrukce komunikace:-((110,80+4,00+6,80)*1,20+1,60*(1,60-1,20)*6)*0,40 | E42: -59.904 | M42: Odpočet konstrukce komunikace:-((110,80+4,00+6,80)*1,20+1,60*(1,60-1,20)*6)*0,40
C43: Stoka "E" PVC DN250:15,20*1,00*(2,39+3,03)/2 | E43: 41.192 | M43: Stoka "E" PVC DN250:15,20*1,00*(2,39+3,03)/2
C44: (37,90-15,20)*1,00*(3,03+2,15)/2 | E44: 58.793 | M44: (37,90-15,20)*1,00*(3,03+2,15)/2
C45: Prohloubení pro RŠ:1,60*1,60*0,20*1 | E45: 0.512 | M45: Prohloubení pro RŠ:1,60*1,60*0,20*1
C46: Rozšíření pro RŠ:1,60*(1,60-1,00)*2,15 | E46: 2.064 | M46: Rozšíření pro RŠ:1,60*(1,60-1,00)*2,15
C47: Odpočet konstrukce komunikace:-(37,90*1,00+1,60*(1,60-1,00)*1)*0,40 | E47: -15.544 | M47: Odpočet konstrukce komunikace:-(37,90*1,00+1,60*(1,60-1,00)*1)*0,40
C48: Stoka "F" PVC DN250:10,80*1,00*(2,41+2,89)/2 | E48: 28.62 | M48: Stoka "F" PVC DN250:10,80*1,00*(2,41+2,89)/2
C49: (32,70-10,80)*1,00*(2,89+2,14)/2 | E49: 55.0785 | M49: (32,70-10,80)*1,00*(2,89+2,14)/2
C50: Prohloubení pro RŠ:1,60*1,60*0,20*1 | E50: 0.512 | M50: Prohloubení pro RŠ:1,60*1,60*0,20*1
C51: Rozšíření pro RŠ:1,60*(1,60-1,00)*2,14 | E51: 2.0544 | M51: Rozšíření pro RŠ:1,60*(1,60-1,00)*2,14
C52: Odpočet konstrukce komunikace:-(32,70*1,00+1,60*(1,60-1,00)*1)*0,40 | E52: -13.464 | M52: Odpočet konstrukce komunikace:-(32,70*1,00+1,60*(1,60-1,00)*1)*0,40
C53: Stoka "H" KT DN250:19,90*1,15*(2,25+2,30)/2 | E53: 52.0634 | M53: Stoka "H" KT DN250:19,90*1,15*(2,25+2,30)/2
C54: (34,00-19,90)*1,15*(2,30+2,04)/2 | E54: 35.1866 | M54: (34,00-19,90)*1,15*(2,30+2,04)/2
C55: Prohloubení pro RŠ:1,60*1,60*0,20*2 | E55: 1.024 | M55: Prohloubení pro RŠ:1,60*1,60*0,20*2
C56: Rozšíření pro RŠ:1,60*(1,60-1,15)*4,31 | E56: 3.1032 | M56: Rozšíření pro RŠ:1,60*(1,60-1,15)*4,31
C57: Odpočet konstrukce komunikace:-(34,00*1,15+1,60*(1,60-1,15)*2)*0,40 | E57: -16.216 | M57: Odpočet konstrukce komunikace:-(34,00*1,15+1,60*(1,60-1,15)*2)*0,40
C58: Konec provozního součtu | E58: 534.2303 | M58: Konec provozního součtu
C59: V hornině tř.3 - 5 - 27%:534,2302*0,27 | E59: 144.2422 | M59: V hornině tř.3 - 5 - 27%:534,2302*0,27
A60: 6 | B60: 130901123RT3 | C60: Bourání konstrukcí ze železobetonu ve vykopávkách bagrem s kladivem | D60: m3 | E60: 8.2504 | G60: =E60*F60 -> 0 | H60: 0 | I60: =E60*H60 -> 0 | J60: 0 | K60: =E60*J60 -> 0 | O60: 2 | AA60: 1 | AB60: 1 | AC60: 1 | AZ60: 1 | BA60: =IF(AZ60=1,G60,0) -> 0 | BB60: =IF(AZ60=2,G60,0) -> 0 | BC60: =IF(AZ60=3,G60,0) -> 0 | BD60: =IF(AZ60=4,G60,0) -> 0 | BE60: =IF(AZ60=5,G60,0) -> 0 | CA60: 1 | CB60: 1
C61: Položka obsahuje odstranění materiálu obklopujícího betonové a železobetonové konstrukce v míře nutné pro vyzvednutí, rozpojení konstrukcí, uchopení a vyzvednutí konstrukce z výkopu a uložení na dopravní prostředek včetně odvozu na skládku zhotovitele a poplatek za skládku. | L61: Položka obsahuje odstranění materiálu obklopujícího betonové a železobetonové konstrukce v míře nutné pro vyzvednutí, rozpojení konstrukcí, uchopení a vyzvednutí konstrukce z výkopu a uložení na dopravní prostředek včetně odvozu na skládku zhotovitele a poplatek za skládku. | O61: 3
C62: Stávající RŠ (6 kusy):8,2504 | E62: 8.2504 | M62: Stávající RŠ (6 kusy):8,2504
A63: 7 | B63: 132201212R00 | C63: Hloubení rýh š.do 200 cm hor.3 do 1000m3,STROJNĚ | D63: m3 | E63: 240.4036 | G63: =E63*F63 -> 0 | H63: 0 | I63: =E63*H63 -> 0 | J63: 0 | K63: =E63*J63 -> 0 | O63: 2 | AA63: 1 | AB63: 1 | AC63: 1 | AZ63: 1 | BA63: =IF(AZ63=1,G63,0) -> 0 | BB63: =IF(AZ63=2,G63,0) -> 0 | BC63: =IF(AZ63=3,G63,0) -> 0 | BD63: =IF(AZ63=4,G63,0) -> 0 | BE63: =IF(AZ63=5,G63,0) -> 0 | CA63: 1 | CB63: 1
C64: Položka obsahuje hloubení rýh traktorbagrem, naložení výkopku na dopravní prostředek pro svislé, nebo vodorovné přemístění, popř. přemístění výkopku do 3 m (po povrchu území), případné zajištění rypadel polštáři, udržování pracoviště a ochranu výkopiště proti stékání srážkové vody z okolního terénu i s jejím odvodněním, nebo odvedením, přesekání a odstranění kořenů ve výkopišti, odstranění napadávek, urovnání dna výkopu. | L64: Položka obsahuje hloubení rýh traktorbagrem, naložení výkopku na dopravní prostředek pro svislé, nebo vodorovné přemístění, popř. přemístění výkopku do 3 m (po povrchu území), případné zajištění rypadel polštáři, udržování pracoviště a ochranu výkopiště proti stékání srážkové vody z okolního terénu i s jejím odvodněním, nebo odvedením, přesekání a odstranění kořenů ve výkopišti, odstranění napadávek, urovnání dna výkopu. | O64: 3
C65: Začátek provozního součtu | E65: 0 | M65: Začátek provozního součtu
C66: Stoka "A" KT DN300:38,10*1,20*(2,60+2,16)/2 | E66: 108.8136 | M66: Stoka "A" KT DN300:38,10*1,20*(2,60+2,16)/2
C67: (64,70-38,10)*1,20*(2,16+2,25)/2 | E67: 70.3836 | M67: (64,70-38,10)*1,20*(2,16+2,25)/2
C68: (110,80-64,70)*1,20*(2,25+2,25)/2 | E68: 124.47 | M68: (110,80-64,70)*1,20*(2,25+2,25)/2
C69: Prohloubení pro RŠ:1,60*1,60*0,20*6 | E69: 3.072 | M69: Prohloubení pro RŠ:1,60*1,60*0,20*6
C70: Rozšíření pro RŠ:1,60*(1,60-1,20)*29,25 | E70: 18.72 | M70: Rozšíření pro RŠ:1,60*(1,60-1,20)*29,25
C71: Propoj do odlehčovací komory KT DN300:4,00*1,20*2,60 | E71: 12.48 | M71: Propoj do odlehčovací komory KT DN300:4,00*1,20*2,60
C72: Propoj na neznámé potrubí KT DN300:6,80*1,20*2,60 | E72: 21.216 | M72: Propoj na neznámé potrubí KT DN300:6,80*1,20*2,60
C73: Odpočet konstrukce komunikace:-((110,80+4,00+6,80)*1,20+1,60*(1,60-1,20)*6)*0,40 | E73: -59.904 | M73: Odpočet konstrukce komunikace:-((110,80+4,00+6,80)*1,20+1,60*(1,60-1,20)*6)*0,40
C74: Stoka "E" PVC DN250:15,20*1,00*(2,39+3,03)/2 | E74: 41.192 | M74: Stoka "E" PVC DN250:15,20*1,00*(2,39+3,03)/2
C75: (37,90-15,20)*1,00*(3,03+2,15)/2 | E75: 58.793 | M75: (37,90-15,20)*1,00*(3,03+2,15)/2
C76: Prohloubení pro RŠ:1,60*1,60*0,20*1 | E76: 0.512 | M76: Prohloubení pro RŠ:1,60*1,60*0,20*1
C77: Rozšíření pro RŠ:1,60*(1,60-1,00)*2,15 | E77: 2.064 | M77: Rozšíření pro RŠ:1,60*(1,60-1,00)*2,15
C78: Odpočet konstrukce komunikace:-(37,90*1,00+1,60*(1,60-1,00)*1)*0,40 | E78: -15.544 | M78: Odpočet konstrukce komunikace:-(37,90*1,00+1,60*(1,60-1,00)*1)*0,40
C79: Stoka "F" PVC DN250:10,80*1,00*(2,41+2,89)/2 | E79: 28.62 | M79: Stoka "F" PVC DN250:10,80*1,00*(2,41+2,89)/2
C80: (32,70-10,80)*1,00*(2,89+2,14)/2 | E80: 55.0785 | M80: (32,70-10,80)*1,00*(2,89+2,14)/2
C81: Prohloubení pro RŠ:1,60*1,60*0,20*1 | E81: 0.512 | M81: Prohloubení pro RŠ:1,60*1,60*0,20*1
C82: Rozšíření pro RŠ:1,60*(1,60-1,00)*2,14 | E82: 2.0544 | M82: Rozšíření pro RŠ:1,60*(1,60-1,00)*2,14
C83: Odpočet konstrukce komunikace:-(32,70*1,00+1,60*(1,60-1,00)*1)*0,40 | E83: -13.464 | M83: Odpočet konstrukce komunikace:-(32,70*1,00+1,60*(1,60-1,00)*1)*0,40
C84: Stoka "H" KT DN250:19,90*1,15*(2,25+2,30)/2 | E84: 52.0634 | M84: Stoka "H" KT DN250:19,90*1,15*(2,25+2,30)/2
C85: (34,00-19,90)*1,15*(2,30+2,04)/2 | E85: 35.1866 | M85: (34,00-19,90)*1,15*(2,30+2,04)/2
C86: Prohloubení pro RŠ:1,60*1,60*0,20*2 | E86: 1.024 | M86: Prohloubení pro RŠ:1,60*1,60*0,20*2
C87: Rozšíření pro RŠ:1,60*(1,60-1,15)*4,31 | E87: 3.1032 | M87: Rozšíření pro RŠ:1,60*(1,60-1,15)*4,31
C88: Odpočet konstrukce komunikace:-(34,00*1,15+1,60*(1,60-1,15)*2)*0,40 | E88: -16.216 | M88: Odpočet konstrukce komunikace:-(34,00*1,15+1,60*(1,60-1,15)*2)*0,40
C89: Konec provozního součtu | E89: 534.2303 | M89: Konec provozního součtu
C90: V hornině tř.3 - 45%:534,2302*0,45 | E90: 240.4036 | M90: V hornině tř.3 - 45%:534,2302*0,45
A91: 8 | B91: 132201219R00 | C91: Přípl.za lepivost,hloubení rýh 200cm,hor.3,STROJNĚ | D91: m3 | E91: 120.2018 | G91: =E91*F91 -> 0 | H91: 0 | I91: =E91*H91 -> 0 | J91: 0 | K91: =E91*J91 -> 0 | O91: 2 | AA91: 1 | AB91: 1 | AC91: 1 | AZ91: 1 | BA91: =IF(AZ91=1,G91,0) -> 0 | BB91: =IF(AZ91=2,G91,0) -> 0 | BC91: =IF(AZ91=3,G91,0) -> 0 | BD91: =IF(AZ91=4,G91,0) -> 0 | BE91: =IF(AZ91=5,G91,0) -> 0 | CA91: 1 | CB91: 1
C92: Začátek provozního součtu | E92: 0 | M92: Začátek provozního součtu
C93: Stoka "A" KT DN300:38,10*1,20*(2,60+2,16)/2 | E93: 108.8136 | M93: Stoka "A" KT DN300:38,10*1,20*(2,60+2,16)/2
C94: (64,70-38,10)*1,20*(2,16+2,25)/2 | E94: 70.3836 | M94: (64,70-38,10)*1,20*(2,16+2,25)/2
C95: (110,80-64,70)*1,20*(2,25+2,25)/2 | E95: 124.47 | M95: (110,80-64,70)*1,20*(2,25+2,25)/2
C96: Prohloubení pro RŠ:1,60*1,60*0,20*6 | E96: 3.072 | M96: Prohloubení pro RŠ:1,60*1,60*0,20*6
C97: Rozšíření pro RŠ:1,60*(1,60-1,20)*29,25 | E97: 18.72 | M97: Rozšíření pro RŠ:1,60*(1,60-1,20)*29,25
C98: Propoj do odlehčovací komory KT DN300:4,00*1,20*2,60 | E98: 12.48 | M98: Propoj do odlehčovací komory KT DN300:4,00*1,20*2,60
C99: Propoj na neznámé potrubí KT DN300:6,80*1,20*2,60 | E99: 21.216 | M99: Propoj na neznámé potrubí KT DN300:6,80*1,20*2,60
C100: Odpočet konstrukce komunikace:-((110,80+4,00+6,80)*1,20+1,60*(1,60-1,20)*6)*0,40 | E100: -59.904 | M100: Odpočet konstrukce komunikace:-((110,80+4,00+6,80)*1,20+1,60*(1,60-1,20)*6)*0,40
C101: Stoka "E" PVC DN250:15,20*1,00*(2,39+3,03)/2 | E101: 41.192 | M101: Stoka "E" PVC DN250:15,20*1,00*(2,39+3,03)/2
C102: (37,90-15,20)*1,00*(3,03+2,15)/2 | E102: 58.793 | M102: (37,90-15,20)*1,00*(3,03+2,15)/2
C103: Prohloubení pro RŠ:1,60*1,60*0,20*1 | E103: 0.512 | M103: Prohloubení pro RŠ:1,60*1,60*0,20*1
C104: Rozšíření pro RŠ:1,60*(1,60-1,00)*2,15 | E104: 2.064 | M104: Rozšíření pro RŠ:1,60*(1,60-1,00)*2,15
C105: Odpočet konstrukce komunikace:-(37,90*1,00+1,60*(1,60-1,00)*1)*0,40 | E105: -15.544 | M105: Odpočet konstrukce komunikace:-(37,90*1,00+1,60*(1,60-1,00)*1)*0,40
C106: Stoka "F" PVC DN250:10,80*1,00*(2,41+2,89)/2 | E106: 28.62 | M106: Stoka "F" PVC DN250:10,80*1,00*(2,41+2,89)/2
C107: (32,70-10,80)*1,00*(2,89+2,14)/2 | E107: 55.0785 | M107: (32,70-10,80)*1,00*(2,89+2,14)/2
C108: Prohloubení pro RŠ:1,60*1,60*0,20*1 | E108: 0.512 | M108: Prohloubení pro RŠ:1,60*1,60*0,20*1
C109: Rozšíření pro RŠ:1,60*(1,60-1,00)*2,14 | E109: 2.0544 | M109: Rozšíření pro RŠ:1,60*(1,60-1,00)*2,14
C110: Odpočet konstrukce komunikace:-(32,70*1,00+1,60*(1,60-1,00)*1)*0,40 | E110: -13.464 | M110: Odpočet konstrukce komunikace:-(32,70*1,00+1,60*(1,60-1,00)*1)*0,40
C111: Stoka "H" KT DN250:19,90*1,15*(2,25+2,30)/2 | E111: 52.0634 | M111: Stoka "H" KT DN250:19,90*1,15*(2,25+2,30)/2
C112: (34,00-19,90)*1,15*(2,30+2,04)/2 | E112: 35.1866 | M112: (34,00-19,90)*1,15*(2,30+2,04)/2
C113: Prohloubení pro RŠ:1,60*1,60*0,20*2 | E113: 1.024 | M113: Prohloubení pro RŠ:1,60*1,60*0,20*2
C114: Rozšíření pro RŠ:1,60*(1,60-1,15)*4,31 | E114: 3.1032 | M114: Rozšíření pro RŠ:1,60*(1,60-1,15)*4,31
C115: Odpočet konstrukce komunikace:-(34,00*1,15+1,60*(1,60-1,15)*2)*0,40 | E115: -16.216 | M115: Odpočet konstrukce komunikace:-(34,00*1,15+1,60*(1,60-1,15)*2)*0,40
C116: Konec provozního součtu | E116: 534.2303 | M116: Konec provozního součtu
C117: V hornině tř.3 - 45%:534,2302*0,45*0,5 | E117: 120.2018 | M117: V hornině tř.3 - 45%:534,2302*0,45*0,5
A118: 9 | B118: 132301212R00 | C118: Hloubení rýh š.do 200 cm hor.4 do 1000 m3, STROJNĚ | D118: m3 | E118: 240.4036 | G118: =E118*F118 -> 0 | H118: 0 | I118: =E118*H118 -> 0 | J118: 0 | K118: =E118*J118 -> 0 | O118: 2 | AA118: 1 | AB118: 1 | AC118: 1 | AZ118: 1 | BA118: =IF(AZ118=1,G118,0) -> 0 | BB118: =IF(AZ118=2,G118,0) -> 0 | BC118: =IF(AZ118=3,G118,0) -> 0 | BD118: =IF(AZ118=4,G118,0) -> 0 | BE118: =IF(AZ118=5,G118,0) -> 0 | CA118: 1 | CB118: 1
C119: Položka obsahuje hloubení rýh traktorbagrem, naložení výkopku na dopravní prostředek pro svislé, nebo vodorovné přemístění, popř. přemístění výkopku do 3 m (po povrchu území), případné zajištění rypadel polštáři, udržování pracoviště a ochranu výkopiště proti stékání srážkové vody z okolního terénu i s jejím odvodněním, nebo odvedením, přesekání a odstranění kořenů ve výkopišti, odstranění napadávek, urovnání dna výkopu. | L119: Položka obsahuje hloubení rýh traktorbagrem, naložení výkopku na dopravní prostředek pro svislé, nebo vodorovné přemístění, popř. přemístění výkopku do 3 m (po povrchu území), případné zajištění rypadel polštáři, udržování pracoviště a ochranu výkopiště proti stékání srážkové vody z okolního terénu i s jejím odvodněním, nebo odvedením, přesekání a odstranění kořenů ve výkopišti, odstranění napadávek, urovnání dna výkopu. | O119: 3
C120: Začátek provozního součtu | E120: 0 | M120: Začátek provozního součtu
C121: Stoka "A" KT DN300:38,10*1,20*(2,60+2,16)/2 | E121: 108.8136 | M121: Stoka "A" KT DN300:38,10*1,20*(2,60+2,16)/2
C122: (64,70-38,10)*1,20*(2,16+2,25)/2 | E122: 70.3836 | M122: (64,70-38,10)*1,20*(2,16+2,25)/2
C123: (110,80-64,70)*1,20*(2,25+2,25)/2 | E123: 124.47 | M123: (110,80-64,70)*1,20*(2,25+2,25)/2
C124: Prohloubení pro RŠ:1,60*1,60*0,20*6 | E124: 3.072 | M124: Prohloubení pro RŠ:1,60*1,60*0,20*6
C125: Rozšíření pro RŠ:1,60*(1,60-1,20)*29,25 | E125: 18.72 | M125: Rozšíření pro RŠ:1,60*(1,60-1,20)*29,25
C126: Propoj do odlehčovací komory KT DN300:4,00*1,20*2,60 | E126: 12.48 | M126: Propoj do odlehčovací komory KT DN300:4,00*1,20*2,60
C127: Propoj na neznámé potrubí KT DN300:6,80*1,20*2,60 | E127: 21.216 | M127: Propoj na neznámé potrubí KT DN300:6,80*1,20*2,60
C128: Odpočet konstrukce komunikace:-((110,80+4,00+6,80)*1,20+1,60*(1,60-1,20)*6)*0,40 | E128: -59.904 | M128: Odpočet konstrukce komunikace:-((110,80+4,00+6,80)*1,20+1,60*(1,60-1,20)*6)*0,40
C129: Stoka "E" PVC DN250:15,20*1,00*(2,39+3,03)/2 | E129: 41.192 | M129: Stoka "E" PVC DN250:15,20*1,00*(2,39+3,03)/2
C130: (37,90-15,20)*1,00*(3,03+2,15)/2 | E130: 58.793 | M130: (37,90-15,20)*1,00*(3,03+2,15)/2
C131: Prohloubení pro RŠ:1,60*1,60*0,20*1 | E131: 0.512 | M131: Prohloubení pro RŠ:1,60*1,60*0,20*1
C132: Rozšíření pro RŠ:1,60*(1,60-1,00)*2,15 | E132: 2.064 | M132: Rozšíření pro RŠ:1,60*(1,60-1,00)*2,15
C133: Odpočet konstrukce komunikace:-(37,90*1,00+1,60*(1,60-1,00)*1)*0,40 | E133: -15.544 | M133: Odpočet konstrukce komunikace:-(37,90*1,00+1,60*(1,60-1,00)*1)*0,40
C134: Stoka "F" PVC DN250:10,80*1,00*(2,41+2,89)/2 | E134: 28.62 | M134: Stoka "F" PVC DN250:10,80*1,00*(2,41+2,89)/2
C135: (32,70-10,80)*1,00*(2,89+2,14)/2 | E135: 55.0785 | M135: (32,70-10,80)*1,00*(2,89+2,14)/2
C136: Prohloubení pro RŠ:1,60*1,60*0,20*1 | E136: 0.512 | M136: Prohloubení pro RŠ:1,60*1,60*0,20*1
C137: Rozšíření pro RŠ:1,60*(1,60-1,00)*2,14 | E137: 2.0544 | M137: Rozšíření pro RŠ:1,60*(1,60-1,00)*2,14
C138: Odpočet konstrukce komunikace:-(32,70*1,00+1,60*(1,60-1,00)*1)*0,40 | E138: -13.464 | M138: Odpočet konstrukce komunikace:-(32,70*1,00+1,60*(1,60-1,00)*1)*0,40
C139: Stoka "H" KT DN250:19,90*1,15*(2,25+2,30)/2 | E139: 52.0634 | M139: Stoka "H" KT DN250:19,90*1,15*(2,25+2,30)/2
C140: (34,00-19,90)*1,15*(2,30+2,04)/2 | E140: 35.1866 | M140: (34,00-19,90)*1,15*(2,30+2,04)/2
C141: Prohloubení pro RŠ:1,60*1,60*0,20*2 | E141: 1.024 | M141: Prohloubení pro RŠ:1,60*1,60*0,20*2
C142: Rozšíření pro RŠ:1,60*(1,60-1,15)*4,31 | E142: 3.1032 | M142: Rozšíření pro RŠ:1,60*(1,60-1,15)*4,31
C143: Odpočet konstrukce komunikace:-(34,00*1,15+1,60*(1,60-1,15)*2)*0,40 | E143: -16.216 | M143: Odpočet konstrukce komunikace:-(34,00*1,15+1,60*(1,60-1,15)*2)*0,40
C144: Konec provozního součtu | E144: 534.2303 | M144: Konec provozního součtu
C145: V hornině tř.4 - 45%:534,2302*0,45 | E145: 240.4036 | M145: V hornině tř.4 - 45%:534,2302*0,45
A146: 10 | B146: 132301219R00 | C146: Přípl.za lepivost,hloubení rýh 200cm,hor.4,STROJNĚ | D146: m3 | E146: 120.2018 | G146: =E146*F146 -> 0 | H146: 0 | I146: =E146*H146 -> 0 | J146: 0 | K146: =E146*J146 -> 0 | O146: 2 | AA146: 1 | AB146: 1 | AC146: 1 | AZ146: 1 | BA146: =IF(AZ146=1,G146,0) -> 0 | BB146: =IF(AZ146=2,G146,0) -> 0 | BC146: =IF(AZ146=3,G146,0) -> 0 | BD146: =IF(AZ146=4,G146,0) -> 0 | BE146: =IF(AZ146=5,G146,0) -> 0 | CA146: 1 | CB146: 1
C147: Začátek provozního součtu | E147: 0 | M147: Začátek provozního součtu
C148: Stoka "A" KT DN300:38,10*1,20*(2,60+2,16)/2 | E148: 108.8136 | M148: Stoka "A" KT DN300:38,10*1,20*(2,60+2,16)/2
C149: (64,70-38,10)*1,20*(2,16+2,25)/2 | E149: 70.3836 | M149: (64,70-38,10)*1,20*(2,16+2,25)/2
C150: (110,80-64,70)*1,20*(2,25+2,25)/2 | E150: 124.47 | M150: (110,80-64,70)*1,20*(2,25+2,25)/2
C151: Prohloubení pro RŠ:1,60*1,60*0,20*6 | E151: 3.072 | M151: Prohloubení pro RŠ:1,60*1,60*0,20*6
C152: Rozšíření pro RŠ:1,60*(1,60-1,20)*29,25 | E152: 18.72 | M152: Rozšíření pro RŠ:1,60*(1,60-1,20)*29,25
C153: Propoj do odlehčovací komory KT DN300:4,00*1,20*2,60 | E153: 12.48 | M153: Propoj do odlehčovací komory KT DN300:4,00*1,20*2,60
C154: Propoj na neznámé potrubí KT DN300:6,80*1,20*2,60 | E154: 21.216 | M154: Propoj na neznámé potrubí KT DN300:6,80*1,20*2,60
C155: Odpočet konstrukce komunikace:-((110,80+4,00+6,80)*1,20+1,60*(1,60-1,20)*6)*0,40 | E155: -59.904 | M155: Odpočet konstrukce komunikace:-((110,80+4,00+6,80)*1,20+1,60*(1,60-1,20)*6)*0,40
C156: Stoka "E" PVC DN250:15,20*1,00*(2,39+3,03)/2 | E156: 41.192 | M156: Stoka "E" PVC DN250:15,20*1,00*(2,39+3,03)/2
C157: (37,90-15,20)*1,00*(3,03+2,15)/2 | E157: 58.793 | M157: (37,90-15,20)*1,00*(3,03+2,15)/2
C158: Prohloubení pro RŠ:1,60*1,60*0,20*1 | E158: 0.512 | M158: Prohloubení pro RŠ:1,60*1,60*0,20*1
C159: Rozšíření pro RŠ:1,60*(1,60-1,00)*2,15 | E159: 2.064 | M159: Rozšíření pro RŠ:1,60*(1,60-1,00)*2,15
C160: Odpočet konstrukce komunikace:-(37,90*1,00+1,60*(1,60-1,00)*1)*0,40 | E160: -15.544 | M160: Odpočet konstrukce komunikace:-(37,90*1,00+1,60*(1,60-1,00)*1)*0,40
C161: Stoka "F" PVC DN250:10,80*1,00*(2,41+2,89)/2 | E161: 28.62 | M161: Stoka "F" PVC DN250:10,80*1,00*(2,41+2,89)/2
C162: (32,70-10,80)*1,00*(2,89+2,14)/2 | E162: 55.0785 | M162: (32,70-10,80)*1,00*(2,89+2,14)/2
C163: Prohloubení pro RŠ:1,60*1,60*0,20*1 | E163: 0.512 | M163: Prohloubení pro RŠ:1,60*1,60*0,20*1
C164: Rozšíření pro RŠ:1,60*(1,60-1,00)*2,14 | E164: 2.0544 | M164: Rozšíření pro RŠ:1,60*(1,60-1,00)*2,14
C165: Odpočet konstrukce komunikace:-(32,70*1,00+1,60*(1,60-1,00)*1)*0,40 | E165: -13.464 | M165: Odpočet konstrukce komunikace:-(32,70*1,00+1,60*(1,60-1,00)*1)*0,40
C166: Stoka "H" KT DN250:19,90*1,15*(2,25+2,30)/2 | E166: 52.0634 | M166: Stoka "H" KT DN250:19,90*1,15*(2,25+2,30)/2
C167: (34,00-19,90)*1,15*(2,30+2,04)/2 | E167: 35.1866 | M167: (34,00-19,90)*1,15*(2,30+2,04)/2
C168: Prohloubení pro RŠ:1,60*1,60*0,20*2 | E168: 1.024 | M168: Prohloubení pro RŠ:1,60*1,60*0,20*2
C169: Rozšíření pro RŠ:1,60*(1,60-1,15)*4,31 | E169: 3.1032 | M169: Rozšíření pro RŠ:1,60*(1,60-1,15)*4,31
C170: Odpočet konstrukce komunikace:-(34,00*1,15+1,60*(1,60-1,15)*2)*0,40 | E170: -16.216 | M170: Odpočet konstrukce komunikace:-(34,00*1,15+1,60*(1,60-1,15)*2)*0,40
C171: Konec provozního součtu | E171: 534.2303 | M171: Konec provozního součtu
C172: V hornině tř.4 - 45%:534,2302*0,45*0,5 | E172: 120.2018 | M172: V hornině tř.4 - 45%:534,2302*0,45*0,5
A173: 11 | B173: 132401211R00 | C173: Hloubení rýh šířky do 200 cm v hor.5, STROJNĚ | D173: m3 | E173: 53.423 | G173: =E173*F173 -> 0 | H173: 0 | I173: =E173*H173 -> 0 | J173: 0 | K173: =E173*J173 -> 0 | O173: 2 | AA173: 1 | AB173: 1 | AC173: 1 | AZ173: 1 | BA173: =IF(AZ173=1,G173,0) -> 0 | BB173: =IF(AZ173=2,G173,0) -> 0 | BC173: =IF(AZ173=3,G173,0) -> 0 | BD173: =IF(AZ173=4,G173,0) -> 0 | BE173: =IF(AZ173=5,G173,0) -> 0 | CA173: 1 | CB173: 1
C174: Položka obsahuje hloubení jámy kolovým rypadlem s rozrývacím zubem, naložení výkopku na dopravní prostředek pro svislé, nebo vodorovné přemístění, popř. přemístění výkopku do 3 m (po povrchu území), případné zajištění rypadel polštáři, udržování pracoviště a ochranu výkopiště proti stékání srážkové vody z okolního terénu i s jejím odvodněním, nebo odvedením, přesekání a odstranění kořenů ve výkopišti, odstranění napadávek, urovnání dna výkopu. Položka se používá bez ohledu na těžené množství. | L174: Položka obsahuje hloubení jámy kolovým rypadlem s rozrývacím zubem, naložení výkopku na dopravní prostředek pro svislé, nebo vodorovné přemístění, popř. přemístění výkopku do 3 m (po povrchu území), případné zajištění rypadel polštáři, udržování pracoviště a ochranu výkopiště proti stékání srážkové vody z okolního terénu i s jejím odvodněním, nebo odvedením, přesekání a odstranění kořenů ve výkopišti, odstranění napadávek, urovnání dna výkopu. Položka se používá bez ohledu na těžené množství. | O174: 3
C175: Začátek provozního součtu | E175: 0 | M175: Začátek provozního součtu
C176: Stoka "A" KT DN300:38,10*1,20*(2,60+2,16)/2 | E176: 108.8136 | M176: Stoka "A" KT DN300:38,10*1,20*(2,60+2,16)/2
C177: (64,70-38,10)*1,20*(2,16+2,25)/2 | E177: 70.3836 | M177: (64,70-38,10)*1,20*(2,16+2,25)/2
C178: (110,80-64,70)*1,20*(2,25+2,25)/2 | E178: 124.47 | M178: (110,80-64,70)*1,20*(2,25+2,25)/2
C179: Prohloubení pro RŠ:1,60*1,60*0,20*6 | E179: 3.072 | M179: Prohloubení pro RŠ:1,60*1,60*0,20*6
C180: Rozšíření pro RŠ:1,60*(1,60-1,20)*29,25 | E180: 18.72 | M180: Rozšíření pro RŠ:1,60*(1,60-1,20)*29,25
C181: Propoj do odlehčovací komory KT DN300:4,00*1,20*2,60 | E181: 12.48 | M181: Propoj do odlehčovací komory KT DN300:4,00*1,20*2,60
C182: Propoj na neznámé potrubí KT DN300:6,80*1,20*2,60 | E182: 21.216 | M182: Propoj na neznámé potrubí KT DN300:6,80*1,20*2,60
C183: Odpočet konstrukce komunikace:-((110,80+4,00+6,80)*1,20+1,60*(1,60-1,20)*6)*0,40 | E183: -59.904 | M183: Odpočet konstrukce komunikace:-((110,80+4,00+6,80)*1,20+1,60*(1,60-1,20)*6)*0,40
C184: Stoka "E" PVC DN250:15,20*1,00*(2,39+3,03)/2 | E184: 41.192 | M184: Stoka "E" PVC DN250:15,20*1,00*(2,39+3,03)/2
C185: (37,90-15,20)*1,00*(3,03+2,15)/2 | E185: 58.793 | M185: (37,90-15,20)*1,00*(3,03+2,15)/2
C186: Prohloubení pro RŠ:1,60*1,60*0,20*1 | E186: 0.512 | M186: Prohloubení pro RŠ:1,60*1,60*0,20*1
C187: Rozšíření pro RŠ:1,60*(1,60-1,00)*2,15 | E187: 2.064 | M187: Rozšíření pro RŠ:1,60*(1,60-1,00)*2,15
C188: Odpočet konstrukce komunikace:-(37,90*1,00+1,60*(1,60-1,00)*1)*0,40 | E188: -15.544 | M188: Odpočet konstrukce komunikace:-(37,90*1,00+1,60*(1,60-1,00)*1)*0,40
C189: Stoka "F" PVC DN250:10,80*1,00*(2,41+2,89)/2 | E189: 28.62 | M189: Stoka "F" PVC DN250:10,80*1,00*(2,41+2,89)/2
C190: (32,70-10,80)*1,00*(2,89+2,14)/2 | E190: 55.0785 | M190: (32,70-10,80)*1,00*(2,89+2,14)/2
C191: Prohloubení pro RŠ:1,60*1,60*0,20*1 | E191: 0.512 | M191: Prohloubení pro RŠ:1,60*1,60*0,20*1
C192: Rozšíření pro RŠ:1,60*(1,60-1,00)*2,14 | E192: 2.0544 | M192: Rozšíření pro RŠ:1,60*(1,60-1,00)*2,14
C193: Odpočet konstrukce komunikace:-(32,70*1,00+1,60*(1,60-1,00)*1)*0,40 | E193: -13.464 | M193: Odpočet konstrukce komunikace:-(32,70*1,00+1,60*(1,60-1,00)*1)*0,40
C194: Stoka "H" KT DN250:19,90*1,15*(2,25+2,30)/2 | E194: 52.0634 | M194: Stoka "H" KT DN250:19,90*1,15*(2,25+2,30)/2
C195: (34,00-19,90)*1,15*(2,30+2,04)/2 | E195: 35.1866 | M195: (34,00-19,90)*1,15*(2,30+2,04)/2
C196: Prohloubení pro RŠ:1,60*1,60*0,20*2 | E196: 1.024 | M196: Prohloubení pro RŠ:1,60*1,60*0,20*2
C197: Rozšíření pro RŠ:1,60*(1,60-1,15)*4,31 | E197: 3.1032 | M197: Rozšíření pro RŠ:1,60*(1,60-1,15)*4,31
C198: Odpočet konstrukce komunikace:-(34,00*1,15+1,60*(1,60-1,15)*2)*0,40 | E198: -16.216 | M198: Odpočet konstrukce komunikace:-(34,00*1,15+1,60*(1,60-1,15)*2)*0,40
C199: Konec provozního součtu | E199: 534.2303 | M199: Konec provozního součtu
C200: V hornině tř.5 - 10%:534,2302*0,1 | E200: 53.423 | M200: V hornině tř.5 - 10%:534,2302*0,1
A201: 12 | B201: 151101102R00 | C201: Pažení a rozepření stěn rýh - příložné - hl.do 4 m | D201: m2 | E201: 1081.378 | G201: =E201*F201 -> 0 | H201: 0.00086 | I201: =E201*H201 -> 0.92998508 | J201: 0 | K201: =E201*J201 -> 0 | O201: 2 | AA201: 1 | AB201: 1 | AC201: 1 | AZ201: 1 | BA201: =IF(AZ201=1,G201,0) -> 0 | BB201: =IF(AZ201=2,G201,0) -> 0 | BC201: =IF(AZ201=3,G201,0) -> 0 | BD201: =IF(AZ201=4,G201,0) -> 0 | BE201: =IF(AZ201=5,G201,0) -> 0 | CA201: 1 | CB201: 1
C202: Stoka "A" KT DN300:38,10*(2,60+2,16)/2*2 | E202: 181.356 | M202: Stoka "A" KT DN300:38,10*(2,60+2,16)/2*2
... 386 more rows

Sheet I. 01.03 I. 01.03 KL
A1: POLOŽKOVÝ ROZPOČET
A2: Rozpočet | C2: I. 01.03 | D2: Přepojení vod. a kanaliz. přípojek "Jilemnická" | F2: JKSO | G2: 827
A4: Objekt | F4: SKP
A5: I. 01.03 | C5: Přepojení vod. a kanaliz. přípojek "Jilemnická" | F5: Měrná jednotka | G5: m
A6: Stavba | F6: Počet jednotek | G6: 0
A7: 3334 | C7: Lomnice nad Popelkou - Vodovod a kanalizace | F7: Náklady na m.j. | G7: =IF(G6=0,,ROUND((F30+F32)/G6,1)) -> 0
A8: Projektant | C8: VEDU VODU s.r.o. Dobrovice | F8: Typ rozpočtu
A9: Zpracovatel projektu
A10: Objednatel | C10: Vodohospodářské sdružení Turnov
A11: Dodavatel | C11: . | F11: Zakázkové číslo
A12: Rozpočtoval | F12: Počet listů
A13: ROZPOČTOVÉ NÁKLADY
A14: Základní rozpočtové náklady
B15: HSV celkem | C15: ='I. 01.03 I. 01.03 Rek'!E12 -> 0
A16: Z | B16: PSV celkem | C16: ='I. 01.03 I. 01.03 Rek'!F12 -> 0
A17: R | B17: M práce celkem | C17: ='I. 01.03 I. 01.03 Rek'!H12 -> 0
A18: N | B18: M dodávky celkem | C18: ='I. 01.03 I. 01.03 Rek'!G12 -> 0
A19: ZRN celkem | C19: =SUM(C15:C18) -> 0
A21: HZS | C21: ='I. 01.03 I. 01.03 Rek'!I12 -> 0
A22: ZRN+HZS | C22: =C19+C21 -> 0
A23: ZRN+ost.náklady+HZS | C23: =C22+G23 -> 0
A24: Vypracoval | D24: Za zhotovitele | F24: Za objednatele
A25: Jméno : | D25: Jméno : | F25: Jméno :
A26: Datum : | D26: Datum : | F26: Datum :
A28: Podpis : | D28: Podpis: | F28: Podpis:
A30: Základ pro DPH | C30: 21 | D30: % | F30: =C23-F32 -> 0
A31: DPH | C31: =C30 -> 21 | D31: % | F31: =ROUND(PRODUCT(F30,C31/100),0) -> 0
A32: Základ pro DPH | C32: 0 | D32: % | F32: 0
A33: DPH | C33: =C32 -> 0 | D33: % | F33: =ROUND(PRODUCT(F32,C33/100),0) -> 0
A34: CENA ZA OBJEKT CELKEM | F34: =ROUND(SUM(F30:F33),0) -> 0
A36: Poznámka :

Sheet I. 01.03 I. 01.03 Rek
A1: Stavba : | C1: 3334 Lomnice nad Popelkou - Vodovod a kanalizace | G1: Rozpočet : | H1: I. 01.03
A2: Objekt : | C2: I. 01.03 Přepojení vod. a kanaliz. přípojek "Jilemnická" | G2: Přepojení vod. a kanaliz. přípojek "Jilemnická"
A4: REKAPITULACE STAVEBNÍCH DÍLŮ
B6: Stavební díl | E6: HSV | F6: PSV | G6: Dodávka | H6: Montáž | I6: HZS
A7: ='I. 01.03 I. 01.03 Pol'!B7 -> 1 | B7: ='I. 01.03 I. 01.03 Pol'!C7 -> Zemní práce | E7: ='I. 01.03 I. 01.03 Pol'!BA227 -> 0 | F7: ='I. 01.03 I. 01.03 Pol'!BB227 -> 0 | G7: ='I. 01.03 I. 01.03 Pol'!BC227 -> 0 | H7: ='I. 01.03 I. 01.03 Pol'!BD227 -> 0 | I7: ='I. 01.03 I. 01.03 Pol'!BE227 -> 0
A8: ='I. 01.03 I. 01.03 Pol'!B228 -> 45 | B8: ='I. 01.03 I. 01.03 Pol'!C228 -> Podkladní a vedlejší konstrukce | E8: ='I. 01.03 I. 01.03 Pol'!BA235 -> 0 | F8: ='I. 01.03 I. 01.03 Pol'!BB235 -> 0 | G8: ='I. 01.03 I. 01.03 Pol'!BC235 -> 0 | H8: ='I. 01.03 I. 01.03 Pol'!BD235 -> 0 | I8: ='I. 01.03 I. 01.03 Pol'!BE235 -> 0
A9: ='I. 01.03 I. 01.03 Pol'!B236 -> 5 | B9: ='I. 01.03 I. 01.03 Pol'!C236 -> Komunikace | E9: ='I. 01.03 I. 01.03 Pol'!BA251 -> 0 | F9: ='I. 01.03 I. 01.03 Pol'!BB251 -> 0 | G9: ='I. 01.03 I. 01.03 Pol'!BC251 -> 0 | H9: ='I. 01.03 I. 01.03 Pol'!BD251 -> 0 | I9: ='I. 01.03 I. 01.03 Pol'!BE251 -> 0
A10: ='I. 01.03 I. 01.03 Pol'!B252 -> 8 | B10: ='I. 01.03 I. 01.03 Pol'!C252 -> Trubní vedení | E10: ='I. 01.03 I. 01.03 Pol'!BA350 -> 0 | F10: ='I. 01.03 I. 01.03 Pol'!BB350 -> 0 | G10: ='I. 01.03 I. 01.03 Pol'!BC350 -> 0 | H10: ='I. 01.03 I. 01.03 Pol'!BD350 -> 0 | I10: ='I. 01.03 I. 01.03 Pol'!BE350 -> 0
A11: ='I. 01.03 I. 01.03 Pol'!B351 -> 99 | B11: ='I. 01.03 I. 01.03 Pol'!C351 -> Staveništní přesun hmot | E11: ='I. 01.03 I. 01.03 Pol'!BA353 -> 0 | F11: ='I. 01.03 I. 01.03 Pol'!BB353 -> 0 | G11: ='I. 01.03 I. 01.03 Pol'!BC353 -> 0 | H11: ='I. 01.03 I. 01.03 Pol'!BD353 -> 0 | I11: ='I. 01.03 I. 01.03 Pol'!BE353 -> 0
B12: CELKEM OBJEKT | E12: =SUM(E7:E11) -> 0 | F12: =SUM(F7:F11) -> 0 | G12: =SUM(G7:G11) -> 0 | H12: =SUM(H7:H11) -> 0 | I12: =SUM(I7:I11) -> 0

Sheet I. 01.03 I. 01.03 Pol
A1: Položkový rozpočet
A3: Stavba : | C3: 3334 Lomnice nad Popelkou - Vodovod a kanalizace | E3: Rozpočet: | F3: ='I. 01.03 I. 01.03 Rek'!H1 -> I. 01.03
A4: Objekt : | C4: I. 01.03 Přepojení vod. a kanaliz. přípojek "Jilemnická" | E4: ='I. 01.03 I. 01.03 Rek'!G2 -> Přepojení vod. a kanaliz. přípojek "Jilemnická"
A6: P.č. | B6: Číslo položky | C6: Název položky | D6: MJ | E6: množství | F6: cena / MJ | G6: celkem (Kč) | H6: Jednotková hmotnost | I6: Celková hmotnost | J6: Jednotková dem.hmot. | K6: Celková dem.hmot.
A7: Díl: | B7: 1 | C7: Zemní práce | O7: 1
A8: 1 | B8: 113107625R00 | C8: Odstranění podkladu nad 50 m2,kam.drcené tl.25 cm | D8: m2 | E8: 150.72 | G8: =E8*F8 -> 0 | H8: 0 | I8: =E8*H8 -> 0 | J8: -0.55 | K8: =E8*J8 -> -82.896 | O8: 2 | AA8: 1 | AB8: 1 | AC8: 1 | AZ8: 1 | BA8: =IF(AZ8=1,G8,0) -> 0 | BB8: =IF(AZ8=2,G8,0) -> 0 | BC8: =IF(AZ8=3,G8,0) -> 0 | BD8: =IF(AZ8=4,G8,0) -> 0 | BE8: =IF(AZ8=5,G8,0) -> 0 | CA8: 1 | CB8: 1
C9: KP KT DN150 (3 kusy) (průměrná hloubka výkopu 2,00 m): | E9: 0 | M9: KP KT DN150 (3 kusy) (průměrná hloubka výkopu 2,00 m):
C10: KP PVC DN150 (10 kusů) (průměrná hloubka výkopu 2,00 m): | E10: 0 | M10: KP PVC DN150 (10 kusů) (průměrná hloubka výkopu 2,00 m):
C11: VP PE D32x3,0 mm (17 kusů) (průměrná hloubka výkopu 1,65 m): | E11: 0 | M11: VP PE D32x3,0 mm (17 kusů) (průměrná hloubka výkopu 1,65 m):
C12: VP PE D 40x3,7 mm (1 kus) (průměrná hloubka výkopu 1,65 m): | E12: 0 | M12: VP PE D 40x3,7 mm (1 kus) (průměrná hloubka výkopu 1,65 m):
C13: VP PE D 63x5,8 mm (2 kusy) (průměrná hloubka výkopu 1,65 m): | E13: 0 | M13: VP PE D 63x5,8 mm (2 kusy) (průměrná hloubka výkopu 1,65 m):
C14: Konstrukce komunikací:(328,40-10,00-130,00)*0,80 | E14: 150.72 | M14: Konstrukce komunikací:(328,40-10,00-130,00)*0,80
A15: 2 | B15: 113108415R00 | C15: Odstranění asfaltové vrstvy pl.nad 50 m2, tl.15 cm | D15: m2 | E15: 150.72 | G15: =E15*F15 -> 0 | H15: 0 | I15: =E15*H15 -> 0 | J15: -0.33 | K15: =E15*J15 -> -49.7376 | O15: 2 | AA15: 1 | AB15: 1 | AC15: 1 | AZ15: 1 | BA15: =IF(AZ15=1,G15,0) -> 0 | BB15: =IF(AZ15=2,G15,0) -> 0 | BC15: =IF(AZ15=3,G15,0) -> 0 | BD15: =IF(AZ15=4,G15,0) -> 0 | BE15: =IF(AZ15=5,G15,0) -> 0 | CA15: 1 | CB15: 1
C16: KP KT DN150 (3 kusy) (průměrná hloubka výkopu 2,00 m): | E16: 0 | M16: KP KT DN150 (3 kusy) (průměrná hloubka výkopu 2,00 m):
C17: KP PVC DN150 (10 kusů) (průměrná hloubka výkopu 2,00 m): | E17: 0 | M17: KP PVC DN150 (10 kusů) (průměrná hloubka výkopu 2,00 m):
C18: VP PE D32x3,0 mm (17 kusů) (průměrná hloubka výkopu 1,65 m): | E18: 0 | M18: VP PE D32x3,0 mm (17 kusů) (průměrná hloubka výkopu 1,65 m):
C19: VP PE D 40x3,7 mm (1 kus) (průměrná hloubka výkopu 1,65 m): | E19: 0 | M19: VP PE D 40x3,7 mm (1 kus) (průměrná hloubka výkopu 1,65 m):
C20: VP PE D 63x5,8 mm (2 kusy) (průměrná hloubka výkopu 1,65 m): | E20: 0 | M20: VP PE D 63x5,8 mm (2 kusy) (průměrná hloubka výkopu 1,65 m):
C21: Konstrukce komunikací:(328,40-10,00-130,00)*0,80 | E21: 150.72 | M21: Konstrukce komunikací:(328,40-10,00-130,00)*0,80
A22: 3 | B22: 114211101R00 | C22: Odstranění betonových trub do DN 150 mm, ve výkopu | D22: m | E22: 80.5 | G22: =E22*F22 -> 0 | H22: 0 | I22: =E22*H22 -> 0 | J22: -0.04 | K22: =E22*J22 -> -3.22 | O22: 2 | AA22: 1 | AB22: 1 | AC22: 1 | AZ22: 1 | BA22: =IF(AZ22=1,G22,0) -> 0 | BB22: =IF(AZ22=2,G22,0) -> 0 | BC22: =IF(AZ22=3,G22,0) -> 0 | BD22: =IF(AZ22=4,G22,0) -> 0 | BE22: =IF(AZ22=5,G22,0) -> 0 | CA22: 1 | CB22: 1
C23: Položka obsahuje odstranění materiálu obklopujícího potrubí v míře nutné pro vyzvednutí, rozpojení trub, uchopení a vyzvednutí trub z výkopu a uložení na dopravní prostředek včetně odvozu na skládku zhotovitele a poplatek za skládku. | L23: Položka obsahuje odstranění materiálu obklopujícího potrubí v míře nutné pro vyzvednutí, rozpojení trub, uchopení a vyzvednutí trub z výkopu a uložení na dopravní prostředek včetně odvozu na skládku zhotovitele a poplatek za skládku. | O23: 3
C24: KP KT DN150 (3 kusy):12,00 | E24: 12 | M24: KP KT DN150 (3 kusy):12,00
C25: KP PVC DN150 (10 kusů):68,50 | E25: 68.5 | M25: KP PVC DN150 (10 kusů):68,50
A26: 4 | B26: 115101201RRX | C26: Přečerpávání nebo převedení splašků a dešť. vod | D26: h | E26: 130 | G26: =E26*F26 -> 0 | H26: 0 | I26: =E26*H26 -> 0 | J26: 0 | K26: =E26*J26 -> 0 | O26: 2 | AA26: 1 | AB26: 1 | AC26: 1 | AZ26: 1 | BA26: =IF(AZ26=1,G26,0) -> 0 | BB26: =IF(AZ26=2,G26,0) -> 0 | BC26: =IF(AZ26=3,G26,0) -> 0 | BD26: =IF(AZ26=4,G26,0) -> 0 | BE26: =IF(AZ26=5,G26,0) -> 0 | CA26: 1 | CB26: 1
C27: Převedení a čerpání splašků nebo dešťových vod dle zvolené technologie zhotovitele stavby. | L27: Převedení a čerpání splašků nebo dešťových vod dle zvolené technologie zhotovitele stavby. | O27: 3
C28: (Množství bude určeno na stavbě dle skutečnosti) | L28: (Množství bude určeno na stavbě dle skutečnosti) | O28: 3
A29: 5 | B29: 119001401R00 | C29: Dočasné zajištění ocelového potrubí do DN 200 mm | D29: m | E29: 42.6 | G29: =E29*F29 -> 0 | H29: 0.00869 | I29: =E29*H29 -> 0.370194 | J29: 0 | K29: =E29*J29 -> 0 | O29: 2 | AA29: 1 | AB29: 1 | AC29: 1 | AZ29: 1 | BA29: =IF(AZ29=1,G29,0) -> 0 | BB29: =IF(AZ29=2,G29,0) -> 0 | BC29: =IF(AZ29=3,G29,0) -> 0 | BD29: =IF(AZ29=4,G29,0) -> 0 | BE29: =IF(AZ29=5,G29,0) -> 0 | CA29: 1 | CB29: 1
A30: 6 | B30: 119001422R00 | C30: Dočasné zajištění kabelů - v počtu 3 - 6 kabelů | D30: m | E30: 59.6 | G30: =E30*F30 -> 0 | H30: 0.03974 | I30: =E30*H30 -> 2.368504 | J30: 0 | K30: =E30*J30 -> 0 | O30: 2 | AA30: 1 | AB30: 1 | AC30: 1 | AZ30: 1 | BA30: =IF(AZ30=1,G30,0) -> 0 | BB30: =IF(AZ30=2,G30,0) -> 0 | BC30: =IF(AZ30=3,G30,0) -> 0 | BD30: =IF(AZ30=4,G30,0) -> 0 | BE30: =IF(AZ30=5,G30,0) -> 0 | CA30: 1 | CB30: 1
A31: 7 | B31: 121100002RAA | C31: Sejmutí ornice a uložení na deponii zpětný přesun, rozprostření v tl. 20 cm, osetí | D31: m3 | E31: 52 | G31: =E31*F31 -> 0 | H31: 0 | I31: =E31*H31 -> 0 | J31: 0 | K31: =E31*J31 -> 0 | O31: 2 | AA31: 1 | AB31: 1 | AC31: 1 | AZ31: 1 | BA31: =IF(AZ31=1,G31,0) -> 0 | BB31: =IF(AZ31=2,G31,0) -> 0 | BC31: =IF(AZ31=3,G31,0) -> 0 | BD31: =IF(AZ31=4,G31,0) -> 0 | BE31: =IF(AZ31=5,G31,0) -> 0 | CA31: 1 | CB31: 1
C32: VP PE D32x3,0 mm (17 kusů): | E32: 0 | M32: VP PE D32x3,0 mm (17 kusů):
C33: VP PE D 40x3,7 mm (1 kus): | E33: 0 | M33: VP PE D 40x3,7 mm (1 kus):
C34: VP PE D 63x5,8 mm (2 kusy): | E34: 0 | M34: VP PE D 63x5,8 mm (2 kusy):
C35: Pro VP:10,00*2,00*0,20 | E35: 4 | M35: Pro VP:10,00*2,00*0,20
C36: KP KT DN150 (3 kusy): | E36: 0 | M36: KP KT DN150 (3 kusy):
C37: KP PVC DN150 (9 kusů): | E37: 0 | M37: KP PVC DN150 (9 kusů):
C38: Pro KP:120,00*2,00*0,20 | E38: 48 | M38: Pro KP:120,00*2,00*0,20
A39: 8 | B39: 130001101RRX | C39: Příplatek za ztížené hloubení v blízkosti vedení | D39: m3 | E39: 87.2194 | G39: =E39*F39 -> 0 | H39: 0 | I39: =E39*H39 -> 0 | J39: 0 | K39: =E39*J39 -> 0 | O39: 2 | AA39: 1 | AB39: 1 | AC39: 1 | AZ39: 1 | BA39: =IF(AZ39=1,G39,0) -> 0 | BB39: =IF(AZ39=2,G39,0) -> 0 | BC39: =IF(AZ39=3,G39,0) -> 0 | BD39: =IF(AZ39=4,G39,0) -> 0 | BE39: =IF(AZ39=5,G39,0) -> 0 | CA39: 1 | CB39: 1
C40: Včetně případných nutných dokopávem a ručního výkopu podél sousedících inženýrských sítí | L40: Včetně případných nutných dokopávem a ručního výkopu podél sousedících inženýrských sítí | O40: 3
C41: Začátek provozního součtu | E41: 0 | M41: Začátek provozního součtu
C42: KP KT DN150 (3 kusy) (průměrná hloubka výkopu 2,00 m):12,00*0,80*2,00 | E42: 19.2 | M42: KP KT DN150 (3 kusy) (průměrná hloubka výkopu 2,00 m):12,00*0,80*2,00
C43: KP PVC DN150 (10 kusů) (průměrná hloubka výkopu 2,00 m):153,90*0,80*2,00 | E43: 246.24 | M43: KP PVC DN150 (10 kusů) (průměrná hloubka výkopu 2,00 m):153,90*0,80*2,00
C44: VP PE D32x3,0 mm (17 kusů) (průměrná hloubka výkopu 1,65 m):141,80*0,80*1,65 | E44: 187.176 | M44: VP PE D32x3,0 mm (17 kusů) (průměrná hloubka výkopu 1,65 m):141,80*0,80*1,65
C45: VP PE D 40x3,7 mm (1 kus) (průměrná hloubka výkopu 1,65 m):5,20*0,80*1,65 | E45: 6.864 | M45: VP PE D 40x3,7 mm (1 kus) (průměrná hloubka výkopu 1,65 m):5,20*0,80*1,65
C46: VP PE D 63x5,8 mm (2 kusy) (průměrná hloubka výkopu 1,65 m):15,50*0,80*1,65 | E46: 20.46 | M46: VP PE D 63x5,8 mm (2 kusy) (průměrná hloubka výkopu 1,65 m):15,50*0,80*1,65
C47: Odpočet konstrukce komunikací:-(328,40-10,00-130,00)*0,80*0,40 | E47: -60.288 | M47: Odpočet konstrukce komunikací:-(328,40-10,00-130,00)*0,80*0,40
C48: Odpočet konstrukce chodníků:-10,00*0,80*0,30 | E48: -2.4 | M48: Odpočet konstrukce chodníků:-10,00*0,80*0,30
C49: Odpočet ornice:-130,00*0,80*0,20 | E49: -20.8 | M49: Odpočet ornice:-130,00*0,80*0,20
C50: Konec provozního součtu | E50: 396.452 | M50: Konec provozního součtu
C51: V hornině tř. 3 - 5 - 22%:396,4520*0,22 | E51: 87.2194 | M51: V hornině tř. 3 - 5 - 22%:396,4520*0,22
A52: 9 | B52: 132201212R00 | C52: Hloubení rýh š.do 200 cm hor.3 do 1000m3,STROJNĚ | D52: m3 | E52: 178.4034 | G52: =E52*F52 -> 0 | H52: 0 | I52: =E52*H52 -> 0 | J52: 0 | K52: =E52*J52 -> 0 | O52: 2 | AA52: 1 | AB52: 1 | AC52: 1 | AZ52: 1 | BA52: =IF(AZ52=1,G52,0) -> 0 | BB52: =IF(AZ52=2,G52,0) -> 0 | BC52: =IF(AZ52=3,G52,0) -> 0 | BD52: =IF(AZ52=4,G52,0) -> 0 | BE52: =IF(AZ52=5,G52,0) -> 0 | CA52: 1 | CB52: 1
C53: Položka obsahuje hloubení rýh traktorbagrem, naložení výkopku na dopravní prostředek pro svislé, nebo vodorovné přemístění, popř. přemístění výkopku do 3 m (po povrchu území), případné zajištění rypadel polštáři, udržování pracoviště a ochranu výkopiště proti stékání srážkové vody z okolního terénu i s jejím odvodněním, nebo odvedením, přesekání a odstranění kořenů ve výkopišti, odstranění napadávek, urovnání dna výkopu. | L53: Položka obsahuje hloubení rýh traktorbagrem, naložení výkopku na dopravní prostředek pro svislé, nebo vodorovné přemístění, popř. přemístění výkopku do 3 m (po povrchu území), případné zajištění rypadel polštáři, udržování pracoviště a ochranu výkopiště proti stékání srážkové vody z okolního terénu i s jejím odvodněním, nebo odvedením, přesekání a odstranění kořenů ve výkopišti, odstranění napadávek, urovnání dna výkopu. | O53: 3
C54: Začátek provozního součtu | E54: 0 | M54: Začátek provozního součtu
C55: KP KT DN150 (3 kusy) (průměrná hloubka výkopu 2,00 m):12,00*0,80*2,00 | E55: 19.2 | M55: KP KT DN150 (3 kusy) (průměrná hloubka výkopu 2,00 m):12,00*0,80*2,00
C56: KP PVC DN150 (10 kusů) (průměrná hloubka výkopu 2,00 m):153,90*0,80*2,00 | E56: 246.24 | M56: KP PVC DN150 (10 kusů) (průměrná hloubka výkopu 2,00 m):153,90*0,80*2,00
C57: VP PE D32x3,0 mm (17 kusů) (průměrná hloubka výkopu 1,65 m):141,80*0,80*1,65 | E57: 187.176 | M57: VP PE D32x3,0 mm (17 kusů) (průměrná hloubka výkopu 1,65 m):141,80*0,80*1,65
C58: VP PE D 40x3,7 mm (1 kus) (průměrná hloubka výkopu 1,65 m):5,20*0,80*1,65 | E58: 6.864 | M58: VP PE D 40x3,7 mm (1 kus) (průměrná hloubka výkopu 1,65 m):5,20*0,80*1,65
C59: VP PE D 63x5,8 mm (2 kusy) (průměrná hloubka výkopu 1,65 m):15,50*0,80*1,65 | E59: 20.46 | M59: VP PE D 63x5,8 mm (2 kusy) (průměrná hloubka výkopu 1,65 m):15,50*0,80*1,65
C60: Odpočet konstrukce komunikací:-(328,40-10,00-130,00)*0,80*0,40 | E60: -60.288 | M60: Odpočet konstrukce komunikací:-(328,40-10,00-130,00)*0,80*0,40
C61: Odpočet konstrukce chodníků:-10,00*0,80*0,30 | E61: -2.4 | M61: Odpočet konstrukce chodníků:-10,00*0,80*0,30
C62: Odpočet ornice:-130,00*0,80*0,20 | E62: -20.8 | M62: Odpočet ornice:-130,00*0,80*0,20
C63: Konec provozního součtu | E63: 396.452 | M63: Konec provozního součtu
C64: V hornině tř. 3 - 45%:396,4520*0,45 | E64: 178.4034 | M64: V hornině tř. 3 - 45%:396,4520*0,45
A65: 10 | B65: 132201219R00 | C65: Přípl.za lepivost,hloubení rýh 200cm,hor.3,STROJNĚ | D65: m3 | E65: 89.2017 | G65: =E65*F65 -> 0 | H65: 0 | I65: =E65*H65 -> 0 | J65: 0 | K65: =E65*J65 -> 0 | O65: 2 | AA65: 1 | AB65: 1 | AC65: 1 | AZ65: 1 | BA65: =IF(AZ65=1,G65,0) -> 0 | BB65: =IF(AZ65=2,G65,0) -> 0 | BC65: =IF(AZ65=3,G65,0) -> 0 | BD65: =IF(AZ65=4,G65,0) -> 0 | BE65: =IF(AZ65=5,G65,0) -> 0 | CA65: 1 | CB65: 1
C66: Začátek provozního součtu | E66: 0 | M66: Začátek provozního součtu
C67: KP KT DN150 (3 kusy) (průměrná hloubka výkopu 2,00 m):12,00*0,80*2,00 | E67: 19.2 | M67: KP KT DN150 (3 kusy) (průměrná hloubka výkopu 2,00 m):12,00*0,80*2,00
C68: KP PVC DN150 (10 kusů) (průměrná hloubka výkopu 2,00 m):153,90*0,80*2,00 | E68: 246.24 | M68: KP PVC DN150 (10 kusů) (průměrná hloubka výkopu 2,00 m):153,90*0,80*2,00
C69: VP PE D32x3,0 mm (17 kusů) (průměrná hloubka výkopu 1,65 m):141,80*0,80*1,65 | E69: 187.176 | M69: VP PE D32x3,0 mm (17 kusů) (průměrná hloubka výkopu 1,65 m):141,80*0,80*1,65
C70: VP PE D 40x3,7 mm (1 kus) (průměrná hloubka výkopu 1,65 m):5,20*0,80*1,65 | E70: 6.864 | M70: VP PE D 40x3,7 mm (1 kus) (průměrná hloubka výkopu 1,65 m):5,20*0,80*1,65
C71: VP PE D 63x5,8 mm (2 kusy) (průměrná hloubka výkopu 1,65 m):15,50*0,80*1,65 | E71: 20.46 | M71: VP PE D 63x5,8 mm (2 kusy) (průměrná hloubka výkopu 1,65 m):15,50*0,80*1,65
C72: Odpočet konstrukce komunikací:-(328,40-10,00-130,00)*0,80*0,40 | E72: -60.288 | M72: Odpočet konstrukce komunikací:-(328,40-10,00-130,00)*0,80*0,40
C73: Odpočet konstrukce chodníků:-10,00*0,80*0,30 | E73: -2.4 | M73: Odpočet konstrukce chodníků:-10,00*0,80*0,30
C74: Odpočet ornice:-130,00*0,80*0,20 | E74: -20.8 | M74: Odpočet ornice:-130,00*0,80*0,20
C75: Konec provozního součtu | E75: 396.452 | M75: Konec provozního součtu
C76: V hornině tř. 3 - 45%:396,4520*0,45*0,5 | E76: 89.2017 | M76: V hornině tř. 3 - 45%:396,4520*0,45*0,5
A77: 11 | B77: 132301212R00 | C77: Hloubení rýh š.do 200 cm hor.4 do 1000 m3, STROJNĚ | D77: m3 | E77: 178.4034 | G77: =E77*F77 -> 0 | H77: 0 | I77: =E77*H77 -> 0 | J77: 0 | K77: =E77*J77 -> 0 | O77: 2 | AA77: 1 | AB77: 1 | AC77: 1 | AZ77: 1 | BA77: =IF(AZ77=1,G77,0) -> 0 | BB77: =IF(AZ77=2,G77,0) -> 0 | BC77: =IF(AZ77=3,G77,0) -> 0 | BD77: =IF(AZ77=4,G77,0) -> 0 | BE77: =IF(AZ77=5,G77,0) -> 0 | CA77: 1 | CB77: 1
C78: Položka obsahuje hloubení rýh traktorbagrem, naložení výkopku na dopravní prostředek pro svislé, nebo vodorovné přemístění, popř. přemístění výkopku do 3 m (po povrchu území), případné zajištění rypadel polštáři, udržování pracoviště a ochranu výkopiště proti stékání srážkové vody z okolního terénu i s jejím odvodněním, nebo odvedením, přesekání a odstranění kořenů ve výkopišti, odstranění napadávek, urovnání dna výkopu. | L78: Položka obsahuje hloubení rýh traktorbagrem, naložení výkopku na dopravní prostředek pro svislé, nebo vodorovné přemístění, popř. přemístění výkopku do 3 m (po povrchu území), případné zajištění rypadel polštáři, udržování pracoviště a ochranu výkopiště proti stékání srážkové vody z okolního terénu i s jejím odvodněním, nebo odvedením, přesekání a odstranění kořenů ve výkopišti, odstranění napadávek, urovnání dna výkopu. | O78: 3
C79: Začátek provozního součtu | E79: 0 | M79: Začátek provozního součtu
C80: KP KT DN150 (3 kusy) (průměrná hloubka výkopu 2,00 m):12,00*0,80*2,00 | E80: 19.2 | M80: KP KT DN150 (3 kusy) (průměrná hloubka výkopu 2,00 m):12,00*0,80*2,00
C81: KP PVC DN150 (10 kusů) (průměrná hloubka výkopu 2,00 m):153,90*0,80*2,00 | E81: 246.24 | M81: KP PVC DN150 (10 kusů) (průměrná hloubka výkopu 2,00 m):153,90*0,80*2,00
C82: VP PE D32x3,0 mm (17 kusů) (průměrná hloubka výkopu 1,65 m):141,80*0,80*1,65 | E82: 187.176 | M82: VP PE D32x3,0 mm (17 kusů) (průměrná hloubka výkopu 1,65 m):141,80*0,80*1,65
C83: VP PE D 40x3,7 mm (1 kus) (průměrná hloubka výkopu 1,65 m):5,20*0,80*1,65 | E83: 6.864 | M83: VP PE D 40x3,7 mm (1 kus) (průměrná hloubka výkopu 1,65 m):5,20*0,80*1,65
C84: VP PE D 63x5,8 mm (2 kusy) (průměrná hloubka výkopu 1,65 m):15,50*0,80*1,65 | E84: 20.46 | M84: VP PE D 63x5,8 mm (2 kusy) (průměrná hloubka výkopu 1,65 m):15,50*0,80*1,65
C85: Odpočet konstrukce komunikací:-(328,40-10,00-130,00)*0,80*0,40 | E85: -60.288 | M85: Odpočet konstrukce komunikací:-(328,40-10,00-130,00)*0,80*0,40
C86: Odpočet konstrukce chodníků:-10,00*0,80*0,30 | E86: -2.4 | M86: Odpočet konstrukce chodníků:-10,00*0,80*0,30
C87: Odpočet ornice:-130,00*0,80*0,20 | E87: -20.8 | M87: Odpočet ornice:-130,00*0,80*0,20
C88: Konec provozního součtu | E88: 396.452 | M88: Konec provozního součtu
C89: V hornině tř. 4 - 45%:396,4520*0,45 | E89: 178.4034 | M89: V hornině tř. 4 - 45%:396,4520*0,45
A90: 12 | B90: 132301219R00 | C90: Přípl.za lepivost,hloubení rýh 200cm,hor.4,STROJNĚ | D90: m3 | E90: 89.2017 | G90: =E90*F90 -> 0 | H90: 0 | I90: =E90*H90 -> 0 | J90: 0 | K90: =E90*J90 -> 0 | O90: 2 | AA90: 1 | AB90: 1 | AC90: 1 | AZ90: 1 | BA90: =IF(AZ90=1,G90,0) -> 0 | BB90: =IF(AZ90=2,G90,0) -> 0 | BC90: =IF(AZ90=3,G90,0) -> 0 | BD90: =IF(AZ90=4,G90,0) -> 0 | BE90: =IF(AZ90=5,G90,0) -> 0 | CA90: 1 | CB90: 1
C91: Začátek provozního součtu | E91: 0 | M91: Začátek provozního součtu
C92: KP KT DN150 (3 kusy) (průměrná hloubka výkopu 2,00 m):12,00*0,80*2,00 | E92: 19.2 | M92: KP KT DN150 (3 kusy) (průměrná hloubka výkopu 2,00 m):12,00*0,80*2,00
C93: KP PVC DN150 (10 kusů) (průměrná hloubka výkopu 2,00 m):153,90*0,80*2,00 | E93: 246.24 | M93: KP PVC DN150 (10 kusů) (průměrná hloubka výkopu 2,00 m):153,90*0,80*2,00
C94: VP PE D32x3,0 mm (17 kusů) (průměrná hloubka výkopu 1,65 m):141,80*0,80*1,65 | E94: 187.176 | M94: VP PE D32x3,0 mm (17 kusů) (průměrná hloubka výkopu 1,65 m):141,80*0,80*1,65
C95: VP PE D 40x3,7 mm (1 kus) (průměrná hloubka výkopu 1,65 m):5,20*0,80*1,65 | E95: 6.864 | M95: VP PE D 40x3,7 mm (1 kus) (průměrná hloubka výkopu 1,65 m):5,20*0,80*1,65
C96: VP PE D 63x5,8 mm (2 kusy) (průměrná hloubka výkopu 1,65 m):15,50*0,80*1,65 | E96: 20.46 | M96: VP PE D 63x5,8 mm (2 kusy) (průměrná hloubka výkopu 1,65 m):15,50*0,80*1,65
C97: Odpočet konstrukce komunikací:-(328,40-10,00-130,00)*0,80*0,40 | E97: -60.288 | M97: Odpočet konstrukce komunikací:-(328,40-10,00-130,00)*0,80*0,40
C98: Odpočet konstrukce chodníků:-10,00*0,80*0,30 | E98: -2.4 | M98: Odpočet konstrukce chodníků:-10,00*0,80*0,30
C99: Odpočet ornice:-130,00*0,80*0,20 | E99: -20.8 | M99: Odpočet ornice:-130,00*0,80*0,20
C100: Konec provozního součtu | E100: 396.452 | M100: Konec provozního součtu
C101: V hornině tř. 4 - 45%:396,4520*0,45*0,5 | E101: 89.2017 | M101: V hornině tř. 4 - 45%:396,4520*0,45*0,5
A102: 13 | B102: 132401211R00 | C102: Hloubení rýh šířky do 200 cm v hor.5, STROJNĚ | D102: m3 | E102: 39.6452 | G102: =E102*F102 -> 0 | H102: 0 | I102: =E102*H102 -> 0 | J102: 0 | K102: =E102*J102 -> 0 | O102: 2 | AA102: 1 | AB102: 1 | AC102: 1 | AZ102: 1 | BA102: =IF(AZ102=1,G102,0) -> 0 | BB102: =IF(AZ102=2,G102,0) -> 0 | BC102: =IF(AZ102=3,G102,0) -> 0 | BD102: =IF(AZ102=4,G102,0) -> 0 | BE102: =IF(AZ102=5,G102,0) -> 0 | CA102: 1 | CB102: 1
C103: Položka obsahuje hloubení jámy kolovým rypadlem s rozrývacím zubem, naložení výkopku na dopravní prostředek pro svislé, nebo vodorovné přemístění, popř. přemístění výkopku do 3 m (po povrchu území), případné zajištění rypadel polštáři, udržování pracoviště a ochranu výkopiště proti stékání srážkové vody z okolního terénu i s jejím odvodněním, nebo odvedením, přesekání a odstranění kořenů ve výkopišti, odstranění napadávek, urovnání dna výkopu. Položka se používá bez ohledu na těžené množství. | L103: Položka obsahuje hloubení jámy kolovým rypadlem s rozrývacím zubem, naložení výkopku na dopravní prostředek pro svislé, nebo vodorovné přemístění, popř. přemístění výkopku do 3 m (po povrchu území), případné zajištění rypadel polštáři, udržování pracoviště a ochranu výkopiště proti stékání srážkové vody z okolního terénu i s jejím odvodněním, nebo odvedením, přesekání a odstranění kořenů ve výkopišti, odstranění napadávek, urovnání dna výkopu. Položka se používá bez ohledu na těžené množství. | O103: 3
C104: Začátek provozního součtu | E104: 0 | M104: Začátek provozního součtu
C105: KP KT DN150 (3 kusy) (průměrná hloubka výkopu 2,00 m):12,00*0,80*2,00 | E105: 19.2 | M105: KP KT DN150 (3 kusy) (průměrná hloubka výkopu 2,00 m):12,00*0,80*2,00
C106: KP PVC DN150 (10 kusů) (průměrná hloubka výkopu 2,00 m):153,90*0,80*2,00 | E106: 246.24 | M106: KP PVC DN150 (10 kusů) (průměrná hloubka výkopu 2,00 m):153,90*0,80*2,00
C107: VP PE D32x3,0 mm (17 kusů) (průměrná hloubka výkopu 1,65 m):141,80*0,80*1,65 | E107: 187.176 | M107: VP PE D32x3,0 mm (17 kusů) (průměrná hloubka výkopu 1,65 m):141,80*0,80*1,65
C108: VP PE D 40x3,7 mm (1 kus) (průměrná hloubka výkopu 1,65 m):5,20*0,80*1,65 | E108: 6.864 | M108: VP PE D 40x3,7 mm (1 kus) (průměrná hloubka výkopu 1,65 m):5,20*0,80*1,65
C109: VP PE D 63x5,8 mm (2 kusy) (průměrná hloubka výkopu 1,65 m):15,50*0,80*1,65 | E109: 20.46 | M109: VP PE D 63x5,8 mm (2 kusy) (průměrná hloubka výkopu 1,65 m):15,50*0,80*1,65
C110: Odpočet konstrukce komunikací:-(328,40-10,00-130,00)*0,80*0,40 | E110: -60.288 | M110: Odpočet konstrukce komunikací:-(328,40-10,00-130,00)*0,80*0,40
C111: Odpočet konstrukce chodníků:-10,00*0,80*0,30 | E111: -2.4 | M111: Odpočet konstrukce chodníků:-10,00*0,80*0,30
C112: Odpočet ornice:-130,00*0,80*0,20 | E112: -20.8 | M112: Odpočet ornice:-130,00*0,80*0,20
C113: Konec provozního součtu | E113: 396.452 | M113: Konec provozního součtu
C114: V hornině tř. 5 - 45%:396,4520*0,1 | E114: 39.6452 | M114: V hornině tř. 5 - 45%:396,4520*0,1
A115: 14 | B115: 151101101R00 | C115: Pažení a rozepření stěn rýh - příložné - hl.do 2 m | D115: m2 | E115: 1199.85 | G115: =E115*F115 -> 0 | H115: 0.00099 | I115: =E115*H115 -> 1.1878515 | J115: 0 | K115: =E115*J115 -> 0 | O115: 2 | AA115: 1 | AB115: 1 | AC115: 1 | AZ115: 1 | BA115: =IF(AZ115=1,G115,0) -> 0 | BB115: =IF(AZ115=2,G115,0) -> 0 | BC115: =IF(AZ115=3,G115,0) -> 0 | BD115: =IF(AZ115=4,G115,0) -> 0 | BE115: =IF(AZ115=5,G115,0) -> 0 | CA115: 1 | CB115: 1
C116: KP KT DN150 (3 kusy) (průměrná hloubka výkopu 2,00 m):12,00*2,00*2 | E116: 48 | M116: KP KT DN150 (3 kusy) (průměrná hloubka výkopu 2,00 m):12,00*2,00*2
C117: KP PVC DN150 (10 kusů) (průměrná hloubka výkopu 2,00 m):153,90*2,00*2 | E117: 615.6 | M117: KP PVC DN150 (10 kusů) (průměrná hloubka výkopu 2,00 m):153,90*2,00*2
C118: VP PE D32x3,0 mm (17 kusů) (průměrná hloubka výkopu 1,65 m):141,80*1,65*2 | E118: 467.94 | M118: VP PE D32x3,0 mm (17 kusů) (průměrná hloubka výkopu 1,65 m):141,80*1,65*2
C119: VP PE D 40x3,7 mm (1 kus) (průměrná hloubka výkopu 1,65 m):5,20*1,65*2 | E119: 17.16 | M119: VP PE D 40x3,7 mm (1 kus) (průměrná hloubka výkopu 1,65 m):5,20*1,65*2
C120: VP PE D 63x5,8 mm (2 kusy) (průměrná hloubka výkopu 1,65 m):15,50*1,65*2 | E120: 51.15 | M120: VP PE D 63x5,8 mm (2 kusy) (průměrná hloubka výkopu 1,65 m):15,50*1,65*2
A121: 15 | B121: 151101111R00 | C121: Odstranění pažení stěn rýh - příložné - hl. do 2 m | D121: m2 | E121: 1199.85 | G121: =E121*F121 -> 0 | H121: 0 | I121: =E121*H121 -> 0 | J121: 0 | K121: =E121*J121 -> 0 | O121: 2 | AA121: 1 | AB121: 1 | AC121: 1 | AZ121: 1 | BA121: =IF(AZ121=1,G121,0) -> 0 | BB121: =IF(AZ121=2,G121,0) -> 0 | BC121: =IF(AZ121=3,G121,0) -> 0 | BD121: =IF(AZ121=4,G121,0) -> 0 | BE121: =IF(AZ121=5,G121,0) -> 0 | CA121: 1 | CB121: 1
C122: KP KT DN150 (3 kusy) (průměrná hloubka výkopu 2,00 m):12,00*2,00*2 | E122: 48 | M122: KP KT DN150 (3 kusy) (průměrná hloubka výkopu 2,00 m):12,00*2,00*2
C123: KP PVC DN150 (10 kusů) (průměrná hloubka výkopu 2,00 m):153,90*2,00*2 | E123: 615.6 | M123: KP PVC DN150 (10 kusů) (průměrná hloubka výkopu 2,00 m):153,90*2,00*2
C124: VP PE D32x3,0 mm (17 kusů) (průměrná hloubka výkopu 1,65 m):141,80*1,65*2 | E124: 467.94 | M124: VP PE D32x3,0 mm (17 kusů) (průměrná hloubka výkopu 1,65 m):141,80*1,65*2
C125: VP PE D 40x3,7 mm (1 kus) (průměrná hloubka výkopu 1,65 m):5,20*1,65*2 | E125: 17.16 | M125: VP PE D 40x3,7 mm (1 kus) (průměrná hloubka výkopu 1,65 m):5,20*1,65*2
C126: VP PE D 63x5,8 mm (2 kusy) (průměrná hloubka výkopu 1,65 m):15,50*1,65*2 | E126: 51.15 | M126: VP PE D 63x5,8 mm (2 kusy) (průměrná hloubka výkopu 1,65 m):15,50*1,65*2
A127: 16 | B127: 162701105RSZ | C127: Vodorovné přemístění výkopku z hor.1-4 na skládku zhotovitele | D127: m3 | E127: 270.164 | G127: =E127*F127 -> 0 | H127: 0 | I127: =E127*H127 -> 0 | J127: 0 | K127: =E127*J127 -> 0 | O127: 2 | AA127: 1 | AB127: 1 | AC127: 1 | AZ127: 1 | BA127: =IF(AZ127=1,G127,0) -> 0 | BB127: =IF(AZ127=2,G127,0) -> 0 | BC127: =IF(AZ127=3,G127,0) -> 0 | BD127: =IF(AZ127=4,G127,0) -> 0 | BE127: =IF(AZ127=5,G127,0) -> 0 | CA127: 1 | CB127: 1
C128: Výkopy: | E128: 0 | M128: Výkopy:
C129: V hornině tř. 3 - 5:396,4520 | E129: 396.452 | M129: V hornině tř. 3 - 5:396,4520
C130: Odpočet zásypů zeminou:-126,2880 | E130: -126.288 | M130: Odpočet zásypů zeminou:-126,2880
A131: 17 | B131: 174101101R00 | C131: Zásyp jam, rýh, šachet se zhutněním | D131: m3 | E131: 266.8783 | G131: =E131*F131 -> 0 | H131: 0 | I131: =E131*H131 -> 0 | J131: 0 | K131: =E131*J131 -> 0 | O131: 2 | AA131: 1 | AB131: 1 | AC131: 1 | AZ131: 1 | BA131: =IF(AZ131=1,G131,0) -> 0 | BB131: =IF(AZ131=2,G131,0) -> 0 | BC131: =IF(AZ131=3,G131,0) -> 0 | BD131: =IF(AZ131=4,G131,0) -> 0 | BE131: =IF(AZ131=5,G131,0) -> 0 | CA131: 1 | CB131: 1
C132: Položka obsahuje strojní přemístění materiálu pro zásyp ze vzdálenosti do 10 m od okraje zásypu. | L132: Položka obsahuje strojní přemístění materiálu pro zásyp ze vzdálenosti do 10 m od okraje zásypu. | O132: 3
C133: Zásypy zeminou:126,2880 | E133: 126.288 | M133: Zásypy zeminou:126,2880
C134: Začátek provozního součtu | E134: 0 | M134: Začátek provozního součtu
C135: Výkopy: | E135: 0 | M135: Výkopy:
C136: KP PVC DN150 (10 kusů) (průměrná hloubka výkopu 2,00 m):110,00*0,80*2,00 | E136: 176 | M136: KP PVC DN150 (10 kusů) (průměrná hloubka výkopu 2,00 m):110,00*0,80*2,00
C137: VP PE D32x3,0 mm (17 kusů) (průměrná hloubka výkopu 1,65 m):20,00*0,80*1,65 | E137: 26.4 | M137: VP PE D32x3,0 mm (17 kusů) (průměrná hloubka výkopu 1,65 m):20,00*0,80*1,65
C138: Odpočet ornice:-130,00*0,80*0,20 | E138: -20.8 | M138: Odpočet ornice:-130,00*0,80*0,20
C139: Odpočet lože potrubí a obsypů KP: | E139: 0 | M139: Odpočet lože potrubí a obsypů KP:
C140: KP PVC DN150 (10 kusů) (průměrná hloubka výkopu 2,00 m):-110,00*0,80*(0,10+0,15+0,30) | E140: -48.4 | M140: KP PVC DN150 (10 kusů) (průměrná hloubka výkopu 2,00 m):-110,00*0,80*(0,10+0,15+0,30)
C141: VP PE D32x3,0 mm (17 kusů) (průměrná hloubka výkopu 1,65 m):-20,00*0,80*(0,10+0,032+0,30) | E141: -6.912 | M141: VP PE D32x3,0 mm (17 kusů) (průměrná hloubka výkopu 1,65 m):-20,00*0,80*(0,10+0,032+0,30)
C142: Konec provozního součtu | E142: 126.288 | M142: Konec provozního součtu
C143: Zásyp štěrkodrtí fr. 0-63 mm:140,5903 | E143: 140.5903 | M143: Zásyp štěrkodrtí fr. 0-63 mm:140,5903
C144: Začátek provozního součtu | E144: 0 | M144: Začátek provozního součtu
C145: KP KT DN150 (3 kusy) (průměrná hloubka výkopu 2,00 m):12,00*0,80*2,00 | E145: 19.2 | M145: KP KT DN150 (3 kusy) (průměrná hloubka výkopu 2,00 m):12,00*0,80*2,00
C146: KP PVC DN150 (10 kusů) (průměrná hloubka výkopu 2,00 m):(153,90-110,00)*0,80*2,00 | E146: 70.24 | M146: KP PVC DN150 (10 kusů) (průměrná hloubka výkopu 2,00 m):(153,90-110,00)*0,80*2,00
C147: VP PE D32x3,0 mm (17 kusů) (průměrná hloubka výkopu 1,65 m):(141,80-20,00)*0,80*1,65 | E147: 160.776 | M147: VP PE D32x3,0 mm (17 kusů) (průměrná hloubka výkopu 1,65 m):(141,80-20,00)*0,80*1,65
C148: VP PE D 40x3,7 mm (1 kus) (průměrná hloubka výkopu 1,65 m):5,20*0,80*1,65 | E148: 6.864 | M148: VP PE D 40x3,7 mm (1 kus) (průměrná hloubka výkopu 1,65 m):5,20*0,80*1,65
C149: VP PE D 63x5,8 mm (2 kusy) (průměrná hloubka výkopu 1,65 m):15,50*0,80*1,65 | E149: 20.46 | M149: VP PE D 63x5,8 mm (2 kusy) (průměrná hloubka výkopu 1,65 m):15,50*0,80*1,65
C150: Odpočet konstrukce komunikací:-(328,40-10,00-130,00)*0,80*0,40 | E150: -60.288 | M150: Odpočet konstrukce komunikací:-(328,40-10,00-130,00)*0,80*0,40
C151: Odpočet konstrukce chodníků:-10,00*0,80*0,30 | E151: -2.4 | M151: Odpočet konstrukce chodníků:-10,00*0,80*0,30
C152: Odpočet lože potrubí a obsypů KP: | E152: 0 | M152: Odpočet lože potrubí a obsypů KP:
C153: KP KT DN150 (3 kusy) (průměrná hloubka výkopu 2,00 m):-12,00*0,80*(0,10+0,15+0,30) | E153: -5.28 | M153: KP KT DN150 (3 kusy) (průměrná hloubka výkopu 2,00 m):-12,00*0,80*(0,10+0,15+0,30)
C154: KP PVC DN150 (10 kusů) (průměrná hloubka výkopu 2,00 m):-(153,90-110,00)*0,80*(0,10+0,15+0,30) | E154: -19.316 | M154: KP PVC DN150 (10 kusů) (průměrná hloubka výkopu 2,00 m):-(153,90-110,00)*0,80*(0,10+0,15+0,30)
C155: Odpočet lože, potrubí a obsypů VP: | E155: 0 | M155: Odpočet lože, potrubí a obsypů VP:
C156: VP PE D32x3,0 mm (17 kusů) (průměrná hloubka výkopu 1,65 m):-(141,80-20,00)*0,80*(0,10+0,032+0,30) | E156: -42.0941 | M156: VP PE D32x3,0 mm (17 kusů) (průměrná hloubka výkopu 1,65 m):-(141,80-20,00)*0,80*(0,10+0,032+0,30)
C157: VP PE D 40x3,7 mm (1 kus) (průměrná hloubka výkopu 1,65 m):-5,20*0,80*(0,10+0,04+0,30) | E157: -1.8304 | M157: VP PE D 40x3,7 mm (1 kus) (průměrná hloubka výkopu 1,65 m):-5,20*0,80*(0,10+0,04+0,30)
C158: VP PE D 63x5,8 mm (2 kusy) (průměrná hloubka výkopu 1,65 m):-15,50*0,80*(0,10+0,063+0,30) | E158: -5.7412 | M158: VP PE D 63x5,8 mm (2 kusy) (průměrná hloubka výkopu 1,65 m):-15,50*0,80*(0,10+0,063+0,30)
C159: Konec provozního součtu | E159: 140.5903 | M159: Konec provozního součtu
A160: 18 | B160: 175101101R00 | C160: Obsyp potrubí bez prohození sypaniny | D160: m3 | E160: 100.2011 | G160: =E160*F160 -> 0 | H160: 0 | I160: =E160*H160 -> 0 | J160: 0 | K160: =E160*J160 -> 0 | O160: 2 | AA160: 1 | AB160: 1 | AC160: 1 | AZ160: 1 | BA160: =IF(AZ160=1,G160,0) -> 0 | BB160: =IF(AZ160=2,G160,0) -> 0 | BC160: =IF(AZ160=3,G160,0) -> 0 | BD160: =IF(AZ160=4,G160,0) -> 0 | BE160: =IF(AZ160=5,G160,0) -> 0 | CA160: 1 | CB160: 1
C161: KP KT DN150 (3 kusy):12,00*(0,80*(0,15+0,30)-0,075^2*Pi) | E161: 4.1079 | M161: KP KT DN150 (3 kusy):12,00*(0,80*(0,15+0,30)-0,075^2*Pi)
C162: KP PVC DN150 (10 kusů):153,90*(0,80*(0,15+0,30)-0,075^2*Pi) | E162: 52.6844 | M162: KP PVC DN150 (10 kusů):153,90*(0,80*(0,15+0,30)-0,075^2*Pi)
C163: VP PE D32x3,0 mm (17 kusů):141,80*(0,80*(0,032+0,30)-0,016^2*Pi) | E163: 37.548 | M163: VP PE D32x3,0 mm (17 kusů):141,80*(0,80*(0,032+0,30)-0,016^2*Pi)
C164: VP PE D 40x3,7 mm (1 kus):5,20*(0,80*(0,040+0,30)-0,02^2*Pi) | E164: 1.4079 | M164: VP PE D 40x3,7 mm (1 kus):5,20*(0,80*(0,040+0,30)-0,02^2*Pi)
C165: VP PE D 63x5,8 mm (2 kusy):15,50*(0,80*(0,063+0,30)-0,0315^2*Pi) | E165: 4.4529 | M165: VP PE D 63x5,8 mm (2 kusy):15,50*(0,80*(0,063+0,30)-0,0315^2*Pi)
A166: 19 | B166: 199000002R00 | C166: Poplatek za skládku horniny 1- 7 č. dle katal. odpadů 17 05 04 | D166: m3 | E166: 270.164 | G166: =E166*F166 -> 0 | H166: 0 | I166: =E166*H166 -> 0 | J166: 0 | K166: =E166*J166 -> 0 | O166: 2 | AA166: 1 | AB166: 1 | AC166: 1 | AZ166: 1 | BA166: =IF(AZ166=1,G166,0) -> 0 | BB166: =IF(AZ166=2,G166,0) -> 0 | BC166: =IF(AZ166=3,G166,0) -> 0 | BD166: =IF(AZ166=4,G166,0) -> 0 | BE166: =IF(AZ166=5,G166,0) -> 0 | CA166: 1 | CB166: 1
C167: Výkopy: | E167: 0 | M167: Výkopy:
C168: V hornině tř. 3 - 5:396,4520 | E168: 396.452 | M168: V hornině tř. 3 - 5:396,4520
C169: Odpočet zásypů zeminou:-126,2880 | E169: -126.288 | M169: Odpočet zásypů zeminou:-126,2880
A170: 20 | B170: 919735113R00 | C170: Řezání stávajícího živičného krytu tl. 10 - 15 cm | D170: m | E170: 376.8 | G170: =E170*F170 -> 0 | H170: 0 | I170: =E170*H170 -> 0 | J170: 0 | K170: =E170*J170 -> 0 | O170: 2 | AA170: 1 | AB170: 1 | AC170: 1 | AZ170: 1 | BA170: =IF(AZ170=1,G170,0) -> 0 | BB170: =IF(AZ170=2,G170,0) -> 0 | BC170: =IF(AZ170=3,G170,0) -> 0 | BD170: =IF(AZ170=4,G170,0) -> 0 | BE170: =IF(AZ170=5,G170,0) -> 0 | CA170: 1 | CB170: 1
C171: KP KT DN150 (3 kusy) (průměrná hloubka výkopu 2,00 m): | E171: 0 | M171: KP KT DN150 (3 kusy) (průměrná hloubka výkopu 2,00 m):
C172: KP PVC DN150 (10 kusů) (průměrná hloubka výkopu 2,00 m): | E172: 0 | M172: KP PVC DN150 (10 kusů) (průměrná hloubka výkopu 2,00 m):
C173: VP PE D32x3,0 mm (17 kusů) (průměrná hloubka výkopu 1,65 m): | E173: 0 | M173: VP PE D32x3,0 mm (17 kusů) (průměrná hloubka výkopu 1,65 m):
C174: VP PE D 40x3,7 mm (1 kus) (průměrná hloubka výkopu 1,65 m): | E174: 0 | M174: VP PE D 40x3,7 mm (1 kus) (průměrná hloubka výkopu 1,65 m):
C175: VP PE D 63x5,8 mm (2 kusy) (průměrná hloubka výkopu 1,65 m): | E175: 0 | M175: VP PE D 63x5,8 mm (2 kusy) (průměrná hloubka výkopu 1,65 m):
C176: Konstrukce komunikací:(328,40-10,00-130,00)*2 | E176: 376.8 | M176: Konstrukce komunikací:(328,40-10,00-130,00)*2
A177: 21 | B177: 979082113RSZ | C177: Vodorovná doprava suti po suchu na skládku zhotovitele | D177: t | E177: 132.6336 | G177: =E177*F177 -> 0 | H177: 0 | I177: =E177*H177 -> 0 | J177: 0 | K177: =E177*J177 -> 0 | O177: 2 | AA177: 1 | AB177: 1 | AC177: 1 | AZ177: 1 | BA177: =IF(AZ177=1,G177,0) -> 0 | BB177: =IF(AZ177=2,G177,0) -> 0 | BC177: =IF(AZ177=3,G177,0) -> 0 | BD177: =IF(AZ177=4,G177,0) -> 0 | BE177: =IF(AZ177=5,G177,0) -> 0 | CA177: 1 | CB177: 1
A178: 22 | B178: 979089001R00 | C178: Poplatek za skládku stavební suti štěrky z komunikací, skupina odpadu 010408 | D178: t | E178: 82.896 | G178: =E178*F178 -> 0 | H178: 0 | I178: =E178*H178 -> 0 | J178: 0 | K178: =E178*J178 -> 0 | O178: 2 | AA178: 1 | AB178: 1 | AC178: 1 | AZ178: 1 | BA178: =IF(AZ178=1,G178,0) -> 0 | BB178: =IF(AZ178=2,G178,0) -> 0 | BC178: =IF(AZ178=3,G178,0) -> 0 | BD178: =IF(AZ178=4,G178,0) -> 0 | BE178: =IF(AZ178=5,G178,0) -> 0 | CA178: 1 | CB178: 1
A179: 23 | B179: 979999995R00 | C179: Poplatek za reciklaci asfaltu, kusovost do 1600cm2 skupina 170302 | D179: t | E179: 49.7376 | G179: =E179*F179 -> 0 | H179: 0 | I179: =E179*H179 -> 0 | J179: 0 | K179: =E179*J179 -> 0 | O179: 2 | AA179: 1 | AB179: 1 | AC179: 1 | AZ179: 1 | BA179: =IF(AZ179=1,G179,0) -> 0 | BB179: =IF(AZ179=2,G179,0) -> 0 | BC179: =IF(AZ179=3,G179,0) -> 0 | BD179: =IF(AZ179=4,G179,0) -> 0 | BE179: =IF(AZ179=5,G179,0) -> 0 | CA179: 1 | CB179: 1
C180: Položka je určena pro suť o velikosti kusu do 30x30 cm nebo frézovaný asfalt(technologický materiál určený k recyklaci). | L180: Položka je určena pro suť o velikosti kusu do 30x30 cm nebo frézovaný asfalt(technologický materiál určený k recyklaci). | O180: 3
A181: 24 | B181: 113106000RRR | C181: Odstranění zám.dlažby 6 cm vč.podkladu,pl.do 50 m2 včetně zpětného zadláždění - chodník | D181: m2 | E181: 2 | G181: =E181*F181 -> 0 | H181: 0 | I181: =E181*H181 -> 0 | J181: -0.445 | K181: =E181*J181 -> -0.89 | O181: 2 | AA181: 2 | AB181: 1 | AC181: 1 | AZ181: 1 | BA181: =IF(AZ181=1,G181,0) -> 0 | BB181: =IF(AZ181=2,G181,0) -> 0 | BC181: =IF(AZ181=3,G181,0) -> 0 | BD181: =IF(AZ181=4,G181,0) -> 0 | BE181: =IF(AZ181=5,G181,0) -> 0 | CA181: 2 | CB181: 1
C182: Součástí položky je i | L182: Součástí položky je i | O182: 3
C183: - odvoz původního nevyužitého materiálu na skládku zhotovitele a poplatku za skládku. | L183: - odvoz původního nevyužitého materiálu na skládku zhotovitele a poplatku za skládku. | O183: 3
C184: - dodávka nových podkladních konstrukcí | L184: - dodávka nových podkladních konstrukcí | O184: 3
A185: 25 | B185: 113106004RRR | C185: Odstranění beton.dlažby vč.podkladu, pl.nad 50 m2 včetně zpětného zadláždění - chodník | D185: m2 | E185: 6 | G185: =E185*F185 -> 0 | H185: 0 | I185: =E185*H185 -> 0 | J185: -0.358 | K185: =E185*J185 -> -2.148 | O185: 2 | AA185: 2 | AB185: 1 | AC185: 1 | AZ185: 1 | BA185: =IF(AZ185=1,G185,0) -> 0 | BB185: =IF(AZ185=2,G185,0) -> 0 | BC185: =IF(AZ185=3,G185,0) -> 0 | BD185: =IF(AZ185=4,G185,0) -> 0 | BE185: =IF(AZ185=5,G185,0) -> 0 | CA185: 2 | CB185: 1
C186: Součástí položky je i | L186: Součástí položky je i | O186: 3
C187: - odvoz původního nevyužitého materiálu na skládku zhotovitele a poplatku za skládku. | L187: - odvoz původního nevyužitého materiálu na skládku zhotovitele a poplatku za skládku. | O187: 3
C188: - dodávka nových podkladních konstrukcí | L188: - dodávka nových podkladních konstrukcí | O188: 3
A189: 26 | B189: 113106033RRR | C189: Rozebrání dlažby z kostek a podkladu, pl.do 200 m2 včetně zpětného zadláždění - chodník | D189: m2 | E189: 4.5 | G189: =E189*F189 -> 0 | H189: 0 | I189: =E189*H189 -> 0 | J189: -0.977 | K189: =E189*J189 -> -4.3965 | O189: 2 | AA189: 2 | AB189: 1 | AC189: 1 | AZ189: 1 | BA189: =IF(AZ189=1,G189,0) -> 0 | BB189: =IF(AZ189=2,G189,0) -> 0 | BC189: =IF(AZ189=3,G189,0) -> 0 | BD189: =IF(AZ189=4,G189,0) -> 0 | BE189: =IF(AZ189=5,G189,0) -> 0 | CA189: 2 | CB189: 1
C190: Součástí položky je i | L190: Součástí položky je i | O190: 3
C191: - odvoz původního nevyužitého materiálu na skládku zhotovitele a poplatku za skládku. | L191: - odvoz původního nevyužitého materiálu na skládku zhotovitele a poplatku za skládku. | O191: 3
C192: - dodávka nových podkladních konstrukcí | L192: - dodávka nových podkladních konstrukcí | O192: 3
A193: 27 | B193: 113201011RRR | C193: Vytrhání obrubníků silničních včetně znovuosazení původních obrubníků | D193: m | E193: 10 | G193: =E193*F193 -> 0 | H193: 0 | I193: =E193*H193 -> 0 | J193: -0.27 | K193: =E193*J193 -> -2.7 | O193: 2 | AA193: 2 | AB193: 1 | AC193: 1 | AZ193: 1 | BA193: =IF(AZ193=1,G193,0) -> 0 | BB193: =IF(AZ193=2,G193,0) -> 0 | BC193: =IF(AZ193=3,G193,0) -> 0 | BD193: =IF(AZ193=4,G193,0) -> 0 | BE193: =IF(AZ193=5,G193,0) -> 0 | CA193: 2 | CB193: 1
C194: Součástí položky je i | L194: Součástí položky je i | O194: 3
C195: - odvoz původního nevyužitého materiálu na skládku zhotovitele a poplatku za skládku. | L195: - odvoz původního nevyužitého materiálu na skládku zhotovitele a poplatku za skládku. | O195: 3
C196: - očištění původních obrubníků | L196: - očištění původních obrubníků | O196: 3
C197: - dodávka betonové směsi pro osazení obrubníků | L197: - dodávka betonové směsi pro osazení obrubníků | O197: 3
A198: 28 | B198: 113201012RRR | C198: Vytrhání obrubníků chodníkových a parkových včetně znovuosazení původních obrubníků | D198: m2 | E198: 10 | G198: =E198*F198 -> 0 | H198: 0 | I198: =E198*H198 -> 0 | J198: -0.22 | K198: =E198*J198 -> -2.2 | O198: 2 | AA198: 2 | AB198: 1 | AC198: 1 | AZ198: 1 | BA198: =IF(AZ198=1,G198,0) -> 0 | BB198: =IF(AZ198=2,G198,0) -> 0 | BC198: =IF(AZ198=3,G198,0) -> 0 | BD198: =IF(AZ198=4,G198,0) -> 0 | BE198: =IF(AZ198=5,G198,0) -> 0 | CA198: 2 | CB198: 1
C199: Součástí položky je i | L199: Součástí položky je i | O199: 3
C200: - odvoz původního nevyužitého materiálu na skládku zhotovitele a poplatku za skládku. | L200: - odvoz původního nevyužitého materiálu na skládku zhotovitele a poplatku za skládku. | O200: 3
C201: - očištění původních obrubníků | L201: - očištění původních obrubníků | O201: 3
C202: - dodávka betonové směsi pro osazení obrubníků | L202: - dodávka betonové směsi pro osazení obrubníků | O202: 3
... 151 more rows

Sheet I. 02.01 I. 02.01 KL
A1: POLOŽKOVÝ ROZPOČET
A2: Rozpočet | C2: I. 02.01 | D2: Vodovod "Kavánova" | F2: JKSO | G2: 827.11.A1
A4: Objekt | F4: SKP
A5: I. 02.01 | C5: Vodovod "Kavánova" | F5: Měrná jednotka | G5: m
A6: Stavba | F6: Počet jednotek | G6: 0
A7: 3334 | C7: Lomnice nad Popelkou - Vodovod a kanalizace | F7: Náklady na m.j. | G7: =IF(G6=0,,ROUND((F30+F32)/G6,1)) -> 0
A8: Projektant | C8: VEDU VODU s.r.o. Dobrovice | F8: Typ rozpočtu
A9: Zpracovatel projektu
A10: Objednatel | C10: Vodohospodářské sdružení Turnov
A11: Dodavatel | C11: . | F11: Zakázkové číslo
A12: Rozpočtoval | F12: Počet listů
A13: ROZPOČTOVÉ NÁKLADY
A14: Základní rozpočtové náklady
B15: HSV celkem | C15: ='I. 02.01 I. 02.01 Rek'!E13 -> 0
A16: Z | B16: PSV celkem | C16: ='I. 02.01 I. 02.01 Rek'!F13 -> 0
A17: R | B17: M práce celkem | C17: ='I. 02.01 I. 02.01 Rek'!H13 -> 0
A18: N | B18: M dodávky celkem | C18: ='I. 02.01 I. 02.01 Rek'!G13 -> 0
A19: ZRN celkem | C19: =SUM(C15:C18) -> 0
A21: HZS | C21: ='I. 02.01 I. 02.01 Rek'!I13 -> 0
A22: ZRN+HZS | C22: =C19+C21 -> 0
A23: ZRN+ost.náklady+HZS | C23: =C22+G23 -> 0
A24: Vypracoval | D24: Za zhotovitele | F24: Za objednatele
A25: Jméno : | D25: Jméno : | F25: Jméno :
A26: Datum : | D26: Datum : | F26: Datum :
A28: Podpis : | D28: Podpis: | F28: Podpis:
A30: Základ pro DPH | C30: 21 | D30: % | F30: =C23-F32 -> 0
A31: DPH | C31: =C30 -> 21 | D31: % | F31: =ROUND(PRODUCT(F30,C31/100),0) -> 0
A32: Základ pro DPH | C32: 0 | D32: % | F32: 0
A33: DPH | C33: =C32 -> 0 | D33: % | F33: =ROUND(PRODUCT(F32,C33/100),0) -> 0
A34: CENA ZA OBJEKT CELKEM | F34: =ROUND(SUM(F30:F33),0) -> 0
A36: Poznámka :

Sheet I. 02.01 I. 02.01 Rek
A1: Stavba : | C1: 3334 Lomnice nad Popelkou - Vodovod a kanalizace | G1: Rozpočet : | H1: I. 02.01
A2: Objekt : | C2: I. 02.01 Vodovod "Kavánova" | G2: Vodovod "Kavánova"
A4: REKAPITULACE STAVEBNÍCH DÍLŮ
B6: Stavební díl | E6: HSV | F6: PSV | G6: Dodávka | H6: Montáž | I6: HZS
A7: ='I. 02.01 I. 02.01 Pol'!B7 -> 1 | B7: ='I. 02.01 I. 02.01 Pol'!C7 -> Zemní práce | E7: ='I. 02.01 I. 02.01 Pol'!BA274 -> 0 | F7: ='I. 02.01 I. 02.01 Pol'!BB274 -> 0 | G7: ='I. 02.01 I. 02.01 Pol'!BC274 -> 0 | H7: ='I. 02.01 I. 02.01 Pol'!BD274 -> 0 | I7: ='I. 02.01 I. 02.01 Pol'!BE274 -> 0
A8: ='I. 02.01 I. 02.01 Pol'!B275 -> 38 | B8: ='I. 02.01 I. 02.01 Pol'!C275 -> Kompletní konstrukce | E8: ='I. 02.01 I. 02.01 Pol'!BA286 -> 0 | F8: ='I. 02.01 I. 02.01 Pol'!BB286 -> 0 | G8: ='I. 02.01 I. 02.01 Pol'!BC286 -> 0 | H8: ='I. 02.01 I. 02.01 Pol'!BD286 -> 0 | I8: ='I. 02.01 I. 02.01 Pol'!BE286 -> 0
A9: ='I. 02.01 I. 02.01 Pol'!B287 -> 45 | B9: ='I. 02.01 I. 02.01 Pol'!C287 -> Podkladní a vedlejší konstrukce | E9: ='I. 02.01 I. 02.01 Pol'!BA297 -> 0 | F9: ='I. 02.01 I. 02.01 Pol'!BB297 -> 0 | G9: ='I. 02.01 I. 02.01 Pol'!BC297 -> 0 | H9: ='I. 02.01 I. 02.01 Pol'!BD297 -> 0 | I9: ='I. 02.01 I. 02.01 Pol'!BE297 -> 0
A10: ='I. 02.01 I. 02.01 Pol'!B298 -> 5 | B10: ='I. 02.01 I. 02.01 Pol'!C298 -> Komunikace | E10: ='I. 02.01 I. 02.01 Pol'!BA323 -> 0 | F10: ='I. 02.01 I. 02.01 Pol'!BB323 -> 0 | G10: ='I. 02.01 I. 02.01 Pol'!BC323 -> 0 | H10: ='I. 02.01 I. 02.01 Pol'!BD323 -> 0 | I10: ='I. 02.01 I. 02.01 Pol'!BE323 -> 0
A11: ='I. 02.01 I. 02.01 Pol'!B324 -> 8 | B11: ='I. 02.01 I. 02.01 Pol'!C324 -> Trubní vedení | E11: ='I. 02.01 I. 02.01 Pol'!BA578 -> 0 | F11: ='I. 02.01 I. 02.01 Pol'!BB578 -> 0 | G11: ='I. 02.01 I. 02.01 Pol'!BC578 -> 0 | H11: ='I. 02.01 I. 02.01 Pol'!BD578 -> 0 | I11: ='I. 02.01 I. 02.01 Pol'!BE578 -> 0
A12: ='I. 02.01 I. 02.01 Pol'!B579 -> 99 | B12: ='I. 02.01 I. 02.01 Pol'!C579 -> Staveništní přesun hmot | E12: ='I. 02.01 I. 02.01 Pol'!BA581 -> 0 | F12: ='I. 02.01 I. 02.01 Pol'!BB581 -> 0 | G12: ='I. 02.01 I. 02.01 Pol'!BC581 -> 0 | H12: ='I. 02.01 I. 02.01 Pol'!BD581 -> 0 | I12: ='I. 02.01 I. 02.01 Pol'!BE581 -> 0
B13: CELKEM OBJEKT | E13: =SUM(E7:E12) -> 0 | F13: =SUM(F7:F12) -> 0 | G13: =SUM(G7:G12) -> 0 | H13: =SUM(H7:H12) -> 0 | I13: =SUM(I7:I12) -> 0

Sheet I. 02.01 I. 02.01 Pol
A1: Položkový rozpočet
A3: Stavba : | C3: 3334 Lomnice nad Popelkou - Vodovod a kanalizace | E3: Rozpočet: | F3: ='I. 02.01 I. 02.01 Rek'!H1 -> I. 02.01
A4: Objekt : | C4: I. 02.01 Vodovod "Kavánova" | E4: ='I. 02.01 I. 02.01 Rek'!G2 -> Vodovod "Kavánova"
A6: P.č. | B6: Číslo položky | C6: Název položky | D6: MJ | E6: množství | F6: cena / MJ | G6: celkem (Kč) | H6: Jednotková hmotnost | I6: Celková hmotnost | J6: Jednotková dem.hmot. | K6: Celková dem.hmot.
A7: Díl: | B7: 1 | C7: Zemní práce | O7: 1
A8: 1 | B8: 113107625R00 | C8: Odstranění podkladu nad 50 m2,kam.drcené tl.25 cm | D8: m2 | E8: 70.36 | G8: =E8*F8 -> 0 | H8: 0 | I8: =E8*H8 -> 0 | J8: -0.55 | K8: =E8*J8 -> -38.698 | O8: 2 | AA8: 1 | AB8: 1 | AC8: 1 | AZ8: 1 | BA8: =IF(AZ8=1,G8,0) -> 0 | BB8: =IF(AZ8=2,G8,0) -> 0 | BC8: =IF(AZ8=3,G8,0) -> 0 | BD8: =IF(AZ8=4,G8,0) -> 0 | BE8: =IF(AZ8=5,G8,0) -> 0 | CA8: 1 | CB8: 1
C9: AŠ: | E9: 0 | M9: AŠ:
C10: Objem konstrukce komunikací:5,70*4,80 | E10: 27.36 | M10: Objem konstrukce komunikací:5,70*4,80
C11: NTL: | E11: 0 | M11: NTL:
C12: Řad "K" DN80: | E12: 0 | M12: Řad "K" DN80:
C13: Propoj na Řad "A" TLT DN80: | E13: 0 | M13: Propoj na Řad "A" TLT DN80:
C14: Řad "J" PE D90x8,2 mm: | E14: 0 | M14: Řad "J" PE D90x8,2 mm:
C15: Objem konstrukce komunikací:(6,20-1,00+16,70-1,00)*1,00 | E15: 20.9 | M15: Objem konstrukce komunikací:(6,20-1,00+16,70-1,00)*1,00
C16: VTP: | E16: 0 | M16: VTP:
C17: Řad "L" TLT DN100: | E17: 0 | M17: Řad "L" TLT DN100:
C18: Řad "L" PE D110x10,0 mm: | E18: 0 | M18: Řad "L" PE D110x10,0 mm:
C19: Objem konstrukce komunikací:(9,60-1,00+14,50-1,00)*1,00 | E19: 22.1 | M19: Objem konstrukce komunikací:(9,60-1,00+14,50-1,00)*1,00
A20: 2 | B20: 113108415R00 | C20: Odstranění asfaltové vrstvy pl.nad 50 m2, tl.15 cm | D20: m2 | E20: 70.36 | G20: =E20*F20 -> 0 | H20: 0 | I20: =E20*H20 -> 0 | J20: -0.33 | K20: =E20*J20 -> -23.2188 | O20: 2 | AA20: 1 | AB20: 1 | AC20: 1 | AZ20: 1 | BA20: =IF(AZ20=1,G20,0) -> 0 | BB20: =IF(AZ20=2,G20,0) -> 0 | BC20: =IF(AZ20=3,G20,0) -> 0 | BD20: =IF(AZ20=4,G20,0) -> 0 | BE20: =IF(AZ20=5,G20,0) -> 0 | CA20: 1 | CB20: 1
C21: AŠ: | E21: 0 | M21: AŠ:
C22: Objem konstrukce komunikací:5,70*4,80 | E22: 27.36 | M22: Objem konstrukce komunikací:5,70*4,80
C23: NTL: | E23: 0 | M23: NTL:
C24: Řad "K" DN80: | E24: 0 | M24: Řad "K" DN80:
C25: Propoj na Řad "A" TLT DN80: | E25: 0 | M25: Propoj na Řad "A" TLT DN80:
C26: Řad "J" PE D90x8,2 mm: | E26: 0 | M26: Řad "J" PE D90x8,2 mm:
C27: Objem konstrukce komunikací:(6,20-1,00+16,70-1,00)*1,00 | E27: 20.9 | M27: Objem konstrukce komunikací:(6,20-1,00+16,70-1,00)*1,00
C28: VTP: | E28: 0 | M28: VTP:
C29: Řad "L" TLT DN100: | E29: 0 | M29: Řad "L" TLT DN100:
C30: Řad "L" PE D110x10,0 mm: | E30: 0 | M30: Řad "L" PE D110x10,0 mm:
C31: Objem konstrukce komunikací:(9,60-1,00+14,50-1,00)*1,00 | E31: 22.1 | M31: Objem konstrukce komunikací:(9,60-1,00+14,50-1,00)*1,00
A32: 3 | B32: 119001401R00 | C32: Dočasné zajištění ocelového potrubí do DN 200 mm | D32: m | E32: 15 | G32: =E32*F32 -> 0 | H32: 0.00869 | I32: =E32*H32 -> 0.13035 | J32: 0 | K32: =E32*J32 -> 0 | O32: 2 | AA32: 1 | AB32: 1 | AC32: 1 | AZ32: 1 | BA32: =IF(AZ32=1,G32,0) -> 0 | BB32: =IF(AZ32=2,G32,0) -> 0 | BC32: =IF(AZ32=3,G32,0) -> 0 | BD32: =IF(AZ32=4,G32,0) -> 0 | BE32: =IF(AZ32=5,G32,0) -> 0 | CA32: 1 | CB32: 1
A33: 4 | B33: 119001422R00 | C33: Dočasné zajištění kabelů - v počtu 3 - 6 kabelů | D33: m | E33: 11.3 | G33: =E33*F33 -> 0 | H33: 0.03974 | I33: =E33*H33 -> 0.449062 | J33: 0 | K33: =E33*J33 -> 0 | O33: 2 | AA33: 1 | AB33: 1 | AC33: 1 | AZ33: 1 | BA33: =IF(AZ33=1,G33,0) -> 0 | BB33: =IF(AZ33=2,G33,0) -> 0 | BC33: =IF(AZ33=3,G33,0) -> 0 | BD33: =IF(AZ33=4,G33,0) -> 0 | BE33: =IF(AZ33=5,G33,0) -> 0 | CA33: 1 | CB33: 1
A34: 5 | B34: 130001101RRX | C34: Příplatek za ztížené hloubení v blízkosti vedení | D34: m3 | E34: 17.5323 | G34: =E34*F34 -> 0 | H34: 0 | I34: =E34*H34 -> 0 | J34: 0 | K34: =E34*J34 -> 0 | O34: 2 | AA34: 1 | AB34: 1 | AC34: 1 | AZ34: 1 | BA34: =IF(AZ34=1,G34,0) -> 0 | BB34: =IF(AZ34=2,G34,0) -> 0 | BC34: =IF(AZ34=3,G34,0) -> 0 | BD34: =IF(AZ34=4,G34,0) -> 0 | BE34: =IF(AZ34=5,G34,0) -> 0 | CA34: 1 | CB34: 1
C35: Včetně případných nutných dokopávem a ručního výkopu podél sousedících inženýrských sítí | L35: Včetně případných nutných dokopávem a ručního výkopu podél sousedících inženýrských sítí | O35: 3
C36: Začátek provozního součtu | E36: 0 | M36: Začátek provozního součtu
C37: Výkopy: | E37: 0 | M37: Výkopy:
C38: AŠ:2,44/3*(4,00*3,10+sqrt(4,00*3,10*5,70*4,80)+5,70*4,80) | E38: 47.319 | M38: AŠ:2,44/3*(4,00*3,10+sqrt(4,00*3,10*5,70*4,80)+5,70*4,80)
C39: Odpočet objemu konstrukce komunikací:-5,70*4,80*0,40 | E39: -10.944 | M39: Odpočet objemu konstrukce komunikací:-5,70*4,80*0,40
C40: NTL: | E40: 0 | M40: NTL:
C41: Řad "K" DN80:(6,20-1,00)*1,00*1,70 | E41: 8.84 | M41: Řad "K" DN80:(6,20-1,00)*1,00*1,70
C42: Propoj na Řad "A" TLT DN80:0 | E42: 0 | M42: Propoj na Řad "A" TLT DN80:0
C43: Řad "J" PE D90x8,2 mm:(16,70-1,00)*1,00*1,70 | E43: 26.69 | M43: Řad "J" PE D90x8,2 mm:(16,70-1,00)*1,00*1,70
C44: Odpočet objemu konstrukcí komunikací:-(6,20-1,00+16,70-1,00)*1,00*0,40 | E44: -8.36 | M44: Odpočet objemu konstrukcí komunikací:-(6,20-1,00+16,70-1,00)*1,00*0,40
C45: VTP: | E45: 0 | M45: VTP:
C46: Řad "L" TLT DN100:(9,60-1,00)*1,00*1,70 | E46: 14.62 | M46: Řad "L" TLT DN100:(9,60-1,00)*1,00*1,70
C47: Řad "L" PE D110x10,0 mm:(14,50-1,00)*1,00*1,70 | E47: 22.95 | M47: Řad "L" PE D110x10,0 mm:(14,50-1,00)*1,00*1,70
C48: Odpočet objemu konstrukcí komunikací:-(9,60-1,00+14,50-1,00)*1,00*0,40 | E48: -8.84 | M48: Odpočet objemu konstrukcí komunikací:-(9,60-1,00+14,50-1,00)*1,00*0,40
C49: Konec provozního součtu | E49: 92.275 | M49: Konec provozního součtu
C50: V hornině tř. 3 - 5 - 19%:92,2750*0,19 | E50: 17.5323 | M50: V hornině tř. 3 - 5 - 19%:92,2750*0,19
A51: 6 | B51: 131201111R00 | C51: Hloubení nezapaž. jam hor.3 do 100 m3, STROJNĚ | D51: m3 | E51: 16.3688 | G51: =E51*F51 -> 0 | H51: 0 | I51: =E51*H51 -> 0 | J51: 0 | K51: =E51*J51 -> 0 | O51: 2 | AA51: 1 | AB51: 1 | AC51: 1 | AZ51: 1 | BA51: =IF(AZ51=1,G51,0) -> 0 | BB51: =IF(AZ51=2,G51,0) -> 0 | BC51: =IF(AZ51=3,G51,0) -> 0 | BD51: =IF(AZ51=4,G51,0) -> 0 | BE51: =IF(AZ51=5,G51,0) -> 0 | CA51: 1 | CB51: 1
C52: Položka obsahuje hloubení jámy traktorbagrem, naložení výkopku na dopravní prostředek pro svislé, nebo vodorovné přemístění, popř. přemístění výkopku do 3 m (po povrchu území), případné zajištění rypadel polštáři, udržování pracoviště a ochranu výkopiště proti stékání srážkové vody z okolního terénu i s jejím odvodněním, nebo odvedením, přesekání a odstranění kořenů ve výkopišti, odstranění napadávek, urovnání dna výkopu. | L52: Položka obsahuje hloubení jámy traktorbagrem, naložení výkopku na dopravní prostředek pro svislé, nebo vodorovné přemístění, popř. přemístění výkopku do 3 m (po povrchu území), případné zajištění rypadel polštáři, udržování pracoviště a ochranu výkopiště proti stékání srážkové vody z okolního terénu i s jejím odvodněním, nebo odvedením, přesekání a odstranění kořenů ve výkopišti, odstranění napadávek, urovnání dna výkopu. | O52: 3
C53: Začátek provozního součtu | E53: 0 | M53: Začátek provozního součtu
C54: AŠ:2,44/3*(4,00*3,10+sqrt(4,00*3,10*5,70*4,80)+5,70*4,80) | E54: 47.319 | M54: AŠ:2,44/3*(4,00*3,10+sqrt(4,00*3,10*5,70*4,80)+5,70*4,80)
C55: Odpočet objemu konstrukce komunikací:-5,70*4,80*0,40 | E55: -10.944 | M55: Odpočet objemu konstrukce komunikací:-5,70*4,80*0,40
C56: Konec provozního součtu | E56: 36.375 | M56: Konec provozního součtu
C57: V hornině tř. 3 - 45%:36,3750*0,45 | E57: 16.3688 | M57: V hornině tř. 3 - 45%:36,3750*0,45
A58: 7 | B58: 131201119R00 | C58: Příplatek za lepivost - hloubení nezap.jam v hor.3 | D58: m3 | E58: 8.1844 | G58: =E58*F58 -> 0 | H58: 0 | I58: =E58*H58 -> 0 | J58: 0 | K58: =E58*J58 -> 0 | O58: 2 | AA58: 1 | AB58: 1 | AC58: 1 | AZ58: 1 | BA58: =IF(AZ58=1,G58,0) -> 0 | BB58: =IF(AZ58=2,G58,0) -> 0 | BC58: =IF(AZ58=3,G58,0) -> 0 | BD58: =IF(AZ58=4,G58,0) -> 0 | BE58: =IF(AZ58=5,G58,0) -> 0 | CA58: 1 | CB58: 1
C59: Začátek provozního součtu | E59: 0 | M59: Začátek provozního součtu
C60: AŠ:2,44/3*(4,00*3,10+sqrt(4,00*3,10*5,70*4,80)+5,70*4,80) | E60: 47.319 | M60: AŠ:2,44/3*(4,00*3,10+sqrt(4,00*3,10*5,70*4,80)+5,70*4,80)
C61: Odpočet objemu konstrukce komunikací:-5,70*4,80*0,40 | E61: -10.944 | M61: Odpočet objemu konstrukce komunikací:-5,70*4,80*0,40
C62: Konec provozního součtu | E62: 36.375 | M62: Konec provozního součtu
C63: V hornině tř. 3 - 45%:36,3750*0,45*0,5 | E63: 8.1844 | M63: V hornině tř. 3 - 45%:36,3750*0,45*0,5
A64: 8 | B64: 131301111R00 | C64: Hloubení nezapaž. jam hor.4 do 100 m3, STROJNĚ | D64: m3 | E64: 16.3688 | G64: =E64*F64 -> 0 | H64: 0 | I64: =E64*H64 -> 0 | J64: 0 | K64: =E64*J64 -> 0 | O64: 2 | AA64: 1 | AB64: 1 | AC64: 1 | AZ64: 1 | BA64: =IF(AZ64=1,G64,0) -> 0 | BB64: =IF(AZ64=2,G64,0) -> 0 | BC64: =IF(AZ64=3,G64,0) -> 0 | BD64: =IF(AZ64=4,G64,0) -> 0 | BE64: =IF(AZ64=5,G64,0) -> 0 | CA64: 1 | CB64: 1
C65: Položka obsahuje hloubení jámy traktorbagrem, naložení výkopku na dopravní prostředek pro svislé, nebo vodorovné přemístění, popř. přemístění výkopku do 3 m (po povrchu území), případné zajištění rypadel polštáři, udržování pracoviště a ochranu výkopiště proti stékání srážkové vody z okolního terénu i s jejím odvodněním, nebo odvedením, přesekání a odstranění kořenů ve výkopišti, odstranění napadávek, urovnání dna výkopu. | L65: Položka obsahuje hloubení jámy traktorbagrem, naložení výkopku na dopravní prostředek pro svislé, nebo vodorovné přemístění, popř. přemístění výkopku do 3 m (po povrchu území), případné zajištění rypadel polštáři, udržování pracoviště a ochranu výkopiště proti stékání srážkové vody z okolního terénu i s jejím odvodněním, nebo odvedením, přesekání a odstranění kořenů ve výkopišti, odstranění napadávek, urovnání dna výkopu. | O65: 3
C66: Začátek provozního součtu | E66: 0 | M66: Začátek provozního součtu
C67: AŠ:2,44/3*(4,00*3,10+sqrt(4,00*3,10*5,70*4,80)+5,70*4,80) | E67: 47.319 | M67: AŠ:2,44/3*(4,00*3,10+sqrt(4,00*3,10*5,70*4,80)+5,70*4,80)
C68: Odpočet objemu konstrukce komunikací:-5,70*4,80*0,40 | E68: -10.944 | M68: Odpočet objemu konstrukce komunikací:-5,70*4,80*0,40
C69: Konec provozního součtu | E69: 36.375 | M69: Konec provozního součtu
C70: V hornině tř. 4 - 45%:36,3750*0,45 | E70: 16.3688 | M70: V hornině tř. 4 - 45%:36,3750*0,45
A71: 9 | B71: 131301119R00 | C71: Příplatek za lepivost - hloubení nezap.jam v hor.4 | D71: m3 | E71: 8.1844 | G71: =E71*F71 -> 0 | H71: 0 | I71: =E71*H71 -> 0 | J71: 0 | K71: =E71*J71 -> 0 | O71: 2 | AA71: 1 | AB71: 1 | AC71: 1 | AZ71: 1 | BA71: =IF(AZ71=1,G71,0) -> 0 | BB71: =IF(AZ71=2,G71,0) -> 0 | BC71: =IF(AZ71=3,G71,0) -> 0 | BD71: =IF(AZ71=4,G71,0) -> 0 | BE71: =IF(AZ71=5,G71,0) -> 0 | CA71: 1 | CB71: 1
C72: Začátek provozního součtu | E72: 0 | M72: Začátek provozního součtu
C73: AŠ:2,44/3*(4,00*3,10+sqrt(4,00*3,10*5,70*4,80)+5,70*4,80) | E73: 47.319 | M73: AŠ:2,44/3*(4,00*3,10+sqrt(4,00*3,10*5,70*4,80)+5,70*4,80)
C74: Odpočet objemu konstrukce komunikací:-5,70*4,80*0,40 | E74: -10.944 | M74: Odpočet objemu konstrukce komunikací:-5,70*4,80*0,40
C75: Konec provozního součtu | E75: 36.375 | M75: Konec provozního součtu
C76: V hornině tř. 4 - 45%:36,3750*0,45*0,5 | E76: 8.1844 | M76: V hornině tř. 4 - 45%:36,3750*0,45*0,5
A77: 10 | B77: 131401111R00 | C77: Hloubení nezapaž. jam v hor.5 do 100 m3, STROJNĚ | D77: m3 | E77: 3.6375 | G77: =E77*F77 -> 0 | H77: 0 | I77: =E77*H77 -> 0 | J77: 0 | K77: =E77*J77 -> 0 | O77: 2 | AA77: 1 | AB77: 1 | AC77: 1 | AZ77: 1 | BA77: =IF(AZ77=1,G77,0) -> 0 | BB77: =IF(AZ77=2,G77,0) -> 0 | BC77: =IF(AZ77=3,G77,0) -> 0 | BD77: =IF(AZ77=4,G77,0) -> 0 | BE77: =IF(AZ77=5,G77,0) -> 0 | CA77: 1 | CB77: 1
C78: Položka obsahuje hloubení jámy traktorbagrem, naložení výkopku na dopravní prostředek pro svislé, nebo vodorovné přemístění, popř. přemístění výkopku do 3 m (po povrchu území), případné zajištění rypadel polštáři, udržování pracoviště a ochranu výkopiště proti stékání srážkové vody z okolního terénu i s jejím odvodněním, nebo odvedením, přesekání a odstranění kořenů ve výkopišti, odstranění napadávek, urovnání dna výkopu. | L78: Položka obsahuje hloubení jámy traktorbagrem, naložení výkopku na dopravní prostředek pro svislé, nebo vodorovné přemístění, popř. přemístění výkopku do 3 m (po povrchu území), případné zajištění rypadel polštáři, udržování pracoviště a ochranu výkopiště proti stékání srážkové vody z okolního terénu i s jejím odvodněním, nebo odvedením, přesekání a odstranění kořenů ve výkopišti, odstranění napadávek, urovnání dna výkopu. | O78: 3
C79: Začátek provozního součtu | E79: 0 | M79: Začátek provozního součtu
C80: AŠ:2,44/3*(4,00*3,10+sqrt(4,00*3,10*5,70*4,80)+5,70*4,80) | E80: 47.319 | M80: AŠ:2,44/3*(4,00*3,10+sqrt(4,00*3,10*5,70*4,80)+5,70*4,80)
C81: Odpočet objemu konstrukce komunikací:-5,70*4,80*0,40 | E81: -10.944 | M81: Odpočet objemu konstrukce komunikací:-5,70*4,80*0,40
C82: Konec provozního součtu | E82: 36.375 | M82: Konec provozního součtu
C83: V hornině tř. 5 - 10%:36,3750*0,1 | E83: 3.6375 | M83: V hornině tř. 5 - 10%:36,3750*0,1
A84: 11 | B84: 132201211R00 | C84: Hloubení rýh š.do 200 cm hor.3 do 100 m3,STROJNĚ | D84: m3 | E84: 25.155 | G84: =E84*F84 -> 0 | H84: 0 | I84: =E84*H84 -> 0 | J84: 0 | K84: =E84*J84 -> 0 | O84: 2 | AA84: 1 | AB84: 1 | AC84: 1 | AZ84: 1 | BA84: =IF(AZ84=1,G84,0) -> 0 | BB84: =IF(AZ84=2,G84,0) -> 0 | BC84: =IF(AZ84=3,G84,0) -> 0 | BD84: =IF(AZ84=4,G84,0) -> 0 | BE84: =IF(AZ84=5,G84,0) -> 0 | CA84: 1 | CB84: 1
C85: Položka obsahuje hloubení rýh traktorbagrem, naložení výkopku na dopravní prostředek pro svislé, nebo vodorovné přemístění, popř. přemístění výkopku do 3 m (po povrchu území), případné zajištění rypadel polštáři, udržování pracoviště a ochranu výkopiště proti stékání srážkové vody z okolního terénu i s jejím odvodněním, nebo odvedením, přesekání a odstranění kořenů ve výkopišti, odstranění napadávek, urovnání dna výkopu. | L85: Položka obsahuje hloubení rýh traktorbagrem, naložení výkopku na dopravní prostředek pro svislé, nebo vodorovné přemístění, popř. přemístění výkopku do 3 m (po povrchu území), případné zajištění rypadel polštáři, udržování pracoviště a ochranu výkopiště proti stékání srážkové vody z okolního terénu i s jejím odvodněním, nebo odvedením, přesekání a odstranění kořenů ve výkopišti, odstranění napadávek, urovnání dna výkopu. | O85: 3
C86: Začátek provozního součtu | E86: 0 | M86: Začátek provozního součtu
C87: NTL: | E87: 0 | M87: NTL:
C88: Řad "K" DN80:(6,20-1,00)*1,00*1,70 | E88: 8.84 | M88: Řad "K" DN80:(6,20-1,00)*1,00*1,70
C89: Propoj na Řad "A" TLT DN80:0 | E89: 0 | M89: Propoj na Řad "A" TLT DN80:0
C90: Řad "J" PE D90x8,2 mm:(16,70-1,00)*1,00*1,70 | E90: 26.69 | M90: Řad "J" PE D90x8,2 mm:(16,70-1,00)*1,00*1,70
C91: Odpočet objemu konstrukcí komunikací:-(6,20-1,00+16,70-1,00)*1,00*0,40 | E91: -8.36 | M91: Odpočet objemu konstrukcí komunikací:-(6,20-1,00+16,70-1,00)*1,00*0,40
C92: VTP: | E92: 0 | M92: VTP:
C93: Řad "L" TLT DN100:(9,60-1,00)*1,00*1,70 | E93: 14.62 | M93: Řad "L" TLT DN100:(9,60-1,00)*1,00*1,70
C94: Řad "L" PE D110x10,0 mm:(14,50-1,00)*1,00*1,70 | E94: 22.95 | M94: Řad "L" PE D110x10,0 mm:(14,50-1,00)*1,00*1,70
C95: Odpočet objemu konstrukcí komunikací:-(9,60-1,00+14,50-1,00)*1,00*0,40 | E95: -8.84 | M95: Odpočet objemu konstrukcí komunikací:-(9,60-1,00+14,50-1,00)*1,00*0,40
C96: Konec provozního součtu | E96: 55.9 | M96: Konec provozního součtu
C97: V hornině tř. 3 - 45%:55,9000*0,45 | E97: 25.155 | M97: V hornině tř. 3 - 45%:55,9000*0,45
A98: 12 | B98: 132201219R00 | C98: Přípl.za lepivost,hloubení rýh 200cm,hor.3,STROJNĚ | D98: m3 | E98: 12.5775 | G98: =E98*F98 -> 0 | H98: 0 | I98: =E98*H98 -> 0 | J98: 0 | K98: =E98*J98 -> 0 | O98: 2 | AA98: 1 | AB98: 1 | AC98: 1 | AZ98: 1 | BA98: =IF(AZ98=1,G98,0) -> 0 | BB98: =IF(AZ98=2,G98,0) -> 0 | BC98: =IF(AZ98=3,G98,0) -> 0 | BD98: =IF(AZ98=4,G98,0) -> 0 | BE98: =IF(AZ98=5,G98,0) -> 0 | CA98: 1 | CB98: 1
C99: Začátek provozního součtu | E99: 0 | M99: Začátek provozního součtu
C100: NTL: | E100: 0 | M100: NTL:
C101: Řad "K" DN80:(6,20-1,00)*1,00*1,70 | E101: 8.84 | M101: Řad "K" DN80:(6,20-1,00)*1,00*1,70
C102: Propoj na Řad "A" TLT DN80:0 | E102: 0 | M102: Propoj na Řad "A" TLT DN80:0
C103: Řad "J" PE D90x8,2 mm:(16,70-1,00)*1,00*1,70 | E103: 26.69 | M103: Řad "J" PE D90x8,2 mm:(16,70-1,00)*1,00*1,70
C104: Odpočet objemu konstrukcí komunikací:-(6,20-1,00+16,70-1,00)*1,00*0,40 | E104: -8.36 | M104: Odpočet objemu konstrukcí komunikací:-(6,20-1,00+16,70-1,00)*1,00*0,40
C105: VTP: | E105: 0 | M105: VTP:
C106: Řad "L" TLT DN100:(9,60-1,00)*1,00*1,70 | E106: 14.62 | M106: Řad "L" TLT DN100:(9,60-1,00)*1,00*1,70
C107: Řad "L" PE D110x10,0 mm:(14,50-1,00)*1,00*1,70 | E107: 22.95 | M107: Řad "L" PE D110x10,0 mm:(14,50-1,00)*1,00*1,70
C108: Odpočet objemu konstrukcí komunikací:-(9,60-1,00+14,50-1,00)*1,00*0,40 | E108: -8.84 | M108: Odpočet objemu konstrukcí komunikací:-(9,60-1,00+14,50-1,00)*1,00*0,40
C109: Konec provozního součtu | E109: 55.9 | M109: Konec provozního součtu
C110: V hornině tř. 3 - 45%:55,9000*0,45*0,5 | E110: 12.5775 | M110: V hornině tř. 3 - 45%:55,9000*0,45*0,5
A111: 13 | B111: 132301211R00 | C111: Hloubení rýh š.do 200 cm hor.4 do 100 m3, STROJNĚ | D111: m3 | E111: 25.155 | G111: =E111*F111 -> 0 | H111: 0 | I111: =E111*H111 -> 0 | J111: 0 | K111: =E111*J111 -> 0 | O111: 2 | AA111: 1 | AB111: 1 | AC111: 1 | AZ111: 1 | BA111: =IF(AZ111=1,G111,0) -> 0 | BB111: =IF(AZ111=2,G111,0) -> 0 | BC111: =IF(AZ111=3,G111,0) -> 0 | BD111: =IF(AZ111=4,G111,0) -> 0 | BE111: =IF(AZ111=5,G111,0) -> 0 | CA111: 1 | CB111: 1
C112: Položka obsahuje hloubení rýh traktorbagrem, naložení výkopku na dopravní prostředek pro svislé, nebo vodorovné přemístění, popř. přemístění výkopku do 3 m (po povrchu území), případné zajištění rypadel polštáři, udržování pracoviště a ochranu výkopiště proti stékání srážkové vody z okolního terénu i s jejím odvodněním, nebo odvedením, přesekání a odstranění kořenů ve výkopišti, odstranění napadávek, urovnání dna výkopu. | L112: Položka obsahuje hloubení rýh traktorbagrem, naložení výkopku na dopravní prostředek pro svislé, nebo vodorovné přemístění, popř. přemístění výkopku do 3 m (po povrchu území), případné zajištění rypadel polštáři, udržování pracoviště a ochranu výkopiště proti stékání srážkové vody z okolního terénu i s jejím odvodněním, nebo odvedením, přesekání a odstranění kořenů ve výkopišti, odstranění napadávek, urovnání dna výkopu. | O112: 3
C113: Začátek provozního součtu | E113: 0 | M113: Začátek provozního součtu
C114: NTL: | E114: 0 | M114: NTL:
C115: Řad "K" DN80:(6,20-1,00)*1,00*1,70 | E115: 8.84 | M115: Řad "K" DN80:(6,20-1,00)*1,00*1,70
C116: Propoj na Řad "A" TLT DN80:0 | E116: 0 | M116: Propoj na Řad "A" TLT DN80:0
C117: Řad "J" PE D90x8,2 mm:(16,70-1,00)*1,00*1,70 | E117: 26.69 | M117: Řad "J" PE D90x8,2 mm:(16,70-1,00)*1,00*1,70
C118: Odpočet objemu konstrukcí komunikací:-(6,20-1,00+16,70-1,00)*1,00*0,40 | E118: -8.36 | M118: Odpočet objemu konstrukcí komunikací:-(6,20-1,00+16,70-1,00)*1,00*0,40
C119: VTP: | E119: 0 | M119: VTP:
C120: Řad "L" TLT DN100:(9,60-1,00)*1,00*1,70 | E120: 14.62 | M120: Řad "L" TLT DN100:(9,60-1,00)*1,00*1,70
C121: Řad "L" PE D110x10,0 mm:(14,50-1,00)*1,00*1,70 | E121: 22.95 | M121: Řad "L" PE D110x10,0 mm:(14,50-1,00)*1,00*1,70
C122: Odpočet objemu konstrukcí komunikací:-(9,60-1,00+14,50-1,00)*1,00*0,40 | E122: -8.84 | M122: Odpočet objemu konstrukcí komunikací:-(9,60-1,00+14,50-1,00)*1,00*0,40
C123: Konec provozního součtu | E123: 55.9 | M123: Konec provozního součtu
C124: V hornině tř. 4 - 45%:55,9000*0,45 | E124: 25.155 | M124: V hornině tř. 4 - 45%:55,9000*0,45
A125: 14 | B125: 132301219R00 | C125: Přípl.za lepivost,hloubení rýh 200cm,hor.4,STROJNĚ | D125: m3 | E125: 12.5775 | G125: =E125*F125 -> 0 | H125: 0 | I125: =E125*H125 -> 0 | J125: 0 | K125: =E125*J125 -> 0 | O125: 2 | AA125: 1 | AB125: 1 | AC125: 1 | AZ125: 1 | BA125: =IF(AZ125=1,G125,0) -> 0 | BB125: =IF(AZ125=2,G125,0) -> 0 | BC125: =IF(AZ125=3,G125,0) -> 0 | BD125: =IF(AZ125=4,G125,0) -> 0 | BE125: =IF(AZ125=5,G125,0) -> 0 | CA125: 1 | CB125: 1
C126: Začátek provozního součtu | E126: 0 | M126: Začátek provozního součtu
C127: NTL: | E127: 0 | M127: NTL:
C128: Řad "K" DN80:(6,20-1,00)*1,00*1,70 | E128: 8.84 | M128: Řad "K" DN80:(6,20-1,00)*1,00*1,70
C129: Propoj na Řad "A" TLT DN80:0 | E129: 0 | M129: Propoj na Řad "A" TLT DN80:0
C130: Řad "J" PE D90x8,2 mm:(16,70-1,00)*1,00*1,70 | E130: 26.69 | M130: Řad "J" PE D90x8,2 mm:(16,70-1,00)*1,00*1,70
C131: Odpočet objemu konstrukcí komunikací:-(6,20-1,00+16,70-1,00)*1,00*0,40 | E131: -8.36 | M131: Odpočet objemu konstrukcí komunikací:-(6,20-1,00+16,70-1,00)*1,00*0,40
C132: VTP: | E132: 0 | M132: VTP:
C133: Řad "L" TLT DN100:(9,60-1,00)*1,00*1,70 | E133: 14.62 | M133: Řad "L" TLT DN100:(9,60-1,00)*1,00*1,70
C134: Řad "L" PE D110x10,0 mm:(14,50-1,00)*1,00*1,70 | E134: 22.95 | M134: Řad "L" PE D110x10,0 mm:(14,50-1,00)*1,00*1,70
C135: Odpočet objemu konstrukcí komunikací:-(9,60-1,00+14,50-1,00)*1,00*0,40 | E135: -8.84 | M135: Odpočet objemu konstrukcí komunikací:-(9,60-1,00+14,50-1,00)*1,00*0,40
C136: Konec provozního součtu | E136: 55.9 | M136: Konec provozního součtu
C137: V hornině tř. 4 - 45%:55,9000*0,45*0,5 | E137: 12.5775 | M137: V hornině tř. 4 - 45%:55,9000*0,45*0,5
A138: 15 | B138: 132401211R00 | C138: Hloubení rýh šířky do 200 cm v hor.5, STROJNĚ | D138: m3 | E138: 5.59 | G138: =E138*F138 -> 0 | H138: 0 | I138: =E138*H138 -> 0 | J138: 0 | K138: =E138*J138 -> 0 | O138: 2 | AA138: 1 | AB138: 1 | AC138: 1 | AZ138: 1 | BA138: =IF(AZ138=1,G138,0) -> 0 | BB138: =IF(AZ138=2,G138,0) -> 0 | BC138: =IF(AZ138=3,G138,0) -> 0 | BD138: =IF(AZ138=4,G138,0) -> 0 | BE138: =IF(AZ138=5,G138,0) -> 0 | CA138: 1 | CB138: 1
C139: Položka obsahuje hloubení jámy kolovým rypadlem s rozrývacím zubem, naložení výkopku na dopravní prostředek pro svislé, nebo vodorovné přemístění, popř. přemístění výkopku do 3 m (po povrchu území), případné zajištění rypadel polštáři, udržování pracoviště a ochranu výkopiště proti stékání srážkové vody z okolního terénu i s jejím odvodněním, nebo odvedením, přesekání a odstranění kořenů ve výkopišti, odstranění napadávek, urovnání dna výkopu. Položka se používá bez ohledu na těžené množství. | L139: Položka obsahuje hloubení jámy kolovým rypadlem s rozrývacím zubem, naložení výkopku na dopravní prostředek pro svislé, nebo vodorovné přemístění, popř. přemístění výkopku do 3 m (po povrchu území), případné zajištění rypadel polštáři, udržování pracoviště a ochranu výkopiště proti stékání srážkové vody z okolního terénu i s jejím odvodněním, nebo odvedením, přesekání a odstranění kořenů ve výkopišti, odstranění napadávek, urovnání dna výkopu. Položka se používá bez ohledu na těžené množství. | O139: 3
C140: Začátek provozního součtu | E140: 0 | M140: Začátek provozního součtu
C141: NTL: | E141: 0 | M141: NTL:
C142: Řad "K" DN80:(6,20-1,00)*1,00*1,70 | E142: 8.84 | M142: Řad "K" DN80:(6,20-1,00)*1,00*1,70
C143: Propoj na Řad "A" TLT DN80:0 | E143: 0 | M143: Propoj na Řad "A" TLT DN80:0
C144: Řad "J" PE D90x8,2 mm:(16,70-1,00)*1,00*1,70 | E144: 26.69 | M144: Řad "J" PE D90x8,2 mm:(16,70-1,00)*1,00*1,70
C145: Odpočet objemu konstrukcí komunikací:-(6,20-1,00+16,70-1,00)*1,00*0,40 | E145: -8.36 | M145: Odpočet objemu konstrukcí komunikací:-(6,20-1,00+16,70-1,00)*1,00*0,40
C146: VTP: | E146: 0 | M146: VTP:
C147: Řad "L" TLT DN100:(9,60-1,00)*1,00*1,70 | E147: 14.62 | M147: Řad "L" TLT DN100:(9,60-1,00)*1,00*1,70
C148: Řad "L" PE D110x10,0 mm:(14,50-1,00)*1,00*1,70 | E148: 22.95 | M148: Řad "L" PE D110x10,0 mm:(14,50-1,00)*1,00*1,70
C149: Odpočet objemu konstrukcí komunikací:-(9,60-1,00+14,50-1,00)*1,00*0,40 | E149: -8.84 | M149: Odpočet objemu konstrukcí komunikací:-(9,60-1,00+14,50-1,00)*1,00*0,40
C150: Konec provozního součtu | E150: 55.9 | M150: Konec provozního součtu
C151: V hornině tř. 5 - 10%:55,9000*0,1 | E151: 5.59 | M151: V hornině tř. 5 - 10%:55,9000*0,1
A152: 16 | B152: 151101101R00 | C152: Pažení a rozepření stěn rýh - příložné - hl.do 2 m | D152: m2 | E152: 146.2 | G152: =E152*F152 -> 0 | H152: 0.00099 | I152: =E152*H152 -> 0.144738 | J152: 0 | K152: =E152*J152 -> 0 | O152: 2 | AA152: 1 | AB152: 1 | AC152: 1 | AZ152: 1 | BA152: =IF(AZ152=1,G152,0) -> 0 | BB152: =IF(AZ152=2,G152,0) -> 0 | BC152: =IF(AZ152=3,G152,0) -> 0 | BD152: =IF(AZ152=4,G152,0) -> 0 | BE152: =IF(AZ152=5,G152,0) -> 0 | CA152: 1 | CB152: 1
C153: NTL: | E153: 0 | M153: NTL:
C154: Řad "K" DN80:(6,20-1,00)*1,70*2 | E154: 17.68 | M154: Řad "K" DN80:(6,20-1,00)*1,70*2
C155: Propoj na Řad "A" TLT DN80:0 | E155: 0 | M155: Propoj na Řad "A" TLT DN80:0
C156: Řad "J" PE D90x8,2 mm:(16,70-1,00)*1,70*2 | E156: 53.38 | M156: Řad "J" PE D90x8,2 mm:(16,70-1,00)*1,70*2
C157: VTP: | E157: 0 | M157: VTP:
C158: Řad "L" TLT DN100:(9,60-1,00)*1,70*2 | E158: 29.24 | M158: Řad "L" TLT DN100:(9,60-1,00)*1,70*2
C159: Řad "L" PE D110x10,0 mm:(14,50-1,00)*1,70*2 | E159: 45.9 | M159: Řad "L" PE D110x10,0 mm:(14,50-1,00)*1,70*2
A160: 17 | B160: 151101111R00 | C160: Odstranění pažení stěn rýh - příložné - hl. do 2 m | D160: m2 | E160: 146.2 | G160: =E160*F160 -> 0 | H160: 0 | I160: =E160*H160 -> 0 | J160: 0 | K160: =E160*J160 -> 0 | O160: 2 | AA160: 1 | AB160: 1 | AC160: 1 | AZ160: 1 | BA160: =IF(AZ160=1,G160,0) -> 0 | BB160: =IF(AZ160=2,G160,0) -> 0 | BC160: =IF(AZ160=3,G160,0) -> 0 | BD160: =IF(AZ160=4,G160,0) -> 0 | BE160: =IF(AZ160=5,G160,0) -> 0 | CA160: 1 | CB160: 1
C161: NTL: | E161: 0 | M161: NTL:
C162: Řad "K" DN80:(6,20-1,00)*1,70*2 | E162: 17.68 | M162: Řad "K" DN80:(6,20-1,00)*1,70*2
C163: Propoj na Řad "A" TLT DN80:0 | E163: 0 | M163: Propoj na Řad "A" TLT DN80:0
C164: Řad "J" PE D90x8,2 mm:(16,70-1,00)*1,70*2 | E164: 53.38 | M164: Řad "J" PE D90x8,2 mm:(16,70-1,00)*1,70*2
C165: VTP: | E165: 0 | M165: VTP:
C166: Řad "L" TLT DN100:(9,60-1,00)*1,70*2 | E166: 29.24 | M166: Řad "L" TLT DN100:(9,60-1,00)*1,70*2
C167: Řad "L" PE D110x10,0 mm:(14,50-1,00)*1,70*2 | E167: 45.9 | M167: Řad "L" PE D110x10,0 mm:(14,50-1,00)*1,70*2
A168: 18 | B168: 162701105RSZ | C168: Vodorovné přemístění výkopku z hor.1-4 na skládku zhotovitele | D168: m3 | E168: 92.275 | G168: =E168*F168 -> 0 | H168: 0 | I168: =E168*H168 -> 0 | J168: 0 | K168: =E168*J168 -> 0 | O168: 2 | AA168: 1 | AB168: 1 | AC168: 1 | AZ168: 1 | BA168: =IF(AZ168=1,G168,0) -> 0 | BB168: =IF(AZ168=2,G168,0) -> 0 | BC168: =IF(AZ168=3,G168,0) -> 0 | BD168: =IF(AZ168=4,G168,0) -> 0 | BE168: =IF(AZ168=5,G168,0) -> 0 | CA168: 1 | CB168: 1
C169: Výkopy: | E169: 0 | M169: Výkopy:
C170: AŠ:2,44/3*(4,00*3,10+sqrt(4,00*3,10*5,70*4,80)+5,70*4,80) | E170: 47.319 | M170: AŠ:2,44/3*(4,00*3,10+sqrt(4,00*3,10*5,70*4,80)+5,70*4,80)
C171: Odpočet objemu konstrukce komunikací:-5,70*4,80*0,40 | E171: -10.944 | M171: Odpočet objemu konstrukce komunikací:-5,70*4,80*0,40
C172: NTL: | E172: 0 | M172: NTL:
C173: Řad "K" DN80:(6,20-1,00)*1,00*1,70 | E173: 8.84 | M173: Řad "K" DN80:(6,20-1,00)*1,00*1,70
C174: Propoj na Řad "A" TLT DN80:0 | E174: 0 | M174: Propoj na Řad "A" TLT DN80:0
C175: Řad "J" PE D90x8,2 mm:(16,70-1,00)*1,00*1,70 | E175: 26.69 | M175: Řad "J" PE D90x8,2 mm:(16,70-1,00)*1,00*1,70
C176: Odpočet objemu konstrukcí komunikací:-(6,20-1,00+16,70-1,00)*1,00*0,40 | E176: -8.36 | M176: Odpočet objemu konstrukcí komunikací:-(6,20-1,00+16,70-1,00)*1,00*0,40
C177: VTP: | E177: 0 | M177: VTP:
C178: Řad "L" TLT DN100:(9,60-1,00)*1,00*1,70 | E178: 14.62 | M178: Řad "L" TLT DN100:(9,60-1,00)*1,00*1,70
C179: Řad "L" PE D110x10,0 mm:(14,50-1,00)*1,00*1,70 | E179: 22.95 | M179: Řad "L" PE D110x10,0 mm:(14,50-1,00)*1,00*1,70
C180: Odpočet objemu konstrukcí komunikací:-(9,60-1,00+14,50-1,00)*1,00*0,40 | E180: -8.84 | M180: Odpočet objemu konstrukcí komunikací:-(9,60-1,00+14,50-1,00)*1,00*0,40
A181: 19 | B181: 174101101R00 | C181: Zásyp jam, rýh, šachet se zhutněním | D181: m3 | E181: 57.2702 | G181: =E181*F181 -> 0 | H181: 0 | I181: =E181*H181 -> 0 | J181: 0 | K181: =E181*J181 -> 0 | O181: 2 | AA181: 1 | AB181: 1 | AC181: 1 | AZ181: 1 | BA181: =IF(AZ181=1,G181,0) -> 0 | BB181: =IF(AZ181=2,G181,0) -> 0 | BC181: =IF(AZ181=3,G181,0) -> 0 | BD181: =IF(AZ181=4,G181,0) -> 0 | BE181: =IF(AZ181=5,G181,0) -> 0 | CA181: 1 | CB181: 1
C182: Položka obsahuje strojní přemístění materiálu pro zásyp ze vzdálenosti do 10 m od okraje zásypu. | L182: Položka obsahuje strojní přemístění materiálu pro zásyp ze vzdálenosti do 10 m od okraje zásypu. | O182: 3
C183: Zásyp štěrkodrtí fr. 0-63 mm:57,2702 | E183: 57.2702 | M183: Zásyp štěrkodrtí fr. 0-63 mm:57,2702
C184: Začátek provozního součtu | E184: 0 | M184: Začátek provozního součtu
C185: Výkopy: | E185: 0 | M185: Výkopy:
C186: AŠ:2,44/3*(4,00*3,10+sqrt(4,00*3,10*5,70*4,80)+5,70*4,80) | E186: 47.319 | M186: AŠ:2,44/3*(4,00*3,10+sqrt(4,00*3,10*5,70*4,80)+5,70*4,80)
C187: Odpočet objemu konstrukce komunikací:-5,70*4,80*0,40 | E187: -10.944 | M187: Odpočet objemu konstrukce komunikací:-5,70*4,80*0,40
C188: NTL: | E188: 0 | M188: NTL:
C189: Řad "K" DN80:(6,20-1,00)*1,00*1,70 | E189: 8.84 | M189: Řad "K" DN80:(6,20-1,00)*1,00*1,70
C190: Propoj na Řad "A" TLT DN80:0 | E190: 0 | M190: Propoj na Řad "A" TLT DN80:0
C191: Řad "J" PE D90x8,2 mm:(16,70-1,00)*1,00*1,70 | E191: 26.69 | M191: Řad "J" PE D90x8,2 mm:(16,70-1,00)*1,00*1,70
C192: Odpočet objemu konstrukcí komunikací:-(6,20-1,00+16,70-1,00)*1,00*0,40 | E192: -8.36 | M192: Odpočet objemu konstrukcí komunikací:-(6,20-1,00+16,70-1,00)*1,00*0,40
C193: VTP: | E193: 0 | M193: VTP:
C194: Řad "L" TLT DN100:(9,60-1,00)*1,00*1,70 | E194: 14.62 | M194: Řad "L" TLT DN100:(9,60-1,00)*1,00*1,70
C195: Řad "L" PE D110x10,0 mm:(14,50-1,00)*1,00*1,70 | E195: 22.95 | M195: Řad "L" PE D110x10,0 mm:(14,50-1,00)*1,00*1,70
C196: Odpočet objemu konstrukcí komunikací:-(9,60-1,00+14,50-1,00)*1,00*0,40 | E196: -8.84 | M196: Odpočet objemu konstrukcí komunikací:-(9,60-1,00+14,50-1,00)*1,00*0,40
C197: Odpočet objemu AŠ:-11,1708 | E197: -11.1708 | M197: Odpočet objemu AŠ:-11,1708
C198: Odpočet lože, potrubí a obsypů potrubí: | E198: 0 | M198: Odpočet lože, potrubí a obsypů potrubí:
C199: NTL: | E199: 0 | M199: NTL:
C200: Řad "K" DN80:-6,20*1,00*(0,10+0,08+0,30) | E200: -2.976 | M200: Řad "K" DN80:-6,20*1,00*(0,10+0,08+0,30)
C201: Propoj na Řad "A" TLT DN80:-1,00*1,00*(0,10+0,08+0,30) | E201: -0.48 | M201: Propoj na Řad "A" TLT DN80:-1,00*1,00*(0,10+0,08+0,30)
C202: Řad "J" PE D90x8,2 mm:-16,70*1,00*(0,10+0,09+0,30) | E202: -8.183 | M202: Řad "J" PE D90x8,2 mm:-16,70*1,00*(0,10+0,09+0,30)
... 379 more rows

Sheet I. 02.02 I. 02.02 KL
A1: POLOŽKOVÝ ROZPOČET
A2: Rozpočet | C2: I. 02.02 | D2: Kanalizace "Kavánova" | F2: JKSO | G2: 827.21.A3
A4: Objekt | F4: SKP
A5: I. 02.02 | C5: Kanalizace "Kavánova" | F5: Měrná jednotka | G5: m
A6: Stavba | F6: Počet jednotek | G6: 0
A7: 3334 | C7: Lomnice nad Popelkou - Vodovod a kanalizace | F7: Náklady na m.j. | G7: =IF(G6=0,,ROUND((F30+F32)/G6,1)) -> 0
A8: Projektant | C8: VEDU VODU s.r.o. Dobrovice | F8: Typ rozpočtu
A9: Zpracovatel projektu
A10: Objednatel | C10: Vodohospodářské sdružení Turnov
A11: Dodavatel | C11: . | F11: Zakázkové číslo
A12: Rozpočtoval | F12: Počet listů
A13: ROZPOČTOVÉ NÁKLADY
A14: Základní rozpočtové náklady
B15: HSV celkem | C15: ='I. 02.02 I. 02.02 Rek'!E13 -> 0
A16: Z | B16: PSV celkem | C16: ='I. 02.02 I. 02.02 Rek'!F13 -> 0
A17: R | B17: M práce celkem | C17: ='I. 02.02 I. 02.02 Rek'!H13 -> 0
A18: N | B18: M dodávky celkem | C18: ='I. 02.02 I. 02.02 Rek'!G13 -> 0
A19: ZRN celkem | C19: =SUM(C15:C18) -> 0
A21: HZS | C21: ='I. 02.02 I. 02.02 Rek'!I13 -> 0
A22: ZRN+HZS | C22: =C19+C21 -> 0
A23: ZRN+ost.náklady+HZS | C23: =C22+G23 -> 0
A24: Vypracoval | D24: Za zhotovitele | F24: Za objednatele
A25: Jméno : | D25: Jméno : | F25: Jméno :
A26: Datum : | D26: Datum : | F26: Datum :
A28: Podpis : | D28: Podpis: | F28: Podpis:
A30: Základ pro DPH | C30: 21 | D30: % | F30: =C23-F32 -> 0
A31: DPH | C31: =C30 -> 21 | D31: % | F31: =ROUND(PRODUCT(F30,C31/100),0) -> 0
A32: Základ pro DPH | C32: 0 | D32: % | F32: 0
A33: DPH | C33: =C32 -> 0 | D33: % | F33: =ROUND(PRODUCT(F32,C33/100),0) -> 0
A34: CENA ZA OBJEKT CELKEM | F34: =ROUND(SUM(F30:F33),0) -> 0
A36: Poznámka :

Sheet I. 02.02 I. 02.02 Rek
A1: Stavba : | C1: 3334 Lomnice nad Popelkou - Vodovod a kanalizace | G1: Rozpočet : | H1: I. 02.02
A2: Objekt : | C2: I. 02.02 Kanalizace "Kavánova" | G2: Kanalizace "Kavánova"
A4: REKAPITULACE STAVEBNÍCH DÍLŮ
B6: Stavební díl | E6: HSV | F6: PSV | G6: Dodávka | H6: Montáž | I6: HZS
A7: ='I. 02.02 I. 02.02 Pol'!B7 -> 1 | B7: ='I. 02.02 I. 02.02 Pol'!C7 -> Zemní práce | E7: ='I. 02.02 I. 02.02 Pol'!BA128 -> 0 | F7: ='I. 02.02 I. 02.02 Pol'!BB128 -> 0 | G7: ='I. 02.02 I. 02.02 Pol'!BC128 -> 0 | H7: ='I. 02.02 I. 02.02 Pol'!BD128 -> 0 | I7: ='I. 02.02 I. 02.02 Pol'!BE128 -> 0
A8: ='I. 02.02 I. 02.02 Pol'!B129 -> 45 | B8: ='I. 02.02 I. 02.02 Pol'!C129 -> Podkladní a vedlejší konstrukce | E8: ='I. 02.02 I. 02.02 Pol'!BA146 -> 0 | F8: ='I. 02.02 I. 02.02 Pol'!BB146 -> 0 | G8: ='I. 02.02 I. 02.02 Pol'!BC146 -> 0 | H8: ='I. 02.02 I. 02.02 Pol'!BD146 -> 0 | I8: ='I. 02.02 I. 02.02 Pol'!BE146 -> 0
A9: ='I. 02.02 I. 02.02 Pol'!B147 -> 5 | B9: ='I. 02.02 I. 02.02 Pol'!C147 -> Komunikace | E9: ='I. 02.02 I. 02.02 Pol'!BA152 -> 0 | F9: ='I. 02.02 I. 02.02 Pol'!BB152 -> 0 | G9: ='I. 02.02 I. 02.02 Pol'!BC152 -> 0 | H9: ='I. 02.02 I. 02.02 Pol'!BD152 -> 0 | I9: ='I. 02.02 I. 02.02 Pol'!BE152 -> 0
A10: ='I. 02.02 I. 02.02 Pol'!B153 -> 8 | B10: ='I. 02.02 I. 02.02 Pol'!C153 -> Trubní vedení | E10: ='I. 02.02 I. 02.02 Pol'!BA244 -> 0 | F10: ='I. 02.02 I. 02.02 Pol'!BB244 -> 0 | G10: ='I. 02.02 I. 02.02 Pol'!BC244 -> 0 | H10: ='I. 02.02 I. 02.02 Pol'!BD244 -> 0 | I10: ='I. 02.02 I. 02.02 Pol'!BE244 -> 0
A11: ='I. 02.02 I. 02.02 Pol'!B245 -> 93 | B11: ='I. 02.02 I. 02.02 Pol'!C245 -> Dokončovací práce inženýrských staveb | E11: ='I. 02.02 I. 02.02 Pol'!BA270 -> 0 | F11: ='I. 02.02 I. 02.02 Pol'!BB270 -> 0 | G11: ='I. 02.02 I. 02.02 Pol'!BC270 -> 0 | H11: ='I. 02.02 I. 02.02 Pol'!BD270 -> 0 | I11: ='I. 02.02 I. 02.02 Pol'!BE270 -> 0
A12: ='I. 02.02 I. 02.02 Pol'!B271 -> 99 | B12: ='I. 02.02 I. 02.02 Pol'!C271 -> Staveništní přesun hmot | E12: ='I. 02.02 I. 02.02 Pol'!BA273 -> 0 | F12: ='I. 02.02 I. 02.02 Pol'!BB273 -> 0 | G12: ='I. 02.02 I. 02.02 Pol'!BC273 -> 0 | H12: ='I. 02.02 I. 02.02 Pol'!BD273 -> 0 | I12: ='I. 02.02 I. 02.02 Pol'!BE273 -> 0
B13: CELKEM OBJEKT | E13: =SUM(E7:E12) -> 0 | F13: =SUM(F7:F12) -> 0 | G13: =SUM(G7:G12) -> 0 | H13: =SUM(H7:H12) -> 0 | I13: =SUM(I7:I12) -> 0

Sheet I. 02.02 I. 02.02 Pol
A1: Položkový rozpočet
A3: Stavba : | C3: 3334 Lomnice nad Popelkou - Vodovod a kanalizace | E3: Rozpočet: | F3: ='I. 02.02 I. 02.02 Rek'!H1 -> I. 02.02
A4: Objekt : | C4: I. 02.02 Kanalizace "Kavánova" | E4: ='I. 02.02 I. 02.02 Rek'!G2 -> Kanalizace "Kavánova"
A6: P.č. | B6: Číslo položky | C6: Název položky | D6: MJ | E6: množství | F6: cena / MJ | G6: celkem (Kč) | H6: Jednotková hmotnost | I6: Celková hmotnost | J6: Jednotková dem.hmot. | K6: Celková dem.hmot.
A7: Díl: | B7: 1 | C7: Zemní práce | O7: 1
A8: 1 | B8: 113107625R00 | C8: Odstranění podkladu nad 50 m2,kam.drcené tl.25 cm | D8: m2 | E8: 40 | G8: =E8*F8 -> 0 | H8: 0 | I8: =E8*H8 -> 0 | J8: -0.55 | K8: =E8*J8 -> -22 | O8: 2 | AA8: 1 | AB8: 1 | AC8: 1 | AZ8: 1 | BA8: =IF(AZ8=1,G8,0) -> 0 | BB8: =IF(AZ8=2,G8,0) -> 0 | BC8: =IF(AZ8=3,G8,0) -> 0 | BD8: =IF(AZ8=4,G8,0) -> 0 | BE8: =IF(AZ8=5,G8,0) -> 0 | CA8: 1 | CB8: 1
C9: Stoka "I" DN300:25,00*1,60 | E9: 40 | M9: Stoka "I" DN300:25,00*1,60
A10: 2 | B10: 113108415R00 | C10: Odstranění asfaltové vrstvy pl.nad 50 m2, tl.15 cm | D10: m2 | E10: 40 | G10: =E10*F10 -> 0 | H10: 0 | I10: =E10*H10 -> 0 | J10: -0.33 | K10: =E10*J10 -> -13.2 | O10: 2 | AA10: 1 | AB10: 1 | AC10: 1 | AZ10: 1 | BA10: =IF(AZ10=1,G10,0) -> 0 | BB10: =IF(AZ10=2,G10,0) -> 0 | BC10: =IF(AZ10=3,G10,0) -> 0 | BD10: =IF(AZ10=4,G10,0) -> 0 | BE10: =IF(AZ10=5,G10,0) -> 0 | CA10: 1 | CB10: 1
C11: Stoka "I" DN300:25,00*1,60 | E11: 40 | M11: Stoka "I" DN300:25,00*1,60
A12: 3 | B12: 114211103R00 | C12: Odstranění betonových trub do DN 300 mm, ve výkopu | D12: m | E12: 22 | G12: =E12*F12 -> 0 | H12: 0 | I12: =E12*H12 -> 0 | J12: -0.1015 | K12: =E12*J12 -> -2.233 | O12: 2 | AA12: 1 | AB12: 1 | AC12: 1 | AZ12: 1 | BA12: =IF(AZ12=1,G12,0) -> 0 | BB12: =IF(AZ12=2,G12,0) -> 0 | BC12: =IF(AZ12=3,G12,0) -> 0 | BD12: =IF(AZ12=4,G12,0) -> 0 | BE12: =IF(AZ12=5,G12,0) -> 0 | CA12: 1 | CB12: 1
C13: Položka obsahuje odstranění materiálu obklopujícího potrubí v míře nutné pro vyzvednutí, rozpojení trub, uchopení a vyzvednutí trub z výkopu a uložení na dopravní prostředek včetně odvozu na skládku zhotovitele a poplatek za skládku. | L13: Položka obsahuje odstranění materiálu obklopujícího potrubí v míře nutné pro vyzvednutí, rozpojení trub, uchopení a vyzvednutí trub z výkopu a uložení na dopravní prostředek včetně odvozu na skládku zhotovitele a poplatek za skládku. | O13: 3
C14: Stávající potrubí BT DN300:22,00 | E14: 22 | M14: Stávající potrubí BT DN300:22,00
A15: 4 | B15: 115101201RRX | C15: Přečerpávání nebo převedení splašků a dešť. vod | D15: h | E15: 70 | G15: =E15*F15 -> 0 | H15: 0 | I15: =E15*H15 -> 0 | J15: 0 | K15: =E15*J15 -> 0 | O15: 2 | AA15: 1 | AB15: 1 | AC15: 1 | AZ15: 1 | BA15: =IF(AZ15=1,G15,0) -> 0 | BB15: =IF(AZ15=2,G15,0) -> 0 | BC15: =IF(AZ15=3,G15,0) -> 0 | BD15: =IF(AZ15=4,G15,0) -> 0 | BE15: =IF(AZ15=5,G15,0) -> 0 | CA15: 1 | CB15: 1
C16: Převedení a čerpání splašků nebo dešťových vod dle zvolené technologie zhotovitele stavby. | L16: Převedení a čerpání splašků nebo dešťových vod dle zvolené technologie zhotovitele stavby. | O16: 3
C17: (Množství bude určeno na stavbě dle skutečnosti) | L17: (Množství bude určeno na stavbě dle skutečnosti) | O17: 3
A18: 5 | B18: 119001401R00 | C18: Dočasné zajištění ocelového potrubí do DN 200 mm | D18: m | E18: 6.4 | G18: =E18*F18 -> 0 | H18: 0.00869 | I18: =E18*H18 -> 0.055616 | J18: 0 | K18: =E18*J18 -> 0 | O18: 2 | AA18: 1 | AB18: 1 | AC18: 1 | AZ18: 1 | BA18: =IF(AZ18=1,G18,0) -> 0 | BB18: =IF(AZ18=2,G18,0) -> 0 | BC18: =IF(AZ18=3,G18,0) -> 0 | BD18: =IF(AZ18=4,G18,0) -> 0 | BE18: =IF(AZ18=5,G18,0) -> 0 | CA18: 1 | CB18: 1
A19: 6 | B19: 119001422R00 | C19: Dočasné zajištění kabelů - v počtu 3 - 6 kabelů | D19: m | E19: 8 | G19: =E19*F19 -> 0 | H19: 0.03974 | I19: =E19*H19 -> 0.31792 | J19: 0 | K19: =E19*J19 -> 0 | O19: 2 | AA19: 1 | AB19: 1 | AC19: 1 | AZ19: 1 | BA19: =IF(AZ19=1,G19,0) -> 0 | BB19: =IF(AZ19=2,G19,0) -> 0 | BC19: =IF(AZ19=3,G19,0) -> 0 | BD19: =IF(AZ19=4,G19,0) -> 0 | BE19: =IF(AZ19=5,G19,0) -> 0 | CA19: 1 | CB19: 1
A20: 7 | B20: 130001101RRX | C20: Příplatek za ztížené hloubení v blízkosti vedení | D20: m3 | E20: 61.225 | G20: =E20*F20 -> 0 | H20: 0 | I20: =E20*H20 -> 0 | J20: 0 | K20: =E20*J20 -> 0 | O20: 2 | AA20: 1 | AB20: 1 | AC20: 1 | AZ20: 1 | BA20: =IF(AZ20=1,G20,0) -> 0 | BB20: =IF(AZ20=2,G20,0) -> 0 | BC20: =IF(AZ20=3,G20,0) -> 0 | BD20: =IF(AZ20=4,G20,0) -> 0 | BE20: =IF(AZ20=5,G20,0) -> 0 | CA20: 1 | CB20: 1
C21: Včetně případných nutných dokopávem a ručního výkopu podél sousedících inženýrských sítí | L21: Včetně případných nutných dokopávem a ručního výkopu podél sousedících inženýrských sítí | O21: 3
C22: Začátek provozního součtu | E22: 0 | M22: Začátek provozního součtu
C23: Stoka "I" DN300 (částečně součást výkopů pro AŠ vodovodu):22,40*1,60*3,19 | E23: 114.3296 | M23: Stoka "I" DN300 (částečně součást výkopů pro AŠ vodovodu):22,40*1,60*3,19
C24: Prohloubení pro RŠ:1,60*1,60*0,20*4 | E24: 2.048 | M24: Prohloubení pro RŠ:1,60*1,60*0,20*4
C25: Odpočet konstrukce komunikace:-22,40*1,60*0,40 | E25: -14.336 | M25: Odpočet konstrukce komunikace:-22,40*1,60*0,40
C26: Konec provozního součtu | E26: 102.0416 | M26: Konec provozního součtu
C27: V hornině tř. 3 - 5 - 60%:102,0416*0,6 | E27: 61.225 | M27: V hornině tř. 3 - 5 - 60%:102,0416*0,6
A28: 8 | B28: 130901123RT3 | C28: Bourání konstrukcí ze železobetonu ve vykopávkách bagrem s kladivem | D28: m3 | E28: 1.828 | G28: =E28*F28 -> 0 | H28: 0 | I28: =E28*H28 -> 0 | J28: 0 | K28: =E28*J28 -> 0 | O28: 2 | AA28: 1 | AB28: 1 | AC28: 1 | AZ28: 1 | BA28: =IF(AZ28=1,G28,0) -> 0 | BB28: =IF(AZ28=2,G28,0) -> 0 | BC28: =IF(AZ28=3,G28,0) -> 0 | BD28: =IF(AZ28=4,G28,0) -> 0 | BE28: =IF(AZ28=5,G28,0) -> 0 | CA28: 1 | CB28: 1
C29: Položka obsahuje odstranění materiálu obklopujícího betonové a železobetonové konstrukce v míře nutné pro vyzvednutí, rozpojení konstrukcí, uchopení a vyzvednutí konstrukce z výkopu a uložení na dopravní prostředek včetně odvozu na skládku zhotovitele a poplatek za skládku. | L29: Položka obsahuje odstranění materiálu obklopujícího betonové a železobetonové konstrukce v míře nutné pro vyzvednutí, rozpojení konstrukcí, uchopení a vyzvednutí konstrukce z výkopu a uložení na dopravní prostředek včetně odvozu na skládku zhotovitele a poplatek za skládku. | O29: 3
C30: Stávající RŠ (1 kus):1,8280 | E30: 1.828 | M30: Stávající RŠ (1 kus):1,8280
A31: 9 | B31: 132201212R00 | C31: Hloubení rýh š.do 200 cm hor.3 do 1000m3,STROJNĚ | D31: m3 | E31: 45.9187 | G31: =E31*F31 -> 0 | H31: 0 | I31: =E31*H31 -> 0 | J31: 0 | K31: =E31*J31 -> 0 | O31: 2 | AA31: 1 | AB31: 1 | AC31: 1 | AZ31: 1 | BA31: =IF(AZ31=1,G31,0) -> 0 | BB31: =IF(AZ31=2,G31,0) -> 0 | BC31: =IF(AZ31=3,G31,0) -> 0 | BD31: =IF(AZ31=4,G31,0) -> 0 | BE31: =IF(AZ31=5,G31,0) -> 0 | CA31: 1 | CB31: 1
C32: Položka obsahuje hloubení rýh traktorbagrem, naložení výkopku na dopravní prostředek pro svislé, nebo vodorovné přemístění, popř. přemístění výkopku do 3 m (po povrchu území), případné zajištění rypadel polštáři, udržování pracoviště a ochranu výkopiště proti stékání srážkové vody z okolního terénu i s jejím odvodněním, nebo odvedením, přesekání a odstranění kořenů ve výkopišti, odstranění napadávek, urovnání dna výkopu. | L32: Položka obsahuje hloubení rýh traktorbagrem, naložení výkopku na dopravní prostředek pro svislé, nebo vodorovné přemístění, popř. přemístění výkopku do 3 m (po povrchu území), případné zajištění rypadel polštáři, udržování pracoviště a ochranu výkopiště proti stékání srážkové vody z okolního terénu i s jejím odvodněním, nebo odvedením, přesekání a odstranění kořenů ve výkopišti, odstranění napadávek, urovnání dna výkopu. | O32: 3
C33: Začátek provozního součtu | E33: 0 | M33: Začátek provozního součtu
C34: Stoka "I" DN300 (částečně součást výkopů pro AŠ vodovodu):22,40*1,60*3,19 | E34: 114.3296 | M34: Stoka "I" DN300 (částečně součást výkopů pro AŠ vodovodu):22,40*1,60*3,19
C35: Prohloubení pro RŠ:1,60*1,60*0,20*4 | E35: 2.048 | M35: Prohloubení pro RŠ:1,60*1,60*0,20*4
C36: Odpočet konstrukce komunikace:-22,40*1,60*0,40 | E36: -14.336 | M36: Odpočet konstrukce komunikace:-22,40*1,60*0,40
C37: Konec provozního součtu | E37: 102.0416 | M37: Konec provozního součtu
C38: V hornině tř. 3 - 45%:102,0416*0,45 | E38: 45.9187 | M38: V hornině tř. 3 - 45%:102,0416*0,45
A39: 10 | B39: 132201219R00 | C39: Přípl.za lepivost,hloubení rýh 200cm,hor.3,STROJNĚ | D39: m3 | E39: 22.9594 | G39: =E39*F39 -> 0 | H39: 0 | I39: =E39*H39 -> 0 | J39: 0 | K39: =E39*J39 -> 0 | O39: 2 | AA39: 1 | AB39: 1 | AC39: 1 | AZ39: 1 | BA39: =IF(AZ39=1,G39,0) -> 0 | BB39: =IF(AZ39=2,G39,0) -> 0 | BC39: =IF(AZ39=3,G39,0) -> 0 | BD39: =IF(AZ39=4,G39,0) -> 0 | BE39: =IF(AZ39=5,G39,0) -> 0 | CA39: 1 | CB39: 1
C40: Začátek provozního součtu | E40: 0 | M40: Začátek provozního součtu
C41: Stoka "I" DN300 (částečně součást výkopů pro AŠ vodovodu):22,40*1,60*3,19 | E41: 114.3296 | M41: Stoka "I" DN300 (částečně součást výkopů pro AŠ vodovodu):22,40*1,60*3,19
C42: Prohloubení pro RŠ:1,60*1,60*0,20*4 | E42: 2.048 | M42: Prohloubení pro RŠ:1,60*1,60*0,20*4
C43: Odpočet konstrukce komunikace:-22,40*1,60*0,40 | E43: -14.336 | M43: Odpočet konstrukce komunikace:-22,40*1,60*0,40
C44: Konec provozního součtu | E44: 102.0416 | M44: Konec provozního součtu
C45: V hornině tř. 3 - 45%:102,0416*0,45*0,5 | E45: 22.9594 | M45: V hornině tř. 3 - 45%:102,0416*0,45*0,5
A46: 11 | B46: 132301212R00 | C46: Hloubení rýh š.do 200 cm hor.4 do 1000 m3, STROJNĚ | D46: m3 | E46: 45.9187 | G46: =E46*F46 -> 0 | H46: 0 | I46: =E46*H46 -> 0 | J46: 0 | K46: =E46*J46 -> 0 | O46: 2 | AA46: 1 | AB46: 1 | AC46: 1 | AZ46: 1 | BA46: =IF(AZ46=1,G46,0) -> 0 | BB46: =IF(AZ46=2,G46,0) -> 0 | BC46: =IF(AZ46=3,G46,0) -> 0 | BD46: =IF(AZ46=4,G46,0) -> 0 | BE46: =IF(AZ46=5,G46,0) -> 0 | CA46: 1 | CB46: 1
C47: Položka obsahuje hloubení rýh traktorbagrem, naložení výkopku na dopravní prostředek pro svislé, nebo vodorovné přemístění, popř. přemístění výkopku do 3 m (po povrchu území), případné zajištění rypadel polštáři, udržování pracoviště a ochranu výkopiště proti stékání srážkové vody z okolního terénu i s jejím odvodněním, nebo odvedením, přesekání a odstranění kořenů ve výkopišti, odstranění napadávek, urovnání dna výkopu. | L47: Položka obsahuje hloubení rýh traktorbagrem, naložení výkopku na dopravní prostředek pro svislé, nebo vodorovné přemístění, popř. přemístění výkopku do 3 m (po povrchu území), případné zajištění rypadel polštáři, udržování pracoviště a ochranu výkopiště proti stékání srážkové vody z okolního terénu i s jejím odvodněním, nebo odvedením, přesekání a odstranění kořenů ve výkopišti, odstranění napadávek, urovnání dna výkopu. | O47: 3
C48: Začátek provozního součtu | E48: 0 | M48: Začátek provozního součtu
C49: Stoka "I" DN300 (částečně součást výkopů pro AŠ vodovodu):22,40*1,60*3,19 | E49: 114.3296 | M49: Stoka "I" DN300 (částečně součást výkopů pro AŠ vodovodu):22,40*1,60*3,19
C50: Prohloubení pro RŠ:1,60*1,60*0,20*4 | E50: 2.048 | M50: Prohloubení pro RŠ:1,60*1,60*0,20*4
C51: Odpočet konstrukce komunikace:-22,40*1,60*0,40 | E51: -14.336 | M51: Odpočet konstrukce komunikace:-22,40*1,60*0,40
C52: Konec provozního součtu | E52: 102.0416 | M52: Konec provozního součtu
C53: V hornině tř. 4 - 45%:102,0416*0,45 | E53: 45.9187 | M53: V hornině tř. 4 - 45%:102,0416*0,45
A54: 12 | B54: 132301219R00 | C54: Přípl.za lepivost,hloubení rýh 200cm,hor.4,STROJNĚ | D54: m3 | E54: 22.9594 | G54: =E54*F54 -> 0 | H54: 0 | I54: =E54*H54 -> 0 | J54: 0 | K54: =E54*J54 -> 0 | O54: 2 | AA54: 1 | AB54: 1 | AC54: 1 | AZ54: 1 | BA54: =IF(AZ54=1,G54,0) -> 0 | BB54: =IF(AZ54=2,G54,0) -> 0 | BC54: =IF(AZ54=3,G54,0) -> 0 | BD54: =IF(AZ54=4,G54,0) -> 0 | BE54: =IF(AZ54=5,G54,0) -> 0 | CA54: 1 | CB54: 1
C55: Začátek provozního součtu | E55: 0 | M55: Začátek provozního součtu
C56: Stoka "I" DN300 (částečně součást výkopů pro AŠ vodovodu):22,40*1,60*3,19 | E56: 114.3296 | M56: Stoka "I" DN300 (částečně součást výkopů pro AŠ vodovodu):22,40*1,60*3,19
C57: Prohloubení pro RŠ:1,60*1,60*0,20*4 | E57: 2.048 | M57: Prohloubení pro RŠ:1,60*1,60*0,20*4
C58: Odpočet konstrukce komunikace:-22,40*1,60*0,40 | E58: -14.336 | M58: Odpočet konstrukce komunikace:-22,40*1,60*0,40
C59: Konec provozního součtu | E59: 102.0416 | M59: Konec provozního součtu
C60: V hornině tř. 4 - 45%:102,0416*0,45*0,5 | E60: 22.9594 | M60: V hornině tř. 4 - 45%:102,0416*0,45*0,5
A61: 13 | B61: 132401211R00 | C61: Hloubení rýh šířky do 200 cm v hor.5, STROJNĚ | D61: m3 | E61: 10.2042 | G61: =E61*F61 -> 0 | H61: 0 | I61: =E61*H61 -> 0 | J61: 0 | K61: =E61*J61 -> 0 | O61: 2 | AA61: 1 | AB61: 1 | AC61: 1 | AZ61: 1 | BA61: =IF(AZ61=1,G61,0) -> 0 | BB61: =IF(AZ61=2,G61,0) -> 0 | BC61: =IF(AZ61=3,G61,0) -> 0 | BD61: =IF(AZ61=4,G61,0) -> 0 | BE61: =IF(AZ61=5,G61,0) -> 0 | CA61: 1 | CB61: 1
C62: Položka obsahuje hloubení jámy kolovým rypadlem s rozrývacím zubem, naložení výkopku na dopravní prostředek pro svislé, nebo vodorovné přemístění, popř. přemístění výkopku do 3 m (po povrchu území), případné zajištění rypadel polštáři, udržování pracoviště a ochranu výkopiště proti stékání srážkové vody z okolního terénu i s jejím odvodněním, nebo odvedením, přesekání a odstranění kořenů ve výkopišti, odstranění napadávek, urovnání dna výkopu. Položka se používá bez ohledu na těžené množství. | L62: Položka obsahuje hloubení jámy kolovým rypadlem s rozrývacím zubem, naložení výkopku na dopravní prostředek pro svislé, nebo vodorovné přemístění, popř. přemístění výkopku do 3 m (po povrchu území), případné zajištění rypadel polštáři, udržování pracoviště a ochranu výkopiště proti stékání srážkové vody z okolního terénu i s jejím odvodněním, nebo odvedením, přesekání a odstranění kořenů ve výkopišti, odstranění napadávek, urovnání dna výkopu. Položka se používá bez ohledu na těžené množství. | O62: 3
C63: Začátek provozního součtu | E63: 0 | M63: Začátek provozního součtu
C64: Stoka "I" DN300 (částečně součást výkopů pro AŠ vodovodu):22,40*1,60*3,19 | E64: 114.3296 | M64: Stoka "I" DN300 (částečně součást výkopů pro AŠ vodovodu):22,40*1,60*3,19
C65: Prohloubení pro RŠ:1,60*1,60*0,20*4 | E65: 2.048 | M65: Prohloubení pro RŠ:1,60*1,60*0,20*4
C66: Odpočet konstrukce komunikace:-22,40*1,60*0,40 | E66: -14.336 | M66: Odpočet konstrukce komunikace:-22,40*1,60*0,40
C67: Konec provozního součtu | E67: 102.0416 | M67: Konec provozního součtu
C68: V hornině tř. 5 - 10%:102,0416*0,1 | E68: 10.2042 | M68: V hornině tř. 5 - 10%:102,0416*0,1
A69: 14 | B69: 151101102R00 | C69: Pažení a rozepření stěn rýh - příložné - hl.do 4 m | D69: m2 | E69: 142.912 | G69: =E69*F69 -> 0 | H69: 0.00086 | I69: =E69*H69 -> 0.12290432 | J69: 0 | K69: =E69*J69 -> 0 | O69: 2 | AA69: 1 | AB69: 1 | AC69: 1 | AZ69: 1 | BA69: =IF(AZ69=1,G69,0) -> 0 | BB69: =IF(AZ69=2,G69,0) -> 0 | BC69: =IF(AZ69=3,G69,0) -> 0 | BD69: =IF(AZ69=4,G69,0) -> 0 | BE69: =IF(AZ69=5,G69,0) -> 0 | CA69: 1 | CB69: 1
C70: Stoka "I" DN300 (částečně součást výkopů pro AŠ vodovodu):22,40*3,19*2 | E70: 142.912 | M70: Stoka "I" DN300 (částečně součást výkopů pro AŠ vodovodu):22,40*3,19*2
A71: 15 | B71: 151101112R00 | C71: Odstranění pažení stěn rýh - příložné - hl. do 4 m | D71: m2 | E71: 142.912 | G71: =E71*F71 -> 0 | H71: 0 | I71: =E71*H71 -> 0 | J71: 0 | K71: =E71*J71 -> 0 | O71: 2 | AA71: 1 | AB71: 1 | AC71: 1 | AZ71: 1 | BA71: =IF(AZ71=1,G71,0) -> 0 | BB71: =IF(AZ71=2,G71,0) -> 0 | BC71: =IF(AZ71=3,G71,0) -> 0 | BD71: =IF(AZ71=4,G71,0) -> 0 | BE71: =IF(AZ71=5,G71,0) -> 0 | CA71: 1 | CB71: 1
C72: Stoka "I" DN300 (částečně součást výkopů pro AŠ vodovodu):22,40*3,19*2 | E72: 142.912 | M72: Stoka "I" DN300 (částečně součást výkopů pro AŠ vodovodu):22,40*3,19*2
A73: 16 | B73: 162701105RSZ | C73: Vodorovné přemístění výkopku z hor.1-7 na skládku zhotovitele | D73: m3 | E73: 102.0416 | G73: =E73*F73 -> 0 | H73: 0 | I73: =E73*H73 -> 0 | J73: 0 | K73: =E73*J73 -> 0 | O73: 2 | AA73: 1 | AB73: 1 | AC73: 1 | AZ73: 1 | BA73: =IF(AZ73=1,G73,0) -> 0 | BB73: =IF(AZ73=2,G73,0) -> 0 | BC73: =IF(AZ73=3,G73,0) -> 0 | BD73: =IF(AZ73=4,G73,0) -> 0 | BE73: =IF(AZ73=5,G73,0) -> 0 | CA73: 1 | CB73: 1
C74: Začátek provozního součtu | E74: 0 | M74: Začátek provozního součtu
C75: Stoka "I" DN300 (částečně součást výkopů pro AŠ vodovodu):22,40*1,60*3,19 | E75: 114.3296 | M75: Stoka "I" DN300 (částečně součást výkopů pro AŠ vodovodu):22,40*1,60*3,19
C76: Prohloubení pro RŠ:1,60*1,60*0,20*4 | E76: 2.048 | M76: Prohloubení pro RŠ:1,60*1,60*0,20*4
C77: Odpočet konstrukce komunikace:-22,40*1,60*0,40 | E77: -14.336 | M77: Odpočet konstrukce komunikace:-22,40*1,60*0,40
C78: Konec provozního součtu | E78: 102.0416 | M78: Konec provozního součtu
C79: V hornině tř. 3 - 5:102,0416 | E79: 102.0416 | M79: V hornině tř. 3 - 5:102,0416
A80: 17 | B80: 174101101R00 | C80: Zásyp jam, rýh, šachet se zhutněním | D80: m3 | E80: 65.056 | G80: =E80*F80 -> 0 | H80: 0 | I80: =E80*H80 -> 0 | J80: 0 | K80: =E80*J80 -> 0 | O80: 2 | AA80: 1 | AB80: 1 | AC80: 1 | AZ80: 1 | BA80: =IF(AZ80=1,G80,0) -> 0 | BB80: =IF(AZ80=2,G80,0) -> 0 | BC80: =IF(AZ80=3,G80,0) -> 0 | BD80: =IF(AZ80=4,G80,0) -> 0 | BE80: =IF(AZ80=5,G80,0) -> 0 | CA80: 1 | CB80: 1
C81: Položka obsahuje strojní přemístění materiálu pro zásyp ze vzdálenosti do 10 m od okraje zásypu. | L81: Položka obsahuje strojní přemístění materiálu pro zásyp ze vzdálenosti do 10 m od okraje zásypu. | O81: 3
C82: Zásyp ŠD frakce 0-63 mm:65,0560 | E82: 65.056 | M82: Zásyp ŠD frakce 0-63 mm:65,0560
C83: Výkopy: | E83: 0 | M83: Výkopy:
C84: Začátek provozního součtu | E84: 0 | M84: Začátek provozního součtu
C85: Stoka "I" DN300 (částečně součást výkopů pro AŠ vodovodu):22,40*1,60*3,19 | E85: 114.3296 | M85: Stoka "I" DN300 (částečně součást výkopů pro AŠ vodovodu):22,40*1,60*3,19
C86: Prohloubení pro RŠ:1,60*1,60*0,20*4 | E86: 2.048 | M86: Prohloubení pro RŠ:1,60*1,60*0,20*4
C87: Odpočet konstrukce komunikace:-22,40*1,60*0,40 | E87: -14.336 | M87: Odpočet konstrukce komunikace:-22,40*1,60*0,40
C88: Odpočet lože, potrubí a obsypů - KT DN300:-19,80*0,9840 | E88: -19.4832 | M88: Odpočet lože, potrubí a obsypů - KT DN300:-19,80*0,9840
C89: - PVC DN300:-2,40*1,10*(0,10+0,30+0,30) | E89: -1.848 | M89: - PVC DN300:-2,40*1,10*(0,10+0,30+0,30)
C90: Odpočet objemu RŠ:-15,6544 | E90: -15.6544 | M90: Odpočet objemu RŠ:-15,6544
C91: 0 | E91: 0 | M91: 0
C92: Konec provozního součtu | E92: 65.056 | M92: Konec provozního součtu
A93: 18 | B93: 175101101R00 | C93: Obsyp potrubí bez prohození sypaniny | D93: m3 | E93: 13.4231 | G93: =E93*F93 -> 0 | H93: 0 | I93: =E93*H93 -> 0 | J93: 0 | K93: =E93*J93 -> 0 | O93: 2 | AA93: 1 | AB93: 1 | AC93: 1 | AZ93: 1 | BA93: =IF(AZ93=1,G93,0) -> 0 | BB93: =IF(AZ93=2,G93,0) -> 0 | BC93: =IF(AZ93=3,G93,0) -> 0 | BD93: =IF(AZ93=4,G93,0) -> 0 | BE93: =IF(AZ93=5,G93,0) -> 0 | CA93: 1 | CB93: 1
C94: Stoka "I": | E94: 0 | M94: Stoka "I":
C95: KT DN300:19,80*0,6065 | E95: 12.0087 | M95: KT DN300:19,80*0,6065
C96: PVC DN300:2,40*(1,10*(0,30+0,30)-0,15^2*Pi) | E96: 1.4144 | M96: PVC DN300:2,40*(1,10*(0,30+0,30)-0,15^2*Pi)
A97: 19 | B97: 199000002R00 | C97: Poplatek za skládku horniny 1- 7 č. dle katal. odpadů 17 05 04 | D97: m3 | E97: 102.0416 | G97: =E97*F97 -> 0 | H97: 0 | I97: =E97*H97 -> 0 | J97: 0 | K97: =E97*J97 -> 0 | O97: 2 | AA97: 1 | AB97: 1 | AC97: 1 | AZ97: 1 | BA97: =IF(AZ97=1,G97,0) -> 0 | BB97: =IF(AZ97=2,G97,0) -> 0 | BC97: =IF(AZ97=3,G97,0) -> 0 | BD97: =IF(AZ97=4,G97,0) -> 0 | BE97: =IF(AZ97=5,G97,0) -> 0 | CA97: 1 | CB97: 1
C98: Začátek provozního součtu | E98: 0 | M98: Začátek provozního součtu
C99: Stoka "I" DN300 (částečně součást výkopů pro AŠ vodovodu):22,40*1,60*3,19 | E99: 114.3296 | M99: Stoka "I" DN300 (částečně součást výkopů pro AŠ vodovodu):22,40*1,60*3,19
C100: Prohloubení pro RŠ:1,60*1,60*0,20*4 | E100: 2.048 | M100: Prohloubení pro RŠ:1,60*1,60*0,20*4
C101: Odpočet konstrukce komunikace:-22,40*1,60*0,40 | E101: -14.336 | M101: Odpočet konstrukce komunikace:-22,40*1,60*0,40
C102: Konec provozního součtu | E102: 102.0416 | M102: Konec provozního součtu
C103: V hornině tř. 3 - 5:102,0416 | E103: 102.0416 | M103: V hornině tř. 3 - 5:102,0416
A104: 20 | B104: 919735113R00 | C104: Řezání stávajícího živičného krytu tl. 10 - 15 cm | D104: m | E104: 53.2 | G104: =E104*F104 -> 0 | H104: 0 | I104: =E104*H104 -> 0 | J104: 0 | K104: =E104*J104 -> 0 | O104: 2 | AA104: 1 | AB104: 1 | AC104: 1 | AZ104: 1 | BA104: =IF(AZ104=1,G104,0) -> 0 | BB104: =IF(AZ104=2,G104,0) -> 0 | BC104: =IF(AZ104=3,G104,0) -> 0 | BD104: =IF(AZ104=4,G104,0) -> 0 | BE104: =IF(AZ104=5,G104,0) -> 0 | CA104: 1 | CB104: 1
C105: Stoka "I" DN300:(25,00+1,60)*2 | E105: 53.2 | M105: Stoka "I" DN300:(25,00+1,60)*2
A106: 21 | B106: 976085211R00 | C106: Vybourání kanal.rámů a poklopů plochy do 0,3 m2 | D106: kus | E106: 1 | G106: =E106*F106 -> 0 | H106: 0 | I106: =E106*H106 -> 0 | J106: -0.024 | K106: =E106*J106 -> -0.024 | O106: 2 | AA106: 1 | AB106: 0 | AC106: 0 | AZ106: 1 | BA106: =IF(AZ106=1,G106,0) -> 0 | BB106: =IF(AZ106=2,G106,0) -> 0 | BC106: =IF(AZ106=3,G106,0) -> 0 | BD106: =IF(AZ106=4,G106,0) -> 0 | BE106: =IF(AZ106=5,G106,0) -> 0 | CA106: 1 | CB106: 0
C107: Stávající poklop RŠ:1 | E107: 1 | M107: Stávající poklop RŠ:1
A108: 22 | B108: 979082113RSZ | C108: Vodorovná doprava suti po suchu na skládku zhotovitele | D108: t | E108: 35.2 | G108: =E108*F108 -> 0 | H108: 0 | I108: =E108*H108 -> 0 | J108: 0 | K108: =E108*J108 -> 0 | O108: 2 | AA108: 1 | AB108: 1 | AC108: 1 | AZ108: 1 | BA108: =IF(AZ108=1,G108,0) -> 0 | BB108: =IF(AZ108=2,G108,0) -> 0 | BC108: =IF(AZ108=3,G108,0) -> 0 | BD108: =IF(AZ108=4,G108,0) -> 0 | BE108: =IF(AZ108=5,G108,0) -> 0 | CA108: 1 | CB108: 1
A109: 23 | B109: 979089001R00 | C109: Poplatek za skládku stavební suti štěrky z komunikací, skupina odpadu 010408 | D109: t | E109: 22 | G109: =E109*F109 -> 0 | H109: 0 | I109: =E109*H109 -> 0 | J109: 0 | K109: =E109*J109 -> 0 | O109: 2 | AA109: 1 | AB109: 1 | AC109: 1 | AZ109: 1 | BA109: =IF(AZ109=1,G109,0) -> 0 | BB109: =IF(AZ109=2,G109,0) -> 0 | BC109: =IF(AZ109=3,G109,0) -> 0 | BD109: =IF(AZ109=4,G109,0) -> 0 | BE109: =IF(AZ109=5,G109,0) -> 0 | CA109: 1 | CB109: 1
A110: 24 | B110: 979999995R00 | C110: Poplatek za reciklaci asfaltu, kusovost do 1600cm2 skupina 170302 | D110: t | E110: 13.2 | G110: =E110*F110 -> 0 | H110: 0 | I110: =E110*H110 -> 0 | J110: 0 | K110: =E110*J110 -> 0 | O110: 2 | AA110: 1 | AB110: 1 | AC110: 1 | AZ110: 1 | BA110: =IF(AZ110=1,G110,0) -> 0 | BB110: =IF(AZ110=2,G110,0) -> 0 | BC110: =IF(AZ110=3,G110,0) -> 0 | BD110: =IF(AZ110=4,G110,0) -> 0 | BE110: =IF(AZ110=5,G110,0) -> 0 | CA110: 1 | CB110: 1
C111: Položka je určena pro suť o velikosti kusu do 30x30 cm nebo frézovaný asfalt(technologický materiál určený k recyklaci). | L111: Položka je určena pro suť o velikosti kusu do 30x30 cm nebo frézovaný asfalt(technologický materiál určený k recyklaci). | O111: 3
A112: 25 | B112: 58337308R | C112: Štěrkopísek frakce 0-2 tř.B | D112: t | E112: 26.4837 | G112: =E112*F112 -> 0 | H112: 1 | I112: =E112*H112 -> 26.4837 | K112: =E112*J112 -> 0 | O112: 2 | AA112: 3 | AB112: 1 | AC112: 58337308R | AZ112: 1 | BA112: =IF(AZ112=1,G112,0) -> 0 | BB112: =IF(AZ112=2,G112,0) -> 0 | BC112: =IF(AZ112=3,G112,0) -> 0 | BD112: =IF(AZ112=4,G112,0) -> 0 | BE112: =IF(AZ112=5,G112,0) -> 0 | CA112: 3 | CB112: 1
C113: Stoka "I": | E113: 0 | M113: Stoka "I":
C114: KT DN300:19,80*0,6065*1,973 | E114: 23.6932 | M114: KT DN300:19,80*0,6065*1,973
C115: PVC DN300:2,40*(1,10*(0,30+0,30)-0,15^2*Pi)*1,973 | E115: 2.7905 | M115: PVC DN300:2,40*(1,10*(0,30+0,30)-0,15^2*Pi)*1,973
A116: 26 | B116: 58344197R | C116: Štěrkodrtě frakce 0-63 A | D116: t | E116: 121.8499 | G116: =E116*F116 -> 0 | H116: 1 | I116: =E116*H116 -> 121.8499 | K116: =E116*J116 -> 0 | O116: 2 | AA116: 3 | AB116: 1 | AC116: 58344197R | AZ116: 1 | BA116: =IF(AZ116=1,G116,0) -> 0 | BB116: =IF(AZ116=2,G116,0) -> 0 | BC116: =IF(AZ116=3,G116,0) -> 0 | BD116: =IF(AZ116=4,G116,0) -> 0 | BE116: =IF(AZ116=5,G116,0) -> 0 | CA116: 3 | CB116: 1
C117: Zásyp ŠD frakce 0-63 mm:65,0560*1,873 | E117: 121.8499 | M117: Zásyp ŠD frakce 0-63 mm:65,0560*1,873
C118: Výkopy: | E118: 0 | M118: Výkopy:
C119: Začátek provozního součtu | E119: 0 | M119: Začátek provozního součtu
C120: Stoka "I" DN300 (částečně součást výkopů pro AŠ vodovodu):22,40*1,60*3,19 | E120: 114.3296 | M120: Stoka "I" DN300 (částečně součást výkopů pro AŠ vodovodu):22,40*1,60*3,19
C121: Prohloubení pro RŠ:1,60*1,60*0,20*4 | E121: 2.048 | M121: Prohloubení pro RŠ:1,60*1,60*0,20*4
C122: Odpočet konstrukce komunikace:-22,40*1,60*0,40 | E122: -14.336 | M122: Odpočet konstrukce komunikace:-22,40*1,60*0,40
C123: Odpočet lože, potrubí a obsypů - KT DN300:-19,80*0,9840 | E123: -19.4832 | M123: Odpočet lože, potrubí a obsypů - KT DN300:-19,80*0,9840
C124: - PVC DN300:-2,40*1,10*(0,10+0,30+0,30) | E124: -1.848 | M124: - PVC DN300:-2,40*1,10*(0,10+0,30+0,30)
C125: Odpočet objemu RŠ:-15,6544 | E125: -15.6544 | M125: Odpočet objemu RŠ:-15,6544
C126: 0 | E126: 0 | M126: 0
C127: Konec provozního součtu | E127: 65.056 | M127: Konec provozního součtu
B128: Celkem za | C128: 1 Zemní práce | G128: =SUM(G7:G127) -> 0 | I128: =SUM(I7:I127) -> 148.8300403 | K128: =SUM(K7:K127) -> -37.457 | O128: 4 | BA128: =SUM(BA7:BA127) -> 0 | BB128: =SUM(BB7:BB127) -> 0 | BC128: =SUM(BC7:BC127) -> 0 | BD128: =SUM(BD7:BD127) -> 0 | BE128: =SUM(BE7:BE127) -> 0
A129: Díl: | B129: 45 | C129: Podkladní a vedlejší konstrukce | O129: 1
A130: 27 | B130: 451572111R00 | C130: Lože pod potrubí z kameniva těženého 0 - 4 mm | D130: m3 | E130: 0.264 | G130: =E130*F130 -> 0 | H130: 1.873 | I130: =E130*H130 -> 0.494472 | J130: 0 | K130: =E130*J130 -> 0 | O130: 2 | AA130: 1 | AB130: 1 | AC130: 1 | AZ130: 1 | BA130: =IF(AZ130=1,G130,0) -> 0 | BB130: =IF(AZ130=2,G130,0) -> 0 | BC130: =IF(AZ130=3,G130,0) -> 0 | BD130: =IF(AZ130=4,G130,0) -> 0 | BE130: =IF(AZ130=5,G130,0) -> 0 | CA130: 1 | CB130: 1
C131: Stoka "I" PVC DN300:2,40*1,10*0,10 | E131: 0.264 | M131: Stoka "I" PVC DN300:2,40*1,10*0,10
A132: 28 | B132: 452112111R00 | C132: Osazení beton. prstenců pod poklopy,výšky do100 mm | D132: kus | E132: 6 | G132: =E132*F132 -> 0 | H132: 0.0066 | I132: =E132*H132 -> 0.0396 | J132: 0 | K132: =E132*J132 -> 0 | O132: 2 | AA132: 1 | AB132: 1 | AC132: 1 | AZ132: 1 | BA132: =IF(AZ132=1,G132,0) -> 0 | BB132: =IF(AZ132=2,G132,0) -> 0 | BC132: =IF(AZ132=3,G132,0) -> 0 | BD132: =IF(AZ132=4,G132,0) -> 0 | BE132: =IF(AZ132=5,G132,0) -> 0 | CA132: 1 | CB132: 1
C133: Volba položky se řídí výškou prstence nebo rámu. V položkách nejsou zakalkulovány náklady na dodávku betonových výrobků; | L133: Volba položky se řídí výškou prstence nebo rámu. V položkách nejsou zakalkulovány náklady na dodávku betonových výrobků; | O133: 3
C134: Stoka "I" DN300: | E134: 0 | M134: Stoka "I" DN300:
C135: VP H80:2 | E135: 2 | M135: VP H80:2
C136: VP H100:4 | E136: 4 | M136: VP H100:4
A137: 29 | B137: 452312131R00 | C137: Sedlové lože pod potrubí z betonu C 12/15 | D137: m3 | E137: 5.346 | G137: =E137*F137 -> 0 | H137: 2.5 | I137: =E137*H137 -> 13.365 | J137: 0 | K137: =E137*J137 -> 0 | O137: 2 | AA137: 1 | AB137: 1 | AC137: 1 | AZ137: 1 | BA137: =IF(AZ137=1,G137,0) -> 0 | BB137: =IF(AZ137=2,G137,0) -> 0 | BC137: =IF(AZ137=3,G137,0) -> 0 | BD137: =IF(AZ137=4,G137,0) -> 0 | BE137: =IF(AZ137=5,G137,0) -> 0 | CA137: 1 | CB137: 1
C138: Položka je určena pro práce v otevřeném výkopu | L138: Položka je určena pro práce v otevřeném výkopu | O138: 3
C139: Stoka "I" KT DN300:19,80*0,2700 | E139: 5.346 | M139: Stoka "I" KT DN300:19,80*0,2700
A140: 30 | B140: 59224347.B.R | C140: Prstenec vyrovn šachetní TBW-Q.1 80/600/120 | D140: kus | E140: 2.02 | G140: =E140*F140 -> 0 | H140: 0.053 | I140: =E140*H140 -> 0.10706 | K140: =E140*J140 -> 0 | O140: 2 | AA140: 3 | AB140: 1 | AC140: 59224347.B.R | AZ140: 1 | BA140: =IF(AZ140=1,G140,0) -> 0 | BB140: =IF(AZ140=2,G140,0) -> 0 | BC140: =IF(AZ140=3,G140,0) -> 0 | BD140: =IF(AZ140=4,G140,0) -> 0 | BE140: =IF(AZ140=5,G140,0) -> 0 | CA140: 3 | CB140: 1
C141: Stoka "I" DN300: | E141: 0 | M141: Stoka "I" DN300:
C142: VP H80:2*1,01 | E142: 2.02 | M142: VP H80:2*1,01
A143: 31 | B143: 59224348.B.R | C143: Prstenec vyrovn šachetní TBW-Q.1 100/600/120 | D143: kus | E143: 4.04 | G143: =E143*F143 -> 0 | H143: 0.068 | I143: =E143*H143 -> 0.27472 | K143: =E143*J143 -> 0 | O143: 2 | AA143: 3 | AB143: 1 | AC143: 59224348.B.R | AZ143: 1 | BA143: =IF(AZ143=1,G143,0) -> 0 | BB143: =IF(AZ143=2,G143,0) -> 0 | BC143: =IF(AZ143=3,G143,0) -> 0 | BD143: =IF(AZ143=4,G143,0) -> 0 | BE143: =IF(AZ143=5,G143,0) -> 0 | CA143: 3 | CB143: 1
C144: Stoka "I" DN300: | E144: 0 | M144: Stoka "I" DN300:
C145: VP H100:4*1,01 | E145: 4.04 | M145: VP H100:4*1,01
B146: Celkem za | C146: 45 Podkladní a vedlejší konstrukce | G146: =SUM(G129:G145) -> 0 | I146: =SUM(I129:I145) -> 14.280852 | K146: =SUM(K129:K145) -> 0 | O146: 4 | BA146: =SUM(BA129:BA145) -> 0 | BB146: =SUM(BB129:BB145) -> 0 | BC146: =SUM(BC129:BC145) -> 0 | BD146: =SUM(BD129:BD145) -> 0 | BE146: =SUM(BE129:BE145) -> 0
A147: Díl: | B147: 5 | C147: Komunikace | O147: 1
A148: 32 | B148: 566903111R00 | C148: Vyspravení podkladu po překopech kam.hrubě drceným | D148: t | E148: 18.73 | G148: =E148*F148 -> 0 | H148: 1.1 | I148: =E148*H148 -> 20.603 | J148: 0 | K148: =E148*J148 -> 0 | O148: 2 | AA148: 1 | AB148: 1 | AC148: 1 | AZ148: 1 | BA148: =IF(AZ148=1,G148,0) -> 0 | BB148: =IF(AZ148=2,G148,0) -> 0 | BC148: =IF(AZ148=3,G148,0) -> 0 | BD148: =IF(AZ148=4,G148,0) -> 0 | BE148: =IF(AZ148=5,G148,0) -> 0 | CA148: 1 | CB148: 1
C149: Stoka "I" DN300:25,00*1,60*0,25*1,873 | E149: 18.73 | M149: Stoka "I" DN300:25,00*1,60*0,25*1,873
A150: 33 | B150: 566904111R00 | C150: Vyspravení podkladu po překopech kam.obal.asfaltem | D150: t | E150: 15 | G150: =E150*F150 -> 0 | H150: 1 | I150: =E150*H150 -> 15 | J150: 0 | K150: =E150*J150 -> 0 | O150: 2 | AA150: 1 | AB150: 1 | AC150: 1 | AZ150: 1 | BA150: =IF(AZ150=1,G150,0) -> 0 | BB150: =IF(AZ150=2,G150,0) -> 0 | BC150: =IF(AZ150=3,G150,0) -> 0 | BD150: =IF(AZ150=4,G150,0) -> 0 | BE150: =IF(AZ150=5,G150,0) -> 0 | CA150: 1 | CB150: 1
C151: Stoka "I" DN300:25,00*1,60*0,15*2,5 | E151: 15 | M151: Stoka "I" DN300:25,00*1,60*0,15*2,5
B152: Celkem za | C152: 5 Komunikace | G152: =SUM(G147:G151) -> 0 | I152: =SUM(I147:I151) -> 35.603 | K152: =SUM(K147:K151) -> 0 | O152: 4 | BA152: =SUM(BA147:BA151) -> 0 | BB152: =SUM(BB147:BB151) -> 0 | BC152: =SUM(BC147:BC151) -> 0 | BD152: =SUM(BD147:BD151) -> 0 | BE152: =SUM(BE147:BE151) -> 0
A153: Díl: | B153: 8 | C153: Trubní vedení | O153: 1
A154: 34 | B154: 831372121R00 | C154: Montáž trub kameninových, pryž. kroužek, DN 300 | D154: m | E154: 19.8 | G154: =E154*F154 -> 0 | H154: 4e-05 | I154: =E154*H154 -> 0.000792 | J154: 0 | K154: =E154*J154 -> 0 | O154: 2 | AA154: 1 | AB154: 1 | AC154: 1 | AZ154: 1 | BA154: =IF(AZ154=1,G154,0) -> 0 | BB154: =IF(AZ154=2,G154,0) -> 0 | BC154: =IF(AZ154=3,G154,0) -> 0 | BD154: =IF(AZ154=4,G154,0) -> 0 | BE154: =IF(AZ154=5,G154,0) -> 0 | CA154: 1 | CB154: 1
C155: Položka je určena pro montáž potrubí z trub kameninových s polyuretanovým spojem v otevřeném výkopu ve sklonu do 20 %. | L155: Položka je určena pro montáž potrubí z trub kameninových s polyuretanovým spojem v otevřeném výkopu ve sklonu do 20 %. | O155: 3
C156: Stoka "I" KT DN300:19,80 | E156: 19.8 | M156: Stoka "I" KT DN300:19,80
A157: 35 | B157: 871373121R00 | C157: Montáž trub z plastu, gumový kroužek, DN 300 | D157: m | E157: 2.4 | G157: =E157*F157 -> 0 | H157: 1e-05 | I157: =E157*H157 -> 2.4e-05 | J157: 0 | K157: =E157*J157 -> 0 | O157: 2 | AA157: 1 | AB157: 1 | AC157: 1 | AZ157: 1 | BA157: =IF(AZ157=1,G157,0) -> 0 | BB157: =IF(AZ157=2,G157,0) -> 0 | BC157: =IF(AZ157=3,G157,0) -> 0 | BD157: =IF(AZ157=4,G157,0) -> 0 | BE157: =IF(AZ157=5,G157,0) -> 0 | CA157: 1 | CB157: 1
C158: V položce je uvažováno s jedním spojem na 6 m potrubí. Položka je určena pro montáž potrubí z kanalizačních trub z plastu těsněných gumovým kroužkem v otevřeném výkopu ve sklonu do 20 %. | L158: V položce je uvažováno s jedním spojem na 6 m potrubí. Položka je určena pro montáž potrubí z kanalizačních trub z plastu těsněných gumovým kroužkem v otevřeném výkopu ve sklonu do 20 %. | O158: 3
C159: Stoka "I" PVC DN300:2,40 | E159: 2.4 | M159: Stoka "I" PVC DN300:2,40
A160: 36 | B160: 891183450RX6 | C160: Propojeníí potrubí BT DN300 na novou RŠ včetně dodávky propojovací tvarovky | D160: kus | E160: 2 | G160: =E160*F160 -> 0 | H160: 0.168 | I160: =E160*H160 -> 0.336 | J160: 0 | K160: =E160*J160 -> 0 | O160: 2 | AA160: 1 | AB160: 1 | AC160: 1 | AZ160: 1 | BA160: =IF(AZ160=1,G160,0) -> 0 | BB160: =IF(AZ160=2,G160,0) -> 0 | BC160: =IF(AZ160=3,G160,0) -> 0 | BD160: =IF(AZ160=4,G160,0) -> 0 | BE160: =IF(AZ160=5,G160,0) -> 0 | CA160: 1 | CB160: 1
C161: Položka obsahuje úpravu stávajícího potrubí včetně a napojení na novou RŠ, jeho utěsnění a obetonování dle projektové dokumentace. | L161: Položka obsahuje úpravu stávajícího potrubí včetně a napojení na novou RŠ, jeho utěsnění a obetonování dle projektové dokumentace. | O161: 3
C162: Přítokové potrubí:1 | E162: 1 | M162: Přítokové potrubí:1
C163: Odtokové potrubí:1 | E163: 1 | M163: Odtokové potrubí:1
A164: 37 | B164: 892601152R00 | C164: Čištění kanalizační stoky do DN 500, do 50 m | D164: m | E164: 22.2 | G164: =E164*F164 -> 0 | H164: 0 | I164: =E164*H164 -> 0 | J164: 0 | K164: =E164*J164 -> 0 | O164: 2 | AA164: 1 | AB164: 1 | AC164: 1 | AZ164: 1 | BA164: =IF(AZ164=1,G164,0) -> 0 | BB164: =IF(AZ164=2,G164,0) -> 0 | BC164: =IF(AZ164=3,G164,0) -> 0 | BD164: =IF(AZ164=4,G164,0) -> 0 | BE164: =IF(AZ164=5,G164,0) -> 0 | CA164: 1 | CB164: 1
C165: V položce je zakalkulováno: | L165: V položce je zakalkulováno: | O165: 3
C166: a) otevření a uzavření revizních šachet a čisticích kusů | L166: a) otevření a uzavření revizních šachet a čisticích kusů | O166: 3
C167: b) natažení vysokotlakých hadic k místu odkud se bude kanalizace čistit | L167: b) natažení vysokotlakých hadic k místu odkud se bude kanalizace čistit | O167: 3
C168: c) vyčištění potrubí tlakovou vodou nebo motorovým pérem. | L168: c) vyčištění potrubí tlakovou vodou nebo motorovým pérem. | O168: 3
C169: Stoka "I" DN300:22,20 | E169: 22.2 | M169: Stoka "I" DN300:22,20
A170: 38 | B170: 892855112R00 | C170: Kontrola kanalizace TV kamerou do 50 m | D170: m | E170: 22.2 | G170: =E170*F170 -> 0 | H170: 0 | I170: =E170*H170 -> 0 | J170: 0 | K170: =E170*J170 -> 0 | O170: 2 | AA170: 1 | AB170: 1 | AC170: 1 | AZ170: 1 | BA170: =IF(AZ170=1,G170,0) -> 0 | BB170: =IF(AZ170=2,G170,0) -> 0 | BC170: =IF(AZ170=3,G170,0) -> 0 | BD170: =IF(AZ170=4,G170,0) -> 0 | BE170: =IF(AZ170=5,G170,0) -> 0 | CA170: 1 | CB170: 1
C171: Provedení kaberové prohlídky včetně dodání elektronického záznamu na CD zadavateli a tištěné dokumentace průběhu kamerové prohlídky | L171: Provedení kaberové prohlídky včetně dodání elektronického záznamu na CD zadavateli a tištěné dokumentace průběhu kamerové prohlídky | O171: 3
C172: Stoka "I" DN300:22,20 | E172: 22.2 | M172: Stoka "I" DN300:22,20
A173: 39 | B173: 894421111RT1 | C173: Osazení betonových dílců šachet skruže rovné, na kroužek, do 0,5 t | D173: kus | E173: 1 | G173: =E173*F173 -> 0 | H173: 0 | I173: =E173*H173 -> 0 | J173: 0 | K173: =E173*J173 -> 0 | O173: 2 | AA173: 1 | AB173: 1 | AC173: 1 | AZ173: 1 | BA173: =IF(AZ173=1,G173,0) -> 0 | BB173: =IF(AZ173=2,G173,0) -> 0 | BC173: =IF(AZ173=3,G173,0) -> 0 | BD173: =IF(AZ173=4,G173,0) -> 0 | BE173: =IF(AZ173=5,G173,0) -> 0 | CA173: 1 | CB173: 1
C174: Položka je určena pro osazení betonových dílců šachet dle DIN 4034, skruže rovné na kroužek, hmotnost do 0,5 t. | L174: Položka je určena pro osazení betonových dílců šachet dle DIN 4034, skruže rovné na kroužek, hmotnost do 0,5 t. | O174: 3
C175: V položce nejsou zakalkulovány náklady na dodání betonových dílců; dílce se oceňují ve specifikaci. | L175: V položce nejsou zakalkulovány náklady na dodání betonových dílců; dílce se oceňují ve specifikaci. | O175: 3
C176: Stoka "I" DN300: | E176: 0 | M176: Stoka "I" DN300:
C177: Skruž H250:1 | E177: 1 | M177: Skruž H250:1
A178: 40 | B178: 894421112RT1 | C178: Osazení betonových dílců šachet skruže rovné, na kroužek, do 1,4 t | D178: kus | E178: 7 | G178: =E178*F178 -> 0 | H178: 0 | I178: =E178*H178 -> 0 | J178: 0 | K178: =E178*J178 -> 0 | O178: 2 | AA178: 1 | AB178: 1 | AC178: 1 | AZ178: 1 | BA178: =IF(AZ178=1,G178,0) -> 0 | BB178: =IF(AZ178=2,G178,0) -> 0 | BC178: =IF(AZ178=3,G178,0) -> 0 | BD178: =IF(AZ178=4,G178,0) -> 0 | BE178: =IF(AZ178=5,G178,0) -> 0 | CA178: 1 | CB178: 1
C179: Položka je určena pro osazení betonových dílců šachet dle DIN 4034, skruže rovné na kroužek, hmotnost přes 0,5 do 1,4 t. | L179: Položka je určena pro osazení betonových dílců šachet dle DIN 4034, skruže rovné na kroužek, hmotnost přes 0,5 do 1,4 t. | O179: 3
C180: V položce nejsou zakalkulovány náklady na dodání betonových dílců; dílce se oceňují ve specifikaci. | L180: V položce nejsou zakalkulovány náklady na dodání betonových dílců; dílce se oceňují ve specifikaci. | O180: 3
C181: Stoka "I" DN300: | E181: 0 | M181: Stoka "I" DN300:
C182: Skruž H500:3 | E182: 3 | M182: Skruž H500:3
C183: Skruž H1000:4 | E183: 4 | M183: Skruž H1000:4
A184: 41 | B184: 894422111RT1 | C184: Osazení betonových dílců šachet skruže přechodové, na kroužek | D184: kus | E184: 4 | G184: =E184*F184 -> 0 | H184: 0 | I184: =E184*H184 -> 0 | J184: 0 | K184: =E184*J184 -> 0 | O184: 2 | AA184: 1 | AB184: 1 | AC184: 1 | AZ184: 1 | BA184: =IF(AZ184=1,G184,0) -> 0 | BB184: =IF(AZ184=2,G184,0) -> 0 | BC184: =IF(AZ184=3,G184,0) -> 0 | BD184: =IF(AZ184=4,G184,0) -> 0 | BE184: =IF(AZ184=5,G184,0) -> 0 | CA184: 1 | CB184: 1
C185: Položka je určena pro osazení betonových dílců šachet dle DIN 4034, skruže přechodové na kroužek. | L185: Položka je určena pro osazení betonových dílců šachet dle DIN 4034, skruže přechodové na kroužek. | O185: 3
C186: V položce nejsou zakalkulovány náklady na dodání betonových dílců | L186: V položce nejsou zakalkulovány náklady na dodání betonových dílců | O186: 3
C187: Stoka "I" DN300: | E187: 0 | M187: Stoka "I" DN300:
C188: Kónus H600:4 | E188: 4 | M188: Kónus H600:4
A189: 42 | B189: 894423111RT1 | C189: Osazení betonových dílců šachet do 2,0 t šachtová dna, na kroužek, do 2,0 t | D189: kus | E189: 3 | G189: =E189*F189 -> 0 | H189: 0 | I189: =E189*H189 -> 0 | J189: 0 | K189: =E189*J189 -> 0 | O189: 2 | AA189: 1 | AB189: 1 | AC189: 1 | AZ189: 1 | BA189: =IF(AZ189=1,G189,0) -> 0 | BB189: =IF(AZ189=2,G189,0) -> 0 | BC189: =IF(AZ189=3,G189,0) -> 0 | BD189: =IF(AZ189=4,G189,0) -> 0 | BE189: =IF(AZ189=5,G189,0) -> 0 | CA189: 1 | CB189: 1
C190: Položka je určena pro osazení betonových dílců šachet dle DIN 4034, šachtová dna na kroužek, hmotnost do 2,0 t. včetně dodávky a provedení podkladního betonového lože. | L190: Položka je určena pro osazení betonových dílců šachet dle DIN 4034, šachtová dna na kroužek, hmotnost do 2,0 t. včetně dodávky a provedení podkladního betonového lože. | O190: 3
C191: V položce nejsou zakalkulovány náklady na dodání betonových dílců; | L191: V položce nejsou zakalkulovány náklady na dodání betonových dílců; | O191: 3
C192: Stoka "I" DN300: | E192: 0 | M192: Stoka "I" DN300:
C193: ŠD 300/600:3 | E193: 3 | M193: ŠD 300/600:3
A194: 43 | B194: 894423112RT1 | C194: Osazení betonových dílců šachet do 3,0 t šachtová dna, na kroužek, do 3,0 t | D194: kus | E194: 1 | G194: =E194*F194 -> 0 | H194: 0 | I194: =E194*H194 -> 0 | J194: 0 | K194: =E194*J194 -> 0 | O194: 2 | AA194: 1 | AB194: 1 | AC194: 1 | AZ194: 1 | BA194: =IF(AZ194=1,G194,0) -> 0 | BB194: =IF(AZ194=2,G194,0) -> 0 | BC194: =IF(AZ194=3,G194,0) -> 0 | BD194: =IF(AZ194=4,G194,0) -> 0 | BE194: =IF(AZ194=5,G194,0) -> 0 | CA194: 1 | CB194: 1
C195: Položka je určena pro osazení betonových dílců šachet dle DIN 4034, šachtová dna na kroužek, hmotnost do 3,0 t. včetně dodávky a provedení podkladního betonového lože. | L195: Položka je určena pro osazení betonových dílců šachet dle DIN 4034, šachtová dna na kroužek, hmotnost do 3,0 t. včetně dodávky a provedení podkladního betonového lože. | O195: 3
C196: V položce nejsou zakalkulovány náklady na dodání betonových dílců; | L196: V položce nejsou zakalkulovány náklady na dodání betonových dílců; | O196: 3
C197: Stoka "I" DN300: | E197: 0 | M197: Stoka "I" DN300:
C198: ŠD 600/1000:1 | E198: 1 | M198: ŠD 600/1000:1
A199: 44 | B199: 899102111R00 | C199: Osazení poklopu s rámem do 100 kg | D199: kus | E199: 4 | G199: =E199*F199 -> 0 | H199: 0.00702 | I199: =E199*H199 -> 0.02808 | J199: 0 | K199: =E199*J199 -> 0 | O199: 2 | AA199: 1 | AB199: 1 | AC199: 1 | AZ199: 1 | BA199: =IF(AZ199=1,G199,0) -> 0 | BB199: =IF(AZ199=2,G199,0) -> 0 | BC199: =IF(AZ199=3,G199,0) -> 0 | BD199: =IF(AZ199=4,G199,0) -> 0 | BE199: =IF(AZ199=5,G199,0) -> 0 | CA199: 1 | CB199: 1
C200: Osazení provizorních poklopů během realizace stavby (nefakturovaný materiál zhotovitele) | L200: Osazení provizorních poklopů během realizace stavby (nefakturovaný materiál zhotovitele) | O200: 3
C201: Stoka "I" DN300: | E201: 0 | M201: Stoka "I" DN300:
C202: Provizorní poklop:4 | E202: 4 | M202: Provizorní poklop:4
... 71 more rows

Sheet II. 01 II. 01 KL
A1: POLOŽKOVÝ ROZPOČET
A2: Rozpočet | C2: II. 01 | D2: Kanalizace | F2: JKSO | G2: 827.21.A4
A4: Objekt | F4: SKP
A5: II. 01 | C5: Kanalizace | F5: Měrná jednotka | G5: m
A6: Stavba | F6: Počet jednotek | G6: 0
A7: 3334 | C7: Lomnice nad Popelkou - Vodovod a kanalizace | F7: Náklady na m.j. | G7: =IF(G6=0,,ROUND((F30+F32)/G6,1)) -> 0
A8: Projektant | C8: VEDU VODU s.r.o. Dobrovice | F8: Typ rozpočtu
A9: Zpracovatel projektu
A10: Objednatel | C10: Vodohospodářské sdružení Turnov
A11: Dodavatel | C11: . | F11: Zakázkové číslo
A12: Rozpočtoval | F12: Počet listů
A13: ROZPOČTOVÉ NÁKLADY
A14: Základní rozpočtové náklady
B15: HSV celkem | C15: ='II. 01 II. 01 Rek'!E14 -> 0
A16: Z | B16: PSV celkem | C16: ='II. 01 II. 01 Rek'!F14 -> 0
A17: R | B17: M práce celkem | C17: ='II. 01 II. 01 Rek'!H14 -> 0
A18: N | B18: M dodávky celkem | C18: ='II. 01 II. 01 Rek'!G14 -> 0
A19: ZRN celkem | C19: =SUM(C15:C18) -> 0
A21: HZS | C21: ='II. 01 II. 01 Rek'!I14 -> 0
A22: ZRN+HZS | C22: =C19+C21 -> 0
A23: ZRN+ost.náklady+HZS | C23: =C22+G23 -> 0
A24: Vypracoval | D24: Za zhotovitele | F24: Za objednatele
A25: Jméno : | D25: Jméno : | F25: Jméno :
A26: Datum : | D26: Datum : | F26: Datum :
A28: Podpis : | D28: Podpis: | F28: Podpis:
A30: Základ pro DPH | C30: 21 | D30: % | F30: =C23-F32 -> 0
A31: DPH | C31: =C30 -> 21 | D31: % | F31: =ROUND(PRODUCT(F30,C31/100),0) -> 0
A32: Základ pro DPH | C32: 0 | D32: % | F32: 0
A33: DPH | C33: =C32 -> 0 | D33: % | F33: =ROUND(PRODUCT(F32,C33/100),0) -> 0
A34: CENA ZA OBJEKT CELKEM | F34: =ROUND(SUM(F30:F33),0) -> 0
A36: Poznámka :

Sheet II. 01 II. 01 Rek
A1: Stavba : | C1: 3334 Lomnice nad Popelkou - Vodovod a kanalizace | G1: Rozpočet : | H1: II. 01
A2: Objekt : | C2: II. 01 Kanalizace | G2: Kanalizace
A4: REKAPITULACE STAVEBNÍCH DÍLŮ
B6: Stavební díl | E6: HSV | F6: PSV | G6: Dodávka | H6: Montáž | I6: HZS
A7: ='II. 01 II. 01 Pol'!B7 -> 1 | B7: ='II. 01 II. 01 Pol'!C7 -> Zemní práce | E7: ='II. 01 II. 01 Pol'!BA317 -> 0 | F7: ='II. 01 II. 01 Pol'!BB317 -> 0 | G7: ='II. 01 II. 01 Pol'!BC317 -> 0 | H7: ='II. 01 II. 01 Pol'!BD317 -> 0 | I7: ='II. 01 II. 01 Pol'!BE317 -> 0
A8: ='II. 01 II. 01 Pol'!B318 -> 2 | B8: ='II. 01 II. 01 Pol'!C318 -> Základy a zvláštní zakládání | E8: ='II. 01 II. 01 Pol'!BA331 -> 0 | F8: ='II. 01 II. 01 Pol'!BB331 -> 0 | G8: ='II. 01 II. 01 Pol'!BC331 -> 0 | H8: ='II. 01 II. 01 Pol'!BD331 -> 0 | I8: ='II. 01 II. 01 Pol'!BE331 -> 0
A9: ='II. 01 II. 01 Pol'!B332 -> 45 | B9: ='II. 01 II. 01 Pol'!C332 -> Podkladní a vedlejší konstrukce | E9: ='II. 01 II. 01 Pol'!BA361 -> 0 | F9: ='II. 01 II. 01 Pol'!BB361 -> 0 | G9: ='II. 01 II. 01 Pol'!BC361 -> 0 | H9: ='II. 01 II. 01 Pol'!BD361 -> 0 | I9: ='II. 01 II. 01 Pol'!BE361 -> 0
A10: ='II. 01 II. 01 Pol'!B362 -> 5 | B10: ='II. 01 II. 01 Pol'!C362 -> Komunikace | E10: ='II. 01 II. 01 Pol'!BA381 -> 0 | F10: ='II. 01 II. 01 Pol'!BB381 -> 0 | G10: ='II. 01 II. 01 Pol'!BC381 -> 0 | H10: ='II. 01 II. 01 Pol'!BD381 -> 0 | I10: ='II. 01 II. 01 Pol'!BE381 -> 0
A11: ='II. 01 II. 01 Pol'!B382 -> 8 | B11: ='II. 01 II. 01 Pol'!C382 -> Trubní vedení | E11: ='II. 01 II. 01 Pol'!BA576 -> 0 | F11: ='II. 01 II. 01 Pol'!BB576 -> 0 | G11: ='II. 01 II. 01 Pol'!BC576 -> 0 | H11: ='II. 01 II. 01 Pol'!BD576 -> 0 | I11: ='II. 01 II. 01 Pol'!BE576 -> 0
A12: ='II. 01 II. 01 Pol'!B577 -> 93 | B12: ='II. 01 II. 01 Pol'!C577 -> Dokončovací práce inženýrských staveb | E12: ='II. 01 II. 01 Pol'!BA609 -> 0 | F12: ='II. 01 II. 01 Pol'!BB609 -> 0 | G12: ='II. 01 II. 01 Pol'!BC609 -> 0 | H12: ='II. 01 II. 01 Pol'!BD609 -> 0 | I12: ='II. 01 II. 01 Pol'!BE609 -> 0
A13: ='II. 01 II. 01 Pol'!B610 -> 99 | B13: ='II. 01 II. 01 Pol'!C610 -> Staveništní přesun hmot | E13: ='II. 01 II. 01 Pol'!BA612 -> 0 | F13: ='II. 01 II. 01 Pol'!BB612 -> 0 | G13: ='II. 01 II. 01 Pol'!BC612 -> 0 | H13: ='II. 01 II. 01 Pol'!BD612 -> 0 | I13: ='II. 01 II. 01 Pol'!BE612 -> 0
B14: CELKEM OBJEKT | E14: =SUM(E7:E13) -> 0 | F14: =SUM(F7:F13) -> 0 | G14: =SUM(G7:G13) -> 0 | H14: =SUM(H7:H13) -> 0 | I14: =SUM(I7:I13) -> 0

Sheet II. 01 II. 01 Pol
A1: Položkový rozpočet
A3: Stavba : | C3: 3334 Lomnice nad Popelkou - Vodovod a kanalizace | E3: Rozpočet: | F3: ='II. 01 II. 01 Rek'!H1 -> II. 01
A4: Objekt : | C4: II. 01 Kanalizace | E4: ='II. 01 II. 01 Rek'!G2 -> Kanalizace
A6: P.č. | B6: Číslo položky | C6: Název položky | D6: MJ | E6: množství | F6: cena / MJ | G6: celkem (Kč) | H6: Jednotková hmotnost | I6: Celková hmotnost | J6: Jednotková dem.hmot. | K6: Celková dem.hmot.
A7: Díl: | B7: 1 | C7: Zemní práce | O7: 1
A8: 1 | B8: 113107625R00 | C8: Odstranění podkladu nad 50 m2,kam.drcené tl.25 cm | D8: m2 | E8: 471.08 | G8: =E8*F8 -> 0 | H8: 0 | I8: =E8*H8 -> 0 | J8: -0.55 | K8: =E8*J8 -> -259.094 | O8: 2 | AA8: 1 | AB8: 1 | AC8: 1 | AZ8: 1 | BA8: =IF(AZ8=1,G8,0) -> 0 | BB8: =IF(AZ8=2,G8,0) -> 0 | BC8: =IF(AZ8=3,G8,0) -> 0 | BD8: =IF(AZ8=4,G8,0) -> 0 | BE8: =IF(AZ8=5,G8,0) -> 0 | CA8: 1 | CB8: 1
C9: Stoka "B" KT DN300 a DN400: | E9: 0 | M9: Stoka "B" KT DN300 a DN400:
C10: Konstrukce komunikace:164,00*1,25+158,80*1,20+1,60*(1,60-1,25)*11+1,60*(1,60-1,20)*4 | E10: 404.28 | M10: Konstrukce komunikace:164,00*1,25+158,80*1,20+1,60*(1,60-1,25)*11+1,60*(1,60-1,20)*4
C11: Stoka "C" KT DN400: | E11: 0 | M11: Stoka "C" KT DN400:
C12: Konstrukce komunikace:23,20*1,25+1,60*(1,60-1,25)*1 | E12: 29.56 | M12: Konstrukce komunikace:23,20*1,25+1,60*(1,60-1,25)*1
C13: Stoka "D" KT DN400: | E13: 0 | M13: Stoka "D" KT DN400:
C14: Konstrukce komunikace:25,10*1,25+1,60*(1,60-1,25)*2 | E14: 32.495 | M14: Konstrukce komunikace:25,10*1,25+1,60*(1,60-1,25)*2
C15: Stoka "G" KT DN250: | E15: 0 | M15: Stoka "G" KT DN250:
C16: Konstrukce komunikace:3,50*1,15+1,60*(1,60-1,15)*1 | E16: 4.745 | M16: Konstrukce komunikace:3,50*1,15+1,60*(1,60-1,15)*1
A17: 2 | B17: 113108415R00 | C17: Odstranění asfaltové vrstvy pl.nad 50 m2, tl.15 cm | D17: m2 | E17: 471.08 | G17: =E17*F17 -> 0 | H17: 0 | I17: =E17*H17 -> 0 | J17: -0.33 | K17: =E17*J17 -> -155.4564 | O17: 2 | AA17: 1 | AB17: 1 | AC17: 1 | AZ17: 1 | BA17: =IF(AZ17=1,G17,0) -> 0 | BB17: =IF(AZ17=2,G17,0) -> 0 | BC17: =IF(AZ17=3,G17,0) -> 0 | BD17: =IF(AZ17=4,G17,0) -> 0 | BE17: =IF(AZ17=5,G17,0) -> 0 | CA17: 1 | CB17: 1
C18: Stoka "B" KT DN300 a DN400: | E18: 0 | M18: Stoka "B" KT DN300 a DN400:
C19: Konstrukce komunikace:164,00*1,25+158,80*1,20+1,60*(1,60-1,25)*11+1,60*(1,60-1,20)*4 | E19: 404.28 | M19: Konstrukce komunikace:164,00*1,25+158,80*1,20+1,60*(1,60-1,25)*11+1,60*(1,60-1,20)*4
C20: Stoka "C" KT DN400: | E20: 0 | M20: Stoka "C" KT DN400:
C21: Konstrukce komunikace:23,20*1,25+1,60*(1,60-1,25)*1 | E21: 29.56 | M21: Konstrukce komunikace:23,20*1,25+1,60*(1,60-1,25)*1
C22: Stoka "D" KT DN400: | E22: 0 | M22: Stoka "D" KT DN400:
C23: Konstrukce komunikace:25,10*1,25+1,60*(1,60-1,25)*2 | E23: 32.495 | M23: Konstrukce komunikace:25,10*1,25+1,60*(1,60-1,25)*2
C24: Stoka "G" KT DN250: | E24: 0 | M24: Stoka "G" KT DN250:
C25: Konstrukce komunikace:3,50*1,15+1,60*(1,60-1,15)*1 | E25: 4.745 | M25: Konstrukce komunikace:3,50*1,15+1,60*(1,60-1,15)*1
A26: 3 | B26: 114211103R00 | C26: Odstranění betonových trub do DN 300 mm, ve výkopu | D26: m | E26: 5 | G26: =E26*F26 -> 0 | H26: 0 | I26: =E26*H26 -> 0 | J26: -0.1015 | K26: =E26*J26 -> -0.5075 | O26: 2 | AA26: 1 | AB26: 1 | AC26: 1 | AZ26: 1 | BA26: =IF(AZ26=1,G26,0) -> 0 | BB26: =IF(AZ26=2,G26,0) -> 0 | BC26: =IF(AZ26=3,G26,0) -> 0 | BD26: =IF(AZ26=4,G26,0) -> 0 | BE26: =IF(AZ26=5,G26,0) -> 0 | CA26: 1 | CB26: 1
C27: Položka obsahuje odstranění materiálu obklopujícího potrubí v míře nutné pro vyzvednutí, rozpojení trub, uchopení a vyzvednutí trub z výkopu a uložení na dopravní prostředek včetně odvozu na skládku zhotovitele a poplatek za skládku. | L27: Položka obsahuje odstranění materiálu obklopujícího potrubí v míře nutné pro vyzvednutí, rozpojení trub, uchopení a vyzvednutí trub z výkopu a uložení na dopravní prostředek včetně odvozu na skládku zhotovitele a poplatek za skládku. | O27: 3
C28: Stávající potrubí KT DN300:5,00 | E28: 5 | M28: Stávající potrubí KT DN300:5,00
A29: 4 | B29: 114211105R00 | C29: Odstranění betonových trub do DN 500 mm, ve výkopu | D29: m | E29: 14 | G29: =E29*F29 -> 0 | H29: 0 | I29: =E29*H29 -> 0 | J29: -0.408 | K29: =E29*J29 -> -5.712 | O29: 2 | AA29: 1 | AB29: 1 | AC29: 1 | AZ29: 1 | BA29: =IF(AZ29=1,G29,0) -> 0 | BB29: =IF(AZ29=2,G29,0) -> 0 | BC29: =IF(AZ29=3,G29,0) -> 0 | BD29: =IF(AZ29=4,G29,0) -> 0 | BE29: =IF(AZ29=5,G29,0) -> 0 | CA29: 1 | CB29: 1
C30: Položka obsahuje odstranění materiálu obklopujícího potrubí v míře nutné pro vyzvednutí, rozpojení trub, uchopení a vyzvednutí trub z výkopu a uložení na dopravní prostředek včetně odvozu na skládku zhotovitele a poplatek za skládku. | L30: Položka obsahuje odstranění materiálu obklopujícího potrubí v míře nutné pro vyzvednutí, rozpojení trub, uchopení a vyzvednutí trub z výkopu a uložení na dopravní prostředek včetně odvozu na skládku zhotovitele a poplatek za skládku. | O30: 3
C31: Stávající potrubí KT DN400:10,00 | E31: 10 | M31: Stávající potrubí KT DN400:10,00
C32: BE DN400:4,00 | E32: 4 | M32: BE DN400:4,00
A33: 5 | B33: 115101201RRX | C33: Přečerpávání nebo převedení splašků a dešť. vod | D33: h | E33: 450 | G33: =E33*F33 -> 0 | H33: 0 | I33: =E33*H33 -> 0 | J33: 0 | K33: =E33*J33 -> 0 | O33: 2 | AA33: 1 | AB33: 1 | AC33: 1 | AZ33: 1 | BA33: =IF(AZ33=1,G33,0) -> 0 | BB33: =IF(AZ33=2,G33,0) -> 0 | BC33: =IF(AZ33=3,G33,0) -> 0 | BD33: =IF(AZ33=4,G33,0) -> 0 | BE33: =IF(AZ33=5,G33,0) -> 0 | CA33: 1 | CB33: 1
C34: Převedení a čerpání splašků nebo dešťových vod dle zvolené technologie zhotovitele stavby. | L34: Převedení a čerpání splašků nebo dešťových vod dle zvolené technologie zhotovitele stavby. | O34: 3
C35: (Množství bude určeno na stavbě dle skutečnosti) | L35: (Množství bude určeno na stavbě dle skutečnosti) | O35: 3
A36: 6 | B36: 119001401R00 | C36: Dočasné zajištění ocelového potrubí do DN 200 mm | D36: m | E36: 72.6 | G36: =E36*F36 -> 0 | H36: 0.00869 | I36: =E36*H36 -> 0.630894 | J36: 0 | K36: =E36*J36 -> 0 | O36: 2 | AA36: 1 | AB36: 1 | AC36: 1 | AZ36: 1 | BA36: =IF(AZ36=1,G36,0) -> 0 | BB36: =IF(AZ36=2,G36,0) -> 0 | BC36: =IF(AZ36=3,G36,0) -> 0 | BD36: =IF(AZ36=4,G36,0) -> 0 | BE36: =IF(AZ36=5,G36,0) -> 0 | CA36: 1 | CB36: 1
A37: 7 | B37: 119001402R00 | C37: Dočasné zajištění ocelového potrubí DN 200-500 mm | D37: m | E37: 6.8 | G37: =E37*F37 -> 0 | H37: 0.01271 | I37: =E37*H37 -> 0.086428 | J37: 0 | K37: =E37*J37 -> 0 | O37: 2 | AA37: 1 | AB37: 1 | AC37: 1 | AZ37: 1 | BA37: =IF(AZ37=1,G37,0) -> 0 | BB37: =IF(AZ37=2,G37,0) -> 0 | BC37: =IF(AZ37=3,G37,0) -> 0 | BD37: =IF(AZ37=4,G37,0) -> 0 | BE37: =IF(AZ37=5,G37,0) -> 0 | CA37: 1 | CB37: 1
A38: 8 | B38: 119001422R00 | C38: Dočasné zajištění kabelů - v počtu 3 - 6 kabelů | D38: m | E38: 58.45 | G38: =E38*F38 -> 0 | H38: 0.03974 | I38: =E38*H38 -> 2.322803 | J38: 0 | K38: =E38*J38 -> 0 | O38: 2 | AA38: 1 | AB38: 1 | AC38: 1 | AZ38: 1 | BA38: =IF(AZ38=1,G38,0) -> 0 | BB38: =IF(AZ38=2,G38,0) -> 0 | BC38: =IF(AZ38=3,G38,0) -> 0 | BD38: =IF(AZ38=4,G38,0) -> 0 | BE38: =IF(AZ38=5,G38,0) -> 0 | CA38: 1 | CB38: 1
A39: 9 | B39: 130001101RRX | C39: Příplatek za ztížené hloubení v blízkosti vedení | D39: m3 | E39: 282.3594 | G39: =E39*F39 -> 0 | H39: 0 | I39: =E39*H39 -> 0 | J39: 0 | K39: =E39*J39 -> 0 | O39: 2 | AA39: 1 | AB39: 1 | AC39: 1 | AZ39: 1 | BA39: =IF(AZ39=1,G39,0) -> 0 | BB39: =IF(AZ39=2,G39,0) -> 0 | BC39: =IF(AZ39=3,G39,0) -> 0 | BD39: =IF(AZ39=4,G39,0) -> 0 | BE39: =IF(AZ39=5,G39,0) -> 0 | CA39: 1 | CB39: 1
C40: Včetně případných nutných dokopávem a ručního výkopu podél sousedících inženýrských sítí | L40: Včetně případných nutných dokopávem a ručního výkopu podél sousedících inženýrských sítí | O40: 3
C41: Začátek provozního součtu | E41: 0 | M41: Začátek provozního součtu
C42: Stoka "B" KT DN300 a DN400:31,30*1,25*(3,15+2,45)/2 | E42: 109.55 | M42: Stoka "B" KT DN300 a DN400:31,30*1,25*(3,15+2,45)/2
C43: (109,50-31,30)*1,25*(2,45+2,41)/2 | E43: 237.5325 | M43: (109,50-31,30)*1,25*(2,45+2,41)/2
C44: (152,80-109,50)*1,25*(2,41+2,50)/2 | E44: 132.8769 | M44: (152,80-109,50)*1,25*(2,41+2,50)/2
C45: (164,00-152,80)*1,25*(2,50+2,50)/2 | E45: 35 | M45: (164,00-152,80)*1,25*(2,50+2,50)/2
C46: (213,60-164,00)*1,20*(2,50+2,25)/2 | E46: 141.36 | M46: (213,60-164,00)*1,20*(2,50+2,25)/2
C47: (274,30-213,60)*1,20*(2,25+2,87)/2 | E47: 186.4704 | M47: (274,30-213,60)*1,20*(2,25+2,87)/2
C48: (322,80-274,30)*1,20*(2,87+2,15)/2 | E48: 146.082 | M48: (322,80-274,30)*1,20*(2,87+2,15)/2
C49: Prohloubení pro RŠ:1,60*1,60*0,20*11 | E49: 5.632 | M49: Prohloubení pro RŠ:1,60*1,60*0,20*11
C50: Rozšíření pro RŠ:1,60*(1,60-1,25)*18,02+1,60*(1,60-1,20)*9,59 | E50: 16.2288 | M50: Rozšíření pro RŠ:1,60*(1,60-1,25)*18,02+1,60*(1,60-1,20)*9,59
C51: Odpočet konstrukce komunikace:-(164,00*1,25+158,80*1,20+1,60*(1,60-1,25)*11+1,60*(1,60-1,20)*4)*0,40 | E51: -161.712 | M51: Odpočet konstrukce komunikace:-(164,00*1,25+158,80*1,20+1,60*(1,60-1,25)*11+1,60*(1,60-1,20)*4)*0,40
C52: Stoka "C" KT DN400:23,20*1,25*(2,50+1,97)/2 | E52: 64.815 | M52: Stoka "C" KT DN400:23,20*1,25*(2,50+1,97)/2
C53: Prohloubení pro RŠ:1,60*1,60*0,20*1 | E53: 0.512 | M53: Prohloubení pro RŠ:1,60*1,60*0,20*1
C54: Rozšíření pro RŠ:1,60*(1,60-1,25)*1,97 | E54: 1.1032 | M54: Rozšíření pro RŠ:1,60*(1,60-1,25)*1,97
C55: Odpočet konstrukce komunikace:-(23,20*1,25+1,60*(1,60-1,25)*1)*0,40 | E55: -11.824 | M55: Odpočet konstrukce komunikace:-(23,20*1,25+1,60*(1,60-1,25)*1)*0,40
C56: Stoka "D" KT DN400:5,10*1,25*(2,50+2,11)/2 | E56: 14.6944 | M56: Stoka "D" KT DN400:5,10*1,25*(2,50+2,11)/2
C57: (7,90-5,10)*1,25*(2,11+2,11)/2 | E57: 7.385 | M57: (7,90-5,10)*1,25*(2,11+2,11)/2
C58: (16,00-7,90)*1,25*(2,11+2,09)/2 | E58: 21.2625 | M58: (16,00-7,90)*1,25*(2,11+2,09)/2
C59: (25,10-16,00)*1,25*(2,09+2,48)/2 | E59: 25.9919 | M59: (25,10-16,00)*1,25*(2,09+2,48)/2
C60: Prohloubení pro RŠ:1,60*1,60*0,20*2 | E60: 1.024 | M60: Prohloubení pro RŠ:1,60*1,60*0,20*2
C61: Rozšíření pro RŠ:1,60*(1,60-1,25)*4,93 | E61: 2.7608 | M61: Rozšíření pro RŠ:1,60*(1,60-1,25)*4,93
C62: Odpočet konstrukce komunikace:-(25,10*1,25+1,60*(1,60-1,25)*2)*0,40 | E62: -12.998 | M62: Odpočet konstrukce komunikace:-(25,10*1,25+1,60*(1,60-1,25)*2)*0,40
C63: Stoka "G" KT DN250:3,50*1,15*(2,42+2,35)/2 | E63: 9.5996 | M63: Stoka "G" KT DN250:3,50*1,15*(2,42+2,35)/2
C64: Prohloubení pro RŠ:1,60*1,60*0,20*1 | E64: 0.512 | M64: Prohloubení pro RŠ:1,60*1,60*0,20*1
C65: Rozšíření pro RŠ:1,60*(1,60-1,15)*2,35 | E65: 1.692 | M65: Rozšíření pro RŠ:1,60*(1,60-1,15)*2,35
C66: Odpočet konstrukce komunikace:-(3,50*1,15+1,60*(1,60-1,15)*1)*0,40 | E66: -1.898 | M66: Odpočet konstrukce komunikace:-(3,50*1,15+1,60*(1,60-1,15)*1)*0,40
C67: Konec provozního součtu | E67: 973.653 | M67: Konec provozního součtu
C68: V hornině tř. 3 - 5 - 29%:973,6530*0,29 | E68: 282.3594 | M68: V hornině tř. 3 - 5 - 29%:973,6530*0,29
A69: 10 | B69: 130901123RT3 | C69: Bourání konstrukcí ze železobetonu ve vykopávkách bagrem s kladivem | D69: m3 | E69: 11.4525 | G69: =E69*F69 -> 0 | H69: 0 | I69: =E69*H69 -> 0 | J69: 0 | K69: =E69*J69 -> 0 | O69: 2 | AA69: 1 | AB69: 1 | AC69: 1 | AZ69: 1 | BA69: =IF(AZ69=1,G69,0) -> 0 | BB69: =IF(AZ69=2,G69,0) -> 0 | BC69: =IF(AZ69=3,G69,0) -> 0 | BD69: =IF(AZ69=4,G69,0) -> 0 | BE69: =IF(AZ69=5,G69,0) -> 0 | CA69: 1 | CB69: 1
C70: Položka obsahuje odstranění materiálu obklopujícího betonové a železobetonové konstrukce v míře nutné pro vyzvednutí, rozpojení konstrukcí, uchopení a vyzvednutí konstrukce z výkopu a uložení na dopravní prostředek včetně odvozu na skládku zhotovitele a poplatek za skládku. | L70: Položka obsahuje odstranění materiálu obklopujícího betonové a železobetonové konstrukce v míře nutné pro vyzvednutí, rozpojení konstrukcí, uchopení a vyzvednutí konstrukce z výkopu a uložení na dopravní prostředek včetně odvozu na skládku zhotovitele a poplatek za skládku. | O70: 3
C71: Stávající šachy (2x celá a 10x část):11,4525 | E71: 11.4525 | M71: Stávající šachy (2x celá a 10x část):11,4525
A72: 11 | B72: 132201212R00 | C72: Hloubení rýh š.do 200 cm hor.3 do 1000m3,STROJNĚ | D72: m3 | E72: 438.1439 | G72: =E72*F72 -> 0 | H72: 0 | I72: =E72*H72 -> 0 | J72: 0 | K72: =E72*J72 -> 0 | O72: 2 | AA72: 1 | AB72: 1 | AC72: 1 | AZ72: 1 | BA72: =IF(AZ72=1,G72,0) -> 0 | BB72: =IF(AZ72=2,G72,0) -> 0 | BC72: =IF(AZ72=3,G72,0) -> 0 | BD72: =IF(AZ72=4,G72,0) -> 0 | BE72: =IF(AZ72=5,G72,0) -> 0 | CA72: 1 | CB72: 1
C73: Položka obsahuje hloubení rýh traktorbagrem, naložení výkopku na dopravní prostředek pro svislé, nebo vodorovné přemístění, popř. přemístění výkopku do 3 m (po povrchu území), případné zajištění rypadel polštáři, udržování pracoviště a ochranu výkopiště proti stékání srážkové vody z okolního terénu i s jejím odvodněním, nebo odvedením, přesekání a odstranění kořenů ve výkopišti, odstranění napadávek, urovnání dna výkopu. | L73: Položka obsahuje hloubení rýh traktorbagrem, naložení výkopku na dopravní prostředek pro svislé, nebo vodorovné přemístění, popř. přemístění výkopku do 3 m (po povrchu území), případné zajištění rypadel polštáři, udržování pracoviště a ochranu výkopiště proti stékání srážkové vody z okolního terénu i s jejím odvodněním, nebo odvedením, přesekání a odstranění kořenů ve výkopišti, odstranění napadávek, urovnání dna výkopu. | O73: 3
C74: Začátek provozního součtu | E74: 0 | M74: Začátek provozního součtu
C75: Stoka "B" KT DN300 a DN400:31,30*1,25*(3,15+2,45)/2 | E75: 109.55 | M75: Stoka "B" KT DN300 a DN400:31,30*1,25*(3,15+2,45)/2
C76: (109,50-31,30)*1,25*(2,45+2,41)/2 | E76: 237.5325 | M76: (109,50-31,30)*1,25*(2,45+2,41)/2
C77: (152,80-109,50)*1,25*(2,41+2,50)/2 | E77: 132.8769 | M77: (152,80-109,50)*1,25*(2,41+2,50)/2
C78: (164,00-152,80)*1,25*(2,50+2,50)/2 | E78: 35 | M78: (164,00-152,80)*1,25*(2,50+2,50)/2
C79: (213,60-164,00)*1,20*(2,50+2,25)/2 | E79: 141.36 | M79: (213,60-164,00)*1,20*(2,50+2,25)/2
C80: (274,30-213,60)*1,20*(2,25+2,87)/2 | E80: 186.4704 | M80: (274,30-213,60)*1,20*(2,25+2,87)/2
C81: (322,80-274,30)*1,20*(2,87+2,15)/2 | E81: 146.082 | M81: (322,80-274,30)*1,20*(2,87+2,15)/2
C82: Prohloubení pro RŠ:1,60*1,60*0,20*11 | E82: 5.632 | M82: Prohloubení pro RŠ:1,60*1,60*0,20*11
C83: Rozšíření pro RŠ:1,60*(1,60-1,25)*18,02+1,60*(1,60-1,20)*9,59 | E83: 16.2288 | M83: Rozšíření pro RŠ:1,60*(1,60-1,25)*18,02+1,60*(1,60-1,20)*9,59
C84: Odpočet konstrukce komunikace:-(164,00*1,25+158,80*1,20+1,60*(1,60-1,25)*11+1,60*(1,60-1,20)*4)*0,40 | E84: -161.712 | M84: Odpočet konstrukce komunikace:-(164,00*1,25+158,80*1,20+1,60*(1,60-1,25)*11+1,60*(1,60-1,20)*4)*0,40
C85: Stoka "C" KT DN400:23,20*1,25*(2,50+1,97)/2 | E85: 64.815 | M85: Stoka "C" KT DN400:23,20*1,25*(2,50+1,97)/2
C86: Prohloubení pro RŠ:1,60*1,60*0,20*1 | E86: 0.512 | M86: Prohloubení pro RŠ:1,60*1,60*0,20*1
C87: Rozšíření pro RŠ:1,60*(1,60-1,25)*1,97 | E87: 1.1032 | M87: Rozšíření pro RŠ:1,60*(1,60-1,25)*1,97
C88: Odpočet konstrukce komunikace:-(23,20*1,25+1,60*(1,60-1,25)*1)*0,40 | E88: -11.824 | M88: Odpočet konstrukce komunikace:-(23,20*1,25+1,60*(1,60-1,25)*1)*0,40
C89: Stoka "D" KT DN400:5,10*1,25*(2,50+2,11)/2 | E89: 14.6944 | M89: Stoka "D" KT DN400:5,10*1,25*(2,50+2,11)/2
C90: (7,90-5,10)*1,25*(2,11+2,11)/2 | E90: 7.385 | M90: (7,90-5,10)*1,25*(2,11+2,11)/2
C91: (16,00-7,90)*1,25*(2,11+2,09)/2 | E91: 21.2625 | M91: (16,00-7,90)*1,25*(2,11+2,09)/2
C92: (25,10-16,00)*1,25*(2,09+2,48)/2 | E92: 25.9919 | M92: (25,10-16,00)*1,25*(2,09+2,48)/2
C93: Prohloubení pro RŠ:1,60*1,60*0,20*2 | E93: 1.024 | M93: Prohloubení pro RŠ:1,60*1,60*0,20*2
C94: Rozšíření pro RŠ:1,60*(1,60-1,25)*4,93 | E94: 2.7608 | M94: Rozšíření pro RŠ:1,60*(1,60-1,25)*4,93
C95: Odpočet konstrukce komunikace:-(25,10*1,25+1,60*(1,60-1,25)*2)*0,40 | E95: -12.998 | M95: Odpočet konstrukce komunikace:-(25,10*1,25+1,60*(1,60-1,25)*2)*0,40
C96: Stoka "G" KT DN250:3,50*1,15*(2,42+2,35)/2 | E96: 9.5996 | M96: Stoka "G" KT DN250:3,50*1,15*(2,42+2,35)/2
C97: Prohloubení pro RŠ:1,60*1,60*0,20*1 | E97: 0.512 | M97: Prohloubení pro RŠ:1,60*1,60*0,20*1
C98: Rozšíření pro RŠ:1,60*(1,60-1,15)*2,35 | E98: 1.692 | M98: Rozšíření pro RŠ:1,60*(1,60-1,15)*2,35
C99: Odpočet konstrukce komunikace:-(3,50*1,15+1,60*(1,60-1,15)*1)*0,40 | E99: -1.898 | M99: Odpočet konstrukce komunikace:-(3,50*1,15+1,60*(1,60-1,15)*1)*0,40
C100: Konec provozního součtu | E100: 973.653 | M100: Konec provozního součtu
C101: V hornině tř. 3 - 45%:973,6530*0,45 | E101: 438.1439 | M101: V hornině tř. 3 - 45%:973,6530*0,45
A102: 12 | B102: 132201219R00 | C102: Přípl.za lepivost,hloubení rýh 200cm,hor.3,STROJNĚ | D102: m3 | E102: 219.0719 | G102: =E102*F102 -> 0 | H102: 0 | I102: =E102*H102 -> 0 | J102: 0 | K102: =E102*J102 -> 0 | O102: 2 | AA102: 1 | AB102: 1 | AC102: 1 | AZ102: 1 | BA102: =IF(AZ102=1,G102,0) -> 0 | BB102: =IF(AZ102=2,G102,0) -> 0 | BC102: =IF(AZ102=3,G102,0) -> 0 | BD102: =IF(AZ102=4,G102,0) -> 0 | BE102: =IF(AZ102=5,G102,0) -> 0 | CA102: 1 | CB102: 1
C103: Začátek provozního součtu | E103: 0 | M103: Začátek provozního součtu
C104: Stoka "B" KT DN300 a DN400:31,30*1,25*(3,15+2,45)/2 | E104: 109.55 | M104: Stoka "B" KT DN300 a DN400:31,30*1,25*(3,15+2,45)/2
C105: (109,50-31,30)*1,25*(2,45+2,41)/2 | E105: 237.5325 | M105: (109,50-31,30)*1,25*(2,45+2,41)/2
C106: (152,80-109,50)*1,25*(2,41+2,50)/2 | E106: 132.8769 | M106: (152,80-109,50)*1,25*(2,41+2,50)/2
C107: (164,00-152,80)*1,25*(2,50+2,50)/2 | E107: 35 | M107: (164,00-152,80)*1,25*(2,50+2,50)/2
C108: (213,60-164,00)*1,20*(2,50+2,25)/2 | E108: 141.36 | M108: (213,60-164,00)*1,20*(2,50+2,25)/2
C109: (274,30-213,60)*1,20*(2,25+2,87)/2 | E109: 186.4704 | M109: (274,30-213,60)*1,20*(2,25+2,87)/2
C110: (322,80-274,30)*1,20*(2,87+2,15)/2 | E110: 146.082 | M110: (322,80-274,30)*1,20*(2,87+2,15)/2
C111: Prohloubení pro RŠ:1,60*1,60*0,20*11 | E111: 5.632 | M111: Prohloubení pro RŠ:1,60*1,60*0,20*11
C112: Rozšíření pro RŠ:1,60*(1,60-1,25)*18,02+1,60*(1,60-1,20)*9,59 | E112: 16.2288 | M112: Rozšíření pro RŠ:1,60*(1,60-1,25)*18,02+1,60*(1,60-1,20)*9,59
C113: Odpočet konstrukce komunikace:-(164,00*1,25+158,80*1,20+1,60*(1,60-1,25)*11+1,60*(1,60-1,20)*4)*0,40 | E113: -161.712 | M113: Odpočet konstrukce komunikace:-(164,00*1,25+158,80*1,20+1,60*(1,60-1,25)*11+1,60*(1,60-1,20)*4)*0,40
C114: Stoka "C" KT DN400:23,20*1,25*(2,50+1,97)/2 | E114: 64.815 | M114: Stoka "C" KT DN400:23,20*1,25*(2,50+1,97)/2
C115: Prohloubení pro RŠ:1,60*1,60*0,20*1 | E115: 0.512 | M115: Prohloubení pro RŠ:1,60*1,60*0,20*1
C116: Rozšíření pro RŠ:1,60*(1,60-1,25)*1,97 | E116: 1.1032 | M116: Rozšíření pro RŠ:1,60*(1,60-1,25)*1,97
C117: Odpočet konstrukce komunikace:-(23,20*1,25+1,60*(1,60-1,25)*1)*0,40 | E117: -11.824 | M117: Odpočet konstrukce komunikace:-(23,20*1,25+1,60*(1,60-1,25)*1)*0,40
C118: Stoka "D" KT DN400:5,10*1,25*(2,50+2,11)/2 | E118: 14.6944 | M118: Stoka "D" KT DN400:5,10*1,25*(2,50+2,11)/2
C119: (7,90-5,10)*1,25*(2,11+2,11)/2 | E119: 7.385 | M119: (7,90-5,10)*1,25*(2,11+2,11)/2
C120: (16,00-7,90)*1,25*(2,11+2,09)/2 | E120: 21.2625 | M120: (16,00-7,90)*1,25*(2,11+2,09)/2
C121: (25,10-16,00)*1,25*(2,09+2,48)/2 | E121: 25.9919 | M121: (25,10-16,00)*1,25*(2,09+2,48)/2
C122: Prohloubení pro RŠ:1,60*1,60*0,20*2 | E122: 1.024 | M122: Prohloubení pro RŠ:1,60*1,60*0,20*2
C123: Rozšíření pro RŠ:1,60*(1,60-1,25)*4,93 | E123: 2.7608 | M123: Rozšíření pro RŠ:1,60*(1,60-1,25)*4,93
C124: Odpočet konstrukce komunikace:-(25,10*1,25+1,60*(1,60-1,25)*2)*0,40 | E124: -12.998 | M124: Odpočet konstrukce komunikace:-(25,10*1,25+1,60*(1,60-1,25)*2)*0,40
C125: Stoka "G" KT DN250:3,50*1,15*(2,42+2,35)/2 | E125: 9.5996 | M125: Stoka "G" KT DN250:3,50*1,15*(2,42+2,35)/2
C126: Prohloubení pro RŠ:1,60*1,60*0,20*1 | E126: 0.512 | M126: Prohloubení pro RŠ:1,60*1,60*0,20*1
C127: Rozšíření pro RŠ:1,60*(1,60-1,15)*2,35 | E127: 1.692 | M127: Rozšíření pro RŠ:1,60*(1,60-1,15)*2,35
C128: Odpočet konstrukce komunikace:-(3,50*1,15+1,60*(1,60-1,15)*1)*0,40 | E128: -1.898 | M128: Odpočet konstrukce komunikace:-(3,50*1,15+1,60*(1,60-1,15)*1)*0,40
C129: Konec provozního součtu | E129: 973.653 | M129: Konec provozního součtu
C130: V hornině tř. 3 - 45%:973,6530*0,45*0,5 | E130: 219.0719 | M130: V hornině tř. 3 - 45%:973,6530*0,45*0,5
A131: 13 | B131: 132301212R00 | C131: Hloubení rýh š.do 200 cm hor.4 do 1000 m3, STROJNĚ | D131: m3 | E131: 438.1439 | G131: =E131*F131 -> 0 | H131: 0 | I131: =E131*H131 -> 0 | J131: 0 | K131: =E131*J131 -> 0 | O131: 2 | AA131: 1 | AB131: 1 | AC131: 1 | AZ131: 1 | BA131: =IF(AZ131=1,G131,0) -> 0 | BB131: =IF(AZ131=2,G131,0) -> 0 | BC131: =IF(AZ131=3,G131,0) -> 0 | BD131: =IF(AZ131=4,G131,0) -> 0 | BE131: =IF(AZ131=5,G131,0) -> 0 | CA131: 1 | CB131: 1
C132: Položka obsahuje hloubení rýh traktorbagrem, naložení výkopku na dopravní prostředek pro svislé, nebo vodorovné přemístění, popř. přemístění výkopku do 3 m (po povrchu území), případné zajištění rypadel polštáři, udržování pracoviště a ochranu výkopiště proti stékání srážkové vody z okolního terénu i s jejím odvodněním, nebo odvedením, přesekání a odstranění kořenů ve výkopišti, odstranění napadávek, urovnání dna výkopu. | L132: Položka obsahuje hloubení rýh traktorbagrem, naložení výkopku na dopravní prostředek pro svislé, nebo vodorovné přemístění, popř. přemístění výkopku do 3 m (po povrchu území), případné zajištění rypadel polštáři, udržování pracoviště a ochranu výkopiště proti stékání srážkové vody z okolního terénu i s jejím odvodněním, nebo odvedením, přesekání a odstranění kořenů ve výkopišti, odstranění napadávek, urovnání dna výkopu. | O132: 3
C133: Začátek provozního součtu | E133: 0 | M133: Začátek provozního součtu
C134: Stoka "B" KT DN300 a DN400:31,30*1,25*(3,15+2,45)/2 | E134: 109.55 | M134: Stoka "B" KT DN300 a DN400:31,30*1,25*(3,15+2,45)/2
C135: (109,50-31,30)*1,25*(2,45+2,41)/2 | E135: 237.5325 | M135: (109,50-31,30)*1,25*(2,45+2,41)/2
C136: (152,80-109,50)*1,25*(2,41+2,50)/2 | E136: 132.8769 | M136: (152,80-109,50)*1,25*(2,41+2,50)/2
C137: (164,00-152,80)*1,25*(2,50+2,50)/2 | E137: 35 | M137: (164,00-152,80)*1,25*(2,50+2,50)/2
C138: (213,60-164,00)*1,20*(2,50+2,25)/2 | E138: 141.36 | M138: (213,60-164,00)*1,20*(2,50+2,25)/2
C139: (274,30-213,60)*1,20*(2,25+2,87)/2 | E139: 186.4704 | M139: (274,30-213,60)*1,20*(2,25+2,87)/2
C140: (322,80-274,30)*1,20*(2,87+2,15)/2 | E140: 146.082 | M140: (322,80-274,30)*1,20*(2,87+2,15)/2
C141: Prohloubení pro RŠ:1,60*1,60*0,20*11 | E141: 5.632 | M141: Prohloubení pro RŠ:1,60*1,60*0,20*11
C142: Rozšíření pro RŠ:1,60*(1,60-1,25)*18,02+1,60*(1,60-1,20)*9,59 | E142: 16.2288 | M142: Rozšíření pro RŠ:1,60*(1,60-1,25)*18,02+1,60*(1,60-1,20)*9,59
C143: Odpočet konstrukce komunikace:-(164,00*1,25+158,80*1,20+1,60*(1,60-1,25)*11+1,60*(1,60-1,20)*4)*0,40 | E143: -161.712 | M143: Odpočet konstrukce komunikace:-(164,00*1,25+158,80*1,20+1,60*(1,60-1,25)*11+1,60*(1,60-1,20)*4)*0,40
C144: Stoka "C" KT DN400:23,20*1,25*(2,50+1,97)/2 | E144: 64.815 | M144: Stoka "C" KT DN400:23,20*1,25*(2,50+1,97)/2
C145: Prohloubení pro RŠ:1,60*1,60*0,20*1 | E145: 0.512 | M145: Prohloubení pro RŠ:1,60*1,60*0,20*1
C146: Rozšíření pro RŠ:1,60*(1,60-1,25)*1,97 | E146: 1.1032 | M146: Rozšíření pro RŠ:1,60*(1,60-1,25)*1,97
C147: Odpočet konstrukce komunikace:-(23,20*1,25+1,60*(1,60-1,25)*1)*0,40 | E147: -11.824 | M147: Odpočet konstrukce komunikace:-(23,20*1,25+1,60*(1,60-1,25)*1)*0,40
C148: Stoka "D" KT DN400:5,10*1,25*(2,50+2,11)/2 | E148: 14.6944 | M148: Stoka "D" KT DN400:5,10*1,25*(2,50+2,11)/2
C149: (7,90-5,10)*1,25*(2,11+2,11)/2 | E149: 7.385 | M149: (7,90-5,10)*1,25*(2,11+2,11)/2
C150: (16,00-7,90)*1,25*(2,11+2,09)/2 | E150: 21.2625 | M150: (16,00-7,90)*1,25*(2,11+2,09)/2
C151: (25,10-16,00)*1,25*(2,09+2,48)/2 | E151: 25.9919 | M151: (25,10-16,00)*1,25*(2,09+2,48)/2
C152: Prohloubení pro RŠ:1,60*1,60*0,20*2 | E152: 1.024 | M152: Prohloubení pro RŠ:1,60*1,60*0,20*2
C153: Rozšíření pro RŠ:1,60*(1,60-1,25)*4,93 | E153: 2.7608 | M153: Rozšíření pro RŠ:1,60*(1,60-1,25)*4,93
C154: Odpočet konstrukce komunikace:-(25,10*1,25+1,60*(1,60-1,25)*2)*0,40 | E154: -12.998 | M154: Odpočet konstrukce komunikace:-(25,10*1,25+1,60*(1,60-1,25)*2)*0,40
C155: Stoka "G" KT DN250:3,50*1,15*(2,42+2,35)/2 | E155: 9.5996 | M155: Stoka "G" KT DN250:3,50*1,15*(2,42+2,35)/2
C156: Prohloubení pro RŠ:1,60*1,60*0,20*1 | E156: 0.512 | M156: Prohloubení pro RŠ:1,60*1,60*0,20*1
C157: Rozšíření pro RŠ:1,60*(1,60-1,15)*2,35 | E157: 1.692 | M157: Rozšíření pro RŠ:1,60*(1,60-1,15)*2,35
C158: Odpočet konstrukce komunikace:-(3,50*1,15+1,60*(1,60-1,15)*1)*0,40 | E158: -1.898 | M158: Odpočet konstrukce komunikace:-(3,50*1,15+1,60*(1,60-1,15)*1)*0,40
C159: Konec provozního součtu | E159: 973.653 | M159: Konec provozního součtu
C160: V hornině tř. 4 - 45%:973,6530*0,45 | E160: 438.1439 | M160: V hornině tř. 4 - 45%:973,6530*0,45
A161: 14 | B161: 132301219R00 | C161: Přípl.za lepivost,hloubení rýh 200cm,hor.4,STROJNĚ | D161: m3 | E161: 219.0719 | G161: =E161*F161 -> 0 | H161: 0 | I161: =E161*H161 -> 0 | J161: 0 | K161: =E161*J161 -> 0 | O161: 2 | AA161: 1 | AB161: 1 | AC161: 1 | AZ161: 1 | BA161: =IF(AZ161=1,G161,0) -> 0 | BB161: =IF(AZ161=2,G161,0) -> 0 | BC161: =IF(AZ161=3,G161,0) -> 0 | BD161: =IF(AZ161=4,G161,0) -> 0 | BE161: =IF(AZ161=5,G161,0) -> 0 | CA161: 1 | CB161: 1
C162: Začátek provozního součtu | E162: 0 | M162: Začátek provozního součtu
C163: Stoka "B" KT DN300 a DN400:31,30*1,25*(3,15+2,45)/2 | E163: 109.55 | M163: Stoka "B" KT DN300 a DN400:31,30*1,25*(3,15+2,45)/2
C164: (109,50-31,30)*1,25*(2,45+2,41)/2 | E164: 237.5325 | M164: (109,50-31,30)*1,25*(2,45+2,41)/2
C165: (152,80-109,50)*1,25*(2,41+2,50)/2 | E165: 132.8769 | M165: (152,80-109,50)*1,25*(2,41+2,50)/2
C166: (164,00-152,80)*1,25*(2,50+2,50)/2 | E166: 35 | M166: (164,00-152,80)*1,25*(2,50+2,50)/2
C167: (213,60-164,00)*1,20*(2,50+2,25)/2 | E167: 141.36 | M167: (213,60-164,00)*1,20*(2,50+2,25)/2
C168: (274,30-213,60)*1,20*(2,25+2,87)/2 | E168: 186.4704 | M168: (274,30-213,60)*1,20*(2,25+2,87)/2
C169: (322,80-274,30)*1,20*(2,87+2,15)/2 | E169: 146.082 | M169: (322,80-274,30)*1,20*(2,87+2,15)/2
C170: Prohloubení pro RŠ:1,60*1,60*0,20*11 | E170: 5.632 | M170: Prohloubení pro RŠ:1,60*1,60*0,20*11
C171: Rozšíření pro RŠ:1,60*(1,60-1,25)*18,02+1,60*(1,60-1,20)*9,59 | E171: 16.2288 | M171: Rozšíření pro RŠ:1,60*(1,60-1,25)*18,02+1,60*(1,60-1,20)*9,59
C172: Odpočet konstrukce komunikace:-(164,00*1,25+158,80*1,20+1,60*(1,60-1,25)*11+1,60*(1,60-1,20)*4)*0,40 | E172: -161.712 | M172: Odpočet konstrukce komunikace:-(164,00*1,25+158,80*1,20+1,60*(1,60-1,25)*11+1,60*(1,60-1,20)*4)*0,40
C173: Stoka "C" KT DN400:23,20*1,25*(2,50+1,97)/2 | E173: 64.815 | M173: Stoka "C" KT DN400:23,20*1,25*(2,50+1,97)/2
C174: Prohloubení pro RŠ:1,60*1,60*0,20*1 | E174: 0.512 | M174: Prohloubení pro RŠ:1,60*1,60*0,20*1
C175: Rozšíření pro RŠ:1,60*(1,60-1,25)*1,97 | E175: 1.1032 | M175: Rozšíření pro RŠ:1,60*(1,60-1,25)*1,97
C176: Odpočet konstrukce komunikace:-(23,20*1,25+1,60*(1,60-1,25)*1)*0,40 | E176: -11.824 | M176: Odpočet konstrukce komunikace:-(23,20*1,25+1,60*(1,60-1,25)*1)*0,40
C177: Stoka "D" KT DN400:5,10*1,25*(2,50+2,11)/2 | E177: 14.6944 | M177: Stoka "D" KT DN400:5,10*1,25*(2,50+2,11)/2
C178: (7,90-5,10)*1,25*(2,11+2,11)/2 | E178: 7.385 | M178: (7,90-5,10)*1,25*(2,11+2,11)/2
C179: (16,00-7,90)*1,25*(2,11+2,09)/2 | E179: 21.2625 | M179: (16,00-7,90)*1,25*(2,11+2,09)/2
C180: (25,10-16,00)*1,25*(2,09+2,48)/2 | E180: 25.9919 | M180: (25,10-16,00)*1,25*(2,09+2,48)/2
C181: Prohloubení pro RŠ:1,60*1,60*0,20*2 | E181: 1.024 | M181: Prohloubení pro RŠ:1,60*1,60*0,20*2
C182: Rozšíření pro RŠ:1,60*(1,60-1,25)*4,93 | E182: 2.7608 | M182: Rozšíření pro RŠ:1,60*(1,60-1,25)*4,93
C183: Odpočet konstrukce komunikace:-(25,10*1,25+1,60*(1,60-1,25)*2)*0,40 | E183: -12.998 | M183: Odpočet konstrukce komunikace:-(25,10*1,25+1,60*(1,60-1,25)*2)*0,40
C184: Stoka "G" KT DN250:3,50*1,15*(2,42+2,35)/2 | E184: 9.5996 | M184: Stoka "G" KT DN250:3,50*1,15*(2,42+2,35)/2
C185: Prohloubení pro RŠ:1,60*1,60*0,20*1 | E185: 0.512 | M185: Prohloubení pro RŠ:1,60*1,60*0,20*1
C186: Rozšíření pro RŠ:1,60*(1,60-1,15)*2,35 | E186: 1.692 | M186: Rozšíření pro RŠ:1,60*(1,60-1,15)*2,35
C187: Odpočet konstrukce komunikace:-(3,50*1,15+1,60*(1,60-1,15)*1)*0,40 | E187: -1.898 | M187: Odpočet konstrukce komunikace:-(3,50*1,15+1,60*(1,60-1,15)*1)*0,40
C188: Konec provozního součtu | E188: 973.653 | M188: Konec provozního součtu
C189: V hornině tř. 4 - 45%:973,6530*0,45*0,5 | E189: 219.0719 | M189: V hornině tř. 4 - 45%:973,6530*0,45*0,5
A190: 15 | B190: 132401211R00 | C190: Hloubení rýh šířky do 200 cm v hor.5, STROJNĚ | D190: m3 | E190: 97.3653 | G190: =E190*F190 -> 0 | H190: 0 | I190: =E190*H190 -> 0 | J190: 0 | K190: =E190*J190 -> 0 | O190: 2 | AA190: 1 | AB190: 1 | AC190: 1 | AZ190: 1 | BA190: =IF(AZ190=1,G190,0) -> 0 | BB190: =IF(AZ190=2,G190,0) -> 0 | BC190: =IF(AZ190=3,G190,0) -> 0 | BD190: =IF(AZ190=4,G190,0) -> 0 | BE190: =IF(AZ190=5,G190,0) -> 0 | CA190: 1 | CB190: 1
C191: Položka obsahuje hloubení jámy kolovým rypadlem s rozrývacím zubem, naložení výkopku na dopravní prostředek pro svislé, nebo vodorovné přemístění, popř. přemístění výkopku do 3 m (po povrchu území), případné zajištění rypadel polštáři, udržování pracoviště a ochranu výkopiště proti stékání srážkové vody z okolního terénu i s jejím odvodněním, nebo odvedením, přesekání a odstranění kořenů ve výkopišti, odstranění napadávek, urovnání dna výkopu. Položka se používá bez ohledu na těžené množství. | L191: Položka obsahuje hloubení jámy kolovým rypadlem s rozrývacím zubem, naložení výkopku na dopravní prostředek pro svislé, nebo vodorovné přemístění, popř. přemístění výkopku do 3 m (po povrchu území), případné zajištění rypadel polštáři, udržování pracoviště a ochranu výkopiště proti stékání srážkové vody z okolního terénu i s jejím odvodněním, nebo odvedením, přesekání a odstranění kořenů ve výkopišti, odstranění napadávek, urovnání dna výkopu. Položka se používá bez ohledu na těžené množství. | O191: 3
C192: Začátek provozního součtu | E192: 0 | M192: Začátek provozního součtu
C193: Stoka "B" KT DN300 a DN400:31,30*1,25*(3,15+2,45)/2 | E193: 109.55 | M193: Stoka "B" KT DN300 a DN400:31,30*1,25*(3,15+2,45)/2
C194: (109,50-31,30)*1,25*(2,45+2,41)/2 | E194: 237.5325 | M194: (109,50-31,30)*1,25*(2,45+2,41)/2
C195: (152,80-109,50)*1,25*(2,41+2,50)/2 | E195: 132.8769 | M195: (152,80-109,50)*1,25*(2,41+2,50)/2
C196: (164,00-152,80)*1,25*(2,50+2,50)/2 | E196: 35 | M196: (164,00-152,80)*1,25*(2,50+2,50)/2
C197: (213,60-164,00)*1,20*(2,50+2,25)/2 | E197: 141.36 | M197: (213,60-164,00)*1,20*(2,50+2,25)/2
C198: (274,30-213,60)*1,20*(2,25+2,87)/2 | E198: 186.4704 | M198: (274,30-213,60)*1,20*(2,25+2,87)/2
C199: (322,80-274,30)*1,20*(2,87+2,15)/2 | E199: 146.082 | M199: (322,80-274,30)*1,20*(2,87+2,15)/2
C200: Prohloubení pro RŠ:1,60*1,60*0,20*11 | E200: 5.632 | M200: Prohloubení pro RŠ:1,60*1,60*0,20*11
C201: Rozšíření pro RŠ:1,60*(1,60-1,25)*18,02+1,60*(1,60-1,20)*9,59 | E201: 16.2288 | M201: Rozšíření pro RŠ:1,60*(1,60-1,25)*18,02+1,60*(1,60-1,20)*9,59
C202: Odpočet konstrukce komunikace:-(164,00*1,25+158,80*1,20+1,60*(1,60-1,25)*11+1,60*(1,60-1,20)*4)*0,40 | E202: -161.712 | M202: Odpočet konstrukce komunikace:-(164,00*1,25+158,80*1,20+1,60*(1,60-1,25)*11+1,60*(1,60-1,20)*4)*0,40
... 410 more rows

Sheet II. 02 II. 02 KL
A1: POLOŽKOVÝ ROZPOČET
A2: Rozpočet | C2: II. 02 | D2: Vodovod | F2: JKSO | G2: 827.11.A1
A4: Objekt | F4: SKP
A5: II. 02 | C5: Vodovod | F5: Měrná jednotka | G5: m
A6: Stavba | F6: Počet jednotek | G6: 0
A7: 3334 | C7: Lomnice nad Popelkou - Vodovod a kanalizace | F7: Náklady na m.j. | G7: =IF(G6=0,,ROUND((F30+F32)/G6,1)) -> 0
A8: Projektant | C8: VEDU VODU s.r.o. Dobrovice | F8: Typ rozpočtu
A9: Zpracovatel projektu
A10: Objednatel | C10: Vodohospodářské sdružení Turnov
A11: Dodavatel | C11: . | F11: Zakázkové číslo
A12: Rozpočtoval | F12: Počet listů
A13: ROZPOČTOVÉ NÁKLADY
A14: Základní rozpočtové náklady
B15: HSV celkem | C15: ='II. 02 II. 02 Rek'!E14 -> 0
A16: Z | B16: PSV celkem | C16: ='II. 02 II. 02 Rek'!F14 -> 0
A17: R | B17: M práce celkem | C17: ='II. 02 II. 02 Rek'!H14 -> 0
A18: N | B18: M dodávky celkem | C18: ='II. 02 II. 02 Rek'!G14 -> 0
A19: ZRN celkem | C19: =SUM(C15:C18) -> 0
A21: HZS | C21: ='II. 02 II. 02 Rek'!I14 -> 0
A22: ZRN+HZS | C22: =C19+C21 -> 0
A23: ZRN+ost.náklady+HZS | C23: =C22+G23 -> 0
A24: Vypracoval | D24: Za zhotovitele | F24: Za objednatele
A25: Jméno : | D25: Jméno : | F25: Jméno :
A26: Datum : | D26: Datum : | F26: Datum :
A28: Podpis : | D28: Podpis: | F28: Podpis:
A30: Základ pro DPH | C30: 21 | D30: % | F30: =C23-F32 -> 0
A31: DPH | C31: =C30 -> 21 | D31: % | F31: =ROUND(PRODUCT(F30,C31/100),0) -> 0
A32: Základ pro DPH | C32: 0 | D32: % | F32: 0
A33: DPH | C33: =C32 -> 0 | D33: % | F33: =ROUND(PRODUCT(F32,C33/100),0) -> 0
A34: CENA ZA OBJEKT CELKEM | F34: =ROUND(SUM(F30:F33),0) -> 0
A36: Poznámka :

Sheet II. 02 II. 02 Rek
A1: Stavba : | C1: 3334 Lomnice nad Popelkou - Vodovod a kanalizace | G1: Rozpočet : | H1: II. 02
A2: Objekt : | C2: II. 02 Vodovod | G2: Vodovod
A4: REKAPITULACE STAVEBNÍCH DÍLŮ
B6: Stavební díl | E6: HSV | F6: PSV | G6: Dodávka | H6: Montáž | I6: HZS
A7: ='II. 02 II. 02 Pol'!B7 -> 1 | B7: ='II. 02 II. 02 Pol'!C7 -> Zemní práce | E7: ='II. 02 II. 02 Pol'!BA267 -> 0 | F7: ='II. 02 II. 02 Pol'!BB267 -> 0 | G7: ='II. 02 II. 02 Pol'!BC267 -> 0 | H7: ='II. 02 II. 02 Pol'!BD267 -> 0 | I7: ='II. 02 II. 02 Pol'!BE267 -> 0
A8: ='II. 02 II. 02 Pol'!B268 -> 45 | B8: ='II. 02 II. 02 Pol'!C268 -> Podkladní a vedlejší konstrukce | E8: ='II. 02 II. 02 Pol'!BA278 -> 0 | F8: ='II. 02 II. 02 Pol'!BB278 -> 0 | G8: ='II. 02 II. 02 Pol'!BC278 -> 0 | H8: ='II. 02 II. 02 Pol'!BD278 -> 0 | I8: ='II. 02 II. 02 Pol'!BE278 -> 0
A9: ='II. 02 II. 02 Pol'!B279 -> 5 | B9: ='II. 02 II. 02 Pol'!C279 -> Komunikace | E9: ='II. 02 II. 02 Pol'!BA310 -> 0 | F9: ='II. 02 II. 02 Pol'!BB310 -> 0 | G9: ='II. 02 II. 02 Pol'!BC310 -> 0 | H9: ='II. 02 II. 02 Pol'!BD310 -> 0 | I9: ='II. 02 II. 02 Pol'!BE310 -> 0
A10: ='II. 02 II. 02 Pol'!B311 -> 8 | B10: ='II. 02 II. 02 Pol'!C311 -> Trubní vedení | E10: ='II. 02 II. 02 Pol'!BA685 -> 0 | F10: ='II. 02 II. 02 Pol'!BB685 -> 0 | G10: ='II. 02 II. 02 Pol'!BC685 -> 0 | H10: ='II. 02 II. 02 Pol'!BD685 -> 0 | I10: ='II. 02 II. 02 Pol'!BE685 -> 0
A11: ='II. 02 II. 02 Pol'!B686 -> 89 | B11: ='II. 02 II. 02 Pol'!C686 -> Ostatní konstrukce na trubním vedení | E11: ='II. 02 II. 02 Pol'!BA707 -> 0 | F11: ='II. 02 II. 02 Pol'!BB707 -> 0 | G11: ='II. 02 II. 02 Pol'!BC707 -> 0 | H11: ='II. 02 II. 02 Pol'!BD707 -> 0 | I11: ='II. 02 II. 02 Pol'!BE707 -> 0
A12: ='II. 02 II. 02 Pol'!B708 -> 93 | B12: ='II. 02 II. 02 Pol'!C708 -> Dokončovací práce inženýrských staveb | E12: ='II. 02 II. 02 Pol'!BA788 -> 0 | F12: ='II. 02 II. 02 Pol'!BB788 -> 0 | G12: ='II. 02 II. 02 Pol'!BC788 -> 0 | H12: ='II. 02 II. 02 Pol'!BD788 -> 0 | I12: ='II. 02 II. 02 Pol'!BE788 -> 0
A13: ='II. 02 II. 02 Pol'!B789 -> 99 | B13: ='II. 02 II. 02 Pol'!C789 -> Staveništní přesun hmot | E13: ='II. 02 II. 02 Pol'!BA791 -> 0 | F13: ='II. 02 II. 02 Pol'!BB791 -> 0 | G13: ='II. 02 II. 02 Pol'!BC791 -> 0 | H13: ='II. 02 II. 02 Pol'!BD791 -> 0 | I13: ='II. 02 II. 02 Pol'!BE791 -> 0
B14: CELKEM OBJEKT | E14: =SUM(E7:E13) -> 0 | F14: =SUM(F7:F13) -> 0 | G14: =SUM(G7:G13) -> 0 | H14: =SUM(H7:H13) -> 0 | I14: =SUM(I7:I13) -> 0

Sheet II. 02 II. 02 Pol
A1: Položkový rozpočet
A3: Stavba : | C3: 3334 Lomnice nad Popelkou - Vodovod a kanalizace | E3: Rozpočet: | F3: ='II. 02 II. 02 Rek'!H1 -> II. 02
A4: Objekt : | C4: II. 02 Vodovod | E4: ='II. 02 II. 02 Rek'!G2 -> Vodovod
A6: P.č. | B6: Číslo položky | C6: Název položky | D6: MJ | E6: množství | F6: cena / MJ | G6: celkem (Kč) | H6: Jednotková hmotnost | I6: Celková hmotnost | J6: Jednotková dem.hmot. | K6: Celková dem.hmot.
A7: Díl: | B7: 1 | C7: Zemní práce | O7: 1
A8: 1 | B8: 113107625R00 | C8: Odstranění podkladu nad 50 m2,kam.drcené tl.25 cm | D8: m2 | E8: 789.9 | G8: =E8*F8 -> 0 | H8: 0 | I8: =E8*H8 -> 0 | J8: -0.55 | K8: =E8*J8 -> -434.445 | O8: 2 | AA8: 1 | AB8: 1 | AC8: 1 | AZ8: 1 | BA8: =IF(AZ8=1,G8,0) -> 0 | BB8: =IF(AZ8=2,G8,0) -> 0 | BC8: =IF(AZ8=3,G8,0) -> 0 | BD8: =IF(AZ8=4,G8,0) -> 0 | BE8: =IF(AZ8=5,G8,0) -> 0 | CA8: 1 | CB8: 1
C9: Řad "A" TLT DN80 (částečně souběh s kanalizací) / (průměrná hloubka výkopů 1,70 m): | E9: 0 | M9: Řad "A" TLT DN80 (částečně souběh s kanalizací) / (průměrná hloubka výkopů 1,70 m):
C10: Objem konstrukce komunikací:503,50*1,00 | E10: 503.5 | M10: Objem konstrukce komunikací:503,50*1,00
C11: Řad "A" TLT DN100 (částečně souběh s kanalizací) / (průměrná hloubka výkopů 1,70 m): | E11: 0 | M11: Řad "A" TLT DN100 (částečně souběh s kanalizací) / (průměrná hloubka výkopů 1,70 m):
C12: Objem konstrukce komunikací:155,30*1,00 | E12: 155.3 | M12: Objem konstrukce komunikací:155,30*1,00
C13: Řad "D" TLT DN80 (průměrná hloubka výkopů 1,65 m): | E13: 0 | M13: Řad "D" TLT DN80 (průměrná hloubka výkopů 1,65 m):
C14: Objem konstrukce komunikací:45,40*1,00 | E14: 45.4 | M14: Objem konstrukce komunikací:45,40*1,00
C15: Řad "E" TLT DN80 (průměrná hloubka výkopů 1,65 m): | E15: 0 | M15: Řad "E" TLT DN80 (průměrná hloubka výkopů 1,65 m):
C16: Objem konstrukce komunikací:25,70*1,00 | E16: 25.7 | M16: Objem konstrukce komunikací:25,70*1,00
C17: Řad "F" TLT DN80 (průměrná hloubka výkopů 1,65 m): | E17: 0 | M17: Řad "F" TLT DN80 (průměrná hloubka výkopů 1,65 m):
C18: Objem konstrukce komunikací:9,40*1,00 | E18: 9.4 | M18: Objem konstrukce komunikací:9,40*1,00
C19: Řad "G" TLT DN80 (průměrná hloubka výkopů 1,65 m): | E19: 0 | M19: Řad "G" TLT DN80 (průměrná hloubka výkopů 1,65 m):
C20: Objem konstrukce komunikací:6,60*1,00 | E20: 6.6 | M20: Objem konstrukce komunikací:6,60*1,00
C21: Řad VV TLT DN150 (průměrná hloubka výkopů 1,95 m): | E21: 0 | M21: Řad VV TLT DN150 (průměrná hloubka výkopů 1,95 m):
C22: Objem konstrukce komunikací:40,00*1,10 | E22: 44 | M22: Objem konstrukce komunikací:40,00*1,10
A23: 2 | B23: 113108415R00 | C23: Odstranění asfaltové vrstvy pl.nad 50 m2, tl.15 cm | D23: m2 | E23: 789.9 | G23: =E23*F23 -> 0 | H23: 0 | I23: =E23*H23 -> 0 | J23: -0.33 | K23: =E23*J23 -> -260.667 | O23: 2 | AA23: 1 | AB23: 1 | AC23: 1 | AZ23: 1 | BA23: =IF(AZ23=1,G23,0) -> 0 | BB23: =IF(AZ23=2,G23,0) -> 0 | BC23: =IF(AZ23=3,G23,0) -> 0 | BD23: =IF(AZ23=4,G23,0) -> 0 | BE23: =IF(AZ23=5,G23,0) -> 0 | CA23: 1 | CB23: 1
C24: Řad "A" TLT DN80 (částečně souběh s kanalizací) / (průměrná hloubka výkopů 1,70 m): | E24: 0 | M24: Řad "A" TLT DN80 (částečně souběh s kanalizací) / (průměrná hloubka výkopů 1,70 m):
C25: Objem konstrukce komunikací:503,50*1,00 | E25: 503.5 | M25: Objem konstrukce komunikací:503,50*1,00
C26: Řad "A" TLT DN100 (částečně souběh s kanalizací) / (průměrná hloubka výkopů 1,70 m): | E26: 0 | M26: Řad "A" TLT DN100 (částečně souběh s kanalizací) / (průměrná hloubka výkopů 1,70 m):
C27: Objem konstrukce komunikací:155,30*1,00 | E27: 155.3 | M27: Objem konstrukce komunikací:155,30*1,00
C28: Řad "D" TLT DN80 (průměrná hloubka výkopů 1,65 m): | E28: 0 | M28: Řad "D" TLT DN80 (průměrná hloubka výkopů 1,65 m):
C29: Objem konstrukce komunikací:45,40*1,00 | E29: 45.4 | M29: Objem konstrukce komunikací:45,40*1,00
C30: Řad "E" TLT DN80 (průměrná hloubka výkopů 1,65 m): | E30: 0 | M30: Řad "E" TLT DN80 (průměrná hloubka výkopů 1,65 m):
C31: Objem konstrukce komunikací:25,70*1,00 | E31: 25.7 | M31: Objem konstrukce komunikací:25,70*1,00
C32: Řad "F" TLT DN80 (průměrná hloubka výkopů 1,65 m): | E32: 0 | M32: Řad "F" TLT DN80 (průměrná hloubka výkopů 1,65 m):
C33: Objem konstrukce komunikací:9,40*1,00 | E33: 9.4 | M33: Objem konstrukce komunikací:9,40*1,00
C34: Řad "G" TLT DN80 (průměrná hloubka výkopů 1,65 m): | E34: 0 | M34: Řad "G" TLT DN80 (průměrná hloubka výkopů 1,65 m):
C35: Objem konstrukce komunikací:6,60*1,00 | E35: 6.6 | M35: Objem konstrukce komunikací:6,60*1,00
C36: Řad VV TLT DN150 (průměrná hloubka výkopů 1,95 m): | E36: 0 | M36: Řad VV TLT DN150 (průměrná hloubka výkopů 1,95 m):
C37: Objem konstrukce komunikací:40,00*1,10 | E37: 44 | M37: Objem konstrukce komunikací:40,00*1,10
A38: 3 | B38: 119001401R00 | C38: Dočasné zajištění ocelového potrubí do DN 200 mm | D38: m | E38: 45.6 | G38: =E38*F38 -> 0 | H38: 0.00869 | I38: =E38*H38 -> 0.396264 | J38: 0 | K38: =E38*J38 -> 0 | O38: 2 | AA38: 1 | AB38: 1 | AC38: 1 | AZ38: 1 | BA38: =IF(AZ38=1,G38,0) -> 0 | BB38: =IF(AZ38=2,G38,0) -> 0 | BC38: =IF(AZ38=3,G38,0) -> 0 | BD38: =IF(AZ38=4,G38,0) -> 0 | BE38: =IF(AZ38=5,G38,0) -> 0 | CA38: 1 | CB38: 1
A39: 4 | B39: 119001422R00 | C39: Dočasné zajištění kabelů - v počtu 3 - 6 kabelů | D39: m | E39: 59.2 | G39: =E39*F39 -> 0 | H39: 0.03974 | I39: =E39*H39 -> 2.352608 | J39: 0 | K39: =E39*J39 -> 0 | O39: 2 | AA39: 1 | AB39: 1 | AC39: 1 | AZ39: 1 | BA39: =IF(AZ39=1,G39,0) -> 0 | BB39: =IF(AZ39=2,G39,0) -> 0 | BC39: =IF(AZ39=3,G39,0) -> 0 | BD39: =IF(AZ39=4,G39,0) -> 0 | BE39: =IF(AZ39=5,G39,0) -> 0 | CA39: 1 | CB39: 1
A40: 5 | B40: 130001101RRX | C40: Příplatek za ztížené hloubení v blízkosti vedení | D40: m3 | E40: 82.6812 | G40: =E40*F40 -> 0 | H40: 0 | I40: =E40*H40 -> 0 | J40: 0 | K40: =E40*J40 -> 0 | O40: 2 | AA40: 1 | AB40: 1 | AC40: 1 | AZ40: 1 | BA40: =IF(AZ40=1,G40,0) -> 0 | BB40: =IF(AZ40=2,G40,0) -> 0 | BC40: =IF(AZ40=3,G40,0) -> 0 | BD40: =IF(AZ40=4,G40,0) -> 0 | BE40: =IF(AZ40=5,G40,0) -> 0 | CA40: 1 | CB40: 1
C41: Včetně případných nutných dokopávem a ručního výkopu podél sousedících inženýrských sítí | L41: Včetně případných nutných dokopávem a ručního výkopu podél sousedících inženýrských sítí | O41: 3
C42: Začátek provozního součtu | E42: 0 | M42: Začátek provozního součtu
C43: Řad "A" TLT DN80 (částečně souběh s kanalizací) / (průměrná hloubka výkopů 1,70 m):503,50*1,00*1,70 | E43: 855.95 | M43: Řad "A" TLT DN80 (částečně souběh s kanalizací) / (průměrná hloubka výkopů 1,70 m):503,50*1,00*1,70
C44: Odpočet objemu konstrukce komunikací:-503,50*1,00*0,40 | E44: -201.4 | M44: Odpočet objemu konstrukce komunikací:-503,50*1,00*0,40
C45: Řad "A" TLT DN100 (částečně souběh s kanalizací) / (průměrná hloubka výkopů 1,70 m):155,30*1,00*1,70 | E45: 264.01 | M45: Řad "A" TLT DN100 (částečně souběh s kanalizací) / (průměrná hloubka výkopů 1,70 m):155,30*1,00*1,70
C46: Odpočet objemu konstrukce komunikací:-155,30*1,00*0,40 | E46: -62.12 | M46: Odpočet objemu konstrukce komunikací:-155,30*1,00*0,40
C47: Řad "D" TLT DN80 (průměrná hloubka výkopů 1,65 m):45,40*1,00*1,65 | E47: 74.91 | M47: Řad "D" TLT DN80 (průměrná hloubka výkopů 1,65 m):45,40*1,00*1,65
C48: Odpočet objemu konstrukce komunikací:-45,40*1,00*0,40 | E48: -18.16 | M48: Odpočet objemu konstrukce komunikací:-45,40*1,00*0,40
C49: Řad "E" TLT DN80 (průměrná hloubka výkopů 1,65 m):25,70*1,00*1,65 | E49: 42.405 | M49: Řad "E" TLT DN80 (průměrná hloubka výkopů 1,65 m):25,70*1,00*1,65
C50: Odpočet objemu konstrukce komunikací:-25,70*1,00*0,40 | E50: -10.28 | M50: Odpočet objemu konstrukce komunikací:-25,70*1,00*0,40
C51: Řad "F" TLT DN80 (průměrná hloubka výkopů 1,65 m):9,40*1,00*1,65 | E51: 15.51 | M51: Řad "F" TLT DN80 (průměrná hloubka výkopů 1,65 m):9,40*1,00*1,65
C52: Odpočet objemu konstrukce komunikací:-9,40*1,00*0,40 | E52: -3.76 | M52: Odpočet objemu konstrukce komunikací:-9,40*1,00*0,40
C53: Řad "G" TLT DN80 (průměrná hloubka výkopů 1,65 m):6,60*1,00*1,65 | E53: 10.89 | M53: Řad "G" TLT DN80 (průměrná hloubka výkopů 1,65 m):6,60*1,00*1,65
C54: Odpočet objemu konstrukce komunikací:-6,60*1,00*0,40 | E54: -2.64 | M54: Odpočet objemu konstrukce komunikací:-6,60*1,00*0,40
C55: Řad VV TLT DN150 (průměrná hloubka výkopů 1,95 m):40,00*1,10*1,95 | E55: 85.8 | M55: Řad VV TLT DN150 (průměrná hloubka výkopů 1,95 m):40,00*1,10*1,95
C56: Odpočet objemu konstrukce komunikací:-40,00*1,10*0,40 | E56: -17.6 | M56: Odpočet objemu konstrukce komunikací:-40,00*1,10*0,40
C57: Konec provozního součtu | E57: 1033.515 | M57: Konec provozního součtu
C58: V hornině tř. 3 - 5 - 8%:1033,5150*0,08 | E58: 82.6812 | M58: V hornině tř. 3 - 5 - 8%:1033,5150*0,08
A59: 6 | B59: 132201212R00 | C59: Hloubení rýh š.do 200 cm hor.3 do 1000m3,STROJNĚ | D59: m3 | E59: 465.0818 | G59: =E59*F59 -> 0 | H59: 0 | I59: =E59*H59 -> 0 | J59: 0 | K59: =E59*J59 -> 0 | O59: 2 | AA59: 1 | AB59: 1 | AC59: 1 | AZ59: 1 | BA59: =IF(AZ59=1,G59,0) -> 0 | BB59: =IF(AZ59=2,G59,0) -> 0 | BC59: =IF(AZ59=3,G59,0) -> 0 | BD59: =IF(AZ59=4,G59,0) -> 0 | BE59: =IF(AZ59=5,G59,0) -> 0 | CA59: 1 | CB59: 1
C60: Položka obsahuje hloubení rýh traktorbagrem, naložení výkopku na dopravní prostředek pro svislé, nebo vodorovné přemístění, popř. přemístění výkopku do 3 m (po povrchu území), případné zajištění rypadel polštáři, udržování pracoviště a ochranu výkopiště proti stékání srážkové vody z okolního terénu i s jejím odvodněním, nebo odvedením, přesekání a odstranění kořenů ve výkopišti, odstranění napadávek, urovnání dna výkopu. | L60: Položka obsahuje hloubení rýh traktorbagrem, naložení výkopku na dopravní prostředek pro svislé, nebo vodorovné přemístění, popř. přemístění výkopku do 3 m (po povrchu území), případné zajištění rypadel polštáři, udržování pracoviště a ochranu výkopiště proti stékání srážkové vody z okolního terénu i s jejím odvodněním, nebo odvedením, přesekání a odstranění kořenů ve výkopišti, odstranění napadávek, urovnání dna výkopu. | O60: 3
C61: Začátek provozního součtu | E61: 0 | M61: Začátek provozního součtu
C62: Řad "A" TLT DN80 (částečně souběh s kanalizací) / (průměrná hloubka výkopů 1,70 m):503,50*1,00*1,70 | E62: 855.95 | M62: Řad "A" TLT DN80 (částečně souběh s kanalizací) / (průměrná hloubka výkopů 1,70 m):503,50*1,00*1,70
C63: Odpočet objemu konstrukce komunikací:-503,50*1,00*0,40 | E63: -201.4 | M63: Odpočet objemu konstrukce komunikací:-503,50*1,00*0,40
C64: Řad "A" TLT DN100 (částečně souběh s kanalizací) / (průměrná hloubka výkopů 1,70 m):155,30*1,00*1,70 | E64: 264.01 | M64: Řad "A" TLT DN100 (částečně souběh s kanalizací) / (průměrná hloubka výkopů 1,70 m):155,30*1,00*1,70
C65: Odpočet objemu konstrukce komunikací:-155,30*1,00*0,40 | E65: -62.12 | M65: Odpočet objemu konstrukce komunikací:-155,30*1,00*0,40
C66: Řad "D" TLT DN80 (průměrná hloubka výkopů 1,65 m):45,40*1,00*1,65 | E66: 74.91 | M66: Řad "D" TLT DN80 (průměrná hloubka výkopů 1,65 m):45,40*1,00*1,65
C67: Odpočet objemu konstrukce komunikací:-45,40*1,00*0,40 | E67: -18.16 | M67: Odpočet objemu konstrukce komunikací:-45,40*1,00*0,40
C68: Řad "E" TLT DN80 (průměrná hloubka výkopů 1,65 m):25,70*1,00*1,65 | E68: 42.405 | M68: Řad "E" TLT DN80 (průměrná hloubka výkopů 1,65 m):25,70*1,00*1,65
C69: Odpočet objemu konstrukce komunikací:-25,70*1,00*0,40 | E69: -10.28 | M69: Odpočet objemu konstrukce komunikací:-25,70*1,00*0,40
C70: Řad "F" TLT DN80 (průměrná hloubka výkopů 1,65 m):9,40*1,00*1,65 | E70: 15.51 | M70: Řad "F" TLT DN80 (průměrná hloubka výkopů 1,65 m):9,40*1,00*1,65
C71: Odpočet objemu konstrukce komunikací:-9,40*1,00*0,40 | E71: -3.76 | M71: Odpočet objemu konstrukce komunikací:-9,40*1,00*0,40
C72: Řad "G" TLT DN80 (průměrná hloubka výkopů 1,65 m):6,60*1,00*1,65 | E72: 10.89 | M72: Řad "G" TLT DN80 (průměrná hloubka výkopů 1,65 m):6,60*1,00*1,65
C73: Odpočet objemu konstrukce komunikací:-6,60*1,00*0,40 | E73: -2.64 | M73: Odpočet objemu konstrukce komunikací:-6,60*1,00*0,40
C74: Řad VV TLT DN150 (průměrná hloubka výkopů 1,95 m):40,00*1,10*1,95 | E74: 85.8 | M74: Řad VV TLT DN150 (průměrná hloubka výkopů 1,95 m):40,00*1,10*1,95
C75: Odpočet objemu konstrukce komunikací:-40,00*1,10*0,40 | E75: -17.6 | M75: Odpočet objemu konstrukce komunikací:-40,00*1,10*0,40
C76: Konec provozního součtu | E76: 1033.515 | M76: Konec provozního součtu
C77: V hornině tř. 3 - 45%:1033,5150*0,45 | E77: 465.0818 | M77: V hornině tř. 3 - 45%:1033,5150*0,45
A78: 7 | B78: 132201219R00 | C78: Přípl.za lepivost,hloubení rýh 200cm,hor.3,STROJNĚ | D78: m3 | E78: 232.5409 | G78: =E78*F78 -> 0 | H78: 0 | I78: =E78*H78 -> 0 | J78: 0 | K78: =E78*J78 -> 0 | O78: 2 | AA78: 1 | AB78: 1 | AC78: 1 | AZ78: 1 | BA78: =IF(AZ78=1,G78,0) -> 0 | BB78: =IF(AZ78=2,G78,0) -> 0 | BC78: =IF(AZ78=3,G78,0) -> 0 | BD78: =IF(AZ78=4,G78,0) -> 0 | BE78: =IF(AZ78=5,G78,0) -> 0 | CA78: 1 | CB78: 1
C79: Začátek provozního součtu | E79: 0 | M79: Začátek provozního součtu
C80: Řad "A" TLT DN80 (částečně souběh s kanalizací) / (průměrná hloubka výkopů 1,70 m):503,50*1,00*1,70 | E80: 855.95 | M80: Řad "A" TLT DN80 (částečně souběh s kanalizací) / (průměrná hloubka výkopů 1,70 m):503,50*1,00*1,70
C81: Odpočet objemu konstrukce komunikací:-503,50*1,00*0,40 | E81: -201.4 | M81: Odpočet objemu konstrukce komunikací:-503,50*1,00*0,40
C82: Řad "A" TLT DN100 (částečně souběh s kanalizací) / (průměrná hloubka výkopů 1,70 m):155,30*1,00*1,70 | E82: 264.01 | M82: Řad "A" TLT DN100 (částečně souběh s kanalizací) / (průměrná hloubka výkopů 1,70 m):155,30*1,00*1,70
C83: Odpočet objemu konstrukce komunikací:-155,30*1,00*0,40 | E83: -62.12 | M83: Odpočet objemu konstrukce komunikací:-155,30*1,00*0,40
C84: Řad "D" TLT DN80 (průměrná hloubka výkopů 1,65 m):45,40*1,00*1,65 | E84: 74.91 | M84: Řad "D" TLT DN80 (průměrná hloubka výkopů 1,65 m):45,40*1,00*1,65
C85: Odpočet objemu konstrukce komunikací:-45,40*1,00*0,40 | E85: -18.16 | M85: Odpočet objemu konstrukce komunikací:-45,40*1,00*0,40
C86: Řad "E" TLT DN80 (průměrná hloubka výkopů 1,65 m):25,70*1,00*1,65 | E86: 42.405 | M86: Řad "E" TLT DN80 (průměrná hloubka výkopů 1,65 m):25,70*1,00*1,65
C87: Odpočet objemu konstrukce komunikací:-25,70*1,00*0,40 | E87: -10.28 | M87: Odpočet objemu konstrukce komunikací:-25,70*1,00*0,40
C88: Řad "F" TLT DN80 (průměrná hloubka výkopů 1,65 m):9,40*1,00*1,65 | E88: 15.51 | M88: Řad "F" TLT DN80 (průměrná hloubka výkopů 1,65 m):9,40*1,00*1,65
C89: Odpočet objemu konstrukce komunikací:-9,40*1,00*0,40 | E89: -3.76 | M89: Odpočet objemu konstrukce komunikací:-9,40*1,00*0,40
C90: Řad "G" TLT DN80 (průměrná hloubka výkopů 1,65 m):6,60*1,00*1,65 | E90: 10.89 | M90: Řad "G" TLT DN80 (průměrná hloubka výkopů 1,65 m):6,60*1,00*1,65
C91: Odpočet objemu konstrukce komunikací:-6,60*1,00*0,40 | E91: -2.64 | M91: Odpočet objemu konstrukce komunikací:-6,60*1,00*0,40
C92: Řad VV TLT DN150 (průměrná hloubka výkopů 1,95 m):40,00*1,10*1,95 | E92: 85.8 | M92: Řad VV TLT DN150 (průměrná hloubka výkopů 1,95 m):40,00*1,10*1,95
C93: Odpočet objemu konstrukce komunikací:-40,00*1,10*0,40 | E93: -17.6 | M93: Odpočet objemu konstrukce komunikací:-40,00*1,10*0,40
C94: Konec provozního součtu | E94: 1033.515 | M94: Konec provozního součtu
C95: V hornině tř. 3 - 45%:1033,5150*0,45*0,5 | E95: 232.5409 | M95: V hornině tř. 3 - 45%:1033,5150*0,45*0,5
A96: 8 | B96: 132301212R00 | C96: Hloubení rýh š.do 200 cm hor.4 do 1000 m3, STROJNĚ | D96: m3 | E96: 465.0818 | G96: =E96*F96 -> 0 | H96: 0 | I96: =E96*H96 -> 0 | J96: 0 | K96: =E96*J96 -> 0 | O96: 2 | AA96: 1 | AB96: 1 | AC96: 1 | AZ96: 1 | BA96: =IF(AZ96=1,G96,0) -> 0 | BB96: =IF(AZ96=2,G96,0) -> 0 | BC96: =IF(AZ96=3,G96,0) -> 0 | BD96: =IF(AZ96=4,G96,0) -> 0 | BE96: =IF(AZ96=5,G96,0) -> 0 | CA96: 1 | CB96: 1
C97: Položka obsahuje hloubení rýh traktorbagrem, naložení výkopku na dopravní prostředek pro svislé, nebo vodorovné přemístění, popř. přemístění výkopku do 3 m (po povrchu území), případné zajištění rypadel polštáři, udržování pracoviště a ochranu výkopiště proti stékání srážkové vody z okolního terénu i s jejím odvodněním, nebo odvedením, přesekání a odstranění kořenů ve výkopišti, odstranění napadávek, urovnání dna výkopu. | L97: Položka obsahuje hloubení rýh traktorbagrem, naložení výkopku na dopravní prostředek pro svislé, nebo vodorovné přemístění, popř. přemístění výkopku do 3 m (po povrchu území), případné zajištění rypadel polštáři, udržování pracoviště a ochranu výkopiště proti stékání srážkové vody z okolního terénu i s jejím odvodněním, nebo odvedením, přesekání a odstranění kořenů ve výkopišti, odstranění napadávek, urovnání dna výkopu. | O97: 3
C98: Začátek provozního součtu | E98: 0 | M98: Začátek provozního součtu
C99: Řad "A" TLT DN80 (částečně souběh s kanalizací) / (průměrná hloubka výkopů 1,70 m):503,50*1,00*1,70 | E99: 855.95 | M99: Řad "A" TLT DN80 (částečně souběh s kanalizací) / (průměrná hloubka výkopů 1,70 m):503,50*1,00*1,70
C100: Odpočet objemu konstrukce komunikací:-503,50*1,00*0,40 | E100: -201.4 | M100: Odpočet objemu konstrukce komunikací:-503,50*1,00*0,40
C101: Řad "A" TLT DN100 (částečně souběh s kanalizací) / (průměrná hloubka výkopů 1,70 m):155,30*1,00*1,70 | E101: 264.01 | M101: Řad "A" TLT DN100 (částečně souběh s kanalizací) / (průměrná hloubka výkopů 1,70 m):155,30*1,00*1,70
C102: Odpočet objemu konstrukce komunikací:-155,30*1,00*0,40 | E102: -62.12 | M102: Odpočet objemu konstrukce komunikací:-155,30*1,00*0,40
C103: Řad "D" TLT DN80 (průměrná hloubka výkopů 1,65 m):45,40*1,00*1,65 | E103: 74.91 | M103: Řad "D" TLT DN80 (průměrná hloubka výkopů 1,65 m):45,40*1,00*1,65
C104: Odpočet objemu konstrukce komunikací:-45,40*1,00*0,40 | E104: -18.16 | M104: Odpočet objemu konstrukce komunikací:-45,40*1,00*0,40
C105: Řad "E" TLT DN80 (průměrná hloubka výkopů 1,65 m):25,70*1,00*1,65 | E105: 42.405 | M105: Řad "E" TLT DN80 (průměrná hloubka výkopů 1,65 m):25,70*1,00*1,65
C106: Odpočet objemu konstrukce komunikací:-25,70*1,00*0,40 | E106: -10.28 | M106: Odpočet objemu konstrukce komunikací:-25,70*1,00*0,40
C107: Řad "F" TLT DN80 (průměrná hloubka výkopů 1,65 m):9,40*1,00*1,65 | E107: 15.51 | M107: Řad "F" TLT DN80 (průměrná hloubka výkopů 1,65 m):9,40*1,00*1,65
C108: Odpočet objemu konstrukce komunikací:-9,40*1,00*0,40 | E108: -3.76 | M108: Odpočet objemu konstrukce komunikací:-9,40*1,00*0,40
C109: Řad "G" TLT DN80 (průměrná hloubka výkopů 1,65 m):6,60*1,00*1,65 | E109: 10.89 | M109: Řad "G" TLT DN80 (průměrná hloubka výkopů 1,65 m):6,60*1,00*1,65
C110: Odpočet objemu konstrukce komunikací:-6,60*1,00*0,40 | E110: -2.64 | M110: Odpočet objemu konstrukce komunikací:-6,60*1,00*0,40
C111: Řad VV TLT DN150 (průměrná hloubka výkopů 1,95 m):40,00*1,10*1,95 | E111: 85.8 | M111: Řad VV TLT DN150 (průměrná hloubka výkopů 1,95 m):40,00*1,10*1,95
C112: Odpočet objemu konstrukce komunikací:-40,00*1,10*0,40 | E112: -17.6 | M112: Odpočet objemu konstrukce komunikací:-40,00*1,10*0,40
C113: Konec provozního součtu | E113: 1033.515 | M113: Konec provozního součtu
C114: V hornině tř. 4 - 45%:1033,5150*0,45 | E114: 465.0818 | M114: V hornině tř. 4 - 45%:1033,5150*0,45
A115: 9 | B115: 132301219R00 | C115: Přípl.za lepivost,hloubení rýh 200cm,hor.4,STROJNĚ | D115: m3 | E115: 232.5409 | G115: =E115*F115 -> 0 | H115: 0 | I115: =E115*H115 -> 0 | J115: 0 | K115: =E115*J115 -> 0 | O115: 2 | AA115: 1 | AB115: 1 | AC115: 1 | AZ115: 1 | BA115: =IF(AZ115=1,G115,0) -> 0 | BB115: =IF(AZ115=2,G115,0) -> 0 | BC115: =IF(AZ115=3,G115,0) -> 0 | BD115: =IF(AZ115=4,G115,0) -> 0 | BE115: =IF(AZ115=5,G115,0) -> 0 | CA115: 1 | CB115: 1
C116: Začátek provozního součtu | E116: 0 | M116: Začátek provozního součtu
C117: Řad "A" TLT DN80 (částečně souběh s kanalizací) / (průměrná hloubka výkopů 1,70 m):503,50*1,00*1,70 | E117: 855.95 | M117: Řad "A" TLT DN80 (částečně souběh s kanalizací) / (průměrná hloubka výkopů 1,70 m):503,50*1,00*1,70
C118: Odpočet objemu konstrukce komunikací:-503,50*1,00*0,40 | E118: -201.4 | M118: Odpočet objemu konstrukce komunikací:-503,50*1,00*0,40
C119: Řad "A" TLT DN100 (částečně souběh s kanalizací) / (průměrná hloubka výkopů 1,70 m):155,30*1,00*1,70 | E119: 264.01 | M119: Řad "A" TLT DN100 (částečně souběh s kanalizací) / (průměrná hloubka výkopů 1,70 m):155,30*1,00*1,70
C120: Odpočet objemu konstrukce komunikací:-155,30*1,00*0,40 | E120: -62.12 | M120: Odpočet objemu konstrukce komunikací:-155,30*1,00*0,40
C121: Řad "D" TLT DN80 (průměrná hloubka výkopů 1,65 m):45,40*1,00*1,65 | E121: 74.91 | M121: Řad "D" TLT DN80 (průměrná hloubka výkopů 1,65 m):45,40*1,00*1,65
C122: Odpočet objemu konstrukce komunikací:-45,40*1,00*0,40 | E122: -18.16 | M122: Odpočet objemu konstrukce komunikací:-45,40*1,00*0,40
C123: Řad "E" TLT DN80 (průměrná hloubka výkopů 1,65 m):25,70*1,00*1,65 | E123: 42.405 | M123: Řad "E" TLT DN80 (průměrná hloubka výkopů 1,65 m):25,70*1,00*1,65
C124: Odpočet objemu konstrukce komunikací:-25,70*1,00*0,40 | E124: -10.28 | M124: Odpočet objemu konstrukce komunikací:-25,70*1,00*0,40
C125: Řad "F" TLT DN80 (průměrná hloubka výkopů 1,65 m):9,40*1,00*1,65 | E125: 15.51 | M125: Řad "F" TLT DN80 (průměrná hloubka výkopů 1,65 m):9,40*1,00*1,65
C126: Odpočet objemu konstrukce komunikací:-9,40*1,00*0,40 | E126: -3.76 | M126: Odpočet objemu konstrukce komunikací:-9,40*1,00*0,40
C127: Řad "G" TLT DN80 (průměrná hloubka výkopů 1,65 m):6,60*1,00*1,65 | E127: 10.89 | M127: Řad "G" TLT DN80 (průměrná hloubka výkopů 1,65 m):6,60*1,00*1,65
C128: Odpočet objemu konstrukce komunikací:-6,60*1,00*0,40 | E128: -2.64 | M128: Odpočet objemu konstrukce komunikací:-6,60*1,00*0,40
C129: Řad VV TLT DN150 (průměrná hloubka výkopů 1,95 m):40,00*1,10*1,95 | E129: 85.8 | M129: Řad VV TLT DN150 (průměrná hloubka výkopů 1,95 m):40,00*1,10*1,95
C130: Odpočet objemu konstrukce komunikací:-40,00*1,10*0,40 | E130: -17.6 | M130: Odpočet objemu konstrukce komunikací:-40,00*1,10*0,40
C131: Konec provozního součtu | E131: 1033.515 | M131: Konec provozního součtu
C132: V hornině tř. 4 - 45%:1033,5150*0,45*0,5 | E132: 232.5409 | M132: V hornině tř. 4 - 45%:1033,5150*0,45*0,5
A133: 10 | B133: 132401211R00 | C133: Hloubení rýh šířky do 200 cm v hor.5, STROJNĚ | D133: m3 | E133: 103.3515 | G133: =E133*F133 -> 0 | H133: 0 | I133: =E133*H133 -> 0 | J133: 0 | K133: =E133*J133 -> 0 | O133: 2 | AA133: 1 | AB133: 1 | AC133: 1 | AZ133: 1 | BA133: =IF(AZ133=1,G133,0) -> 0 | BB133: =IF(AZ133=2,G133,0) -> 0 | BC133: =IF(AZ133=3,G133,0) -> 0 | BD133: =IF(AZ133=4,G133,0) -> 0 | BE133: =IF(AZ133=5,G133,0) -> 0 | CA133: 1 | CB133: 1
C134: Položka obsahuje hloubení jámy kolovým rypadlem s rozrývacím zubem, naložení výkopku na dopravní prostředek pro svislé, nebo vodorovné přemístění, popř. přemístění výkopku do 3 m (po povrchu území), případné zajištění rypadel polštáři, udržování pracoviště a ochranu výkopiště proti stékání srážkové vody z okolního terénu i s jejím odvodněním, nebo odvedením, přesekání a odstranění kořenů ve výkopišti, odstranění napadávek, urovnání dna výkopu. Položka se používá bez ohledu na těžené množství. | L134: Položka obsahuje hloubení jámy kolovým rypadlem s rozrývacím zubem, naložení výkopku na dopravní prostředek pro svislé, nebo vodorovné přemístění, popř. přemístění výkopku do 3 m (po povrchu území), případné zajištění rypadel polštáři, udržování pracoviště a ochranu výkopiště proti stékání srážkové vody z okolního terénu i s jejím odvodněním, nebo odvedením, přesekání a odstranění kořenů ve výkopišti, odstranění napadávek, urovnání dna výkopu. Položka se používá bez ohledu na těžené množství. | O134: 3
C135: Začátek provozního součtu | E135: 0 | M135: Začátek provozního součtu
C136: Řad "A" TLT DN80 (částečně souběh s kanalizací) / (průměrná hloubka výkopů 1,70 m):503,50*1,00*1,70 | E136: 855.95 | M136: Řad "A" TLT DN80 (částečně souběh s kanalizací) / (průměrná hloubka výkopů 1,70 m):503,50*1,00*1,70
C137: Odpočet objemu konstrukce komunikací:-503,50*1,00*0,40 | E137: -201.4 | M137: Odpočet objemu konstrukce komunikací:-503,50*1,00*0,40
C138: Řad "A" TLT DN100 (částečně souběh s kanalizací) / (průměrná hloubka výkopů 1,70 m):155,30*1,00*1,70 | E138: 264.01 | M138: Řad "A" TLT DN100 (částečně souběh s kanalizací) / (průměrná hloubka výkopů 1,70 m):155,30*1,00*1,70
C139: Odpočet objemu konstrukce komunikací:-155,30*1,00*0,40 | E139: -62.12 | M139: Odpočet objemu konstrukce komunikací:-155,30*1,00*0,40
C140: Řad "D" TLT DN80 (průměrná hloubka výkopů 1,65 m):45,40*1,00*1,65 | E140: 74.91 | M140: Řad "D" TLT DN80 (průměrná hloubka výkopů 1,65 m):45,40*1,00*1,65
C141: Odpočet objemu konstrukce komunikací:-45,40*1,00*0,40 | E141: -18.16 | M141: Odpočet objemu konstrukce komunikací:-45,40*1,00*0,40
C142: Řad "E" TLT DN80 (průměrná hloubka výkopů 1,65 m):25,70*1,00*1,65 | E142: 42.405 | M142: Řad "E" TLT DN80 (průměrná hloubka výkopů 1,65 m):25,70*1,00*1,65
C143: Odpočet objemu konstrukce komunikací:-25,70*1,00*0,40 | E143: -10.28 | M143: Odpočet objemu konstrukce komunikací:-25,70*1,00*0,40
C144: Řad "F" TLT DN80 (průměrná hloubka výkopů 1,65 m):9,40*1,00*1,65 | E144: 15.51 | M144: Řad "F" TLT DN80 (průměrná hloubka výkopů 1,65 m):9,40*1,00*1,65
C145: Odpočet objemu konstrukce komunikací:-9,40*1,00*0,40 | E145: -3.76 | M145: Odpočet objemu konstrukce komunikací:-9,40*1,00*0,40
C146: Řad "G" TLT DN80 (průměrná hloubka výkopů 1,65 m):6,60*1,00*1,65 | E146: 10.89 | M146: Řad "G" TLT DN80 (průměrná hloubka výkopů 1,65 m):6,60*1,00*1,65
C147: Odpočet objemu konstrukce komunikací:-6,60*1,00*0,40 | E147: -2.64 | M147: Odpočet objemu konstrukce komunikací:-6,60*1,00*0,40
C148: Řad VV TLT DN150 (průměrná hloubka výkopů 1,95 m):40,00*1,10*1,95 | E148: 85.8 | M148: Řad VV TLT DN150 (průměrná hloubka výkopů 1,95 m):40,00*1,10*1,95
C149: Odpočet objemu konstrukce komunikací:-40,00*1,10*0,40 | E149: -17.6 | M149: Odpočet objemu konstrukce komunikací:-40,00*1,10*0,40
C150: Konec provozního součtu | E150: 1033.515 | M150: Konec provozního součtu
C151: V hornině tř. 5 - 10%:1033,5150*0,1 | E151: 103.3515 | M151: V hornině tř. 5 - 10%:1033,5150*0,1
A152: 11 | B152: 151101101R00 | C152: Pažení a rozepření stěn rýh - příložné - hl.do 2 m | D152: m2 | E152: 1622.55 | G152: =E152*F152 -> 0 | H152: 0.00099 | I152: =E152*H152 -> 1.6063245 | J152: 0 | K152: =E152*J152 -> 0 | O152: 2 | AA152: 1 | AB152: 1 | AC152: 1 | AZ152: 1 | BA152: =IF(AZ152=1,G152,0) -> 0 | BB152: =IF(AZ152=2,G152,0) -> 0 | BC152: =IF(AZ152=3,G152,0) -> 0 | BD152: =IF(AZ152=4,G152,0) -> 0 | BE152: =IF(AZ152=5,G152,0) -> 0 | CA152: 1 | CB152: 1
C153: Řad "A" TLT DN80 (částečně souběh s kanalizací) / (průměrná hloubka výkopů 1,70 m):(503,50-156,70)*1,70*2 | E153: 1179.12 | M153: Řad "A" TLT DN80 (částečně souběh s kanalizací) / (průměrná hloubka výkopů 1,70 m):(503,50-156,70)*1,70*2
C154: Řad "A" TLT DN100 (částečně souběh s kanalizací) / (průměrná hloubka výkopů 1,70 m):0 | E154: 0 | M154: Řad "A" TLT DN100 (částečně souběh s kanalizací) / (průměrná hloubka výkopů 1,70 m):0
C155: Řad "D" TLT DN80 (průměrná hloubka výkopů 1,65 m):45,40*1,65*2 | E155: 149.82 | M155: Řad "D" TLT DN80 (průměrná hloubka výkopů 1,65 m):45,40*1,65*2
C156: Řad "E" TLT DN80 (průměrná hloubka výkopů 1,65 m):25,70*1,65*2 | E156: 84.81 | M156: Řad "E" TLT DN80 (průměrná hloubka výkopů 1,65 m):25,70*1,65*2
C157: Řad "F" TLT DN80 (průměrná hloubka výkopů 1,65 m):9,40*1,65*2 | E157: 31.02 | M157: Řad "F" TLT DN80 (průměrná hloubka výkopů 1,65 m):9,40*1,65*2
C158: Řad "G" TLT DN80 (průměrná hloubka výkopů 1,65 m):6,60*1,65*2 | E158: 21.78 | M158: Řad "G" TLT DN80 (průměrná hloubka výkopů 1,65 m):6,60*1,65*2
C159: Řad VV TLT DN150 (průměrná hloubka výkopů 1,95 m):40,00*1,95*2 | E159: 156 | M159: Řad VV TLT DN150 (průměrná hloubka výkopů 1,95 m):40,00*1,95*2
A160: 12 | B160: 151101111R00 | C160: Odstranění pažení stěn rýh - příložné - hl. do 2 m | D160: m2 | E160: 1622.55 | G160: =E160*F160 -> 0 | H160: 0 | I160: =E160*H160 -> 0 | J160: 0 | K160: =E160*J160 -> 0 | O160: 2 | AA160: 1 | AB160: 1 | AC160: 1 | AZ160: 1 | BA160: =IF(AZ160=1,G160,0) -> 0 | BB160: =IF(AZ160=2,G160,0) -> 0 | BC160: =IF(AZ160=3,G160,0) -> 0 | BD160: =IF(AZ160=4,G160,0) -> 0 | BE160: =IF(AZ160=5,G160,0) -> 0 | CA160: 1 | CB160: 1
C161: Řad "A" TLT DN80 (částečně souběh s kanalizací) / (průměrná hloubka výkopů 1,70 m):(503,50-156,70)*1,70*2 | E161: 1179.12 | M161: Řad "A" TLT DN80 (částečně souběh s kanalizací) / (průměrná hloubka výkopů 1,70 m):(503,50-156,70)*1,70*2
C162: Řad "A" TLT DN100 (částečně souběh s kanalizací) / (průměrná hloubka výkopů 1,70 m):0 | E162: 0 | M162: Řad "A" TLT DN100 (částečně souběh s kanalizací) / (průměrná hloubka výkopů 1,70 m):0
C163: Řad "D" TLT DN80 (průměrná hloubka výkopů 1,65 m):45,40*1,65*2 | E163: 149.82 | M163: Řad "D" TLT DN80 (průměrná hloubka výkopů 1,65 m):45,40*1,65*2
C164: Řad "E" TLT DN80 (průměrná hloubka výkopů 1,65 m):25,70*1,65*2 | E164: 84.81 | M164: Řad "E" TLT DN80 (průměrná hloubka výkopů 1,65 m):25,70*1,65*2
C165: Řad "F" TLT DN80 (průměrná hloubka výkopů 1,65 m):9,40*1,65*2 | E165: 31.02 | M165: Řad "F" TLT DN80 (průměrná hloubka výkopů 1,65 m):9,40*1,65*2
C166: Řad "G" TLT DN80 (průměrná hloubka výkopů 1,65 m):6,60*1,65*2 | E166: 21.78 | M166: Řad "G" TLT DN80 (průměrná hloubka výkopů 1,65 m):6,60*1,65*2
C167: Řad VV TLT DN150 (průměrná hloubka výkopů 1,95 m):40,00*1,95*2 | E167: 156 | M167: Řad VV TLT DN150 (průměrná hloubka výkopů 1,95 m):40,00*1,95*2
A168: 13 | B168: 162701105RSZ | C168: Vodorovné přemístění výkopku z hor.1-4 na skládku zhotovitele | D168: m3 | E168: 1033.515 | G168: =E168*F168 -> 0 | H168: 0 | I168: =E168*H168 -> 0 | J168: 0 | K168: =E168*J168 -> 0 | O168: 2 | AA168: 1 | AB168: 1 | AC168: 1 | AZ168: 1 | BA168: =IF(AZ168=1,G168,0) -> 0 | BB168: =IF(AZ168=2,G168,0) -> 0 | BC168: =IF(AZ168=3,G168,0) -> 0 | BD168: =IF(AZ168=4,G168,0) -> 0 | BE168: =IF(AZ168=5,G168,0) -> 0 | CA168: 1 | CB168: 1
C169: Výkopy: | E169: 0 | M169: Výkopy:
C170: Začátek provozního součtu | E170: 0 | M170: Začátek provozního součtu
C171: Řad "A" TLT DN80 (částečně souběh s kanalizací) / (průměrná hloubka výkopů 1,70 m):503,50*1,00*1,70 | E171: 855.95 | M171: Řad "A" TLT DN80 (částečně souběh s kanalizací) / (průměrná hloubka výkopů 1,70 m):503,50*1,00*1,70
C172: Odpočet objemu konstrukce komunikací:-503,50*1,00*0,40 | E172: -201.4 | M172: Odpočet objemu konstrukce komunikací:-503,50*1,00*0,40
C173: Řad "A" TLT DN100 (částečně souběh s kanalizací) / (průměrná hloubka výkopů 1,70 m):155,30*1,00*1,70 | E173: 264.01 | M173: Řad "A" TLT DN100 (částečně souběh s kanalizací) / (průměrná hloubka výkopů 1,70 m):155,30*1,00*1,70
C174: Odpočet objemu konstrukce komunikací:-155,30*1,00*0,40 | E174: -62.12 | M174: Odpočet objemu konstrukce komunikací:-155,30*1,00*0,40
C175: Řad "D" TLT DN80 (průměrná hloubka výkopů 1,65 m):45,40*1,00*1,65 | E175: 74.91 | M175: Řad "D" TLT DN80 (průměrná hloubka výkopů 1,65 m):45,40*1,00*1,65
C176: Odpočet objemu konstrukce komunikací:-45,40*1,00*0,40 | E176: -18.16 | M176: Odpočet objemu konstrukce komunikací:-45,40*1,00*0,40
C177: Řad "E" TLT DN80 (průměrná hloubka výkopů 1,65 m):25,70*1,00*1,65 | E177: 42.405 | M177: Řad "E" TLT DN80 (průměrná hloubka výkopů 1,65 m):25,70*1,00*1,65
C178: Odpočet objemu konstrukce komunikací:-25,70*1,00*0,40 | E178: -10.28 | M178: Odpočet objemu konstrukce komunikací:-25,70*1,00*0,40
C179: Řad "F" TLT DN80 (průměrná hloubka výkopů 1,65 m):9,40*1,00*1,65 | E179: 15.51 | M179: Řad "F" TLT DN80 (průměrná hloubka výkopů 1,65 m):9,40*1,00*1,65
C180: Odpočet objemu konstrukce komunikací:-9,40*1,00*0,40 | E180: -3.76 | M180: Odpočet objemu konstrukce komunikací:-9,40*1,00*0,40
C181: Řad "G" TLT DN80 (průměrná hloubka výkopů 1,65 m):6,60*1,00*1,65 | E181: 10.89 | M181: Řad "G" TLT DN80 (průměrná hloubka výkopů 1,65 m):6,60*1,00*1,65
C182: Odpočet objemu konstrukce komunikací:-6,60*1,00*0,40 | E182: -2.64 | M182: Odpočet objemu konstrukce komunikací:-6,60*1,00*0,40
C183: Řad VV TLT DN150 (průměrná hloubka výkopů 1,95 m):40,00*1,10*1,95 | E183: 85.8 | M183: Řad VV TLT DN150 (průměrná hloubka výkopů 1,95 m):40,00*1,10*1,95
C184: Odpočet objemu konstrukce komunikací:-40,00*1,10*0,40 | E184: -17.6 | M184: Odpočet objemu konstrukce komunikací:-40,00*1,10*0,40
C185: Konec provozního součtu | E185: 1033.515 | M185: Konec provozního součtu
C186: V hornině tř. 3 - 5:1033,5150 | E186: 1033.515 | M186: V hornině tř. 3 - 5:1033,5150
A187: 14 | B187: 174101101R00 | C187: Zásyp jam, rýh, šachet se zhutněním | D187: m3 | E187: 648.177 | G187: =E187*F187 -> 0 | H187: 0 | I187: =E187*H187 -> 0 | J187: 0 | K187: =E187*J187 -> 0 | O187: 2 | AA187: 1 | AB187: 1 | AC187: 1 | AZ187: 1 | BA187: =IF(AZ187=1,G187,0) -> 0 | BB187: =IF(AZ187=2,G187,0) -> 0 | BC187: =IF(AZ187=3,G187,0) -> 0 | BD187: =IF(AZ187=4,G187,0) -> 0 | BE187: =IF(AZ187=5,G187,0) -> 0 | CA187: 1 | CB187: 1
C188: Položka obsahuje strojní přemístění materiálu pro zásyp ze vzdálenosti do 10 m od okraje zásypu. | L188: Položka obsahuje strojní přemístění materiálu pro zásyp ze vzdálenosti do 10 m od okraje zásypu. | O188: 3
C189: Zásyp štěrkodrtí fr. 0-63 mm:648,1770 | E189: 648.177 | M189: Zásyp štěrkodrtí fr. 0-63 mm:648,1770
C190: Začátek provozního součtu | E190: 0 | M190: Začátek provozního součtu
C191: Výkopy: | E191: 0 | M191: Výkopy:
C192: V hornině tř. 3 - 5 - 8%:1033,5150 | E192: 1033.515 | M192: V hornině tř. 3 - 5 - 8%:1033,5150
C193: Odpočet lože, potrubí a obsypů: | E193: 0 | M193: Odpočet lože, potrubí a obsypů:
C194: Řad "A" TLT DN80 (částečně souběh s kanalizací) / (průměrná hloubka výkopů 1,70 m):-503,50*1,00*(0,10+0,08+0,30) | E194: -241.68 | M194: Řad "A" TLT DN80 (částečně souběh s kanalizací) / (průměrná hloubka výkopů 1,70 m):-503,50*1,00*(0,10+0,08+0,30)
C195: Řad "A" TLT DN100 (částečně souběh s kanalizací) / (průměrná hloubka výkopů 1,70 m):-155,30*1,00*(0,10+0,10+0,30) | E195: -77.65 | M195: Řad "A" TLT DN100 (částečně souběh s kanalizací) / (průměrná hloubka výkopů 1,70 m):-155,30*1,00*(0,10+0,10+0,30)
C196: Řad "D" TLT DN80 (průměrná hloubka výkopů 1,65 m):-45,40*1,00*(0,10+0,08+0,30) | E196: -21.792 | M196: Řad "D" TLT DN80 (průměrná hloubka výkopů 1,65 m):-45,40*1,00*(0,10+0,08+0,30)
C197: Řad "E" TLT DN80 (průměrná hloubka výkopů 1,65 m):-25,70*1,00*(0,10+0,08+0,30) | E197: -12.336 | M197: Řad "E" TLT DN80 (průměrná hloubka výkopů 1,65 m):-25,70*1,00*(0,10+0,08+0,30)
C198: Řad "F" TLT DN80 (průměrná hloubka výkopů 1,65 m):-9,40*1,00*(0,10+0,08+0,30) | E198: -4.512 | M198: Řad "F" TLT DN80 (průměrná hloubka výkopů 1,65 m):-9,40*1,00*(0,10+0,08+0,30)
C199: Řad "G" TLT DN80 (průměrná hloubka výkopů 1,65 m):-6,60*1,00*(0,10+0,08+0,30) | E199: -3.168 | M199: Řad "G" TLT DN80 (průměrná hloubka výkopů 1,65 m):-6,60*1,00*(0,10+0,08+0,30)
C200: Řad VV TLT DN150 (průměrná hloubka výkopů 1,95 m):-40,00*1,10*(0,10+0,15+0,30) | E200: -24.2 | M200: Řad VV TLT DN150 (průměrná hloubka výkopů 1,95 m):-40,00*1,10*(0,10+0,15+0,30)
C201: 0 | E201: 0 | M201: 0
C202: Konec provozního součtu | E202: 648.177 | M202: Konec provozního součtu
... 589 more rows

Sheet II. 03 II. 03 KL
A1: POLOŽKOVÝ ROZPOČET
A2: Rozpočet | C2: II. 03 | D2: Přepojení vod. a kanal. přípojek | F2: JKSO | G2: 827
A4: Objekt | F4: SKP
A5: II. 03 | C5: Přepojení vod. a kanal. přípojek | F5: Měrná jednotka | G5: m
A6: Stavba | F6: Počet jednotek | G6: 0
A7: 3334 | C7: Lomnice nad Popelkou - Vodovod a kanalizace | F7: Náklady na m.j. | G7: =IF(G6=0,,ROUND((F30+F32)/G6,1)) -> 0
A8: Projektant | C8: VEDU VODU s.r.o. Dobrovice | F8: Typ rozpočtu
A9: Zpracovatel projektu
A10: Objednatel | C10: Vodohospodářské sdružení Turnov
A11: Dodavatel | C11: . | F11: Zakázkové číslo
A12: Rozpočtoval | F12: Počet listů
A13: ROZPOČTOVÉ NÁKLADY
A14: Základní rozpočtové náklady
B15: HSV celkem | C15: ='II. 03 II. 03 Rek'!E12 -> 0
A16: Z | B16: PSV celkem | C16: ='II. 03 II. 03 Rek'!F12 -> 0
A17: R | B17: M práce celkem | C17: ='II. 03 II. 03 Rek'!H12 -> 0
A18: N | B18: M dodávky celkem | C18: ='II. 03 II. 03 Rek'!G12 -> 0
A19: ZRN celkem | C19: =SUM(C15:C18) -> 0
A21: HZS | C21: ='II. 03 II. 03 Rek'!I12 -> 0
A22: ZRN+HZS | C22: =C19+C21 -> 0
A23: ZRN+ost.náklady+HZS | C23: =C22+G23 -> 0
A24: Vypracoval | D24: Za zhotovitele | F24: Za objednatele
A25: Jméno : | D25: Jméno : | F25: Jméno :
A26: Datum : | D26: Datum : | F26: Datum :
A28: Podpis : | D28: Podpis: | F28: Podpis:
A30: Základ pro DPH | C30: 21 | D30: % | F30: =C23-F32 -> 0
A31: DPH | C31: =C30 -> 21 | D31: % | F31: =ROUND(PRODUCT(F30,C31/100),0) -> 0
A32: Základ pro DPH | C32: 0 | D32: % | F32: 0
A33: DPH | C33: =C32 -> 0 | D33: % | F33: =ROUND(PRODUCT(F32,C33/100),0) -> 0
A34: CENA ZA OBJEKT CELKEM | F34: =ROUND(SUM(F30:F33),0) -> 0
A36: Poznámka :

Sheet II. 03 II. 03 Rek
A1: Stavba : | C1: 3334 Lomnice nad Popelkou - Vodovod a kanalizace | G1: Rozpočet : | H1: II. 03
A2: Objekt : | C2: II. 03 Přepojení vod. a kanal. přípojek | G2: Přepojení vod. a kanal. přípojek
A4: REKAPITULACE STAVEBNÍCH DÍLŮ
B6: Stavební díl | E6: HSV | F6: PSV | G6: Dodávka | H6: Montáž | I6: HZS
A7: ='II. 03 II. 03 Pol'!B7 -> 1 | B7: ='II. 03 II. 03 Pol'!C7 -> Zemní práce | E7: ='II. 03 II. 03 Pol'!BA178 -> 0 | F7: ='II. 03 II. 03 Pol'!BB178 -> 0 | G7: ='II. 03 II. 03 Pol'!BC178 -> 0 | H7: ='II. 03 II. 03 Pol'!BD178 -> 0 | I7: ='II. 03 II. 03 Pol'!BE178 -> 0
A8: ='II. 03 II. 03 Pol'!B179 -> 45 | B8: ='II. 03 II. 03 Pol'!C179 -> Podkladní a vedlejší konstrukce | E8: ='II. 03 II. 03 Pol'!BA184 -> 0 | F8: ='II. 03 II. 03 Pol'!BB184 -> 0 | G8: ='II. 03 II. 03 Pol'!BC184 -> 0 | H8: ='II. 03 II. 03 Pol'!BD184 -> 0 | I8: ='II. 03 II. 03 Pol'!BE184 -> 0
A9: ='II. 03 II. 03 Pol'!B185 -> 5 | B9: ='II. 03 II. 03 Pol'!C185 -> Komunikace | E9: ='II. 03 II. 03 Pol'!BA194 -> 0 | F9: ='II. 03 II. 03 Pol'!BB194 -> 0 | G9: ='II. 03 II. 03 Pol'!BC194 -> 0 | H9: ='II. 03 II. 03 Pol'!BD194 -> 0 | I9: ='II. 03 II. 03 Pol'!BE194 -> 0
A10: ='II. 03 II. 03 Pol'!B195 -> 8 | B10: ='II. 03 II. 03 Pol'!C195 -> Trubní vedení | E10: ='II. 03 II. 03 Pol'!BA275 -> 0 | F10: ='II. 03 II. 03 Pol'!BB275 -> 0 | G10: ='II. 03 II. 03 Pol'!BC275 -> 0 | H10: ='II. 03 II. 03 Pol'!BD275 -> 0 | I10: ='II. 03 II. 03 Pol'!BE275 -> 0
A11: ='II. 03 II. 03 Pol'!B276 -> 99 | B11: ='II. 03 II. 03 Pol'!C276 -> Staveništní přesun hmot | E11: ='II. 03 II. 03 Pol'!BA278 -> 0 | F11: ='II. 03 II. 03 Pol'!BB278 -> 0 | G11: ='II. 03 II. 03 Pol'!BC278 -> 0 | H11: ='II. 03 II. 03 Pol'!BD278 -> 0 | I11: ='II. 03 II. 03 Pol'!BE278 -> 0
B12: CELKEM OBJEKT | E12: =SUM(E7:E11) -> 0 | F12: =SUM(F7:F11) -> 0 | G12: =SUM(G7:G11) -> 0 | H12: =SUM(H7:H11) -> 0 | I12: =SUM(I7:I11) -> 0

Sheet II. 03 II. 03 Pol
A1: Položkový rozpočet
A3: Stavba : | C3: 3334 Lomnice nad Popelkou - Vodovod a kanalizace | E3: Rozpočet: | F3: ='II. 03 II. 03 Rek'!H1 -> II. 03
A4: Objekt : | C4: II. 03 Přepojení vod. a kanal. přípojek | E4: ='II. 03 II. 03 Rek'!G2 -> Přepojení vod. a kanal. přípojek
A6: P.č. | B6: Číslo položky | C6: Název položky | D6: MJ | E6: množství | F6: cena / MJ | G6: celkem (Kč) | H6: Jednotková hmotnost | I6: Celková hmotnost | J6: Jednotková dem.hmot. | K6: Celková dem.hmot.
A7: Díl: | B7: 1 | C7: Zemní práce | O7: 1
A8: 1 | B8: 113107625R00 | C8: Odstranění podkladu nad 50 m2,kam.drcené tl.25 cm | D8: m2 | E8: 142.48 | G8: =E8*F8 -> 0 | H8: 0 | I8: =E8*H8 -> 0 | J8: -0.55 | K8: =E8*J8 -> -78.364 | O8: 2 | AA8: 1 | AB8: 1 | AC8: 1 | AZ8: 1 | BA8: =IF(AZ8=1,G8,0) -> 0 | BB8: =IF(AZ8=2,G8,0) -> 0 | BC8: =IF(AZ8=3,G8,0) -> 0 | BD8: =IF(AZ8=4,G8,0) -> 0 | BE8: =IF(AZ8=5,G8,0) -> 0 | CA8: 1 | CB8: 1
C9: KP PVC DN150 (14 kusů) (Průměrná hloubka výkopů 2,00 m):69,90*0,80 | E9: 55.92 | M9: KP PVC DN150 (14 kusů) (Průměrná hloubka výkopů 2,00 m):69,90*0,80
C10: VP PE D 32x3,0 mm (27 kusů) (Průměrná hloubka výkopů 1,65 m):103,10*0,80 | E10: 82.48 | M10: VP PE D 32x3,0 mm (27 kusů) (Průměrná hloubka výkopů 1,65 m):103,10*0,80
C11: VP PE D 90x8,2 mm (1 kus) (Průměrná hloubka výkopů 1,65 m):5,10*0,80 | E11: 4.08 | M11: VP PE D 90x8,2 mm (1 kus) (Průměrná hloubka výkopů 1,65 m):5,10*0,80
A12: 2 | B12: 113108415R00 | C12: Odstranění asfaltové vrstvy pl.nad 50 m2, tl.15 cm | D12: m2 | E12: 142.48 | G12: =E12*F12 -> 0 | H12: 0 | I12: =E12*H12 -> 0 | J12: -0.33 | K12: =E12*J12 -> -47.0184 | O12: 2 | AA12: 1 | AB12: 1 | AC12: 1 | AZ12: 1 | BA12: =IF(AZ12=1,G12,0) -> 0 | BB12: =IF(AZ12=2,G12,0) -> 0 | BC12: =IF(AZ12=3,G12,0) -> 0 | BD12: =IF(AZ12=4,G12,0) -> 0 | BE12: =IF(AZ12=5,G12,0) -> 0 | CA12: 1 | CB12: 1
C13: KP PVC DN150 (14 kusů) (Průměrná hloubka výkopů 2,00 m):69,90*0,80 | E13: 55.92 | M13: KP PVC DN150 (14 kusů) (Průměrná hloubka výkopů 2,00 m):69,90*0,80
C14: VP PE D 32x3,0 mm (27 kusů) (Průměrná hloubka výkopů 1,65 m):103,10*0,80 | E14: 82.48 | M14: VP PE D 32x3,0 mm (27 kusů) (Průměrná hloubka výkopů 1,65 m):103,10*0,80
C15: VP PE D 90x8,2 mm (1 kus) (Průměrná hloubka výkopů 1,65 m):5,10*0,80 | E15: 4.08 | M15: VP PE D 90x8,2 mm (1 kus) (Průměrná hloubka výkopů 1,65 m):5,10*0,80
A16: 3 | B16: 114211101R00 | C16: Odstranění betonových trub do DN 150 mm, ve výkopu | D16: m | E16: 90 | G16: =E16*F16 -> 0 | H16: 0 | I16: =E16*H16 -> 0 | J16: -0.04 | K16: =E16*J16 -> -3.6 | O16: 2 | AA16: 1 | AB16: 1 | AC16: 1 | AZ16: 1 | BA16: =IF(AZ16=1,G16,0) -> 0 | BB16: =IF(AZ16=2,G16,0) -> 0 | BC16: =IF(AZ16=3,G16,0) -> 0 | BD16: =IF(AZ16=4,G16,0) -> 0 | BE16: =IF(AZ16=5,G16,0) -> 0 | CA16: 1 | CB16: 1
C17: Položka obsahuje odstranění materiálu obklopujícího potrubí v míře nutné pro vyzvednutí, rozpojení trub, uchopení a vyzvednutí trub z výkopu a uložení na dopravní prostředek včetně odvozu na skládku zhotovitele a poplatek za skládku. | L17: Položka obsahuje odstranění materiálu obklopujícího potrubí v míře nutné pro vyzvednutí, rozpojení trub, uchopení a vyzvednutí trub z výkopu a uložení na dopravní prostředek včetně odvozu na skládku zhotovitele a poplatek za skládku. | O17: 3
A18: 4 | B18: 115101201RRX | C18: Přečerpávání nebo převedení splašků a dešť. vod | D18: h | E18: 140 | G18: =E18*F18 -> 0 | H18: 0 | I18: =E18*H18 -> 0 | J18: 0 | K18: =E18*J18 -> 0 | O18: 2 | AA18: 1 | AB18: 1 | AC18: 1 | AZ18: 1 | BA18: =IF(AZ18=1,G18,0) -> 0 | BB18: =IF(AZ18=2,G18,0) -> 0 | BC18: =IF(AZ18=3,G18,0) -> 0 | BD18: =IF(AZ18=4,G18,0) -> 0 | BE18: =IF(AZ18=5,G18,0) -> 0 | CA18: 1 | CB18: 1
C19: Převedení a čerpání splašků nebo dešťových vod dle zvolené technologie zhotovitele stavby. | L19: Převedení a čerpání splašků nebo dešťových vod dle zvolené technologie zhotovitele stavby. | O19: 3
C20: (Množství bude určeno na stavbě dle skutečnosti) | L20: (Množství bude určeno na stavbě dle skutečnosti) | O20: 3
A21: 5 | B21: 119001401R00 | C21: Dočasné zajištění ocelového potrubí do DN 200 mm | D21: m | E21: 56.4 | G21: =E21*F21 -> 0 | H21: 0.00869 | I21: =E21*H21 -> 0.490116 | J21: 0 | K21: =E21*J21 -> 0 | O21: 2 | AA21: 1 | AB21: 1 | AC21: 1 | AZ21: 1 | BA21: =IF(AZ21=1,G21,0) -> 0 | BB21: =IF(AZ21=2,G21,0) -> 0 | BC21: =IF(AZ21=3,G21,0) -> 0 | BD21: =IF(AZ21=4,G21,0) -> 0 | BE21: =IF(AZ21=5,G21,0) -> 0 | CA21: 1 | CB21: 1
A22: 6 | B22: 119001422R00 | C22: Dočasné zajištění kabelů - v počtu 3 - 6 kabelů | D22: m | E22: 62.9 | G22: =E22*F22 -> 0 | H22: 0.03974 | I22: =E22*H22 -> 2.499646 | J22: 0 | K22: =E22*J22 -> 0 | O22: 2 | AA22: 1 | AB22: 1 | AC22: 1 | AZ22: 1 | BA22: =IF(AZ22=1,G22,0) -> 0 | BB22: =IF(AZ22=2,G22,0) -> 0 | BC22: =IF(AZ22=3,G22,0) -> 0 | BD22: =IF(AZ22=4,G22,0) -> 0 | BE22: =IF(AZ22=5,G22,0) -> 0 | CA22: 1 | CB22: 1
A23: 7 | B23: 121100002RAA | C23: Sejmutí ornice a uložení na deponii zpětný přesun, rozprostření v tl. 20 cm, osetí | D23: m3 | E23: 30 | G23: =E23*F23 -> 0 | H23: 0 | I23: =E23*H23 -> 0 | J23: 0 | K23: =E23*J23 -> 0 | O23: 2 | AA23: 1 | AB23: 1 | AC23: 1 | AZ23: 1 | BA23: =IF(AZ23=1,G23,0) -> 0 | BB23: =IF(AZ23=2,G23,0) -> 0 | BC23: =IF(AZ23=3,G23,0) -> 0 | BD23: =IF(AZ23=4,G23,0) -> 0 | BE23: =IF(AZ23=5,G23,0) -> 0 | CA23: 1 | CB23: 1
C24: KP PVC DN150 (14 kusů) (Průměrná hloubka výkopů 2,00 m): | E24: 0 | M24: KP PVC DN150 (14 kusů) (Průměrná hloubka výkopů 2,00 m):
C25: VP PE D 32x3,0 mm (27 kusů) (Průměrná hloubka výkopů 1,65 m): | E25: 0 | M25: VP PE D 32x3,0 mm (27 kusů) (Průměrná hloubka výkopů 1,65 m):
C26: VP PE D 90x8,2 mm (1 kus) (Průměrná hloubka výkopů 1,65 m): | E26: 0 | M26: VP PE D 90x8,2 mm (1 kus) (Průměrná hloubka výkopů 1,65 m):
C27: Odpočet ornice:75,00*2,00*0,20 | E27: 30 | M27: Odpočet ornice:75,00*2,00*0,20
A28: 8 | B28: 130001101RRX | C28: Příplatek za ztížené hloubení v blízkosti vedení | D28: m3 | E28: 68.9198 | G28: =E28*F28 -> 0 | H28: 0 | I28: =E28*H28 -> 0 | J28: 0 | K28: =E28*J28 -> 0 | O28: 2 | AA28: 1 | AB28: 1 | AC28: 1 | AZ28: 1 | BA28: =IF(AZ28=1,G28,0) -> 0 | BB28: =IF(AZ28=2,G28,0) -> 0 | BC28: =IF(AZ28=3,G28,0) -> 0 | BD28: =IF(AZ28=4,G28,0) -> 0 | BE28: =IF(AZ28=5,G28,0) -> 0 | CA28: 1 | CB28: 1
C29: Včetně případných nutných dokopávem a ručního výkopu podél sousedících inženýrských sítí | L29: Včetně případných nutných dokopávem a ručního výkopu podél sousedících inženýrských sítí | O29: 3
C30: Začátek provozního součtu | E30: 0 | M30: Začátek provozního součtu
C31: KP PVC DN150 (14 kusů) (Průměrná hloubka výkopů 2,00 m):94,90*0,80*2,00 | E31: 151.84 | M31: KP PVC DN150 (14 kusů) (Průměrná hloubka výkopů 2,00 m):94,90*0,80*2,00
C32: VP PE D 32x3,0 mm (27 kusů) (Průměrná hloubka výkopů 1,65 m):173,10*0,80*1,65 | E32: 228.492 | M32: VP PE D 32x3,0 mm (27 kusů) (Průměrná hloubka výkopů 1,65 m):173,10*0,80*1,65
C33: VP PE D 90x8,2 mm (1 kus) (Průměrná hloubka výkopů 1,65 m):5,10*0,80*1,65 | E33: 6.732 | M33: VP PE D 90x8,2 mm (1 kus) (Průměrná hloubka výkopů 1,65 m):5,10*0,80*1,65
C34: Odpočet konstrukce komunikací:-(273,10-20,00-75,00)*0,80*0,40 | E34: -56.992 | M34: Odpočet konstrukce komunikací:-(273,10-20,00-75,00)*0,80*0,40
C35: Odpočet konstrukce chodníků:-20,00*0,80*0,30 | E35: -4.8 | M35: Odpočet konstrukce chodníků:-20,00*0,80*0,30
C36: Odpočet ornice:-75,00*0,80*0,20 | E36: -12 | M36: Odpočet ornice:-75,00*0,80*0,20
C37: Konec provozního součtu | E37: 313.272 | M37: Konec provozního součtu
C38: V hornině tř. 3 - 5 - 22%:313,2720*0,22 | E38: 68.9198 | M38: V hornině tř. 3 - 5 - 22%:313,2720*0,22
A39: 9 | B39: 132201212R00 | C39: Hloubení rýh š.do 200 cm hor.3 do 1000m3,STROJNĚ | D39: m3 | E39: 140.9724 | G39: =E39*F39 -> 0 | H39: 0 | I39: =E39*H39 -> 0 | J39: 0 | K39: =E39*J39 -> 0 | O39: 2 | AA39: 1 | AB39: 1 | AC39: 1 | AZ39: 1 | BA39: =IF(AZ39=1,G39,0) -> 0 | BB39: =IF(AZ39=2,G39,0) -> 0 | BC39: =IF(AZ39=3,G39,0) -> 0 | BD39: =IF(AZ39=4,G39,0) -> 0 | BE39: =IF(AZ39=5,G39,0) -> 0 | CA39: 1 | CB39: 1
C40: Položka obsahuje hloubení rýh traktorbagrem, naložení výkopku na dopravní prostředek pro svislé, nebo vodorovné přemístění, popř. přemístění výkopku do 3 m (po povrchu území), případné zajištění rypadel polštáři, udržování pracoviště a ochranu výkopiště proti stékání srážkové vody z okolního terénu i s jejím odvodněním, nebo odvedením, přesekání a odstranění kořenů ve výkopišti, odstranění napadávek, urovnání dna výkopu. | L40: Položka obsahuje hloubení rýh traktorbagrem, naložení výkopku na dopravní prostředek pro svislé, nebo vodorovné přemístění, popř. přemístění výkopku do 3 m (po povrchu území), případné zajištění rypadel polštáři, udržování pracoviště a ochranu výkopiště proti stékání srážkové vody z okolního terénu i s jejím odvodněním, nebo odvedením, přesekání a odstranění kořenů ve výkopišti, odstranění napadávek, urovnání dna výkopu. | O40: 3
C41: Začátek provozního součtu | E41: 0 | M41: Začátek provozního součtu
C42: KP PVC DN150 (14 kusů) (Průměrná hloubka výkopů 2,00 m):94,90*0,80*2,00 | E42: 151.84 | M42: KP PVC DN150 (14 kusů) (Průměrná hloubka výkopů 2,00 m):94,90*0,80*2,00
C43: VP PE D 32x3,0 mm (27 kusů) (Průměrná hloubka výkopů 1,65 m):173,10*0,80*1,65 | E43: 228.492 | M43: VP PE D 32x3,0 mm (27 kusů) (Průměrná hloubka výkopů 1,65 m):173,10*0,80*1,65
C44: VP PE D 90x8,2 mm (1 kus) (Průměrná hloubka výkopů 1,65 m):5,10*0,80*1,65 | E44: 6.732 | M44: VP PE D 90x8,2 mm (1 kus) (Průměrná hloubka výkopů 1,65 m):5,10*0,80*1,65
C45: Odpočet konstrukce komunikací:-(273,10-20,00-75,00)*0,80*0,40 | E45: -56.992 | M45: Odpočet konstrukce komunikací:-(273,10-20,00-75,00)*0,80*0,40
C46: Odpočet konstrukce chodníků:-20,00*0,80*0,30 | E46: -4.8 | M46: Odpočet konstrukce chodníků:-20,00*0,80*0,30
C47: Odpočet ornice:-75,00*0,80*0,20 | E47: -12 | M47: Odpočet ornice:-75,00*0,80*0,20
C48: Konec provozního součtu | E48: 313.272 | M48: Konec provozního součtu
C49: V hornině tř. 3 - 45%:313,2720*0,45 | E49: 140.9724 | M49: V hornině tř. 3 - 45%:313,2720*0,45
A50: 10 | B50: 132201219R00 | C50: Přípl.za lepivost,hloubení rýh 200cm,hor.3,STROJNĚ | D50: m3 | E50: 70.4862 | G50: =E50*F50 -> 0 | H50: 0 | I50: =E50*H50 -> 0 | J50: 0 | K50: =E50*J50 -> 0 | O50: 2 | AA50: 1 | AB50: 1 | AC50: 1 | AZ50: 1 | BA50: =IF(AZ50=1,G50,0) -> 0 | BB50: =IF(AZ50=2,G50,0) -> 0 | BC50: =IF(AZ50=3,G50,0) -> 0 | BD50: =IF(AZ50=4,G50,0) -> 0 | BE50: =IF(AZ50=5,G50,0) -> 0 | CA50: 1 | CB50: 1
C51: Začátek provozního součtu | E51: 0 | M51: Začátek provozního součtu
C52: KP PVC DN150 (14 kusů) (Průměrná hloubka výkopů 2,00 m):94,90*0,80*2,00 | E52: 151.84 | M52: KP PVC DN150 (14 kusů) (Průměrná hloubka výkopů 2,00 m):94,90*0,80*2,00
C53: VP PE D 32x3,0 mm (27 kusů) (Průměrná hloubka výkopů 1,65 m):173,10*0,80*1,65 | E53: 228.492 | M53: VP PE D 32x3,0 mm (27 kusů) (Průměrná hloubka výkopů 1,65 m):173,10*0,80*1,65
C54: VP PE D 90x8,2 mm (1 kus) (Průměrná hloubka výkopů 1,65 m):5,10*0,80*1,65 | E54: 6.732 | M54: VP PE D 90x8,2 mm (1 kus) (Průměrná hloubka výkopů 1,65 m):5,10*0,80*1,65
C55: Odpočet konstrukce komunikací:-(273,10-20,00-75,00)*0,80*0,40 | E55: -56.992 | M55: Odpočet konstrukce komunikací:-(273,10-20,00-75,00)*0,80*0,40
C56: Odpočet konstrukce chodníků:-20,00*0,80*0,30 | E56: -4.8 | M56: Odpočet konstrukce chodníků:-20,00*0,80*0,30
C57: Odpočet ornice:-75,00*0,80*0,20 | E57: -12 | M57: Odpočet ornice:-75,00*0,80*0,20
C58: Konec provozního součtu | E58: 313.272 | M58: Konec provozního součtu
C59: V hornině tř. 3 - 45%:313,2720*0,45*0,5 | E59: 70.4862 | M59: V hornině tř. 3 - 45%:313,2720*0,45*0,5
A60: 11 | B60: 132301212R00 | C60: Hloubení rýh š.do 200 cm hor.4 do 1000 m3, STROJNĚ | D60: m3 | E60: 140.9724 | G60: =E60*F60 -> 0 | H60: 0 | I60: =E60*H60 -> 0 | J60: 0 | K60: =E60*J60 -> 0 | O60: 2 | AA60: 1 | AB60: 1 | AC60: 1 | AZ60: 1 | BA60: =IF(AZ60=1,G60,0) -> 0 | BB60: =IF(AZ60=2,G60,0) -> 0 | BC60: =IF(AZ60=3,G60,0) -> 0 | BD60: =IF(AZ60=4,G60,0) -> 0 | BE60: =IF(AZ60=5,G60,0) -> 0 | CA60: 1 | CB60: 1
C61: Položka obsahuje hloubení rýh traktorbagrem, naložení výkopku na dopravní prostředek pro svislé, nebo vodorovné přemístění, popř. přemístění výkopku do 3 m (po povrchu území), případné zajištění rypadel polštáři, udržování pracoviště a ochranu výkopiště proti stékání srážkové vody z okolního terénu i s jejím odvodněním, nebo odvedením, přesekání a odstranění kořenů ve výkopišti, odstranění napadávek, urovnání dna výkopu. | L61: Položka obsahuje hloubení rýh traktorbagrem, naložení výkopku na dopravní prostředek pro svislé, nebo vodorovné přemístění, popř. přemístění výkopku do 3 m (po povrchu území), případné zajištění rypadel polštáři, udržování pracoviště a ochranu výkopiště proti stékání srážkové vody z okolního terénu i s jejím odvodněním, nebo odvedením, přesekání a odstranění kořenů ve výkopišti, odstranění napadávek, urovnání dna výkopu. | O61: 3
C62: Začátek provozního součtu | E62: 0 | M62: Začátek provozního součtu
C63: KP PVC DN150 (14 kusů) (Průměrná hloubka výkopů 2,00 m):94,90*0,80*2,00 | E63: 151.84 | M63: KP PVC DN150 (14 kusů) (Průměrná hloubka výkopů 2,00 m):94,90*0,80*2,00
C64: VP PE D 32x3,0 mm (27 kusů) (Průměrná hloubka výkopů 1,65 m):173,10*0,80*1,65 | E64: 228.492 | M64: VP PE D 32x3,0 mm (27 kusů) (Průměrná hloubka výkopů 1,65 m):173,10*0,80*1,65
C65: VP PE D 90x8,2 mm (1 kus) (Průměrná hloubka výkopů 1,65 m):5,10*0,80*1,65 | E65: 6.732 | M65: VP PE D 90x8,2 mm (1 kus) (Průměrná hloubka výkopů 1,65 m):5,10*0,80*1,65
C66: Odpočet konstrukce komunikací:-(273,10-20,00-75,00)*0,80*0,40 | E66: -56.992 | M66: Odpočet konstrukce komunikací:-(273,10-20,00-75,00)*0,80*0,40
C67: Odpočet konstrukce chodníků:-20,00*0,80*0,30 | E67: -4.8 | M67: Odpočet konstrukce chodníků:-20,00*0,80*0,30
C68: Odpočet ornice:-75,00*0,80*0,20 | E68: -12 | M68: Odpočet ornice:-75,00*0,80*0,20
C69: Konec provozního součtu | E69: 313.272 | M69: Konec provozního součtu
C70: V hornině tř. 4 - 45%:313,2720*0,45 | E70: 140.9724 | M70: V hornině tř. 4 - 45%:313,2720*0,45
A71: 12 | B71: 132301219R00 | C71: Přípl.za lepivost,hloubení rýh 200cm,hor.4,STROJNĚ | D71: m3 | E71: 70.4862 | G71: =E71*F71 -> 0 | H71: 0 | I71: =E71*H71 -> 0 | J71: 0 | K71: =E71*J71 -> 0 | O71: 2 | AA71: 1 | AB71: 1 | AC71: 1 | AZ71: 1 | BA71: =IF(AZ71=1,G71,0) -> 0 | BB71: =IF(AZ71=2,G71,0) -> 0 | BC71: =IF(AZ71=3,G71,0) -> 0 | BD71: =IF(AZ71=4,G71,0) -> 0 | BE71: =IF(AZ71=5,G71,0) -> 0 | CA71: 1 | CB71: 1
C72: Začátek provozního součtu | E72: 0 | M72: Začátek provozního součtu
C73: KP PVC DN150 (14 kusů) (Průměrná hloubka výkopů 2,00 m):94,90*0,80*2,00 | E73: 151.84 | M73: KP PVC DN150 (14 kusů) (Průměrná hloubka výkopů 2,00 m):94,90*0,80*2,00
C74: VP PE D 32x3,0 mm (27 kusů) (Průměrná hloubka výkopů 1,65 m):173,10*0,80*1,65 | E74: 228.492 | M74: VP PE D 32x3,0 mm (27 kusů) (Průměrná hloubka výkopů 1,65 m):173,10*0,80*1,65
C75: VP PE D 90x8,2 mm (1 kus) (Průměrná hloubka výkopů 1,65 m):5,10*0,80*1,65 | E75: 6.732 | M75: VP PE D 90x8,2 mm (1 kus) (Průměrná hloubka výkopů 1,65 m):5,10*0,80*1,65
C76: Odpočet konstrukce komunikací:-(273,10-20,00-75,00)*0,80*0,40 | E76: -56.992 | M76: Odpočet konstrukce komunikací:-(273,10-20,00-75,00)*0,80*0,40
C77: Odpočet konstrukce chodníků:-20,00*0,80*0,30 | E77: -4.8 | M77: Odpočet konstrukce chodníků:-20,00*0,80*0,30
C78: Odpočet ornice:-75,00*0,80*0,20 | E78: -12 | M78: Odpočet ornice:-75,00*0,80*0,20
C79: Konec provozního součtu | E79: 313.272 | M79: Konec provozního součtu
C80: V hornině tř. 4 - 45%:313,2720*0,45*0,5 | E80: 70.4862 | M80: V hornině tř. 4 - 45%:313,2720*0,45*0,5
A81: 13 | B81: 132401211R00 | C81: Hloubení rýh šířky do 200 cm v hor.5, STROJNĚ | D81: m3 | E81: 31.3272 | G81: =E81*F81 -> 0 | H81: 0 | I81: =E81*H81 -> 0 | J81: 0 | K81: =E81*J81 -> 0 | O81: 2 | AA81: 1 | AB81: 1 | AC81: 1 | AZ81: 1 | BA81: =IF(AZ81=1,G81,0) -> 0 | BB81: =IF(AZ81=2,G81,0) -> 0 | BC81: =IF(AZ81=3,G81,0) -> 0 | BD81: =IF(AZ81=4,G81,0) -> 0 | BE81: =IF(AZ81=5,G81,0) -> 0 | CA81: 1 | CB81: 1
C82: Položka obsahuje hloubení jámy kolovým rypadlem s rozrývacím zubem, naložení výkopku na dopravní prostředek pro svislé, nebo vodorovné přemístění, popř. přemístění výkopku do 3 m (po povrchu území), případné zajištění rypadel polštáři, udržování pracoviště a ochranu výkopiště proti stékání srážkové vody z okolního terénu i s jejím odvodněním, nebo odvedením, přesekání a odstranění kořenů ve výkopišti, odstranění napadávek, urovnání dna výkopu. Položka se používá bez ohledu na těžené množství. | L82: Položka obsahuje hloubení jámy kolovým rypadlem s rozrývacím zubem, naložení výkopku na dopravní prostředek pro svislé, nebo vodorovné přemístění, popř. přemístění výkopku do 3 m (po povrchu území), případné zajištění rypadel polštáři, udržování pracoviště a ochranu výkopiště proti stékání srážkové vody z okolního terénu i s jejím odvodněním, nebo odvedením, přesekání a odstranění kořenů ve výkopišti, odstranění napadávek, urovnání dna výkopu. Položka se používá bez ohledu na těžené množství. | O82: 3
C83: Začátek provozního součtu | E83: 0 | M83: Začátek provozního součtu
C84: KP PVC DN150 (14 kusů) (Průměrná hloubka výkopů 2,00 m):94,90*0,80*2,00 | E84: 151.84 | M84: KP PVC DN150 (14 kusů) (Průměrná hloubka výkopů 2,00 m):94,90*0,80*2,00
C85: VP PE D 32x3,0 mm (27 kusů) (Průměrná hloubka výkopů 1,65 m):173,10*0,80*1,65 | E85: 228.492 | M85: VP PE D 32x3,0 mm (27 kusů) (Průměrná hloubka výkopů 1,65 m):173,10*0,80*1,65
C86: VP PE D 90x8,2 mm (1 kus) (Průměrná hloubka výkopů 1,65 m):5,10*0,80*1,65 | E86: 6.732 | M86: VP PE D 90x8,2 mm (1 kus) (Průměrná hloubka výkopů 1,65 m):5,10*0,80*1,65
C87: Odpočet konstrukce komunikací:-(273,10-20,00-75,00)*0,80*0,40 | E87: -56.992 | M87: Odpočet konstrukce komunikací:-(273,10-20,00-75,00)*0,80*0,40
C88: Odpočet konstrukce chodníků:-20,00*0,80*0,30 | E88: -4.8 | M88: Odpočet konstrukce chodníků:-20,00*0,80*0,30
C89: Odpočet ornice:-75,00*0,80*0,20 | E89: -12 | M89: Odpočet ornice:-75,00*0,80*0,20
C90: Konec provozního součtu | E90: 313.272 | M90: Konec provozního součtu
C91: V hornině tř. 5 - 10%:313,2720*0,1 | E91: 31.3272 | M91: V hornině tř. 5 - 10%:313,2720*0,1
A92: 14 | B92: 151101101R00 | C92: Pažení a rozepření stěn rýh - příložné - hl.do 2 m | D92: m2 | E92: 967.66 | G92: =E92*F92 -> 0 | H92: 0.00099 | I92: =E92*H92 -> 0.9579834 | J92: 0 | K92: =E92*J92 -> 0 | O92: 2 | AA92: 1 | AB92: 1 | AC92: 1 | AZ92: 1 | BA92: =IF(AZ92=1,G92,0) -> 0 | BB92: =IF(AZ92=2,G92,0) -> 0 | BC92: =IF(AZ92=3,G92,0) -> 0 | BD92: =IF(AZ92=4,G92,0) -> 0 | BE92: =IF(AZ92=5,G92,0) -> 0 | CA92: 1 | CB92: 1
C93: KP PVC DN150 (14 kusů) (Průměrná hloubka výkopů 2,00 m):94,90*2,00*2 | E93: 379.6 | M93: KP PVC DN150 (14 kusů) (Průměrná hloubka výkopů 2,00 m):94,90*2,00*2
C94: VP PE D 32x3,0 mm (27 kusů) (Průměrná hloubka výkopů 1,65 m):173,10*1,65*2 | E94: 571.23 | M94: VP PE D 32x3,0 mm (27 kusů) (Průměrná hloubka výkopů 1,65 m):173,10*1,65*2
C95: VP PE D 90x8,2 mm (1 kus) (Průměrná hloubka výkopů 1,65 m):5,10*1,65*2 | E95: 16.83 | M95: VP PE D 90x8,2 mm (1 kus) (Průměrná hloubka výkopů 1,65 m):5,10*1,65*2
A96: 15 | B96: 151101111R00 | C96: Odstranění pažení stěn rýh - příložné - hl. do 2 m | D96: m2 | E96: 967.66 | G96: =E96*F96 -> 0 | H96: 0 | I96: =E96*H96 -> 0 | J96: 0 | K96: =E96*J96 -> 0 | O96: 2 | AA96: 1 | AB96: 1 | AC96: 1 | AZ96: 1 | BA96: =IF(AZ96=1,G96,0) -> 0 | BB96: =IF(AZ96=2,G96,0) -> 0 | BC96: =IF(AZ96=3,G96,0) -> 0 | BD96: =IF(AZ96=4,G96,0) -> 0 | BE96: =IF(AZ96=5,G96,0) -> 0 | CA96: 1 | CB96: 1
C97: KP PVC DN150 (14 kusů) (Průměrná hloubka výkopů 2,00 m):94,90*2,00*2 | E97: 379.6 | M97: KP PVC DN150 (14 kusů) (Průměrná hloubka výkopů 2,00 m):94,90*2,00*2
C98: VP PE D 32x3,0 mm (27 kusů) (Průměrná hloubka výkopů 1,65 m):173,10*1,65*2 | E98: 571.23 | M98: VP PE D 32x3,0 mm (27 kusů) (Průměrná hloubka výkopů 1,65 m):173,10*1,65*2
C99: VP PE D 90x8,2 mm (1 kus) (Průměrná hloubka výkopů 1,65 m):5,10*1,65*2 | E99: 16.83 | M99: VP PE D 90x8,2 mm (1 kus) (Průměrná hloubka výkopů 1,65 m):5,10*1,65*2
A100: 16 | B100: 162701105RSZ | C100: Vodorovné přemístění výkopku z hor.1-4 na skládku zhotovitele | D100: m3 | E100: 249.408 | G100: =E100*F100 -> 0 | H100: 0 | I100: =E100*H100 -> 0 | J100: 0 | K100: =E100*J100 -> 0 | O100: 2 | AA100: 1 | AB100: 1 | AC100: 1 | AZ100: 1 | BA100: =IF(AZ100=1,G100,0) -> 0 | BB100: =IF(AZ100=2,G100,0) -> 0 | BC100: =IF(AZ100=3,G100,0) -> 0 | BD100: =IF(AZ100=4,G100,0) -> 0 | BE100: =IF(AZ100=5,G100,0) -> 0 | CA100: 1 | CB100: 1
C101: Výkopy: | E101: 0 | M101: Výkopy:
C102: V hornině tř. 3 - 5 :313,2720 | E102: 313.272 | M102: V hornině tř. 3 - 5 :313,2720
C103: Odpočet zásypů zeminou:-63,8640 | E103: -63.864 | M103: Odpočet zásypů zeminou:-63,8640
A104: 17 | B104: 174101101R00 | C104: Zásyp jam, rýh, šachet se zhutněním | D104: m3 | E104: 209.6934 | G104: =E104*F104 -> 0 | H104: 0 | I104: =E104*H104 -> 0 | J104: 0 | K104: =E104*J104 -> 0 | O104: 2 | AA104: 1 | AB104: 1 | AC104: 1 | AZ104: 1 | BA104: =IF(AZ104=1,G104,0) -> 0 | BB104: =IF(AZ104=2,G104,0) -> 0 | BC104: =IF(AZ104=3,G104,0) -> 0 | BD104: =IF(AZ104=4,G104,0) -> 0 | BE104: =IF(AZ104=5,G104,0) -> 0 | CA104: 1 | CB104: 1
C105: Položka obsahuje strojní přemístění materiálu pro zásyp ze vzdálenosti do 10 m od okraje zásypu. | L105: Položka obsahuje strojní přemístění materiálu pro zásyp ze vzdálenosti do 10 m od okraje zásypu. | O105: 3
C106: Zásypy zeminou:63,8640 | E106: 63.864 | M106: Zásypy zeminou:63,8640
C107: Začátek provozního součtu | E107: 0 | M107: Začátek provozního součtu
C108: KP PVC DN150 (14 kusů) (Průměrná hloubka výkopů 2,00 m):15,00*0,80*2,00 | E108: 24 | M108: KP PVC DN150 (14 kusů) (Průměrná hloubka výkopů 2,00 m):15,00*0,80*2,00
C109: VP PE D 32x3,0 mm (27 kusů) (Průměrná hloubka výkopů 1,65 m):60,00*0,80*1,65 | E109: 79.2 | M109: VP PE D 32x3,0 mm (27 kusů) (Průměrná hloubka výkopů 1,65 m):60,00*0,80*1,65
C110: Odpočet ornice:-75,00*0,80*0,20 | E110: -12 | M110: Odpočet ornice:-75,00*0,80*0,20
C111: Odpočet lože, potrubí a obsypů: | E111: 0 | M111: Odpočet lože, potrubí a obsypů:
C112: KP PVC DN150 (14 kusů) (Průměrná hloubka výkopů 2,00 m):-15,00*0,80*(0,10+0,15+0,30) | E112: -6.6 | M112: KP PVC DN150 (14 kusů) (Průměrná hloubka výkopů 2,00 m):-15,00*0,80*(0,10+0,15+0,30)
C113: VP PE D 32x3,0 mm (27 kusů) (Průměrná hloubka výkopů 1,65 m):-60,00*0,80*(0,10+0,032+0,30) | E113: -20.736 | M113: VP PE D 32x3,0 mm (27 kusů) (Průměrná hloubka výkopů 1,65 m):-60,00*0,80*(0,10+0,032+0,30)
C114: Konec provozního součtu | E114: 63.864 | M114: Konec provozního součtu
C115: Zásypy štěrkodrtí fr. 0-63 mm:145,8294 | E115: 145.8294 | M115: Zásypy štěrkodrtí fr. 0-63 mm:145,8294
C116: Začátek provozního součtu | E116: 0 | M116: Začátek provozního součtu
C117: KP PVC DN150 (14 kusů) (Průměrná hloubka výkopů 2,00 m):79,90*0,80*2,00 | E117: 127.84 | M117: KP PVC DN150 (14 kusů) (Průměrná hloubka výkopů 2,00 m):79,90*0,80*2,00
C118: VP PE D 32x3,0 mm (27 kusů) (Průměrná hloubka výkopů 1,65 m):113,10*0,80*1,65 | E118: 149.292 | M118: VP PE D 32x3,0 mm (27 kusů) (Průměrná hloubka výkopů 1,65 m):113,10*0,80*1,65
C119: VP PE D 90x8,2 mm (1 kus) (Průměrná hloubka výkopů 1,65 m):5,10*0,80*1,65 | E119: 6.732 | M119: VP PE D 90x8,2 mm (1 kus) (Průměrná hloubka výkopů 1,65 m):5,10*0,80*1,65
C120: Odpočet konstrukce komunikací:-(198,10-20,00)*0,80*0,40 | E120: -56.992 | M120: Odpočet konstrukce komunikací:-(198,10-20,00)*0,80*0,40
C121: Odpočet konstrukce chodníků:-20,00*0,80*0,30 | E121: -4.8 | M121: Odpočet konstrukce chodníků:-20,00*0,80*0,30
C122: Odpočet lože, potrubí a obsypů: | E122: 0 | M122: Odpočet lože, potrubí a obsypů:
C123: KP PVC DN150 (14 kusů) (Průměrná hloubka výkopů 2,00 m):-79,90*0,80*(0,10+0,15+0,30) | E123: -35.156 | M123: KP PVC DN150 (14 kusů) (Průměrná hloubka výkopů 2,00 m):-79,90*0,80*(0,10+0,15+0,30)
C124: VP PE D 32x3,0 mm (27 kusů) (Průměrná hloubka výkopů 1,65 m):-113,10*0,80*(0,10+0,032+0,30) | E124: -39.0874 | M124: VP PE D 32x3,0 mm (27 kusů) (Průměrná hloubka výkopů 1,65 m):-113,10*0,80*(0,10+0,032+0,30)
C125: VP PE D 90x8,2 mm (1 kus) (Průměrná hloubka výkopů 1,65 m):-5,10*0,80*(0,10+0,09+0,30) | E125: -1.9992 | M125: VP PE D 90x8,2 mm (1 kus) (Průměrná hloubka výkopů 1,65 m):-5,10*0,80*(0,10+0,09+0,30)
C126: Konec provozního součtu | E126: 145.8294 | M126: Konec provozního součtu
A127: 18 | B127: 175101101R00 | C127: Obsyp potrubí bez prohození sypaniny | D127: m3 | E127: 79.8819 | G127: =E127*F127 -> 0 | H127: 0 | I127: =E127*H127 -> 0 | J127: 0 | K127: =E127*J127 -> 0 | O127: 2 | AA127: 1 | AB127: 1 | AC127: 1 | AZ127: 1 | BA127: =IF(AZ127=1,G127,0) -> 0 | BB127: =IF(AZ127=2,G127,0) -> 0 | BC127: =IF(AZ127=3,G127,0) -> 0 | BD127: =IF(AZ127=4,G127,0) -> 0 | BE127: =IF(AZ127=5,G127,0) -> 0 | CA127: 1 | CB127: 1
C128: KP PVC DN150 (14 kusů) (Průměrná hloubka výkopů 2,00 m):94,90*(0,80*(0,15+0,30)-0,075^2*Pi) | E128: 32.487 | M128: KP PVC DN150 (14 kusů) (Průměrná hloubka výkopů 2,00 m):94,90*(0,80*(0,15+0,30)-0,075^2*Pi)
C129: VP PE D 32x3,0 mm (27 kusů) (Průměrná hloubka výkopů 1,65 m):173,10*(0,80*(0,032+0,30)-0,016^2*Pi) | E129: 45.8361 | M129: VP PE D 32x3,0 mm (27 kusů) (Průměrná hloubka výkopů 1,65 m):173,10*(0,80*(0,032+0,30)-0,016^2*Pi)
C130: VP PE D 90x8,2 mm (1 kus) (Průměrná hloubka výkopů 1,65 m):5,10*(0,80*(0,09+0,30)-0,045^2*Pi) | E130: 1.5588 | M130: VP PE D 90x8,2 mm (1 kus) (Průměrná hloubka výkopů 1,65 m):5,10*(0,80*(0,09+0,30)-0,045^2*Pi)
A131: 19 | B131: 199000002R00 | C131: Poplatek za skládku horniny 1- 7 č. dle katal. odpadů 17 05 04 | D131: m3 | E131: 249.408 | G131: =E131*F131 -> 0 | H131: 0 | I131: =E131*H131 -> 0 | J131: 0 | K131: =E131*J131 -> 0 | O131: 2 | AA131: 1 | AB131: 1 | AC131: 1 | AZ131: 1 | BA131: =IF(AZ131=1,G131,0) -> 0 | BB131: =IF(AZ131=2,G131,0) -> 0 | BC131: =IF(AZ131=3,G131,0) -> 0 | BD131: =IF(AZ131=4,G131,0) -> 0 | BE131: =IF(AZ131=5,G131,0) -> 0 | CA131: 1 | CB131: 1
C132: Výkopy: | E132: 0 | M132: Výkopy:
C133: V hornině tř. 3 - 5 :313,2720 | E133: 313.272 | M133: V hornině tř. 3 - 5 :313,2720
C134: Odpočet zásypů zeminou:-63,8640 | E134: -63.864 | M134: Odpočet zásypů zeminou:-63,8640
A135: 20 | B135: 919735113R00 | C135: Řezání stávajícího živičného krytu tl. 10 - 15 cm | D135: m | E135: 356.2 | G135: =E135*F135 -> 0 | H135: 0 | I135: =E135*H135 -> 0 | J135: 0 | K135: =E135*J135 -> 0 | O135: 2 | AA135: 1 | AB135: 1 | AC135: 1 | AZ135: 1 | BA135: =IF(AZ135=1,G135,0) -> 0 | BB135: =IF(AZ135=2,G135,0) -> 0 | BC135: =IF(AZ135=3,G135,0) -> 0 | BD135: =IF(AZ135=4,G135,0) -> 0 | BE135: =IF(AZ135=5,G135,0) -> 0 | CA135: 1 | CB135: 1
C136: KP PVC DN150 (14 kusů) (Průměrná hloubka výkopů 2,00 m):69,90*2 | E136: 139.8 | M136: KP PVC DN150 (14 kusů) (Průměrná hloubka výkopů 2,00 m):69,90*2
C137: VP PE D 32x3,0 mm (27 kusů) (Průměrná hloubka výkopů 1,65 m):103,10*2 | E137: 206.2 | M137: VP PE D 32x3,0 mm (27 kusů) (Průměrná hloubka výkopů 1,65 m):103,10*2
C138: VP PE D 90x8,2 mm (1 kus) (Průměrná hloubka výkopů 1,65 m):5,10*2 | E138: 10.2 | M138: VP PE D 90x8,2 mm (1 kus) (Průměrná hloubka výkopů 1,65 m):5,10*2
